Workbook

Sheet Instructions
D1: ACR Tool for Tier I Estimation of Emissions from Livestock Management Projects
A3: General:
A4: Please refer to the accompanying documentation titled "ACR Tool for Tier I Estimation of Emissions from Livestock Management -
A5: Supporting Documentation for Data and Equations" for detailed information regarding the design of this tool.
A6: Note: This tool utilizes macros so please click 'enable macros' if prompted to do so.
A8: Steps to be followed for completing the tool:
A9: In each tab of the spreadsheet, enter data into BLUE CELLS. All tabs must be completed.
A10: Enter data in the order shown below.
A11: 1. Biotic
A12: 2. Enteric
A13: 3. Manure
A14: 4. Fertilizer
A15: 5. Fossil fuel
A16: After all data are entered, view results in the 6. T-XANTE tab.
A17: NOTE: A positive number in the "calculated value" field of each tab represents an emission reduction.
A19: Applicability:
A20: The full tool is required under ACR's Grazing Land and Livestock Management methodology and is referenced as the "A-MICROSCALE module" for that application.
A21: This tool may also be referenced within other ACR approved methodologies.
A22: Please refer to the tab called "GLLM Coversheet" for more information regarding the use of this tool for the GLLM Methodology.

Sheet GLLM Coversheet
D1: GRAZING LAND AND LIVESTOCK MANAGEMENT GREENHOUSE GAS MITIGATION METHODOLOGY
H3: MODULE NAME:
H5: ACCOUNTING MODULE FOR MICROSCALE EMISSIONS version 1.0
H7: MODULE CODE:
H9: A-MICROSCALE and T-XANTE
D12: Output Parameter(s)
D13: Parameter Name: S-BIO
D14: Parameter Description: Net microscale biotic sequestration/emissions (t CO2e)
D15: Parameter Name: E-FERT
D16: Parameter Description: Net microscale fertilizer emissions (t CO2e)
D17: Parameter Name: E-ENT
D18: Parameter Description: Net microscale enteric emissions (t CO2e)
D19: Parameter Name: E-MAN
D20: Parameter Description: Net microscale manure emissions (t CO2e)
D21: Parameter Name: E-FF
D22: Parameter Description: Net microscale fossil fuel emissions (t CO2e)
D24: Key Input Data:
D25: Size of Project Area
D26: Soil Type
D27: Mean Annual Temperature, Mean Daily Temperature during winter months (if applicable)
D28: Livestock Population Information
D29: Type of Manure Management System
D30: Fertilizer Application Rates
D31: Quantities of Fossil Fuels Consumed
D33: Purpose:
D34: To estimate emissions and net emission reductions from grazing land and livestock management
D35: where reductions from focal sources are less than 5,000 t CO2-e annually. The module estimates
D36: both emissions in the baseline case and with project implementation.
D37: The results are fed into T-XANTE to determine which modules should be used.
D39: Applicability Conditions:
D40: The module is applicable to all grazing land and livestock management greenhouse gas emissions
D41: under this methodology. Where reductions or emissions from focal sources are less than 5000
D42: t CO2-e annually (see T-XANTE) the module can be used and the final accounting methodology.

Sheet 1. BIOTIC
A1: A-MICROSCALE
H3: UNIT CONVERTER
I4: acres | J4: = | K4: =IF(H4="","",H4*0.404686) ->  | L4: hectares (ha)
A5: Parameter Name: | B5: S_BIO
A6: Parameter Description: | B6: Net microscale biotic sequestration (+)/emissions (-) (t CO2e)
A7: Calculated value: | B7: =IF(ISERROR('Biotic Data'!B38),0,'Biotic Data'!B38) -> 0 | C7: t CO2e yr-1
A9: Instructions: Enter data into the light blue cells for both baseline and project scenarios. Use the unit converter box in the upper right as needed.
B10: Select from drop-down menus.
A11: Geographic Region: | B11: North America
A12: Is the project within the United States? | B12: Yes
A13: If in the U.S., which State? | B13: IA
A14: Climate Region: | B14: Cool Temperate Moist
A15: Soil Type: | B15: Atterberry
A16: Size of Project Area: | C16: ha
B18: BASELINE DATA | C18: PROJECT DATA
A19: Land Cover Type | B19: Long Term Cultivated Crop | C19: Long Term Cultivated Crop
A20: Grassland Management | B20: N/A | C20: N/A
A21: Grassland Inputs | B21: N/A | C21: N/A
A22: Cropland Management | B22: Reduced Till | C22: Reduced Till
A23: Cropland Inputs | B23: Medium | C23: High W/ Manure
A25: Are you planting trees in the project area? | C25: No
A26: =IF(C25="yes","Over how many hectares?","") ->  | D26: =IF(C25="yes","hectares","") -> 

Sheet 2. ENTERIC
A1: A-MICROSCALE
A5: Parameter Name: | C5: E_ENT
A6: Parameter Description: | C6: Net microscale enteric emissions reductions (+) or emissions (-) (t CO2e)
A7: Calculated value: | C7: =IF(ISERROR('Enteric Data'!E25-'Enteric Data'!O25),"",'Enteric Data'!E25-'Enteric Data'!O25) -> 0 | D7: t CO2e yr-1
A9: INSTRUCTIONS: Enter data into LIGHT BLUE CELLS for both baseline and project scenarios. Change values in gray cells only if you have project specific data, otherwise leave existing default values as they appear in the cell.
A11: Geographic Region: | C11: North America
C13: BASELINE DATA | L13: PROJECT DATA
A14: Click on category to see description of each animal category. --> | C14: Dairy Cows | D14: Mature females | E14: Mature Males | F14: Calves on milk | G14: Calves on milk/forage | H14: Growing heifers/steers | I14: Replacement/growing | J14: Feedlot cattle | L14: Dairy Cows | M14: Mature females | N14: Mature Males | O14: Calves on milk | P14: Calves on milk/forage | Q14: Growing heifers/steers | R14: Replacement/growing | S14: Feedlot cattle
A15: January | C15: 0 | D15: 0 | E15: 0 | F15: 0 | G15: 0 | H15: 0 | I15: 0 | J15: 0 | L15: 0 | M15: 0 | N15: 0 | O15: 0 | P15: 0 | Q15: 0 | R15: 0 | S15: 0
A16: February | C16: 0 | D16: 0 | E16: 0 | F16: 0 | G16: 0 | H16: 0 | I16: 0 | J16: 0 | L16: 0 | M16: 0 | N16: 0 | O16: 0 | P16: 0 | Q16: 0 | R16: 0 | S16: 0
A17: March | C17: 0 | D17: 0 | E17: 0 | F17: 0 | G17: 0 | H17: 0 | I17: 0 | J17: 0 | L17: 0 | M17: 0 | N17: 0 | O17: 0 | P17: 0 | Q17: 0 | R17: 0 | S17: 0
A18: April | C18: 0 | D18: 0 | E18: 0 | F18: 0 | G18: 0 | H18: 0 | I18: 0 | J18: 0 | L18: 0 | M18: 0 | N18: 0 | O18: 0 | P18: 0 | Q18: 0 | R18: 0 | S18: 0
A19: May | C19: 0 | D19: 0 | E19: 0 | F19: 0 | G19: 0 | H19: 0 | I19: 0 | J19: 0 | L19: 0 | M19: 0 | N19: 0 | O19: 0 | P19: 0 | Q19: 0 | R19: 0 | S19: 0
A20: June | C20: 0 | D20: 0 | E20: 0 | F20: 0 | G20: 0 | H20: 0 | I20: 0 | J20: 0 | L20: 0 | M20: 0 | N20: 0 | O20: 0 | P20: 0 | Q20: 0 | R20: 0 | S20: 0
A21: July | C21: 0 | D21: 0 | E21: 0 | F21: 0 | G21: 0 | H21: 0 | I21: 0 | J21: 0 | L21: 0 | M21: 0 | N21: 0 | O21: 0 | P21: 0 | Q21: 0 | R21: 0 | S21: 0
A22: August | C22: 0 | D22: 0 | E22: 0 | F22: 0 | G22: 0 | H22: 0 | I22: 0 | J22: 0 | L22: 0 | M22: 0 | N22: 0 | O22: 0 | P22: 0 | Q22: 0 | R22: 0 | S22: 0
A23: September | C23: 0 | D23: 0 | E23: 0 | F23: 0 | G23: 0 | H23: 0 | I23: 0 | J23: 0 | L23: 0 | M23: 0 | N23: 0 | O23: 0 | P23: 0 | Q23: 0 | R23: 0 | S23: 0
A24: October | C24: 0 | D24: 0 | E24: 0 | F24: 0 | G24: 0 | H24: 0 | I24: 0 | J24: 0 | L24: 0 | M24: 0 | N24: 0 | O24: 0 | P24: 0 | Q24: 0 | R24: 0 | S24: 0
A25: November | C25: 0 | D25: 0 | E25: 0 | F25: 0 | G25: 0 | H25: 0 | I25: 0 | J25: 0 | L25: 0 | M25: 0 | N25: 0 | O25: 0 | P25: 0 | Q25: 0 | R25: 0 | S25: 0
A26: December | C26: 0 | D26: 0 | E26: 0 | F26: 0 | G26: 0 | H26: 0 | I26: 0 | J26: 0 | L26: 0 | M26: 0 | N26: 0 | O26: 0 | P26: 0 | Q26: 0 | R26: 0 | S26: 0
A27: Average Monthly Number of Animals Present | C27: =((C15*31)+(C16*28)+(C17*31)+(C18*30)+(C19*31)+(C20*30)+(C21*31)+(C22*31)+(C23*30)+(C24*31)+(C25*30)+(C26*31))/365 -> 0 | D27: =((D15*31)+(D16*28)+(D17*31)+(D18*30)+(D19*31)+(D20*30)+(D21*31)+(D22*31)+(D23*30)+(D24*31)+(D25*30)+(D26*31))/365 -> 0 | E27: 0 | F27: 0 | G27: 0 | H27: 0 | I27: 0 | J27: 0 | L27: 0 | M27: 0 | N27: 0 | O27: 0 | P27: 0 | Q27: 0 | R27: 0 | S27: 0
A28: % of Females that give birth in a year: | C28: 90 | D28: 80 | E28: 0 | F28: 0 | G28: 0 | H28: 0 | I28: 0 | J28: 0 | L28: 90 | M28: 80 | N28: 0 | O28: 0 | P28: 0 | Q28: 0 | R28: 0 | S28: 0
A29: Feeding Situation: Enter the % of the year under each feeding situation per animal category.
A30: Stall-fed/Confined (tethered, pen, barn) | F30: 20 | O30: 20
A31: On pasture (confined in areas with sufficient forage) | F31: 80 | O31: 80
A32: Grazing large areas (i.e., rangeland) | F32: 0 | O32: 0
A34: Average Live-Weight of Animal (kg) | C34: 600 | D34: 500 | E34: 800 | F34: 100 | G34: 185 | H34: 265 | I34: 375 | J34: 415 | L34: 600 | M34: 500 | N34: 800 | O34: 100 | P34: 185 | Q34: 265 | R34: 375 | S34: 415
A35: Average Daily Weight Gain (kg day-1) | C35: 0 | D35: 0 | E35: 0 | F35: 0.9 | G35: 0.9 | H35: 0.7 | I35: 0.4 | J35: 1.3 | L35: 0 | M35: 0 | N35: 0 | O35: 0.9 | P35: 0.9 | Q35: 0.7 | R35: 0.4 | S35: 1.3
A36: Total Annual Milk Production (kg cow-1 yr-1) | C36: 8395 | D36: 1204.5 | E36: 0 | F36: 0 | G36: 0 | H36: 0 | I36: 0 | J36: 0 | L36: 8395 | M36: 1204.5 | N36: 0 | O36: 0 | P36: 0 | Q36: 0 | R36: 0 | S36: 0
A37: Fat content of milk: (%) | C37: 4 | D37: 4 | E37: 0 | F37: 0 | G37: 0 | H37: 0 | I37: 0 | J37: 0 | L37: 4 | M37: 4 | N37: 0 | O37: 0 | P37: 0 | Q37: 0 | R37: 0 | S37: 0
A39: Feeding Regime: Enter the type and % of each feed in the total annual diet of each animal category.
A40: Select feed name from drop down menu. | C40: % of total diet
A41: Feed Name | B41: Int'l Feed # | C41: Dairy Cows | D41: Mature females | E41: Mature Males | F41: Calves on milk | G41: Calves on forage | H41: Growing heifers/steers | I41: Replacement/growing | J41: Feedlot cattle | L41: Dairy Cows | M41: Mature females | N41: Mature Males | O41: Calves on milk | P41: Calves on forage | Q41: Growing heifers/steers | R41: Replacement/growing | S41: Feedlot cattle
B42: =IF(A42="","",LOOKUP($A$42,'Enteric Data'!$A$90:$A$195,'Enteric Data'!$B$90:$B$195)) ->  | C42: 0 | D42: 0 | E42: 0 | F42: 0 | G42: 0 | H42: 0 | I42: 0 | J42: 0 | L42: 0 | M42: 0 | N42: 0 | O42: 0 | P42: 0 | Q42: 0 | R42: 0 | S42: 0
B43: =IF(A43="","",LOOKUP(A43,'Enteric Data'!$A$90:$A$195,'Enteric Data'!$B$90:$B$195)) ->  | C43: 0 | D43: 0 | E43: 0 | F43: 0 | G43: 0 | H43: 0 | I43: 0 | J43: 0 | L43: 0 | M43: 0 | N43: 0 | O43: 0 | P43: 0 | Q43: 0 | R43: 0 | S43: 0
B44: =IF(A44="","",LOOKUP(A44,'Enteric Data'!$A$90:$A$195,'Enteric Data'!$B$90:$B$195)) ->  | C44: 0 | D44: 0 | E44: 0 | F44: 0 | G44: 0 | H44: 0 | I44: 0 | J44: 0 | L44: 0 | M44: 0 | N44: 0 | O44: 0 | P44: 0 | Q44: 0 | R44: 0 | S44: 0
B45: =IF(A45="","",LOOKUP(A45,'Enteric Data'!$A$90:$A$195,'Enteric Data'!$B$90:$B$195)) ->  | C45: 0 | D45: 0 | E45: 0 | F45: 0 | G45: 0 | H45: 0 | I45: 0 | J45: 0 | L45: 0 | M45: 0 | N45: 0 | O45: 0 | P45: 0 | Q45: 0 | R45: 0 | S45: 0
B46: =IF(A46="","",LOOKUP(A46,'Enteric Data'!$A$90:$A$195,'Enteric Data'!$B$90:$B$195)) ->  | C46: 0 | D46: 0 | E46: 0 | F46: 0 | G46: 0 | H46: 0 | I46: 0 | J46: 0 | L46: 0 | M46: 0 | N46: 0 | O46: 0 | P46: 0 | Q46: 0 | R46: 0 | S46: 0
B47: =IF(A47="","",LOOKUP(A47,'Enteric Data'!$A$90:$A$195,'Enteric Data'!$B$90:$B$195)) ->  | C47: 0 | D47: 0 | E47: 0 | F47: 0 | G47: 0 | H47: 0 | I47: 0 | J47: 0 | L47: 0 | M47: 0 | N47: 0 | O47: 0 | P47: 0 | Q47: 0 | R47: 0 | S47: 0
B48: =IF(A48="","",LOOKUP(A48,'Enteric Data'!$A$90:$A$195,'Enteric Data'!$B$90:$B$195)) ->  | C48: 0 | D48: 0 | E48: 0 | F48: 0 | G48: 0 | H48: 0 | I48: 0 | J48: 0 | L48: 0 | M48: 0 | N48: 0 | O48: 0 | P48: 0 | Q48: 0 | R48: 0 | S48: 0
A51: Mean daily temperature during winter season (if <20 °C): | C51: -5.7 | D51: ° C | E51: *Note: Default shown for U.S. States. If outside the US, please enter a value only if <20 C. Otherwise, leave default value as shown.
A52: Average Mature Weight of an Adult Female: | C52: 500 | D52: kg

Sheet 3. MANURE
A1: A-MICROSCALE
A5: Parameter Name: | B5: E_MAN
A6: Parameter Description: | B6: Net microscale manure emissions reductions (+) or emissions (-) (t CO2e)
A7: Calculated value : | B7: =('Manure Data'!C12+'Manure Data'!C21+'Manure Data'!C25)-('Manure Data'!M12+'Manure Data'!M21+'Manure Data'!M25) -> 0 | C7: t CO2e yr-1
A9: Instructions: Enter data into light blue cells for both baseline and project scenarios.
A10: Geographic Region: | B10: Asia
A11: Average Annual Temperature: | B11: 18 | C11: ° C
A13: Manure Management System | B13: % of manure managed under each system
B14: Baseline | C14: Project
A15: Pasture/Range/Paddock | B15: 0 | C15: 0
A16: Daily Spread | B16: 0 | C16: 0
A17: Solid Storage | B17: 0 | C17: 0
A18: Dry Lot | B18: 0 | C18: 0
A19: Liquid/Slurry with crust | B19: 0 | C19: 0
A20: Liquid/Slurry without crust | B20: 0 | C20: 0
A21: Uncovered anaerobic lagoon | B21: 0 | C21: 0
A22: Pit storage <1 month | B22: 0 | C22: 0
A23: Pit storage >1 month | B23: 0 | C23: 0
A24: Anaerobic digester | B24: 0 | C24: 0
A25: Burned for fuel | B25: 0 | C25: 0
A26: Deep bedding <1 month, no mixing | B26: 0 | C26: 0
A27: Deep bedding <1 month, active mixing | B27: 0 | C27: 0
A28: Deep bedding >1 month, no mixing | B28: 0 | C28: 0
A29: Deep bedding >1 month, active mixing | B29: 0 | C29: 0
A30: Composting - In-Vessel | B30: 0 | C30: 0
A31: Composting - static pile | B31: 0 | C31: 0
A32: Composting - intensive windrow | B32: 0 | C32: 0
A33: Composting - passive windrow | B33: 0 | C33: 0
A34: Aerobic treatment | B34: 0 | C34: 0

Sheet 4. FERTILIZER
A1: A - MICROSCALE
H2: UNIT CONVERTER
H4: 1 | I4: pounds | J4: = | K4: =IF(H4="","",H4*0.453592) -> 0.453592 | L4: kilograms (kg)
A5: Parameter Name: | B5: E-FERT | H5: 1 | I5: acres | J5: = | K5: =IF(H5="","",H5*0.404686) -> 0.404686 | L5: hectares (ha)
A6: Parameter Description: | B6: Net microscale fertilizer emissions reductions (+) or emissions (-) (t CO2e)
A7: Calculated value: | B7: ='Fertilizer Data'!B20-'Fertilizer Data'!F20 -> 0 | C7: t CO2e yr-1
A9: Instructions: Enter data into light blue cells for both baseline and project scenarios.
B10: Baseline | E10: Project
A11: Synthetic Fertilizer Application: | B11: Total Weight Applied (kg yr-1) | C11: %N | D11: Area of Land Where Fertilizer is Applied (ha) | E11: Total Weight Applied (kg yr-1) | F11: %N | G11: Area of Land Where Fertilizer is Applied (ha)
A12: Anhydrous Ammonia (NH3) "Ammonia" | C12: 82 | F12: 82
A13: Ammonium Sulfate [(NH4)2SO4] | C13: 21 | F13: 21
A14: Monoammonium Phosphate (MAP) | C14: 11 | F14: 11
A15: Diammonium Phosphate (DAP) | C15: 18 | F15: 18
A16: Ammonium Nitrate (NH4NO3) | C16: 33.5 | F16: 33.5
A17: Calcium Ammonium Nitrate (CAN) | C17: 26 | F17: 26
A18: Urea Application:
A19: Amount of urea fertilization (kg yr-1) | B19: 0 | E19: 0
A20: Organic Manure Application:
A21: % of managed manure applied to fields: | B21: 0 | E21: 0
A22: Biosolids | C22: 3.3 | F22: =C22 -> 3.3
A23: Poultry Litter | C23: 4.5 | F23: =C23 -> 4.5

Sheet 5. FOSSIL FUEL
A1: A-MICROSCALE
A6: Parameter Name: | B6: E_FF
A7: Parameter Description: | B7: Net microscale fossil fuel emissions reductions (+) or emissions (-) (t CO2e)
A8: Calculated value: | B8: =('FF data'!H17-'FF data'!I17)/1000 -> 0 | C8: t CO2e yr-1
A10: Instructions: Enter data on annual fuel quantities into the light blue cells.
B11: Baseline | C11: Project | D11: Fuel Units
A12: Ethane | B12: 0 | C12: 0 | D12: Fuel Units | E12: If necessary, change units using drop-down menus.
A13: Propane | B13: 0 | C13: 0 | D13: Gallons
A14: Butane | B14: 0 | C14: 0 | D14: Gallons
A15: LPG | B15: 0 | C15: 0 | D15: Gallons
A16: Motor Gasoline | B16: 0 | C16: 0 | D16: Gallons
A17: Aviation Gasoline (avgas) | B17: 0 | C17: 0 | D17: Gallons
A18: Other Kerosene | B18: 0 | C18: 0 | D18: Gallons
A19: Gas/Diesel Oil | B19: 0 | C19: 0 | D19: Gallons
A20: Biodiesel | B20: 0 | C20: 0 | D20: Gallons
A21: Biogas | B21: 0 | C21: 0 | D21: Gallons
A22: Other Liquid Biofuels | B22: 0 | C22: 0 | D22: Gallons

Sheet 6. T-XANTE
A1: T-XANTE
A6: Instructions: After entering project data into each tab in the workbook (BIOTIC, ENTERIC, etc.), this tool will indicate which module should be used for each emission category. | T6: yes
T7: no
A8: Is your project located within the continental United States? | H8: ='1. BIOTIC'!B12 -> Yes
A10: MODULE SELECTION FOR YOUR PROJECT:
A11: Emission Category | H11: Module Selection | J11: Estimated GHG Impact (t CO2 yr-1) | K11: Estimated GHG Impact after Uncertainty Deduction (and buffer deduction for biotic), t CO2 yr-1 | N11: under 5,000 | O11: 5,000-60,000 | P11: >60,000
A12: Biotic Sequestration (S_BIO): | H12: =IF($H$8="yes",IF(N12="yes","A-MICROSCALE",IF(O12="yes","A-SMALLSCALE",IF(P12="yes","A-BIOTIC"))),IF($H$8="no",IF(N12="yes","A-MICROSCALE","A-BIOTIC"))) -> A-MICROSCALE | J12: ='1. BIOTIC'!B7 -> 0 | K12: =IF(J12<0,J12,J12*0.8*0.8) -> 0 | N12: =IF(AND(K12<5000,K12>-5000),"YES","NO") -> YES | O12: =IF(AND(K12>5000,K12<60000),"YES",IF(AND(K12<-5000,K12>-60000),"YES","NO")) -> NO | P12: =IF(OR(K12>60000,K12<-60000),"YES","NO") -> NO
A13: Enteric Fermentation: | H13: =IF('2. ENTERIC'!$C$7<5000,"A-MICROSCALE","A-ENTERIC") -> A-MICROSCALE | J13: ='2. ENTERIC'!C7 -> 0 | K13: =IF(J13<0,J13,J13*0.8) -> 0 | N13: =IF(AND(K13<5000,K13>-5000),"YES","NO") -> YES | O13: =IF(AND(K13>5000,K13<60000),"YES",IF(AND(K13<-5000,K13>-60000),"YES","NO")) -> NO | P13: =IF(OR(K13>60000,K13<-60000),"YES","NO") -> NO
A14: Manure: | H14: =IF('3. MANURE'!B7<5000,"A-MICROSCALE","A-MANURE") -> A-MICROSCALE | J14: ='3. MANURE'!B7 -> 0 | K14: =IF(J14<0,J14,J14*0.8) -> 0 | N14: =IF(AND(K14<5000,K14>-5000),"YES","NO") -> YES | O14: =IF(AND(K14>5000,K14<60000),"YES",IF(AND(K14<-5000,K14>-60000),"YES","NO")) -> NO | P14: =IF(OR(K14>60000,K14<-60000),"YES","NO") -> NO
A15: Fertilizer: | H15: =IF($H$8="yes",IF(N15="yes","A-MICROSCALE",IF(O15="yes","A-SMALLSCALE",IF(P15="yes","A-BIOTIC"))),IF($H$8="no",IF(N15="yes","A-MICROSCALE","A-BIOTIC"))) -> A-MICROSCALE | J15: ='4. FERTILIZER'!B7 -> 0 | K15: =IF(J15<0,J15,J15*0.8) -> 0 | N15: =IF(AND(K15<5000,K15>-5000),"YES","NO") -> YES | O15: =IF(AND(K15>5000,K15<60000),"YES",IF(AND(K15<-5000,K15>-60000),"YES","NO")) -> NO | P15: =IF(OR(K15>60000,K15<-60000),"YES","NO") -> NO
A16: Fossil Fuel: | H16: =IF(H8="yes","A-SMALLSCALE or A-MICROSCALE","A-MICROSCALE") -> A-SMALLSCALE or A-MICROSCALE | J16: ='5. FOSSIL FUEL'!B8 -> 0 | K16: =IF(J16<0,J16,J16*0.8) -> 0 | N16: =IF(AND(K16<5000,K16>-5000),"YES","NO") -> YES | O16: =IF(AND(K16>5000,K16<60000),"YES",IF(AND(K16<-5000,K16>-60000),"YES","NO")) -> NO | P16: =IF(OR(K16>60000,K16<-60000),"YES","NO") -> NO
A17: Total Estimated Project Benefit | J17: =SUM(J12:J16) -> 0 | K17: =SUM(K12:K16) -> 0

Sheet copy to restore defaults
A1: A-MICROSCALE
A5: Parameter Name: | C5: E_ENT
A6: Parameter Description: | C6: Net microscale enteric emissions reductions (+) or emissions (-) (t CO2e)
A7: Calculated value: | C7: =IF(ISERROR('Enteric Data'!E25-'Enteric Data'!O25),"",'Enteric Data'!E25-'Enteric Data'!O25) -> 0 | D7: t CO2e yr-1
A9: INSTRUCTIONS: Enter data into LIGHT BLUE CELLS for both baseline and project scenarios. Change values in gray cells only if you have project specific data, otherwise leave existing default values as they appear in the cell.
A11: Geographic Region: | C11: North America
C13: BASELINE DATA | L13: PROJECT DATA
A14: Click on category to see description of each animal category. --> | C14: Dairy Cows | D14: Mature females | E14: Mature Males | F14: Calves on milk | G14: Calves on milk/forage | H14: Growing heifers/steers | I14: Replacement/growing | J14: Feedlot cattle | L14: Dairy Cows | M14: Mature females | N14: Mature Males | O14: Calves on milk | P14: Calves on milk/forage | Q14: Growing heifers/steers | R14: Replacement/growing | S14: Feedlot cattle
A15: January
A16: February
A17: March
A18: April
A19: May
A20: June
A21: July
A22: August
A23: September
A24: October
A25: November
A26: December
A27: Total Number of Animals Produced Per Year | C27: =SUM(C15:C26) -> 0 | D27: =SUM(D15:D26) -> 0 | E27: 0 | F27: 0 | G27: 0 | H27: 0 | I27: 0 | J27: 0 | L27: =SUM(L15:L26) -> 0 | M27: =SUM(M15:M26) -> 0 | N27: 0 | O27: 0 | P27: 0 | Q27: 0 | R27: 0 | S27: 0
A28: % of Females that give birth in a year: | C28: =LOOKUP(C11,'Enteric Data'!A79:A87,'Enteric Data'!B79:B87) -> 90 | D28: =LOOKUP(C11,'Enteric Data'!A79:A87,'Enteric Data'!C79:C87) -> 80 | E28: 0 | F28: 0 | G28: 0 | H28: 0 | I28: 0 | J28: 0 | L28: =LOOKUP(C11,'Enteric Data'!A79:A87,'Enteric Data'!B79:B87) -> 90 | M28: =LOOKUP(C11,'Enteric Data'!A79:A87,'Enteric Data'!C79:C87) -> 80 | N28: 0 | O28: 0 | P28: 0 | Q28: 0 | R28: 0 | S28: 0
A29: Feeding Situation: Enter the % of the year under each feeding situation per animal category.
A30: Stall-fed/Confined (tethered, pen, barn) | F30: 20 | O30: 20
A31: On pasture (confined in areas with sufficient forage) | F31: 80 | O31: 80
A32: Grazing large areas (i.e., rangeland) | F32: 0 | O32: 0
A34: Average Live-Weight of Animal (kg) | C34: =LOOKUP(C11,'Enteric Data'!$A$43:$A$51,'Enteric Data'!$B$43:$B$51) -> 600 | D34: =LOOKUP(C11,'Enteric Data'!$A$43:$A$51,'Enteric Data'!$C$43:$C$51) -> 500 | E34: =LOOKUP(C11,'Enteric Data'!$A$43:$A$51,'Enteric Data'!$D$43:$D$51) -> 800 | F34: =LOOKUP(C11,'Enteric Data'!A43:A51,'Enteric Data'!E43:E51) -> 100 | G34: =LOOKUP(C11,'Enteric Data'!$A$43:$A$51,'Enteric Data'!$F$43:$F$51) -> 185 | H34: =LOOKUP(C11,'Enteric Data'!$A$43:$A$51,'Enteric Data'!$G$43:$G$51) -> 265 | I34: =LOOKUP(C11,'Enteric Data'!$A$43:$A$51,'Enteric Data'!$H$43:$H$51) -> 375 | J34: =LOOKUP(C11,'Enteric Data'!$A$43:$A$51,'Enteric Data'!$I43:$I$51) -> 415 | L34: =LOOKUP(C11,'Enteric Data'!$A$43:$A$51,'Enteric Data'!$B$43:$B$51) -> 600 | M34: =LOOKUP(C11,'Enteric Data'!$A$43:$A$51,'Enteric Data'!$C$43:$C$51) -> 500 | N34: =LOOKUP(C11,'Enteric Data'!$A$43:$A$51,'Enteric Data'!$D$43:$D$51) -> 800 | O34: =LOOKUP(C11,'Enteric Data'!A43:A51,'Enteric Data'!E43:E51) -> 100 | P34: =LOOKUP(C11,'Enteric Data'!$A$43:$A$51,'Enteric Data'!$F$43:$F$51) -> 185 | Q34: =LOOKUP(C11,'Enteric Data'!$A$43:$A$51,'Enteric Data'!$G$43:$G$51) -> 265 | R34: =LOOKUP(C11,'Enteric Data'!$A$43:$A$51,'Enteric Data'!$H$43:$H$51) -> 375 | S34: =LOOKUP(C11,'Enteric Data'!$A$43:$A$51,'Enteric Data'!$I$43:$I$51) -> 415
A35: Average Daily Weight Gain (kg day-1) | C35: =LOOKUP(C11,'Enteric Data'!A55:A63,'Enteric Data'!B55:B63) -> 0 | D35: =LOOKUP(C11,'Enteric Data'!A55:A63,'Enteric Data'!C55:C63) -> 0 | E35: =LOOKUP(C11,'Enteric Data'!A55:A63,'Enteric Data'!D55:D63) -> 0 | F35: =LOOKUP(C11,'Enteric Data'!A55:A63,'Enteric Data'!E55:E63) -> 0.9 | G35: =LOOKUP(C11,'Enteric Data'!A55:A63,'Enteric Data'!F55:F63) -> 0.9 | H35: =LOOKUP(C11,'Enteric Data'!A55:A63,'Enteric Data'!G55:G63) -> 0.7 | I35: =LOOKUP(C11,'Enteric Data'!A55:A63,'Enteric Data'!H55:H63) -> 0.4 | J35: =LOOKUP(C11,'Enteric Data'!A55:A63,'Enteric Data'!I55:I63) -> 1.3 | L35: =LOOKUP(C11,'Enteric Data'!A55:A63,'Enteric Data'!B55:B63) -> 0 | M35: =LOOKUP(C11,'Enteric Data'!A55:A63,'Enteric Data'!C55:C63) -> 0 | N35: =LOOKUP(C11,'Enteric Data'!A55:A63,'Enteric Data'!D55:D63) -> 0 | O35: =LOOKUP(C11,'Enteric Data'!A55:A63,'Enteric Data'!E55:E63) -> 0.9 | P35: =LOOKUP(C11,'Enteric Data'!A55:A63,'Enteric Data'!F55:F63) -> 0.9 | Q35: =LOOKUP(C11,'Enteric Data'!A55:A63,'Enteric Data'!G55:G63) -> 0.7 | R35: =LOOKUP(C11,'Enteric Data'!A55:A63,'Enteric Data'!H55:H63) -> 0.4 | S35: =LOOKUP(C11,'Enteric Data'!A55:A63,'Enteric Data'!I55:I63) -> 1.3
A36: Total Annual Milk Production (kg cow-1 yr-1) | C36: =LOOKUP(C11,'Enteric Data'!A67:A75,'Enteric Data'!B67:B75) -> 8395 | D36: =LOOKUP(C11,'Enteric Data'!A67:A75,'Enteric Data'!C67:C75) -> 1204.5 | E36: 0 | F36: 0 | G36: 0 | H36: 0 | I36: 0 | J36: 0 | L36: =LOOKUP(C11,'Enteric Data'!A67:A75,'Enteric Data'!B67:B75) -> 8395 | M36: =LOOKUP(C11,'Enteric Data'!A67:A75,'Enteric Data'!C67:C75) -> 1204.5 | N36: 0 | O36: 0 | P36: 0 | Q36: 0 | R36: 0 | S36: 0
A37: Fat content of milk: (%) | C37: 4 | D37: 4 | E37: 0 | F37: 0 | G37: 0 | H37: 0 | I37: 0 | J37: 0 | L37: 4 | M37: 4 | N37: 0 | O37: 0 | P37: 0 | Q37: 0 | R37: 0 | S37: 0
A39: Feeding Regime: Enter the type and % of each feed in the total annual diet of each animal category.
A40: Select feed name from drop down menu. | C40: % of total diet
A41: Feed Name | B41: Int'l Feed # | C41: Dairy Cows | D41: Mature females | E41: Mature Males | F41: Calves on milk | G41: Calves on forage | H41: Growing heifers/steers | I41: Replacement/growing | J41: Feedlot cattle | L41: Dairy Cows | M41: Mature females | N41: Mature Males | O41: Calves on milk | P41: Calves on forage | Q41: Growing heifers/steers | R41: Replacement/growing | S41: Feedlot cattle
A42: Corn, distiller's grains w/ solubles, dried | B42: =IF(A42="","",LOOKUP($A$42,'Enteric Data'!$A$90:$A$195,'Enteric Data'!$B$90:$B$195)) -> 5-28-236 | C42: 0 | D42: 0 | E42: 0 | F42: 0 | G42: 0 | H42: 0 | I42: 0 | J42: 0 | L42: 0 | M42: 0 | N42: 0 | O42: 0 | P42: 0 | Q42: 0 | R42: 0 | S42: 0
A43: Grasses, intensively managed pasture | B43: =IF(A43="","",LOOKUP(A43,'Enteric Data'!$A$90:$A$195,'Enteric Data'!$B$90:$B$195)) -> 1-02-244 | C43: 0 | D43: 0 | E43: 0 | F43: 0 | G43: 0 | H43: 0 | I43: 0 | J43: 0 | L43: 0 | M43: 0 | N43: 0 | O43: 0 | P43: 0 | Q43: 0 | R43: 0 | S43: 0
B44: =IF(A44="","",LOOKUP(A44,'Enteric Data'!$A$90:$A$195,'Enteric Data'!$B$90:$B$195)) ->  | C44: 0 | D44: 0 | E44: 0 | F44: 0 | G44: 0 | H44: 0 | I44: 0 | J44: 0 | L44: 0 | M44: 0 | N44: 0 | O44: 0 | P44: 0 | Q44: 0 | R44: 0 | S44: 0
B45: =IF(A45="","",LOOKUP(A45,'Enteric Data'!$A$90:$A$195,'Enteric Data'!$B$90:$B$195)) ->  | C45: 0 | D45: 0 | E45: 0 | F45: 0 | G45: 0 | H45: 0 | I45: 0 | J45: 0 | L45: 0 | M45: 0 | N45: 0 | O45: 0 | P45: 0 | Q45: 0 | R45: 0 | S45: 0
B46: =IF(A46="","",LOOKUP(A46,'Enteric Data'!$A$90:$A$195,'Enteric Data'!$B$90:$B$195)) ->  | C46: 0 | D46: 0 | E46: 0 | F46: 0 | G46: 0 | H46: 0 | I46: 0 | J46: 0 | L46: 0 | M46: 0 | N46: 0 | O46: 0 | P46: 0 | Q46: 0 | R46: 0 | S46: 0
B47: =IF(A47="","",LOOKUP(A47,'Enteric Data'!$A$90:$A$195,'Enteric Data'!$B$90:$B$195)) ->  | C47: 0 | D47: 0 | E47: 0 | F47: 0 | G47: 0 | H47: 0 | I47: 0 | J47: 0 | L47: 0 | M47: 0 | N47: 0 | O47: 0 | P47: 0 | Q47: 0 | R47: 0 | S47: 0
B48: =IF(A48="","",LOOKUP(A48,'Enteric Data'!$A$90:$A$195,'Enteric Data'!$B$90:$B$195)) ->  | C48: 0 | D48: 0 | E48: 0 | F48: 0 | G48: 0 | H48: 0 | I48: 0 | J48: 0 | L48: 0 | M48: 0 | N48: 0 | O48: 0 | P48: 0 | Q48: 0 | R48: 0 | S48: 0
A51: Mean daily temperature during winter season (if <20 °C): | C51: =IF('1. BIOTIC'!B12="yes",LOOKUP('1. BIOTIC'!B13,'Enteric Data'!Y2:Y50,'Enteric Data'!Z2:Z50),20) -> -5.7 | D51: ° C | E51: *Note: Default shown for U.S. States. If outside the US, please enter a value only if <20 C. Otherwise, leave default value as shown.
A52: Average Mature Weight of an Adult Female: | C52: =LOOKUP(C11,'Enteric Data'!A43:A51,'Enteric Data'!C43:C51) -> 500 | D52: kg

Sheet copy to restore defaults 2
A1: A - MICROSCALE
H2: UNIT CONVERTER
H4: 1 | I4: pounds | J4: = | K4: =IF(H4="","",H4*0.453592) -> 0.453592 | L4: kilograms (kg)
A5: Parameter Name: | B5: E-FERT | H5: 1 | I5: acres | J5: = | K5: =IF(H5="","",H5*0.404686) -> 0.404686 | L5: hectares (ha)
A6: Parameter Description: | B6: Net microscale fertilizer emissions reductions (+) or emissions (-) (t CO2e)
A7: Calculated value: | B7: ='Fertilizer Data'!B20-'Fertilizer Data'!F20 -> 0 | C7: t CO2e yr-1
A9: Instructions: Enter data into light blue cells for both baseline and project scenarios.
B10: Baseline | E10: Project
A11: Synthetic Fertilizer Application: | B11: Total Weight Applied (kg yr-1) | C11: %N | D11: Area of Land Where Fertilizer is Applied (ha) | E11: Total Weight Applied (kg yr-1) | F11: %N | G11: Area of Land Where Fertilizer is Applied (ha)
A12: Anhydrous Ammonia (NH3) "Ammonia" | C12: 82 | F12: =C12 -> 82
A13: Ammonium Sulfate [(NH4)2SO4] | C13: 21 | F13: 21
A14: Monoammonium Phosphate (MAP) | C14: 11 | F14: 11
A15: Diammonium Phosphate (DAP) | C15: 18 | F15: 18
A16: Ammonium Nitrate (NH4NO3) | C16: 33.5 | F16: 33.5
A17: Calcium Ammonium Nitrate (CAN) | C17: 26 | F17: 26
A18: Urea Application:
A19: Amount of urea fertilization (kg yr-1) | B19: 0 | E19: 0
A20: Organic Manure Application:
A21: % of managed manure applied to fields: | B21: 0 | E21: 0
A22: Biosolids | C22: 3.3 | F22: =C22 -> 3.3
A23: Poultry Litter | C23: 4.5 | F23: =C23 -> 4.5

Sheet Biotic Data (hidden)
A1: Climate Regions | B1: Soil Types | C1: Land Cover Type | D1: Grassland Management | E1: Grassland Inputs | F1: Cropland Management | G1: Cropland Inputs | H1: Tree Planting? | I1: Geographic Region | J1: State | N1: Climate Region/Soil Type | O1: SOC | P1: FLU LTC crop | Q1: FLU ST crop | R1: FLU grass | S1: FMG full till crop | T1: FMG reduced till crop | U1: FMG no till crop | V1: FMG improved grass | W1: FMG nominally managed grass | X1: FMG mod deg grass | Y1: FMG severely degraded grass | Z1: FI crop low | AA1: FI crop med | AB1: FI crop high w/man | AC1: FI crop high w/o man | AD1: FI grass low | AE1: FI grass med | AF1: FI grass high | AG1: Biomass grass | AI1: Continent/Climate Region | AJ1: Biomass accumulation rate (t/ha/yr)
A2: Tropical Montane | B2: High Activity Clay | C2: Grassland | D2: Nominally Managed | E2: Medium | F2: Full Tillage | G2: Low | H2: Yes | I2: Africa | J2: Not in the U.S. | N2: Boreal Dry/HAC | O2: 68 | P2: 0.8 | Q2: 0.82 | R2: 1 | S2: 1 | T2: 1.08 | U2: 1.15 | V2: 1.14 | W2: 1 | X2: 0.95 | Y2: 0.7 | Z2: 0.92 | AA2: 1 | AB2: 1.44 | AC2: 1.11 | AD2: 1 | AE2: 1 | AF2: 1.11 | AG2: 8.5 | AI2: Africa/Boreal Dry | AJ2: 1.1
A3: Tropical Wet | B3: Low Activity Clay | C3: Long Term Cultivated Crop | D3: Moderately Degraded | E3: High | F3: Reduced Till | G3: Medium | H3: No | I3: Asia | J3: AL | N3: Boreal Dry/LAC | O3: 0 | P3: 0.8 | Q3: 0.82 | R3: 1 | S3: 1 | T3: 1.08 | U3: 1.15 | V3: 1.14 | W3: 1 | X3: 0.95 | Y3: 0.7 | Z3: 0.92 | AA3: 1 | AB3: 1.44 | AC3: 1.11 | AD3: 1 | AE3: 1 | AF3: 1.11 | AG3: 8.5 | AI3: Africa/Boreal Moist | AJ3: 1.1
A4: Tropical Moist | B4: Sandy | C4: Short term set aside Crop | D4: Severely Degraded | E4: N/A | F4: No Till | G4: High W/ Manure | I4: Eastern Europe | J4: AR | K4: SOCRef (within US, cropland) | L4: =IF('1. BIOTIC'!B12="no","outside U.S.",L36) -> 58.1912 | N4: Boreal Dry/Sandy | O4: 10 | P4: 0.8 | Q4: 0.82 | R4: 1 | S4: 1 | T4: 1.08 | U4: 1.15 | V4: 1.14 | W4: 1 | X4: 0.95 | Y4: 0.7 | Z4: 0.92 | AA4: 1 | AB4: 1.44 | AC4: 1.11 | AD4: 1 | AE4: 1 | AF4: 1.11 | AG4: 8.5 | AI4: Africa/Cool Temperate Dry | AJ4: 4
A5: Tropical Dry | B5: Spodic | D5: Improved | F5: N/A | G5: High W/O Manure | I5: Indian Subcontinent | J5: AZ | K5: SOCRef (within US, grassland) | L5: =IF('1. BIOTIC'!B12="no","outside U.S.",L37) -> 44.2805 | N5: Boreal Dry/Spodic | O5: 117 | P5: 0.8 | Q5: 0.82 | R5: 1 | S5: 1 | T5: 1.08 | U5: 1.15 | V5: 1.14 | W5: 1 | X5: 0.95 | Y5: 0.7 | Z5: 0.92 | AA5: 1 | AB5: 1.44 | AC5: 1.11 | AD5: 1 | AE5: 1 | AF5: 1.11 | AG5: 8.5 | AI5: Africa/Cool Temperate Moist | AJ5: 4
A6: Warm Temperate Moist | B6: Volcanic | D6: N/A | G6: N/A | I6: Latin America | J6: CA | K6: SOCRef (outside US) | L6: =IF('1. BIOTIC'!B12="yes","within U.S.",'Biotic Data'!L45) -> within U.S. | N6: Boreal Dry/Volcanic | O6: 20 | P6: 0.8 | Q6: 0.82 | R6: 1 | S6: 1 | T6: 1.08 | U6: 1.15 | V6: 1.14 | W6: 1 | X6: 0.95 | Y6: 0.7 | Z6: 0.92 | AA6: 1 | AB6: 1.44 | AC6: 1.11 | AD6: 1 | AE6: 1 | AF6: 1.11 | AG6: 8.5 | AI6: Africa/Tropical Dry | AJ6: 2.4
A7: Warm Temperate Dry | B7: Wetlands | I7: Middle East | J7: CO | N7: Boreal Dry/Wetlands | O7: 146 | P7: 0.8 | Q7: 0.82 | R7: 1 | S7: 1 | T7: 1.08 | U7: 1.15 | V7: 1.14 | W7: 1 | X7: 0.95 | Y7: 0.7 | Z7: 0.92 | AA7: 1 | AB7: 1.44 | AC7: 1.11 | AD7: 1 | AE7: 1 | AF7: 1.11 | AG7: 8.5 | AI7: Africa/Tropical Moist | AJ7: 5
A8: Cool Temperate Moist | I8: North America | J8: CT | K8: FLU long term cultivated crop | L8: =IF('1. BIOTIC'!$B$12="yes",VLOOKUP('Biotic Data'!$L$39,'Biotic Data'!$N$2:$AG$61,3,FALSE),VLOOKUP('Biotic Data'!$K$45,'Biotic Data'!$N$2:$AG$61,3,FALSE)) -> 0.69 | N8: Boreal Moist/HAC | O8: 68 | P8: 0.8 | Q8: 0.82 | R8: 1 | S8: 1 | T8: 1.08 | U8: 1.15 | V8: 1.14 | W8: 1 | X8: 0.95 | Y8: 0.7 | Z8: 0.92 | AA8: 1 | AB8: 1.44 | AC8: 1.11 | AD8: 1 | AE8: 1 | AF8: 1.11 | AG8: 8.5 | AI8: Africa/Tropical Montane | AJ8: =AVERAGE(2,5) -> 3.5
A9: Cool Temperate Dry | I9: Oceania | J9: DC | K9: FLU short term set aside crop | L9: =IF('1. BIOTIC'!$B$12="yes",VLOOKUP('Biotic Data'!$L$39,'Biotic Data'!$N$2:$AG$61,4,FALSE),VLOOKUP('Biotic Data'!$K$45,'Biotic Data'!$N$2:$AG$61,4,FALSE)) -> 0.82 | N9: Boreal Moist/LAC | O9: 0 | P9: 0.8 | Q9: 0.82 | R9: 1 | S9: 1 | T9: 1.08 | U9: 1.15 | V9: 1.14 | W9: 1 | X9: 0.95 | Y9: 0.7 | Z9: 0.92 | AA9: 1 | AB9: 1.44 | AC9: 1.11 | AD9: 1 | AE9: 1 | AF9: 1.11 | AG9: 8.5 | AI9: Africa/Tropical wet | AJ9: 10
A10: Boreal Moist | I10: Western Europe | J10: DE | K10: FLU grassland | L10: =IF('1. BIOTIC'!$B$12="yes",VLOOKUP('Biotic Data'!$L$39,'Biotic Data'!$N$2:$AG$61,5,FALSE),VLOOKUP('Biotic Data'!$K$45,'Biotic Data'!$N$2:$AG$61,5,FALSE)) -> 1 | N10: Boreal Moist/Sandy | O10: 10 | P10: 0.8 | Q10: 0.82 | R10: 1 | S10: 1 | T10: 1.08 | U10: 1.15 | V10: 1.14 | W10: 1 | X10: 0.95 | Y10: 0.7 | Z10: 0.92 | AA10: 1 | AB10: 1.44 | AC10: 1.11 | AD10: 1 | AE10: 1 | AF10: 1.11 | AG10: 8.5 | AI10: Africa/Warm Temperate Dry | AJ10: 4
A11: Boreal Dry | J11: FL | N11: Boreal Moist/Spodic | O11: 117 | P11: 0.8 | Q11: 0.82 | R11: 1 | S11: 1 | T11: 1.08 | U11: 1.15 | V11: 1.14 | W11: 1 | X11: 0.95 | Y11: 0.7 | Z11: 0.92 | AA11: 1 | AB11: 1.44 | AC11: 1.11 | AD11: 1 | AE11: 1 | AF11: 1.11 | AG11: 8.5 | AI11: Africa/Warm Temperate Moist | AJ11: 4
J12: GA | K12: FMG full till crop | L12: =IF('1. BIOTIC'!$B$12="yes",VLOOKUP('Biotic Data'!$L$39,'Biotic Data'!$N$2:$AG$61,6,FALSE),VLOOKUP('Biotic Data'!$K$45,'Biotic Data'!$N$2:$AG$61,6,FALSE)) -> 1 | N12: Boreal Moist/Volcanic | O12: 20 | P12: 0.8 | Q12: 0.82 | R12: 1 | S12: 1 | T12: 1.08 | U12: 1.15 | V12: 1.14 | W12: 1 | X12: 0.95 | Y12: 0.7 | Z12: 0.92 | AA12: 1 | AB12: 1.44 | AC12: 1.11 | AD12: 1 | AE12: 1 | AF12: 1.11 | AG12: 8.5 | AI12: Asia/Boreal Dry | AJ12: 1.1
A13: Climate Regions by State Identifier: | E13: High Activity Clay | F13: HAC | J13: IA | K13: FMG reduced till crop | L13: =IF('1. BIOTIC'!$B$12="yes",VLOOKUP('Biotic Data'!$L$39,'Biotic Data'!$N$2:$AG$61,7,FALSE),VLOOKUP('Biotic Data'!$K$45,'Biotic Data'!$N$2:$AG$61,7,FALSE)) -> 1.08 | N13: Boreal Moist/Wetlands | O13: 146 | P13: 0.8 | Q13: 0.82 | R13: 1 | S13: 1 | T13: 1.08 | U13: 1.15 | V13: 1.14 | W13: 1 | X13: 0.95 | Y13: 0.7 | Z13: 0.92 | AA13: 1 | AB13: 1.44 | AC13: 1.11 | AD13: 1 | AE13: 1 | AF13: 1.11 | AG13: 8.5 | AI13: Asia/Boreal Moist | AJ13: 1.1
A14: =IF('1. BIOTIC'!B12="no","",'1. BIOTIC'!B13&"Clim") -> IAClim | E14: Low Activity Clay | F14: LAC | J14: ID | K14: FMG no till crop | L14: =IF('1. BIOTIC'!$B$12="yes",VLOOKUP('Biotic Data'!$L$39,'Biotic Data'!$N$2:$AG$61,8,FALSE),VLOOKUP('Biotic Data'!$K$45,'Biotic Data'!$N$2:$AG$61,8,FALSE)) -> 1.15 | N14: Cool Temperate Dry/HAC | O14: 50 | P14: 0.8 | Q14: 0.93 | R14: 1 | S14: 1 | T14: 1.02 | U14: 1.1 | V14: 1.14 | W14: 1 | X14: 0.95 | Y14: 0.7 | Z14: 0.95 | AA14: 1 | AB14: 1.37 | AC14: 1.04 | AD14: 1 | AE14: 1 | AF14: 1.11 | AG14: 6.5 | AI14: Asia/Cool Temperate Dry | AJ14: 4
E15: Sandy | F15: Sandy | J15: IL | N15: Cool Temperate Dry/LAC | O15: 33 | P15: 0.8 | Q15: 0.93 | R15: 1 | S15: 1 | T15: 1.02 | U15: 1.1 | V15: 1.14 | W15: 1 | X15: 0.95 | Y15: 0.7 | Z15: 0.95 | AA15: 1 | AB15: 1.37 | AC15: 1.04 | AD15: 1 | AE15: 1 | AF15: 1.11 | AG15: 6.5 | AI15: Asia/Cool Temperate Moist | AJ15: 4
B16: Baseline | C16: Project | E16: Spodic | F16: Spodic | J16: IN | K16: FMG improved grass | L16: =IF('1. BIOTIC'!$B$12="yes",VLOOKUP('Biotic Data'!$L$39,'Biotic Data'!$N$2:$AG$61,9,FALSE),VLOOKUP('Biotic Data'!$K$45,'Biotic Data'!$N$2:$AG$61,9,FALSE)) -> 1.14 | N16: Cool Temperate Dry/Sandy | O16: 34 | P16: 0.8 | Q16: 0.93 | R16: 1 | S16: 1 | T16: 1.02 | U16: 1.1 | V16: 1.14 | W16: 1 | X16: 0.95 | Y16: 0.7 | Z16: 0.95 | AA16: 1 | AB16: 1.37 | AC16: 1.04 | AD16: 1 | AE16: 1 | AF16: 1.11 | AG16: 6.5 | AI16: Asia/Tropical Dry | AJ16: =AVERAGE(6,7) -> 6.5
A17: LC Type | B17: ='1. BIOTIC'!B19 -> Long Term Cultivated Crop | C17: ='1. BIOTIC'!C19 -> Long Term Cultivated Crop | E17: Volcanic | F17: Volcanic | J17: KS | K17: FMG nominally managed grass | L17: =IF('1. BIOTIC'!$B$12="yes",VLOOKUP('Biotic Data'!$L$39,'Biotic Data'!$N$2:$AG$61,10,FALSE),VLOOKUP('Biotic Data'!$K$45,'Biotic Data'!$N$2:$AG$61,10,FALSE)) -> 1 | N17: Cool Temperate Dry/Spodic | O17: 0 | P17: 0.8 | Q17: 0.93 | R17: 1 | S17: 1 | T17: 1.02 | U17: 1.1 | V17: 1.14 | W17: 1 | X17: 0.95 | Y17: 0.7 | Z17: 0.95 | AA17: 1 | AB17: 1.37 | AC17: 1.04 | AD17: 1 | AE17: 1 | AF17: 1.11 | AG17: 6.5 | AI17: Asia/Tropical Moist | AJ17: =AVERAGE(9,11) -> 10
A18: Grass Mgmt | B18: ='1. BIOTIC'!B20 -> N/A | C18: ='1. BIOTIC'!C20 -> N/A | E18: Wetlands | F18: Wetlands | J18: KY | K18: FMG mod degraded grass | L18: =IF('1. BIOTIC'!$B$12="yes",VLOOKUP('Biotic Data'!$L$39,'Biotic Data'!$N$2:$AG$61,11,FALSE),VLOOKUP('Biotic Data'!$K$45,'Biotic Data'!$N$2:$AG$61,11,FALSE)) -> 0.95 | N18: Cool Temperate Dry/Volcanic | O18: 20 | P18: 0.8 | Q18: 0.93 | R18: 1 | S18: 1 | T18: 1.02 | U18: 1.1 | V18: 1.14 | W18: 1 | X18: 0.95 | Y18: 0.7 | Z18: 0.95 | AA18: 1 | AB18: 1.37 | AC18: 1.04 | AD18: 1 | AE18: 1 | AF18: 1.11 | AG18: 6.5 | AI18: Asia/Tropical Montane | AJ18: 5.25
A19: Grass Inputs | B19: ='1. BIOTIC'!B21 -> N/A | C19: ='1. BIOTIC'!C21 -> N/A | J19: LA | K19: FMG severely degraded grass | L19: =IF('1. BIOTIC'!$B$12="yes",VLOOKUP('Biotic Data'!$L$39,'Biotic Data'!$N$2:$AG$61,12,FALSE),VLOOKUP('Biotic Data'!$K$45,'Biotic Data'!$N$2:$AG$61,12,FALSE)) -> 0.7 | N19: Cool Temperate Dry/Wetlands | O19: 87 | P19: 0.8 | Q19: 0.93 | R19: 1 | S19: 1 | T19: 1.02 | U19: 1.1 | V19: 1.14 | W19: 1 | X19: 0.95 | Y19: 0.7 | Z19: 0.95 | AA19: 1 | AB19: 1.37 | AC19: 1.04 | AD19: 1 | AE19: 1 | AF19: 1.11 | AG19: 6.5 | AI19: Asia/Tropical wet | AJ19: =AVERAGE(7,13) -> 10
A20: Crop Mgmt | B20: ='1. BIOTIC'!B22 -> Reduced Till | C20: ='1. BIOTIC'!C22 -> Reduced Till | J20: MA | N20: Cool Temperate Moist/HAC | O20: 95 | P20: 0.69 | Q20: 0.82 | R20: 1 | S20: 1 | T20: 1.08 | U20: 1.15 | V20: 1.14 | W20: 1 | X20: 0.95 | Y20: 0.7 | Z20: 0.92 | AA20: 1 | AB20: 1.44 | AC20: 1.11 | AD20: 1 | AE20: 1 | AF20: 1.11 | AG20: 13.6 | AI20: Asia/Warm Temperate Dry | AJ20: 4
A21: Crop Inputs | B21: ='1. BIOTIC'!B23 -> Medium | C21: ='1. BIOTIC'!C23 -> High W/ Manure | J21: MD | K21: FI crop low | L21: =IF('1. BIOTIC'!$B$12="yes",VLOOKUP('Biotic Data'!$L$39,'Biotic Data'!$N$2:$AG$61,13,FALSE),VLOOKUP('Biotic Data'!$K$45,'Biotic Data'!$N$2:$AG$61,13,FALSE)) -> 0.92 | N21: Cool Temperate Moist/LAC | O21: 85 | P21: 0.69 | Q21: 0.82 | R21: 1 | S21: 1 | T21: 1.08 | U21: 1.15 | V21: 1.14 | W21: 1 | X21: 0.95 | Y21: 0.7 | Z21: 0.92 | AA21: 1 | AB21: 1.44 | AC21: 1.11 | AD21: 1 | AE21: 1 | AF21: 1.11 | AG21: 13.6 | AI21: Asia/Warm Temperate Moist | AJ21: 4
J22: ME | K22: FI crop medium | L22: =IF('1. BIOTIC'!$B$12="yes",VLOOKUP('Biotic Data'!$L$39,'Biotic Data'!$N$2:$AG$61,14,FALSE),VLOOKUP('Biotic Data'!$K$45,'Biotic Data'!$N$2:$AG$61,14,FALSE)) -> 1 | N22: Cool Temperate Moist/Sandy | O22: 71 | P22: 0.69 | Q22: 0.82 | R22: 1 | S22: 1 | T22: 1.08 | U22: 1.15 | V22: 1.14 | W22: 1 | X22: 0.95 | Y22: 0.7 | Z22: 0.92 | AA22: 1 | AB22: 1.44 | AC22: 1.11 | AD22: 1 | AE22: 1 | AF22: 1.11 | AG22: 13.6 | AI22: Eastern Europe/Boreal Dry | AJ22: 1.1
A23: FLU | B23: =IF(B17="Grassland",L10,IF(B17="Long Term Cultivated Crop",L8,IF(B17="Short term set aside Crop",L9,"error"))) -> 0.69 | C23: =IF(C17="Grassland",L10,IF(C17="Long Term Cultivated Crop",L8,IF(C17="Short term set aside Crop",L9,"error"))) -> 0.69 | J23: MI | K23: FI crop high w/ manure | L23: =IF('1. BIOTIC'!$B$12="yes",VLOOKUP('Biotic Data'!$L$39,'Biotic Data'!$N$2:$AG$61,15,FALSE),VLOOKUP('Biotic Data'!$K$45,'Biotic Data'!$N$2:$AG$61,15,FALSE)) -> 1.44 | N23: Cool Temperate Moist/Spodic | O23: 115 | P23: 0.69 | Q23: 0.82 | R23: 1 | S23: 1 | T23: 1.08 | U23: 1.15 | V23: 1.14 | W23: 1 | X23: 0.95 | Y23: 0.7 | Z23: 0.92 | AA23: 1 | AB23: 1.44 | AC23: 1.11 | AD23: 1 | AE23: 1 | AF23: 1.11 | AG23: 13.6 | AI23: Eastern Europe/Boreal Moist | AJ23: 1.1
A24: FMG grass | B24: =IF(B18="Nominally Managed",L17,IF(B18="Moderately Degraded",L18,IF(B18="Severely Degraded",L19,IF(B18="Improved",L16,IF(B18="N/A","","error"))))) ->  | C24: =IF(C18="Nominally Managed",L17,IF(C18="Moderately Degraded",L18,IF(C18="Severely Degraded",L19,IF(C18="Improved",L16,IF(C18="N/A","","error"))))) ->  | J24: MN | K24: FI crop high w/o manure | L24: =IF('1. BIOTIC'!$B$12="yes",VLOOKUP('Biotic Data'!$L$39,'Biotic Data'!$N$2:$AG$61,16,FALSE),VLOOKUP('Biotic Data'!$K$45,'Biotic Data'!$N$2:$AG$61,16,FALSE)) -> 1.11 | N24: Cool Temperate Moist/Volcanic | O24: 130 | P24: 0.69 | Q24: 0.82 | R24: 1 | S24: 1 | T24: 1.08 | U24: 1.15 | V24: 1.14 | W24: 1 | X24: 0.95 | Y24: 0.7 | Z24: 0.92 | AA24: 1 | AB24: 1.44 | AC24: 1.11 | AD24: 1 | AE24: 1 | AF24: 1.11 | AG24: 13.6 | AI24: Eastern Europe/Cool Temperate Dry | AJ24: 4
A25: FI grass | B25: =IF(B19="Low",L26,IF(B19="Medium",L27,IF(B19="High",L28,IF(B19="N/A","","error")))) ->  | C25: =IF(C19="Low",L26,IF(C19="Medium",L27,IF(C19="High",L28,IF(C19="N/A","","error")))) ->  | J25: MO | N25: Cool Temperate Moist/Wetlands | O25: 87 | P25: 0.69 | Q25: 0.82 | R25: 1 | S25: 1 | T25: 1.08 | U25: 1.15 | V25: 1.14 | W25: 1 | X25: 0.95 | Y25: 0.7 | Z25: 0.92 | AA25: 1 | AB25: 1.44 | AC25: 1.11 | AD25: 1 | AE25: 1 | AF25: 1.11 | AG25: 13.6 | AI25: Eastern Europe/Cool Temperate Moist | AJ25: 4
A26: FMG crop | B26: =IF(B20="Full Tillage",L12,IF(B20="Reduced Till",L13,IF(B20="No Till",L14,IF(B20="N/A","","error")))) -> 1.08 | C26: =IF(C20="Full Tillage",L12,IF(C20="Reduced Till",L13,IF(C20="No Till",L14,IF(C20="N/A","","error")))) -> 1.08 | J26: MS | K26: FI grass low | L26: =IF('1. BIOTIC'!$B$12="yes",VLOOKUP('Biotic Data'!$L$39,'Biotic Data'!$N$2:$AG$61,17,FALSE),VLOOKUP('Biotic Data'!$K$45,'Biotic Data'!$N$2:$AG$61,17,FALSE)) -> 1 | N26: Tropical Dry/HAC | O26: 38 | P26: 0.58 | Q26: 0.93 | R26: 1 | S26: 1 | T26: 1.09 | U26: 1.17 | V26: 1.17 | W26: 1 | X26: 0.97 | Y26: 0.7 | Z26: 0.95 | AA26: 1 | AB26: 1.37 | AC26: 1.04 | AD26: 1 | AE26: 1 | AF26: 1.11 | AG26: 8.7 | AI26: Eastern Europe/Tropical Dry | AJ26: 4
A27: FI crop | B27: =IF(B21="Low",L21,IF(B21="Medium",L22,IF(B21="High W/ Manure",L23,IF(B21="High W/O Manure",L24,IF(B21="N/A","","error"))))) -> 1 | C27: =IF(C21="Low",L21,IF(C21="Medium",L22,IF(C21="High W/ Manure",L23,IF(C21="High W/O Manure",L24,IF(C21="N/A","","error"))))) -> 1.44 | J27: MT | K27: FI grass medium | L27: =IF('1. BIOTIC'!$B$12="yes",VLOOKUP('Biotic Data'!$L$39,'Biotic Data'!$N$2:$AG$61,18,FALSE),VLOOKUP('Biotic Data'!$K$45,'Biotic Data'!$N$2:$AG$61,18,FALSE)) -> 1 | N27: Tropical Dry/LAC | O27: 35 | P27: 0.58 | Q27: 0.93 | R27: 1 | S27: 1 | T27: 1.09 | U27: 1.17 | V27: 1.17 | W27: 1 | X27: 0.97 | Y27: 0.7 | Z27: 0.95 | AA27: 1 | AB27: 1.37 | AC27: 1.04 | AD27: 1 | AE27: 1 | AF27: 1.11 | AG27: 8.7 | AI27: Eastern Europe/Tropical Moist | AJ27: 7
A28: Annual biomass accumulation (t/ha/yr) | C28: =IF('1. BIOTIC'!C25="yes",LOOKUP(K33,AI2:AI91,AJ2:AJ91),0) -> 0 | J28: NC | K28: FI grass high | L28: =IF('1. BIOTIC'!$B$12="yes",VLOOKUP('Biotic Data'!$L$39,'Biotic Data'!$N$2:$AG$61,19,FALSE),VLOOKUP('Biotic Data'!$K$45,'Biotic Data'!$N$2:$AG$61,19,FALSE)) -> 1.11 | N28: Tropical Dry/Sandy | O28: 31 | P28: 0.58 | Q28: 0.93 | R28: 1 | S28: 1 | T28: 1.09 | U28: 1.17 | V28: 1.17 | W28: 1 | X28: 0.97 | Y28: 0.7 | Z28: 0.95 | AA28: 1 | AB28: 1.37 | AC28: 1.04 | AD28: 1 | AE28: 1 | AF28: 1.11 | AG28: 8.7 | AI28: Eastern Europe/Tropical Montane | AJ28: =AVERAGE(1.8,5) -> 3.4
A29: Annual C accumulation in AGB (t C/ha/yr) | C29: =C28*0.5 -> 0 | J29: ND | N29: Tropical Dry/Spodic | O29: 0 | P29: 0.58 | Q29: 0.93 | R29: 1 | S29: 1 | T29: 1.09 | U29: 1.17 | V29: 1.17 | W29: 1 | X29: 0.97 | Y29: 0.7 | Z29: 0.95 | AA29: 1 | AB29: 1.37 | AC29: 1.04 | AD29: 1 | AE29: 1 | AF29: 1.11 | AG29: 8.7 | AI29: Eastern Europe/Tropical wet | AJ29: =0.9 -> 0.9
A30: Total C accumulation in AGB (t C/yr) | C30: =IF('1. BIOTIC'!C25="yes",'1. BIOTIC'!C26*'Biotic Data'!C29*-1,0) -> 0 | J30: NE | K30: Grass Biomass | L30: =IF('1. BIOTIC'!$B$12="yes",VLOOKUP('Biotic Data'!$L$39,'Biotic Data'!$N$2:$AG$61,20,FALSE),VLOOKUP('Biotic Data'!$K$45,'Biotic Data'!$N$2:$AG$61,20,FALSE)) -> 13.6 | N30: Tropical Dry/Volcanic | O30: 50 | P30: 0.58 | Q30: 0.93 | R30: 1 | S30: 1 | T30: 1.09 | U30: 1.17 | V30: 1.17 | W30: 1 | X30: 0.97 | Y30: 0.7 | Z30: 0.95 | AA30: 1 | AB30: 1.37 | AC30: 1.04 | AD30: 1 | AE30: 1 | AF30: 1.11 | AG30: 8.7 | AI30: Eastern Europe/Warm Temperate Dry | AJ30: 4
J31: NH | N31: Tropical Dry/Wetlands | O31: 86 | P31: 0.58 | Q31: 0.93 | R31: 1 | S31: 1 | T31: 1.09 | U31: 1.17 | V31: 1.17 | W31: 1 | X31: 0.97 | Y31: 0.7 | Z31: 0.95 | AA31: 1 | AB31: 1.37 | AC31: 1.04 | AD31: 1 | AE31: 1 | AF31: 1.11 | AG31: 8.7 | AI31: Eastern Europe/Warm Temperate Moist | AJ31: 4
A32: Baseline Carbon stock (t C/ha) | B32: =IF(AND('1. BIOTIC'!B12="yes",'Biotic Data'!B17="grassland"),'Biotic Data'!L5,IF(AND('1. BIOTIC'!B12="yes",OR('Biotic Data'!B17="Long Term Cultivated Crop",'Biotic Data'!B17="Short Term set aside Crop")),'Biotic Data'!L4,'Biotic Data'!L6)) -> 58.1912 | J32: NJ | K32: Region/Climate Region | N32: Tropical Moist/HAC | O32: 65 | P32: 0.48 | Q32: 0.82 | R32: 1 | S32: 1 | T32: 1.15 | U32: 1.22 | V32: 1.17 | W32: 1 | X32: 0.97 | Y32: 0.7 | Z32: 0.92 | AA32: 1 | AB32: 1.44 | AC32: 1.11 | AD32: 1 | AE32: 1 | AF32: 1.11 | AG32: 16.1 | AI32: Indian Subcontinent/Boreal Dry | AJ32: 1.1
A33: Soil C stock after adjustments for factors (t C/ha) | B33: =IF(B17="Grassland",B32*B23*B24*B25,B32*B23*B26*B27) -> 43.36408224 | C33: =IF(C17="grassland",B32*C23*C24*C25,B32*C23*C26*C27) -> 62.44427843 | J33: NM | K33: ='1. BIOTIC'!B11&"/"&'1. BIOTIC'!B14 -> North America/Cool Temperate Moist | N33: Tropical Moist/LAC | O33: 47 | P33: 0.48 | Q33: 0.82 | R33: 1 | S33: 1 | T33: 1.15 | U33: 1.22 | V33: 1.17 | W33: 1 | X33: 0.97 | Y33: 0.7 | Z33: 0.92 | AA33: 1 | AB33: 1.44 | AC33: 1.11 | AD33: 1 | AE33: 1 | AF33: 1.11 | AG33: 16.1 | AI33: Indian Subcontinent/Boreal Moist | AJ33: 1.1
A34: Soil C stock change (t C/ha/yr) | C34: =(B33-C33)/20 -> -0.9540098093 | J34: NV | K34: If in U.S.: | N34: Tropical Moist/Sandy | O34: 39 | P34: 0.48 | Q34: 0.82 | R34: 1 | S34: 1 | T34: 1.15 | U34: 1.22 | V34: 1.17 | W34: 1 | X34: 0.97 | Y34: 0.7 | Z34: 0.92 | AA34: 1 | AB34: 1.44 | AC34: 1.11 | AD34: 1 | AE34: 1 | AF34: 1.11 | AG34: 16.1 | AI34: Indian Subcontinent/Cool Temperate Dry | AJ34: 4
A35: Total C accumulation in soils (t C/yr) | C35: =C34*'1. BIOTIC'!B16 -> 0 | J35: NY | K35: state/soiltype/landcov | L35: soil C | M35: IPCC soil | N35: Tropical Moist/Spodic | O35: 0 | P35: 0.48 | Q35: 0.82 | R35: 1 | S35: 1 | T35: 1.15 | U35: 1.22 | V35: 1.17 | W35: 1 | X35: 0.97 | Y35: 0.7 | Z35: 0.92 | AA35: 1 | AB35: 1.44 | AC35: 1.11 | AD35: 1 | AE35: 1 | AF35: 1.11 | AG35: 16.1 | AI35: Indian Subcontinent/Cool Temperate Moist | AJ35: 4
J36: OH | K36: ='1. BIOTIC'!B13&"/"&'1. BIOTIC'!B15&"/Cropland" -> IA/Atterberry/Cropland | L36: =IF('1. BIOTIC'!B12="no","Outside U.S.",IF(ISERROR(VLOOKUP(K36,State_SoilC!A2:J11087,9,FALSE)),VLOOKUP(K37,State_SoilC!A2:J11087,9,FALSE),VLOOKUP(K36,State_SoilC!A2:J11087,9,FALSE))) -> 58.1912 | M36: =IF('1. BIOTIC'!B12="no","Outside U.S.",IF(ISERROR(VLOOKUP(K36,State_SoilC!A2:J11087,10,FALSE)),VLOOKUP(K37,State_SoilC!A2:J11087,10,FALSE),VLOOKUP(K36,State_SoilC!A2:J11087,10,FALSE))) -> HAC | N36: Tropical Moist/Volcanic | O36: 70 | P36: 0.48 | Q36: 0.82 | R36: 1 | S36: 1 | T36: 1.15 | U36: 1.22 | V36: 1.17 | W36: 1 | X36: 0.97 | Y36: 0.7 | Z36: 0.92 | AA36: 1 | AB36: 1.44 | AC36: 1.11 | AD36: 1 | AE36: 1 | AF36: 1.11 | AG36: 16.1 | AI36: Indian Subcontinent/Tropical Dry | AJ36: 6
J37: OK | K37: ='1. BIOTIC'!B13&"/"&'1. BIOTIC'!B15&"/Grassland" -> IA/Atterberry/Grassland | L37: =IF('1. BIOTIC'!B12="no","Outside U.S.",IF(ISERROR(VLOOKUP(K37,State_SoilC!A2:J11087,9,FALSE)),VLOOKUP(K36,State_SoilC!A2:J11087,9,FALSE),VLOOKUP(K37,State_SoilC!A2:J11087,9,FALSE))) -> 44.2805 | M37: =IF('1. BIOTIC'!B12="no","Outside U.S.",IF(ISERROR(VLOOKUP(K37,State_SoilC!A2:J11087,10,FALSE)),VLOOKUP(K36,State_SoilC!A2:J11087,10,FALSE),VLOOKUP(K37,State_SoilC!A2:J11087,10,FALSE))) -> HAC | N37: Tropical Moist/Wetlands | O37: 86 | P37: 0.48 | Q37: 0.82 | R37: 1 | S37: 1 | T37: 1.15 | U37: 1.22 | V37: 1.17 | W37: 1 | X37: 0.97 | Y37: 0.7 | Z37: 0.92 | AA37: 1 | AB37: 1.44 | AC37: 1.11 | AD37: 1 | AE37: 1 | AF37: 1.11 | AG37: 16.1 | AI37: Indian Subcontinent/Tropical Moist | AJ37: 9
A38: Total C sequestration of project (t CO2/yr) | B38: =-1*(C30+C35)*(44/12) -> 0 | J38: OR | K38: Climate Region/Soil Type | N38: Tropical Montane/HAC | O38: 88 | P38: 0.64 | Q38: 0.88 | R38: 1 | S38: 1 | T38: 1.09 | U38: 1.16 | V38: 1.16 | W38: 1 | X38: 0.96 | Y38: 0.7 | Z38: 0.94 | AA38: 1 | AB38: 1.41 | AC38: 1.08 | AD38: 1 | AE38: 1 | AF38: 1.11 | AG38: 16.1 | AI38: Indian Subcontinent/Tropical Montane | AJ38: 3.5
J39: PA | K39: cropland | L39: =IF('1. BIOTIC'!B12="no","Outside U.S.",'1. BIOTIC'!B14&"/"&'Biotic Data'!M36) -> Cool Temperate Moist/HAC | N39: Tropical Montane/LAC | O39: 63 | P39: 0.64 | Q39: 0.88 | R39: 1 | S39: 1 | T39: 1.09 | U39: 1.16 | V39: 1.16 | W39: 1 | X39: 0.96 | Y39: 0.7 | Z39: 0.94 | AA39: 1 | AB39: 1.41 | AC39: 1.08 | AD39: 1 | AE39: 1 | AF39: 1.11 | AG39: 16.1 | AI39: Indian Subcontinent/Tropical wet | AJ39: 7
J40: RI | N40: Tropical Montane/Sandy | O40: 34 | P40: 0.64 | Q40: 0.88 | R40: 1 | S40: 1 | T40: 1.09 | U40: 1.16 | V40: 1.16 | W40: 1 | X40: 0.96 | Y40: 0.7 | Z40: 0.94 | AA40: 1 | AB40: 1.41 | AC40: 1.08 | AD40: 1 | AE40: 1 | AF40: 1.11 | AG40: 16.1 | AI40: Indian Subcontinent/Warm Temperate Dry | AJ40: 4
J41: SC | N41: Tropical Montane/Spodic | O41: 0 | P41: 0.64 | Q41: 0.88 | R41: 1 | S41: 1 | T41: 1.09 | U41: 1.16 | V41: 1.16 | W41: 1 | X41: 0.96 | Y41: 0.7 | Z41: 0.94 | AA41: 1 | AB41: 1.41 | AC41: 1.08 | AD41: 1 | AE41: 1 | AF41: 1.11 | AG41: 16.1 | AI41: Indian Subcontinent/Warm Temperate Moist | AJ41: 4
J42: SD | K42: If outside U.S.: | N42: Tropical Montane/Volcanic | O42: 80 | P42: 0.64 | Q42: 0.88 | R42: 1 | S42: 1 | T42: 1.09 | U42: 1.16 | V42: 1.16 | W42: 1 | X42: 0.96 | Y42: 0.7 | Z42: 0.94 | AA42: 1 | AB42: 1.41 | AC42: 1.08 | AD42: 1 | AE42: 1 | AF42: 1.11 | AG42: 16.1 | AI42: Latin America/Boreal Dry | AJ42: 1.1
J43: TN | K43: Climate zone/IPCC soil | L43: soil C | N43: Tropical Montane/Wetlands | O43: 86 | P43: 0.64 | Q43: 0.88 | R43: 1 | S43: 1 | T43: 1.09 | U43: 1.16 | V43: 1.16 | W43: 1 | X43: 0.96 | Y43: 0.7 | Z43: 0.94 | AA43: 1 | AB43: 1.41 | AC43: 1.08 | AD43: 1 | AE43: 1 | AF43: 1.11 | AG43: 16.1 | AI43: Latin America/Boreal Moist | AJ43: 1.1
J44: TX | K44: =IF('1. BIOTIC'!B12="yes","Within U.S.",VLOOKUP('1. BIOTIC'!B15,'Biotic Data'!E13:F18,2,FALSE)) -> Within U.S. | N44: Tropical Wet/HAC | O44: 44 | P44: 0.48 | Q44: 0.82 | R44: 1 | S44: 1 | T44: 1.15 | U44: 1.22 | V44: 1.17 | W44: 1 | X44: 0.97 | Y44: 0.7 | Z44: 0.92 | AA44: 1 | AB44: 1.44 | AC44: 1.11 | AD44: 1 | AE44: 1 | AF44: 1.11 | AG44: 16.1 | AI44: Latin America/Cool Temperate Dry | AJ44: 4
J45: UT | K45: =IF('1. BIOTIC'!B12="yes","Within U.S.",'1. BIOTIC'!B14&"/"&K44) -> Within U.S. | L45: =IF('1. BIOTIC'!B12="yes","Within U.S.",VLOOKUP('Biotic Data'!K45,'Biotic Data'!N2:AF61,2,FALSE)) -> Within U.S. | N45: Tropical Wet/LAC | O45: 60 | P45: 0.48 | Q45: 0.82 | R45: 1 | S45: 1 | T45: 1.15 | U45: 1.22 | V45: 1.17 | W45: 1 | X45: 0.97 | Y45: 0.7 | Z45: 0.92 | AA45: 1 | AB45: 1.44 | AC45: 1.11 | AD45: 1 | AE45: 1 | AF45: 1.11 | AG45: 16.1 | AI45: Latin America/Cool Temperate Moist | AJ45: 4
J46: VA | N46: Tropical Wet/Sandy | O46: 66 | P46: 0.48 | Q46: 0.82 | R46: 1 | S46: 1 | T46: 1.15 | U46: 1.22 | V46: 1.17 | W46: 1 | X46: 0.97 | Y46: 0.7 | Z46: 0.92 | AA46: 1 | AB46: 1.44 | AC46: 1.11 | AD46: 1 | AE46: 1 | AF46: 1.11 | AG46: 16.1 | AI46: Latin America/Tropical Dry | AJ46: 4
J47: VT | N47: Tropical Wet/Spodic | O47: 0 | P47: 0.48 | Q47: 0.82 | R47: 1 | S47: 1 | T47: 1.15 | U47: 1.22 | V47: 1.17 | W47: 1 | X47: 0.97 | Y47: 0.7 | Z47: 0.92 | AA47: 1 | AB47: 1.44 | AC47: 1.11 | AD47: 1 | AE47: 1 | AF47: 1.11 | AG47: 16.1 | AI47: Latin America/Tropical Moist | AJ47: 7
J48: WA | N48: Tropical Wet/Volcanic | O48: 130 | P48: 0.48 | Q48: 0.82 | R48: 1 | S48: 1 | T48: 1.15 | U48: 1.22 | V48: 1.17 | W48: 1 | X48: 0.97 | Y48: 0.7 | Z48: 0.92 | AA48: 1 | AB48: 1.44 | AC48: 1.11 | AD48: 1 | AE48: 1 | AF48: 1.11 | AG48: 16.1 | AI48: Latin America/Tropical Montane | AJ48: =AVERAGE(1.8,5) -> 3.4
J49: WI | N49: Tropical Wet/Wetlands | O49: 86 | P49: 0.48 | Q49: 0.82 | R49: 1 | S49: 1 | T49: 1.15 | U49: 1.22 | V49: 1.17 | W49: 1 | X49: 0.97 | Y49: 0.7 | Z49: 0.92 | AA49: 1 | AB49: 1.44 | AC49: 1.11 | AD49: 1 | AE49: 1 | AF49: 1.11 | AG49: 16.1 | AI49: Latin America/Tropical wet | AJ49: 11
J50: WV | N50: Warm Temperate Dry/HAC | O50: 38 | P50: 0.8 | Q50: 0.93 | R50: 1 | S50: 1 | T50: 1.02 | U50: 1.1 | V50: 1.14 | W50: 1 | X50: 0.95 | Y50: 0.7 | Z50: 0.95 | AA50: 1 | AB50: 1.37 | AC50: 1.04 | AD50: 1 | AE50: 1 | AF50: 1.11 | AG50: 6.1 | AI50: Latin America/Warm Temperate Dry | AJ50: 4
J51: WY | N51: Warm Temperate Dry/LAC | O51: 24 | P51: 0.8 | Q51: 0.93 | R51: 1 | S51: 1 | T51: 1.02 | U51: 1.1 | V51: 1.14 | W51: 1 | X51: 0.95 | Y51: 0.7 | Z51: 0.95 | AA51: 1 | AB51: 1.37 | AC51: 1.04 | AD51: 1 | AE51: 1 | AF51: 1.11 | AG51: 6.1 | AI51: Latin America/Warm Temperate Moist | AJ51: 4
N52: Warm Temperate Dry/Sandy | O52: 19 | P52: 0.8 | Q52: 0.93 | R52: 1 | S52: 1 | T52: 1.02 | U52: 1.1 | V52: 1.14 | W52: 1 | X52: 0.95 | Y52: 0.7 | Z52: 0.95 | AA52: 1 | AB52: 1.37 | AC52: 1.04 | AD52: 1 | AE52: 1 | AF52: 1.11 | AG52: 6.1 | AI52: Middle East/Boreal Dry | AJ52: 1.1
N53: Warm Temperate Dry/Spodic | O53: 0 | P53: 0.8 | Q53: 0.93 | R53: 1 | S53: 1 | T53: 1.02 | U53: 1.1 | V53: 1.14 | W53: 1 | X53: 0.95 | Y53: 0.7 | Z53: 0.95 | AA53: 1 | AB53: 1.37 | AC53: 1.04 | AD53: 1 | AE53: 1 | AF53: 1.11 | AG53: 6.1 | AI53: Middle East/Boreal Moist | AJ53: 1.1
N54: Warm Temperate Dry/Volcanic | O54: 70 | P54: 0.8 | Q54: 0.93 | R54: 1 | S54: 1 | T54: 1.02 | U54: 1.1 | V54: 1.14 | W54: 1 | X54: 0.95 | Y54: 0.7 | Z54: 0.95 | AA54: 1 | AB54: 1.37 | AC54: 1.04 | AD54: 1 | AE54: 1 | AF54: 1.11 | AG54: 6.1 | AI54: Middle East/Cool Temperate Dry | AJ54: 4
N55: Warm Temperate Dry/Wetlands | O55: 88 | P55: 0.8 | Q55: 0.93 | R55: 1 | S55: 1 | T55: 1.02 | U55: 1.1 | V55: 1.14 | W55: 1 | X55: 0.95 | Y55: 0.7 | Z55: 0.95 | AA55: 1 | AB55: 1.37 | AC55: 1.04 | AD55: 1 | AE55: 1 | AF55: 1.11 | AG55: 6.1 | AI55: Middle East/Cool Temperate Moist | AJ55: 4
N56: Warm Temperate Moist/HAC | O56: 88 | P56: 0.69 | Q56: 0.82 | R56: 1 | S56: 1 | T56: 1.08 | U56: 1.15 | V56: 1.14 | W56: 1 | X56: 0.95 | Y56: 0.7 | Z56: 0.92 | AA56: 1 | AB56: 1.44 | AC56: 1.11 | AD56: 1 | AE56: 1 | AF56: 1.11 | AG56: 13.5 | AI56: Middle East/Tropical Dry | AJ56: 6
N57: Warm Temperate Moist/LAC | O57: 63 | P57: 0.69 | Q57: 0.82 | R57: 1 | S57: 1 | T57: 1.08 | U57: 1.15 | V57: 1.14 | W57: 1 | X57: 0.95 | Y57: 0.7 | Z57: 0.92 | AA57: 1 | AB57: 1.44 | AC57: 1.11 | AD57: 1 | AE57: 1 | AF57: 1.11 | AG57: 13.5 | AI57: Middle East/Tropical Moist | AJ57: 9
N58: Warm Temperate Moist/Sandy | O58: 34 | P58: 0.69 | Q58: 0.82 | R58: 1 | S58: 1 | T58: 1.08 | U58: 1.15 | V58: 1.14 | W58: 1 | X58: 0.95 | Y58: 0.7 | Z58: 0.92 | AA58: 1 | AB58: 1.44 | AC58: 1.11 | AD58: 1 | AE58: 1 | AF58: 1.11 | AG58: 13.5 | AI58: Middle East/Tropical Montane | AJ58: =AVERAGE(1,5) -> 3
N59: Warm Temperate Moist/Spodic | O59: 0 | P59: 0.69 | Q59: 0.82 | R59: 1 | S59: 1 | T59: 1.08 | U59: 1.15 | V59: 1.14 | W59: 1 | X59: 0.95 | Y59: 0.7 | Z59: 0.92 | AA59: 1 | AB59: 1.44 | AC59: 1.11 | AD59: 1 | AE59: 1 | AF59: 1.11 | AG59: 13.5 | AI59: Middle East/Tropical wet | AJ59: 13
N60: Warm Temperate Moist/Volcanic | O60: 80 | P60: 0.69 | Q60: 0.82 | R60: 1 | S60: 1 | T60: 1.08 | U60: 1.15 | V60: 1.14 | W60: 1 | X60: 0.95 | Y60: 0.7 | Z60: 0.92 | AA60: 1 | AB60: 1.44 | AC60: 1.11 | AD60: 1 | AE60: 1 | AF60: 1.11 | AG60: 13.5 | AI60: Middle East/Warm Temperate Dry | AJ60: 4
N61: Warm Temperate Moist/Wetlands | O61: 88 | P61: 0.69 | Q61: 0.82 | R61: 1 | S61: 1 | T61: 1.08 | U61: 1.15 | V61: 1.14 | W61: 1 | X61: 0.95 | Y61: 0.7 | Z61: 0.92 | AA61: 1 | AB61: 1.44 | AC61: 1.11 | AD61: 1 | AE61: 1 | AF61: 1.11 | AG61: 13.5 | AI61: Middle East/Warm Temperate Moist | AJ61: 4
AI62: North America/Boreal Dry | AJ62: 1.1
AI63: North America/Boreal Moist | AJ63: 1.1
AI64: North America/Cool Temperate Dry | AJ64: 4
AI65: North America/Cool Temperate Moist | AJ65: 4
AI66: North America/Tropical Dry | AJ66: 4
AI67: North America/Tropical Moist | AJ67: 7
AI68: North America/Tropical Montane | AJ68: =AVERAGE(1,5) -> 3
AI69: North America/Tropical wet | AJ69: =AVERAGE(0.9,18) -> 9.45
AI70: North America/Warm Temperate Dry | AJ70: 4
AI71: North America/Warm Temperate Moist | AJ71: 4
AI72: Oceania/Boreal Dry | AJ72: 1.1
AI73: Oceania/Boreal Moist | AJ73: 1.1
AI74: Oceania/Cool Temperate Dry | AJ74: 4
AI75: Oceania/Cool Temperate Moist | AJ75: 4
AI76: Oceania/Tropical Dry | AJ76: 7
AI77: Oceania/Tropical Moist | AJ77: 11
AI78: Oceania/Tropical Montane | AJ78: =AVERAGE(3,12) -> 7.5
AI79: Oceania/Tropical wet | AJ79: 13
AI80: Oceania/Warm Temperate Dry | AJ80: 4
AI81: Oceania/Warm Temperate Moist | AJ81: 4
AI82: Western Europe/Boreal Dry | AJ82: 1.1
AI83: Western Europe/Boreal Moist | AJ83: 1.1
AI84: Western Europe/Cool Temperate Dry | AJ84: 4
AI85: Western Europe/Cool Temperate Moist | AJ85: 4
AI86: Western Europe/Tropical Dry | AJ86: 4
AI87: Western Europe/Tropical Moist | AJ87: 7
AI88: Western Europe/Tropical Montane | AJ88: =AVERAGE(1.8,5) -> 3.4
AI89: Western Europe/Tropical wet | AJ89: =0.9 -> 0.9
AI90: Western Europe/Warm Temperate Dry | AJ90: 4
AI91: Western Europe/Warm Temperate Moist | AJ91: 4

Sheet Enteric Data (hidden)
A1: ESTIMATION OF GROSS ENERGY INTAKE (MJ/day): | E1: BASELINE | N1: PROJECT | Y1: State | Z1: Avg Winter Temp (degrees C)
A2: IPCC Eq. # | B2: IPCC Parameter Name | C2: Parameter Description | D2: Equation | E2: Mature Dairy Cows (Lactating cows) | G2: Mature females (dry cows) | I2: Mature Males (Steers) | J2: Calves on forage (heifer) | K2: Growing heifers/steers | L2: Replacement/Growing | M2: Feedlot cattle | O2: Mature Dairy Cows | Q2: Mature females | S2: Mature Males | T2: Calves on forage | U2: Growing heifers/steers | V2: Replacement/growing | W2: Feedlot cattle | Y2: AL | Z2: 8.1
E3: Pregnant | F3: Not pregnant | G3: Pregnant | H3: Not pregnant | O3: Pregnant | P3: Not pregnant | Q3: Pregnant | R3: Not pregnant | Y3: AR | Z3: 5.3
A4: Table 10.4 | B4: Cfi | C4: Coefficient for calculating net energy for maintenance (MJ day-1 kg-1) | E4: 0.386 | F4: 0.386 | G4: 0.386 | H4: 0.322 | I4: 0.37 | J4: =AVERAGE(0.322,0.37) -> 0.346 | K4: 0.37 | L4: 0.322 | M4: 0.37 | O4: =E4 -> 0.386 | P4: 0.386 | Q4: 0.386 | R4: 0.322 | S4: 0.37 | T4: 0.346 | U4: 0.37 | V4: 0.322 | W4: =M4 -> 0.37 | Y4: AZ | Z4: 6.4
B5: Cfi_cold | C5: Coefficient for calculating Nem in colder climates | E5: =IF('2. ENTERIC'!$C$51<20,'Enteric Data'!E4+(0.0048*(20-'2. ENTERIC'!$C$51)),'Enteric Data'!E4) -> 0.50936 | F5: =IF('2. ENTERIC'!$C$51<20,'Enteric Data'!F4+(0.0048*(20-'2. ENTERIC'!$C$51)),'Enteric Data'!F4) -> 0.50936 | G5: =IF('2. ENTERIC'!$C$51<20,'Enteric Data'!G4+(0.0048*(20-'2. ENTERIC'!$C$51)),'Enteric Data'!G4) -> 0.50936 | H5: =IF('2. ENTERIC'!$C$51<20,'Enteric Data'!H4+(0.0048*(20-'2. ENTERIC'!$C$51)),'Enteric Data'!H4) -> 0.44536 | I5: =IF('2. ENTERIC'!$C$51<20,'Enteric Data'!I4+(0.0048*(20-'2. ENTERIC'!$C$51)),'Enteric Data'!I4) -> 0.49336 | J5: =IF('2. ENTERIC'!$C$51<20,'Enteric Data'!J4+(0.0048*(20-'2. ENTERIC'!$C$51)),'Enteric Data'!J4) -> 0.46936 | K5: =IF('2. ENTERIC'!$C$51<20,'Enteric Data'!K4+(0.0048*(20-'2. ENTERIC'!$C$51)),'Enteric Data'!K4) -> 0.49336 | L5: =IF('2. ENTERIC'!$C$51<20,'Enteric Data'!L4+(0.0048*(20-'2. ENTERIC'!$C$51)),'Enteric Data'!L4) -> 0.44536 | M5: =IF('2. ENTERIC'!$C$51<20,'Enteric Data'!M4+(0.0048*(20-'2. ENTERIC'!$C$51)),'Enteric Data'!M4) -> 0.49336 | O5: =IF('2. ENTERIC'!$C$51<20,'Enteric Data'!O4+(0.0048*(20-'2. ENTERIC'!$C$51)),'Enteric Data'!O4) -> 0.50936 | P5: =IF('2. ENTERIC'!$C$51<20,'Enteric Data'!P4+(0.0048*(20-'2. ENTERIC'!$C$51)),'Enteric Data'!P4) -> 0.50936 | Q5: =IF('2. ENTERIC'!$C$51<20,'Enteric Data'!Q4+(0.0048*(20-'2. ENTERIC'!$C$51)),'Enteric Data'!Q4) -> 0.50936 | R5: =IF('2. ENTERIC'!$C$51<20,'Enteric Data'!R4+(0.0048*(20-'2. ENTERIC'!$C$51)),'Enteric Data'!R4) -> 0.44536 | S5: =IF('2. ENTERIC'!$C$51<20,'Enteric Data'!S4+(0.0048*(20-'2. ENTERIC'!$C$51)),'Enteric Data'!S4) -> 0.49336 | T5: =IF('2. ENTERIC'!$C$51<20,'Enteric Data'!T4+(0.0048*(20-'2. ENTERIC'!$C$51)),'Enteric Data'!T4) -> 0.46936 | U5: =IF('2. ENTERIC'!$C$51<20,'Enteric Data'!U4+(0.0048*(20-'2. ENTERIC'!$C$51)),'Enteric Data'!U4) -> 0.49336 | V5: =IF('2. ENTERIC'!$C$51<20,'Enteric Data'!V4+(0.0048*(20-'2. ENTERIC'!$C$51)),'Enteric Data'!V4) -> 0.44536 | W5: =IF('2. ENTERIC'!$C$51<20,'Enteric Data'!W4+(0.0048*(20-'2. ENTERIC'!$C$51)),'Enteric Data'!W4) -> 0.49336 | Y5: CA | Z5: 7.9
A6: 10.3 | B6: NEm | C6: Net energy for maintenance (MJ day-1) | D6: Cfi x (weight)^0.75 | E6: =E5*'2. ENTERIC'!C34^0.75 -> 61.75018665 | F6: =F5*'2. ENTERIC'!C34^0.75 -> 61.75018665 | G6: =G5*'2. ENTERIC'!D34^0.75 -> 53.85826267 | H6: =H5*'2. ENTERIC'!D34^0.75 -> 47.09108659 | I6: =I5*'2. ENTERIC'!E34^0.75 -> 74.21324568 | J6: =J5*'2. ENTERIC'!G34^0.75 -> 23.54425059 | K6: =K5*'2. ENTERIC'!H34^0.75 -> 32.40397891 | L6: =L5*'2. ENTERIC'!I34^0.75 -> 37.95199928 | M6: =M5*'2. ENTERIC'!J34^0.75 -> 45.36281615 | O6: =O5*'2. ENTERIC'!L34^0.75 -> 61.75018665 | P6: =P5*'2. ENTERIC'!L34^0.75 -> 61.75018665 | Q6: =Q5*'2. ENTERIC'!M34^0.75 -> 53.85826267 | R6: =R5*'2. ENTERIC'!M34^0.75 -> 47.09108659 | S6: =S5*'2. ENTERIC'!N34^0.75 -> 74.21324568 | T6: =T5*'2. ENTERIC'!P34^0.75 -> 23.54425059 | U6: =U5*'2. ENTERIC'!Q34^0.75 -> 32.40397891 | V6: =V5*'2. ENTERIC'!R34^0.75 -> 37.95199928 | W6: =W5*'2. ENTERIC'!S34^0.75 -> 45.36281615 | Y6: CO | Z6: -3.4
A7: 10.4 | B7: NEa | C7: Net energy for activity | D7: coeff (confinement situation) x Nem | E7: =(0*E6*('2. ENTERIC'!C30/100))+(0.18*'Enteric Data'!E6*('2. ENTERIC'!C31/100))+(0.36*'Enteric Data'!E6*('2. ENTERIC'!C32/100)) -> 0 | F7: =(0*F6*('2. ENTERIC'!C30/100))+(0.18*'Enteric Data'!F6*('2. ENTERIC'!C31/100))+(0.36*'Enteric Data'!F6*('2. ENTERIC'!C32/100)) -> 0 | G7: =(0*G6*('2. ENTERIC'!D30/100))+(0.18*'Enteric Data'!G6*('2. ENTERIC'!D31/100))+(0.36*'Enteric Data'!G6*('2. ENTERIC'!D32/100)) -> 0 | H7: =(0*H6*('2. ENTERIC'!D30/100))+(0.18*'Enteric Data'!H6*('2. ENTERIC'!D31/100))+(0.36*'Enteric Data'!H6*('2. ENTERIC'!D32/100)) -> 0 | I7: =(0*I6*('2. ENTERIC'!E30/100))+(0.18*'Enteric Data'!I6*('2. ENTERIC'!E31/100))+(0.36*'Enteric Data'!I6*('2. ENTERIC'!E32/100)) -> 0 | J7: =(0*J6*('2. ENTERIC'!G30/100))+(0.18*'Enteric Data'!J6*('2. ENTERIC'!G31/100))+(0.36*'Enteric Data'!J6*('2. ENTERIC'!G32/100)) -> 0 | K7: =(0*K6*('2. ENTERIC'!H30/100))+(0.18*'Enteric Data'!K6*('2. ENTERIC'!H31/100))+(0.36*'Enteric Data'!K6*('2. ENTERIC'!H32/100)) -> 0 | L7: =(0*L6*('2. ENTERIC'!I30/100))+(0.18*'Enteric Data'!L6*('2. ENTERIC'!I31/100))+(0.36*'Enteric Data'!L6*('2. ENTERIC'!I32/100)) -> 0 | M7: =(0*M6*('2. ENTERIC'!J30/100))+(0.18*'Enteric Data'!M6*('2. ENTERIC'!J31/100))+(0.36*'Enteric Data'!M6*('2. ENTERIC'!J32/100)) -> 0 | O7: =(0*O6*('2. ENTERIC'!L30/100))+(0.18*'Enteric Data'!O6*('2. ENTERIC'!L31/100))+(0.36*'Enteric Data'!O6*('2. ENTERIC'!L32/100)) -> 0 | P7: =(0*P6*('2. ENTERIC'!L30/100))+(0.18*'Enteric Data'!P6*('2. ENTERIC'!L31/100))+(0.36*'Enteric Data'!P6*('2. ENTERIC'!L32/100)) -> 0 | Q7: =(0*Q6*('2. ENTERIC'!M30/100))+(0.18*'Enteric Data'!Q6*('2. ENTERIC'!M31/100))+(0.36*'Enteric Data'!Q6*('2. ENTERIC'!M32/100)) -> 0 | R7: =(0*R6*('2. ENTERIC'!M30/100))+(0.18*'Enteric Data'!R6*('2. ENTERIC'!M31/100))+(0.36*'Enteric Data'!R6*('2. ENTERIC'!M32/100)) -> 0 | S7: =(0*S6*('2. ENTERIC'!N30/100))+(0.18*'Enteric Data'!S6*('2. ENTERIC'!N31/100))+(0.36*'Enteric Data'!S6*('2. ENTERIC'!N32/100)) -> 0 | T7: =(0*T6*('2. ENTERIC'!P30/100))+(0.18*'Enteric Data'!T6*('2. ENTERIC'!P31/100))+(0.36*'Enteric Data'!T6*('2. ENTERIC'!P32/100)) -> 0 | U7: =(0*U6*('2. ENTERIC'!Q30/100))+(0.18*'Enteric Data'!U6*('2. ENTERIC'!Q31/100))+(0.36*'Enteric Data'!U6*('2. ENTERIC'!Q32/100)) -> 0 | V7: =(0*V6*('2. ENTERIC'!R30/100))+(0.18*'Enteric Data'!V6*('2. ENTERIC'!R31/100))+(0.36*'Enteric Data'!V6*('2. ENTERIC'!R32/100)) -> 0 | W7: =(0*W6*('2. ENTERIC'!S30/100))+(0.18*'Enteric Data'!W6*('2. ENTERIC'!S31/100))+(0.36*'Enteric Data'!W6*('2. ENTERIC'!S32/100)) -> 0 | Y7: CT | Z7: -1.9
A8: 10.6 | B8: C | C8: Coefficient by sex | E8: 0.8 | F8: 0.8 | G8: 0.8 | H8: 0.8 | I8: 1.2 | J8: 1 | K8: 1.2 | L8: 1.2 | M8: 1.2 | O8: 0.8 | P8: 0.8 | Q8: 0.8 | R8: 0.8 | S8: 1.2 | T8: 1 | U8: 1.2 | V8: 1.2 | W8: 1.2 | Y8: DC | Z8: 1.5
A9: 10.6 | B9: NEg | C9: Net energy for growth | D9: 22.02 x ((average live body weight/(coeff (M/F) * mature weight of adult female))^0.75 * average daily weight gain^1.097 | E9: =22.02*(('2. ENTERIC'!C34/('Enteric Data'!E8*'2. ENTERIC'!$C$52))^0.75)*('2. ENTERIC'!C35^1.097) -> 0 | F9: =22.02*(('2. ENTERIC'!C34/('Enteric Data'!F8*'2. ENTERIC'!$C$52))^0.75)*('2. ENTERIC'!C35^1.097) -> 0 | G9: =22.02*(('2. ENTERIC'!D34/('Enteric Data'!G8*'2. ENTERIC'!$C$52))^0.75)*('2. ENTERIC'!D35^1.097) -> 0 | H9: =22.02*(('2. ENTERIC'!D34/('Enteric Data'!H8*'2. ENTERIC'!$C$52))^0.75)*('2. ENTERIC'!D35^1.097) -> 0 | I9: =22.02*(('2. ENTERIC'!E34/('Enteric Data'!I8*'2. ENTERIC'!$C$52))^0.75)*('2. ENTERIC'!E35^1.097) -> 0 | J9: =22.02*(('2. ENTERIC'!G34/('Enteric Data'!J8*'2. ENTERIC'!$C$52))^0.75)*('2. ENTERIC'!G35^1.097) -> 9.306205546 | K9: =22.02*(('2. ENTERIC'!H34/('Enteric Data'!K8*'2. ENTERIC'!$C$52))^0.75)*('2. ENTERIC'!H35^1.097) -> 8.06697725 | L9: =22.02*(('2. ENTERIC'!I34/('Enteric Data'!L8*'2. ENTERIC'!$C$52))^0.75)*('2. ENTERIC'!I35^1.097) -> 5.66483335 | M9: =22.02*(('2. ENTERIC'!J34/('Enteric Data'!M8*'2. ENTERIC'!$C$52))^0.75)*('2. ENTERIC'!J35^1.097) -> 22.27079944 | O9: =22.02*(('2. ENTERIC'!L34/('Enteric Data'!O8*'2. ENTERIC'!$C$52))^0.75)*('2. ENTERIC'!L35^1.097) -> 0 | P9: =22.02*(('2. ENTERIC'!L34/('Enteric Data'!P8*'2. ENTERIC'!$C$52))^0.75)*('2. ENTERIC'!L35^1.097) -> 0 | Q9: =22.02*(('2. ENTERIC'!M34/('Enteric Data'!Q8*'2. ENTERIC'!$C$52))^0.75)*('2. ENTERIC'!M35^1.097) -> 0 | R9: =22.02*(('2. ENTERIC'!M34/('Enteric Data'!R8*'2. ENTERIC'!$C$52))^0.75)*('2. ENTERIC'!M35^1.097) -> 0 | S9: =22.02*(('2. ENTERIC'!N34/('Enteric Data'!S8*'2. ENTERIC'!$C$52))^0.75)*('2. ENTERIC'!N35^1.097) -> 0 | T9: =22.02*(('2. ENTERIC'!P34/('Enteric Data'!T8*'2. ENTERIC'!$C$52))^0.75)*('2. ENTERIC'!P35^1.097) -> 9.306205546 | U9: =22.02*(('2. ENTERIC'!Q34/('Enteric Data'!U8*'2. ENTERIC'!$C$52))^0.75)*('2. ENTERIC'!Q35^1.097) -> 8.06697725 | V9: =22.02*(('2. ENTERIC'!R34/('Enteric Data'!V8*'2. ENTERIC'!$C$52))^0.75)*('2. ENTERIC'!R35^1.097) -> 5.66483335 | W9: =22.02*(('2. ENTERIC'!S34/('Enteric Data'!W8*'2. ENTERIC'!$C$52))^0.75)*('2. ENTERIC'!S35^1.097) -> 22.27079944 | Y9: DE | Z9: 2.3
A10: 10.8 | B10: Nel | C10: Net energy for lactation* | D10: Milk produced x (1.47 + 0.40*Fat%) | E10: =('2. ENTERIC'!C36/365)*(1.47+0.4*'2. ENTERIC'!C37) -> 70.61 | F10: =('2. ENTERIC'!C36/365)*(1.47+0.4*'2. ENTERIC'!C37) -> 70.61 | G10: =('2. ENTERIC'!D36/365)*(1.47+0.4*'2. ENTERIC'!D37) -> 10.131 | H10: =('2. ENTERIC'!D36/365)*(1.47+0.4*'2. ENTERIC'!D37) -> 10.131 | I10: =('2. ENTERIC'!E36/365)*(1.47+0.4*'2. ENTERIC'!E37) -> 0 | J10: =('2. ENTERIC'!G36/365)*(1.47+0.4*'2. ENTERIC'!G37) -> 0 | K10: =('2. ENTERIC'!H36/365)*(1.47+0.4*'2. ENTERIC'!H37) -> 0 | L10: =('2. ENTERIC'!I36/365)*(1.47+0.4*'2. ENTERIC'!I37) -> 0 | M10: =('2. ENTERIC'!J36/365)*(1.47+0.4*'2. ENTERIC'!J37) -> 0 | O10: =('2. ENTERIC'!L36/365)*(1.47+0.4*'2. ENTERIC'!L37) -> 70.61 | P10: =('2. ENTERIC'!L36/365)*(1.47+0.4*'2. ENTERIC'!L37) -> 70.61 | Q10: =('2. ENTERIC'!M36/365)*(1.47+0.4*'2. ENTERIC'!M37) -> 10.131 | R10: =('2. ENTERIC'!M36/365)*(1.47+0.4*'2. ENTERIC'!M37) -> 10.131 | S10: =('2. ENTERIC'!N36/365)*(1.47+0.4*'2. ENTERIC'!N37) -> 0 | T10: =('2. ENTERIC'!P36/365)*(1.47+0.4*'2. ENTERIC'!P37) -> 0 | U10: =('2. ENTERIC'!Q36/365)*(1.47+0.4*'2. ENTERIC'!Q37) -> 0 | V10: =('2. ENTERIC'!R36/365)*(1.47+0.4*'2. ENTERIC'!R37) -> 0 | W10: =('2. ENTERIC'!S36/365)*(1.47+0.4*'2. ENTERIC'!S37) -> 0 | Y10: FL | Z10: 15.2
A11: 10.13 | B11: Nep | C11: Net energy for pregnancy* | D11: 0.10 * Nem | E11: =0.1*E6 -> 6.175018665 | G11: =0.1*G6 -> 5.385826267 | O11: =0.1*O6 -> 6.175018665 | Q11: =0.1*Q6 -> 5.385826267 | R11: 0 | S11: 0 | T11: 0 | U11: 0 | V11: 0 | W11: 0 | Y11: GA | Z11: 8.8
A12: Table 10.2 | B12: DE% | C12: Digestibility of feed | D12: Weighted Avg for feed types, see L109 | E12: =L109 -> 0 | F12: =L109 -> 0 | G12: =M109 -> 0 | H12: =M109 -> 0 | I12: =N109 -> 0 | J12: =P109 -> 0 | K12: =Q109 -> 0 | L12: =R109 -> 0 | M12: =S109 -> 0 | O12: =U109 -> 0 | P12: =U109 -> 0 | Q12: =V109 -> 0 | R12: =V109 -> 0 | S12: =W109 -> 0 | T12: =Y109 -> 0 | U12: =Z109 -> 0 | V12: =AA109 -> 0 | W12: =AB109 -> 0 | Y12: IA | Z12: -5.7
A13: 10.14 | B13: REM | C13: Ratio of net energy available in a diet for maintenance to digestible energy consumed | D13: [1.123-(4.092*10^-3*DE%)+[1.126*10^-5*(DE%)^2]-(25.4/DE%)] | E13: =IF(E12=0,0,(1.123-(4.092*10^-3*E12)+(1.126*10^-5*E12^2)-(25.4/E12))) -> 0 | F13: 0 | G13: 0 | H13: 0 | I13: 0 | J13: 0 | K13: 0 | L13: 0 | M13: 0 | O13: =IF(O12=0,0,(1.123-(4.092*10^-3*O12)+(1.126*10^-5*O12^2)-(25.4/O12))) -> 0 | P13: 0 | Q13: 0 | R13: 0 | S13: 0 | T13: 0 | U13: 0 | V13: 0 | W13: 0 | Y13: ID | Z13: -3.7
A14: 10.15 | B14: REG | C14: Ratio of net energy available for growth in a diet to digestible energy consumed | D14: [1.164-(5.160*10^-3*DE%)+[1.308*10^-5*(DE%)^2]-(37.4/DE%)] | E14: =IF(E12=0,0,(1.164-(5.16*10^-3*E12)+(1.308*10^-5*E12^2)-(37.4/E12))) -> 0 | F14: 0 | G14: 0 | H14: 0 | I14: 0 | J14: 0 | K14: 0 | L14: 0 | M14: 0 | O14: =IF(O12=0,0,(1.164-(5.16*10^-3*O12)+(1.308*10^-5*O12^2)-(37.4/O12))) -> 0 | P14: 0 | Q14: 0 | R14: 0 | S14: 0 | T14: 0 | U14: 0 | V14: 0 | W14: 0 | Y14: IL | Z14: -2.1
A15: 10.16 | B15: GE | C15: Gross energy, MJ head-1 day-1 | D15: {[(Nem+Nea+Nel+Nep)/REM]+(Neg/REG)}/(DE%/100) | E15: =IF(OR(E13=0,E14=0),0,((E6+E7+E10+E11/E13)+(E9/E14))/(E12/100)) -> 0 | F15: =IF(OR(F13=0,F14=0),0,((F6+F7/F13)+(F9/F14))/(F12/100)) -> 0 | G15: =IF(OR(G13=0,G14=0),0,((G6+G7+G10+G11/G13)+(G9/G14))/(G12/100)) -> 0 | H15: =IF(OR(H13=0,H14=0),0,((H6+H7/H13)+(H9/H14))/(H12/100)) -> 0 | I15: 0 | J15: 0 | K15: 0 | L15: 0 | M15: 0 | O15: =IF(OR(O13=0,O14=0),0,((O6+O7+O10+O11/O13)+(O9/O14))/(O12/100)) -> 0 | P15: =IF(OR(P13=0,P14=0),0,((P6+P7/P13)+(P9/P14))/(P12/100)) -> 0 | Q15: =IF(OR(Q13=0,Q14=0),0,((Q6+Q7+Q10+Q11/Q13)+(Q9/Q14))/(Q12/100)) -> 0 | R15: =IF(OR(R13=0,R14=0),0,((R6+R7/R13)+(R9/R14))/(R12/100)) -> 0 | S15: 0 | T15: 0 | U15: 0 | V15: 0 | W15: 0 | Y15: IN | Z15: -1.4
C16: Number of livestock | E16: ='2. ENTERIC'!C27*('2. ENTERIC'!C28/100) -> 0 | F16: ='2. ENTERIC'!C27*(1-('2. ENTERIC'!C28/100)) -> 0 | G16: ='2. ENTERIC'!D27*('2. ENTERIC'!D28/100) -> 0 | H16: ='2. ENTERIC'!D27*(1-('2. ENTERIC'!D28/100)) -> 0 | I16: ='2. ENTERIC'!E27 -> 0 | J16: ='2. ENTERIC'!G27 -> 0 | K16: ='2. ENTERIC'!H27 -> 0 | L16: ='2. ENTERIC'!I27 -> 0 | M16: ='2. ENTERIC'!J27 -> 0 | O16: ='2. ENTERIC'!L27*('2. ENTERIC'!L28/100) -> 0 | P16: ='2. ENTERIC'!L27*(1-('2. ENTERIC'!L28/100)) -> 0 | Q16: ='2. ENTERIC'!M27*('2. ENTERIC'!M28/100) -> 0 | R16: ='2. ENTERIC'!M27*(1-('2. ENTERIC'!M28/100)) -> 0 | S16: ='2. ENTERIC'!N27 -> 0 | T16: ='2. ENTERIC'!P27 -> 0 | U16: ='2. ENTERIC'!Q27 -> 0 | V16: ='2. ENTERIC'!R27 -> 0 | W16: ='2. ENTERIC'!S27 -> 0 | Y16: KS | Z16: -0.1
Y17: KY | Z17: 2.2
C18: ENTERIC EQUATIONS: | Y18: LA | Z18: 10.5
D19: GEI term | E19: =0.0392*E15 -> 0 | F19: =0.0392*F15 -> 0 | G19: =0.0503*G15 -> 0 | H19: =0.0503*H15 -> 0 | I19: =0.0447*I15 -> 0 | J19: =0.0447*J15 -> 0 | K19: =0.0447*K15 -> 0 | L19: =0.0447*L15 -> 0 | M19: =0.0447*M15 -> 0 | O19: =0.0392*O15 -> 0 | P19: =0.0392*P15 -> 0 | Q19: =0.0503*Q15 -> 0 | R19: =0.0503*R15 -> 0 | S19: =0.0447*S15 -> 0 | T19: =0.0447*T15 -> 0 | U19: =0.0447*U15 -> 0 | V19: =0.0447*V15 -> 0 | W19: =0.0447*W15 -> 0 | Y19: MA | Z19: -2.6
D20: NDF term | E20: =L132 -> 0 | F20: =L132 -> 0 | I20: =N132 -> 0 | J20: =P132 -> 0 | K20: 0 | L20: 0 | M20: 0 | O20: =U132 -> 0 | P20: =U132 -> 0 | S20: =W132 -> 0 | T20: =Y132 -> 0 | U20: 0 | V20: 0 | W20: 0 | Y20: MD | Z20: 1.5
D21: DEE term | E21: =L133 -> 0 | F21: =L133 -> 0 | G21: =M133 -> 0 | H21: =M133 -> 0 | I21: =N133 -> 0 | J21: 0 | K21: 0 | L21: 0 | M21: 0 | O21: =U133 -> 0 | P21: =U133 -> 0 | Q21: =V133 -> 0 | R21: =V133 -> 0 | S21: =W133 -> 0 | T21: 0 | U21: 0 | V21: 0 | W21: 0 | Y21: ME | Z21: -8.4
D22: BW term | E22: =0.0014*'2. ENTERIC'!C34 -> 0.84 | F22: =0.0014*'2. ENTERIC'!C34 -> 0.84 | G22: =0.0008*'2. ENTERIC'!D34 -> 0.4 | H22: =0.0008*'2. ENTERIC'!D34 -> 0.4 | I22: =0.0014*'2. ENTERIC'!E34 -> 1.12 | J22: =0.0014*'2. ENTERIC'!G34 -> 0.259 | K22: =0.0014*'2. ENTERIC'!H34 -> 0.371 | L22: =0.0014*'2. ENTERIC'!I34 -> 0.525 | M22: =0.0014*'2. ENTERIC'!J34 -> 0.581 | O22: =0.0014*'2. ENTERIC'!L34 -> 0.84 | P22: =0.0014*'2. ENTERIC'!L34 -> 0.84 | Q22: =0.0008*'2. ENTERIC'!M34 -> 0.4 | R22: =0.0008*'2. ENTERIC'!M34 -> 0.4 | S22: =0.0014*'2. ENTERIC'!N34 -> 1.12 | T22: =0.0014*'2. ENTERIC'!P34 -> 0.259 | U22: =0.0014*'2. ENTERIC'!Q34 -> 0.371 | V22: =0.0014*'2. ENTERIC'!R34 -> 0.525 | W22: =0.0014*'2. ENTERIC'!S34 -> 0.581 | Y22: MI | Z22: -5.7
D23: Enteric Emissions (CH4 GE Mcal/d) | E23: =0.3743+E19+E20-E21+E22 -> 1.2143 | F23: =0.3743+F19+F20-F21+F22 -> 1.2143 | G23: =0.4535+G19-G21+G22 -> 0.8535 | H23: =0.4535+H19-H21+H22 -> 0.8535 | I23: =-0.0558+I19+I20-I21+I22 -> 1.0642 | J23: =-0.0558+J19+J20-J21+J22 -> 0.2032 | K23: =-0.0558+K19+K20-K21+K22 -> 0.3152 | L23: =-0.0558+L19+L20-L21+L22 -> 0.4692 | M23: =-0.0558+M19+M20-M21+M22 -> 0.5252 | O23: =0.3743+O19+O20-O21+O22 -> 1.2143 | P23: =0.3743+P19+P20-P21+P22 -> 1.2143 | Q23: =0.4535+Q19-Q21+Q22 -> 0.8535 | R23: =0.4535+R19-R21+R22 -> 0.8535 | S23: =-0.0558+S19+S20-S21+S22 -> 1.0642 | T23: =-0.0558+T19+T20-T21+T22 -> 0.2032 | U23: =-0.0558+U19+U20-U21+U22 -> 0.3152 | V23: =-0.0558+V19+V20-V21+V22 -> 0.4692 | W23: =-0.0558+W19+W20-W21+W22 -> 0.5252 | Y23: MN | Z23: -10.9
D24: Enteric Emissions per category(t CO2e/yr) | E24: =(((E23*E16*365)/13.29)/1000)*21 -> 0 | F24: =(((F23*F16*365)/13.29)/1000)*21 -> 0 | G24: 0 | H24: 0 | I24: 0 | J24: 0 | K24: 0 | L24: =(((L23*L16*365)/13.29)/1000)*21 -> 0 | M24: =(((M23*M16*365)/13.29)/1000)*21 -> 0 | O24: =(((O23*O16*365)/13.29)/1000)*21 -> 0 | P24: 0 | Q24: 0 | R24: 0 | S24: 0 | T24: 0 | U24: 0 | V24: 0 | W24: 0 | Y24: MO | Z24: 0.2
D25: Total Enteric Emissions across categories (t CO2e yr-1) | E25: =SUM(E24:M24) -> 0 | O25: =SUM(O24:W24) -> 0 | Y25: MS | Z25: 8.2
Y26: MT | Z26: -6
D27: Net Emissions | E27: =E25-O25 -> 0 | Y27: NC | Z27: 5.6
Y28: ND | Z28: -11
Y29: NE | Z29: -3.5
Y30: NH | Z30: -6.1
Y31: NJ | Z31: 0.6
Y32: NM | Z32: 2.3
Y33: NV | Z33: 0.1
Y34: NY | Z34: -4.8
Y35: OH | Z35: -1.4
Y36: OK | Z36: 3.9
Y37: OR | Z37: 1.1
Y38: PA | Z38: -2
Y39: RI | Z39: -0.3
Y40: SC | Z40: 7.8
B41: Live Weight, kg | Y41: SD | Z41: -6.9
A42: Region | B42: Dairy Cow | C42: Mature Female | D42: Mature Male | E42: Calves on milk | F42: Calves on forage | G42: Growing heifers/steers | H42: Replacement/Growing | I42: Feedlot cattle | Y42: TN | Z42: 3.9
A43: Africa | B43: 275 | C43: 200 | D43: 275 | E43: 75 | F43: 75 | Y43: TX | Z43: 8.8
A44: Asia | B44: 350 | C44: =AVERAGE(300,325) -> 312.5 | D44: =AVERAGE(450,400) -> 425 | E44: 200 | F44: 200 | Y44: UT | Z44: -2.1
A45: Eastern Europe | B45: 550 | C45: 500 | D45: 600 | E45: 230 | F45: 230 | Y45: VA | Z45: 2.7
A46: Indian Subcontinent | B46: 275 | C46: 125 | D46: 200 | E46: 80 | F46: 80 | Y46: VT | Z46: -7
A47: Latin America | B47: 400 | C47: 400 | D47: 450 | E47: 230 | F47: 230 | Y47: WA | Z47: 0.6
A48: Middle East | B48: 275 | C48: =B48*0.8 -> 220 | D48: 275 | E48: 75 | F48: 75 | Y48: WI | Z48: -8.2
A49: North America | B49: 600 | C49: 500 | D49: 800 | E49: 100 | F49: 185 | G49: 265 | H49: 375 | I49: 415 | Y49: WV | Z49: 0.4
A50: Oceania | B50: 500 | C50: 400 | D50: 450 | E50: 200 | F50: 200 | Y50: WY | Z50: -6
A51: Western Europe | B51: 600 | C51: =B51*0.8 -> 480 | D51: 600 | E51: 230 | F51: 230 | H51: 400
B53: Weight gain (kg day-1)
A54: Region | B54: Dairy Cow | C54: Mature Female | D54: Mature Male | E54: Calves on milk | F54: Calves on forage | G54: Growing heifers/steers | H54: Replacement/Growing | I54: Feedlot cattle
A55: Africa | B55: 0 | C55: 0 | D55: 0 | E55: 0.1 | F55: 0.1
A56: Asia | B56: 0 | C56: 0 | D56: 0 | E56: 0.2 | F56: 0.2
A57: Eastern Europe | B57: 0 | C57: 0 | D57: 0 | E57: 0.4 | F57: 0.4
A58: Indian Subcontinent | B58: 0 | C58: 0 | D58: 0 | E58: 0.1 | F58: 0.1
A59: Latin America | B59: 0 | C59: 0 | D59: 0 | E59: 0.3 | F59: 0.3
A60: Middle East | B60: 0 | C60: 0 | D60: 0 | E60: 0.1 | F60: 0.1
A61: North America | B61: 0 | C61: 0 | D61: 0 | E61: 0.9 | F61: 0.9 | G61: 0.7 | H61: 0.4 | I61: 1.3
A62: Oceania | B62: 0 | C62: 0 | D62: 0 | E62: 0.3 | F62: 0.3
A63: Western Europe | B63: 0 | C63: 0 | D63: 0 | E63: 0.3 | F63: 0.3 | H63: 0.4
B65: Milk Production, kg yr-1
A66: Region | B66: Dairy Cow | C66: Mature Female | D66: Mature Male | E66: Calves on milk | F66: Calves on forage | G66: Growing heifers/steers | H66: Replacement/Growing | I66: Feedlot cattle
A67: Africa | B67: =1.3*365 -> 474.5 | C67: =0.3*365 -> 109.5 | D67: 0 | E67: 0 | F67: 0 | G67: 0 | H67: 0 | I67: 0
A68: Asia | B68: =4.5*365 -> 1642.5 | C68: =1.1*365 -> 401.5 | D68: 0 | E68: 0 | F68: 0 | G68: 0 | H68: 0 | I68: 0
A69: Eastern Europe | B69: =7*365 -> 2555 | C69: =3.3*365 -> 1204.5 | D69: 0 | E69: 0 | F69: 0 | G69: 0 | H69: 0 | I69: 0
A70: Indian Subcontinent | B70: =2.5*365 -> 912.5 | C70: =0.6*365 -> 219 | D70: 0 | E70: 0 | F70: 0 | G70: 0 | H70: 0 | I70: 0
A71: Latin America | B71: =2*365 -> 730 | C71: =1.1*365 -> 401.5 | D71: 0 | E71: 0 | F71: 0 | G71: 0 | H71: 0 | I71: 0
A72: Middle East | B72: =1.3*365 -> 474.5 | C72: =0.3*365 -> 109.5 | D72: 0 | E72: 0 | F72: 0 | G72: 0 | H72: 0 | I72: 0
A73: North America | B73: =23*365 -> 8395 | C73: =3.3*365 -> 1204.5 | D73: 0 | E73: 0 | F73: 0 | G73: 0 | H73: 0 | I73: 0
A74: Oceania | B74: =6*365 -> 2190 | C74: =2.4*365 -> 876 | D74: 0 | E74: 0 | F74: 0 | G74: 0 | H74: 0 | I74: 0
A75: Western Europe | B75: =16.4*365 -> 5986 | C75: 0 | D75: 0 | E75: 0 | F75: 0 | G75: 0 | H75: 0 | I75: 0
B77: % Pregnant
A78: Region | B78: Dairy Cow | C78: Mature Female | D78: Mature Male | E78: Calves on milk | F78: Calves on forage | G78: Growing heifers/steers | H78: Replacement/Growing | I78: Feedlot cattle
A79: Africa | B79: 67 | C79: 33 | D79: 0 | E79: 0 | F79: 0 | G79: 0 | H79: 0 | I79: 0
A80: Asia | B80: 80 | C80: =AVERAGE(33,50) -> 41.5 | D80: 0 | E80: 0 | F80: 0 | G80: 0 | H80: 0 | I80: 0
A81: Eastern Europe | B81: 80 | C81: 67 | D81: 0 | E81: 0 | F81: 0 | G81: 0 | H81: 0 | I81: 0
A82: Indian Subcontinent | B82: 50 | C82: 33 | D82: 0 | E82: 0 | F82: 0 | G82: 0 | H82: 0 | I82: 0
A83: Latin America | B83: 80 | C83: 67 | D83: 0 | E83: 0 | F83: 0 | G83: 0 | H83: 0 | I83: 0
A84: Middle East | B84: 67 | C84: 33 | D84: 0 | E84: 0 | F84: 0 | G84: 0 | H84: 0 | I84: 0
A85: North America | B85: 90 | C85: 80 | D85: 0 | E85: 0 | F85: 0 | G85: 0 | H85: 0 | I85: 0
A86: Oceania | B86: 80 | C86: 67 | D86: 0 | E86: 0 | F86: 0 | G86: 0 | H86: 0 | I86: 0
A87: Western Europe | B87: 90 | C87: 67 | D87: 0 | E87: 0 | F87: 0 | G87: 0 | H87: 0 | I87: 0
B88: Feed Types | L88: Proportion of Feed | U88: Proportion of Feed
A89: Feed Type | B89: Int'l Feed Number | C89: Category | D89: DE% | E89: NDF | F89: DEE | K89: Feed Name | L89: Dairy Cows | M89: Mature females | N89: Mature Males | O89: Calves on milk | P89: Calves on forage | Q89: Growing heifers/steers | R89: Replacement/growing | S89: Feedlot cattle | U89: Dairy Cows | V89: Mature females | W89: Mature Males | X89: Calves on milk | Y89: Calves on forage | Z89: Growing heifers/steers | AA89: Replacement/growing | AB89: Feedlot cattle
A90: Alfalfa meal, 17% CP | B90: 1-00-023 | C90: Grain | D90: 80 | E90: 41.6 | F90: 2.5 | K90: ='2. ENTERIC'!A42 -> 0 | L90: ='2. ENTERIC'!C42 -> 0 | M90: ='2. ENTERIC'!D42 -> 0 | N90: ='2. ENTERIC'!E42 -> 0 | O90: ='2. ENTERIC'!F42 -> 0 | P90: ='2. ENTERIC'!G42 -> 0 | Q90: ='2. ENTERIC'!H42 -> 0 | R90: ='2. ENTERIC'!I42 -> 0 | S90: ='2. ENTERIC'!J42 -> 0 | U90: ='2. ENTERIC'!L42 -> 0 | V90: ='2. ENTERIC'!M42 -> 0 | W90: ='2. ENTERIC'!N42 -> 0 | X90: ='2. ENTERIC'!O42 -> 0 | Y90: ='2. ENTERIC'!P42 -> 0 | Z90: ='2. ENTERIC'!Q42 -> 0 | AA90: ='2. ENTERIC'!R42 -> 0 | AB90: ='2. ENTERIC'!S42 -> 0
A91: Almond Hulls | B91: 4-00-359 | C91: Grain | D91: 50 | E91: 36.8 | F91: 2.9 | K91: ='2. ENTERIC'!A43 -> 0 | L91: ='2. ENTERIC'!C43 -> 0 | M91: ='2. ENTERIC'!D43 -> 0 | N91: ='2. ENTERIC'!E43 -> 0 | O91: ='2. ENTERIC'!F43 -> 0 | P91: ='2. ENTERIC'!G43 -> 0 | Q91: ='2. ENTERIC'!H43 -> 0 | R91: ='2. ENTERIC'!I43 -> 0 | S91: ='2. ENTERIC'!J43 -> 0 | U91: ='2. ENTERIC'!L43 -> 0 | V91: ='2. ENTERIC'!M43 -> 0 | W91: ='2. ENTERIC'!N43 -> 0 | X91: ='2. ENTERIC'!O43 -> 0 | Y91: ='2. ENTERIC'!P43 -> 0 | Z91: ='2. ENTERIC'!Q43 -> 0 | AA91: ='2. ENTERIC'!R43 -> 0 | AB91: ='2. ENTERIC'!S43 -> 0
A92: Apple Pomace | B92: 4-25-450 | C92: Grain | D92: 50 | E92: 52.5 | F92: 5 | K92: ='2. ENTERIC'!A44 -> 0 | L92: ='2. ENTERIC'!C44 -> 0 | M92: ='2. ENTERIC'!D44 -> 0 | N92: ='2. ENTERIC'!E44 -> 0 | O92: ='2. ENTERIC'!F44 -> 0 | P92: ='2. ENTERIC'!G44 -> 0 | Q92: ='2. ENTERIC'!H44 -> 0 | R92: ='2. ENTERIC'!I44 -> 0 | S92: ='2. ENTERIC'!J44 -> 0 | U92: ='2. ENTERIC'!L44 -> 0 | V92: ='2. ENTERIC'!M44 -> 0 | W92: ='2. ENTERIC'!N44 -> 0 | X92: ='2. ENTERIC'!O44 -> 0 | Y92: ='2. ENTERIC'!P44 -> 0 | Z92: ='2. ENTERIC'!Q44 -> 0 | AA92: ='2. ENTERIC'!R44 -> 0 | AB92: ='2. ENTERIC'!S44 -> 0
A93: Bakery Byproduct Meal | B93: 4-00-466 | C93: Grain | D93: 50 | E93: 13.9 | F93: 9.5 | K93: ='2. ENTERIC'!A45 -> 0 | L93: ='2. ENTERIC'!C45 -> 0 | M93: ='2. ENTERIC'!D45 -> 0 | N93: ='2. ENTERIC'!E45 -> 0 | O93: ='2. ENTERIC'!F45 -> 0 | P93: ='2. ENTERIC'!G45 -> 0 | Q93: ='2. ENTERIC'!H45 -> 0 | R93: ='2. ENTERIC'!I45 -> 0 | S93: ='2. ENTERIC'!J45 -> 0 | U93: ='2. ENTERIC'!L45 -> 0 | V93: ='2. ENTERIC'!M45 -> 0 | W93: ='2. ENTERIC'!N45 -> 0 | X93: ='2. ENTERIC'!O45 -> 0 | Y93: ='2. ENTERIC'!P45 -> 0 | Z93: ='2. ENTERIC'!Q45 -> 0 | AA93: ='2. ENTERIC'!R45 -> 0 | AB93: ='2. ENTERIC'!S45 -> 0
A94: Bakery Bread Waste | B94: 4-00-466 | C94: Grain | D94: 50 | E94: 8.9 | F94: 2.2 | K94: ='2. ENTERIC'!A46 -> 0 | L94: ='2. ENTERIC'!C46 -> 0 | M94: ='2. ENTERIC'!D46 -> 0 | N94: ='2. ENTERIC'!E46 -> 0 | O94: ='2. ENTERIC'!F46 -> 0 | P94: ='2. ENTERIC'!G46 -> 0 | Q94: ='2. ENTERIC'!H46 -> 0 | R94: ='2. ENTERIC'!I46 -> 0 | S94: ='2. ENTERIC'!J46 -> 0 | U94: ='2. ENTERIC'!L46 -> 0 | V94: ='2. ENTERIC'!M46 -> 0 | W94: ='2. ENTERIC'!N46 -> 0 | X94: ='2. ENTERIC'!O46 -> 0 | Y94: ='2. ENTERIC'!P46 -> 0 | Z94: ='2. ENTERIC'!Q46 -> 0 | AA94: ='2. ENTERIC'!R46 -> 0 | AB94: ='2. ENTERIC'!S46 -> 0
A95: Bakery, Cereal Byproduct | B95: 4-00-466 | C95: Grain | D95: 50 | E95: 10 | F95: 3.5 | K95: ='2. ENTERIC'!A47 -> 0 | L95: ='2. ENTERIC'!C47 -> 0 | M95: ='2. ENTERIC'!D47 -> 0 | N95: ='2. ENTERIC'!E47 -> 0 | O95: ='2. ENTERIC'!F47 -> 0 | P95: ='2. ENTERIC'!G47 -> 0 | Q95: ='2. ENTERIC'!H47 -> 0 | R95: ='2. ENTERIC'!I47 -> 0 | S95: ='2. ENTERIC'!J47 -> 0 | U95: ='2. ENTERIC'!L47 -> 0 | V95: ='2. ENTERIC'!M47 -> 0 | W95: ='2. ENTERIC'!N47 -> 0 | X95: ='2. ENTERIC'!O47 -> 0 | Y95: ='2. ENTERIC'!P47 -> 0 | Z95: ='2. ENTERIC'!Q47 -> 0 | AA95: ='2. ENTERIC'!R47 -> 0 | AB95: ='2. ENTERIC'!S47 -> 0
A96: Bakery, Cookie Byproduct | B96: 4-00-466 | C96: Grain | D96: 50 | E96: 12.7 | F96: 10.6 | K96: ='2. ENTERIC'!A48 -> 0 | L96: ='2. ENTERIC'!C48 -> 0 | M96: ='2. ENTERIC'!D48 -> 0 | N96: ='2. ENTERIC'!E48 -> 0 | O96: ='2. ENTERIC'!F48 -> 0 | P96: ='2. ENTERIC'!G48 -> 0 | Q96: ='2. ENTERIC'!H48 -> 0 | R96: ='2. ENTERIC'!I48 -> 0 | S96: ='2. ENTERIC'!J48 -> 0 | U96: ='2. ENTERIC'!L48 -> 0 | V96: ='2. ENTERIC'!M48 -> 0 | W96: ='2. ENTERIC'!N48 -> 0 | X96: ='2. ENTERIC'!O48 -> 0 | Y96: ='2. ENTERIC'!P48 -> 0 | Z96: ='2. ENTERIC'!Q48 -> 0 | AA96: ='2. ENTERIC'!R48 -> 0 | AB96: ='2. ENTERIC'!S48 -> 0
A97: Barley, Grain, Rolled | B97: 4-00-528 | C97: Grain | D97: 80 | E97: 208.8 | F97: 2.2
A98: Barley, Malt Sprouts | B98: 5-00-545 | C98: Grain | D98: 80 | E98: 47 | F98: 2.3 | L98: DE% | U98: DE%
A99: Barley, Silage, Headed | B99: 3-00-512 | C99: Grain | D99: 80 | E99: 56.3 | F99: 3.5 | K99: Feed Name | L99: Dairy Cows | M99: Mature females | N99: Mature Males | O99: Calves on milk | P99: Calves on forage | Q99: Growing heifers/steers | R99: Replacement/growing | S99: Feedlot cattle | U99: Dairy Cows | V99: Mature females | W99: Mature Males | X99: Calves on milk | Y99: Calves on forage | Z99: Growing heifers/steers | AA99: Replacement/growing | AB99: Feedlot cattle
A100: Beet, Sugar, pulp dried | B100: 4-00-669 | C100: Grain | D100: 50 | E100: 45.8 | F100: 1.1 | K100: ='2. ENTERIC'!A42 -> 0 | L100: =IF($K100=0,0,LOOKUP($K100,$A$90:$A$195,$D$90:$D$195)) -> 0 | M100: =IF($K100=0,0,LOOKUP($K100,$A$90:$A$195,$D$90:$D$195)) -> 0 | N100: 0 | O100: 0 | P100: 0 | Q100: 0 | R100: 0 | S100: 0 | U100: =IF($K100=0,0,LOOKUP($K100,$A$90:$A$195,$D$90:$D$195)) -> 0 | V100: =IF($K100=0,0,LOOKUP($K100,$A$90:$A$195,$D$90:$D$195)) -> 0 | W100: 0 | X100: 0 | Y100: 0 | Z100: 0 | AA100: 0 | AB100: 0
A101: Bermudagrass, coastal, hay, early head | B101: 1-20-900 | C101: Low quality forage | D101: 50 | E101: 73.3 | F101: 2.7 | K101: ='2. ENTERIC'!A43 -> 0 | L101: =IF($K101=0,0,LOOKUP($K101,$A$90:$A$195,$D$90:$D$195)) -> 0 | M101: 0 | N101: 0 | O101: 0 | P101: 0 | Q101: 0 | R101: 0 | S101: 0 | U101: =IF($K101=0,0,LOOKUP($K101,$A$90:$A$195,$D$90:$D$195)) -> 0 | V101: 0 | W101: 0 | X101: 0 | Y101: 0 | Z101: 0 | AA101: 0 | AB101: 0
A102: Bermudagrass, Tifton-85, hay, 3-4 wk growth | B102: IFN | C102: Low quality forage | D102: 50 | E102: 76.9 | F102: 2.7 | K102: ='2. ENTERIC'!A44 -> 0 | L102: 0 | M102: 0 | N102: 0 | O102: 0 | P102: 0 | Q102: 0 | R102: 0 | S102: 0 | U102: 0 | V102: 0 | W102: 0 | X102: 0 | Y102: 0 | Z102: 0 | AA102: 0 | AB102: 0
A103: Brewer's grains, dried | B103: 5-12-024 | C103: Grain | D103: 50 | E103: 47.4 | F103: 5.2 | K103: ='2. ENTERIC'!A45 -> 0 | L103: 0 | M103: 0 | N103: 0 | O103: 0 | P103: 0 | Q103: 0 | R103: 0 | S103: 0 | U103: 0 | V103: 0 | W103: 0 | X103: 0 | Y103: 0 | Z103: 0 | AA103: 0 | AB103: 0
A104: Brewer's grains, wet | B104: 5-00-517 | C104: Grain | D104: 50 | E104: 47.1 | F104: 5.2 | K104: ='2. ENTERIC'!A46 -> 0 | L104: 0 | M104: 0 | N104: 0 | O104: 0 | P104: 0 | Q104: 0 | R104: 0 | S104: 0 | U104: 0 | V104: 0 | W104: 0 | X104: 0 | Y104: 0 | Z104: 0 | AA104: 0 | AB104: 0
A105: Canola seed | B105: 5-08-109 | C105: Grain | D105: 50 | E105: 17.8 | F105: 40.5 | K105: ='2. ENTERIC'!A47 -> 0 | L105: 0 | M105: 0 | N105: 0 | O105: 0 | P105: 0 | Q105: 0 | R105: 0 | S105: 0 | U105: 0 | V105: 0 | W105: 0 | X105: 0 | Y105: 0 | Z105: 0 | AA105: 0 | AB105: 0
A106: Canola meal, mech. Extracted | B106: 5-03-870 | C106: Grain | D106: 50 | E106: 29.8 | F106: 5.4 | K106: ='2. ENTERIC'!A48 -> 0 | L106: 0 | M106: 0 | N106: 0 | O106: 0 | P106: 0 | Q106: 0 | R106: 0 | S106: 0 | U106: 0 | V106: 0 | W106: 0 | X106: 0 | Y106: 0 | Z106: 0 | AA106: 0 | AB106: 0
A107: Chocolate Byproduct | C107: Grain | D107: 50 | E107: 23.8 | F107: 20.5
A108: Citrus, pulp dried | B108: 4-01-237 | C108: Grain | D108: 50 | E108: 24.2 | F108: 4.9
A109: Corn, cobs | B109: 1-28-234 | C109: Grain | D109: 50 | E109: 86.2 | F109: 0.6 | K109: Avg Wt DE% | L109: =(L90*(L100/100))+(L91*(L101/100))+(L92*(L102/100))+(L93*(L103/100))+(L94*(L104/100))+(L95*(L105/100))+(L96*(L106/100)) -> 0 | M109: =(M90*(M100/100))+(M91*(M101/100))+(M92*(M102/100))+(M93*(M103/100))+(M94*(M104/100))+(M95*(M105/100))+(M96*(M106/100)) -> 0 | N109: 0 | O109: =(O90*(O100/100))+(O91*(O101/100))+(O92*(O102/100))+(O93*(O103/100))+(O94*(O104/100))+(O95*(O105/100))+(O96*(O106/100)) -> 0 | P109: =(P90*(P100/100))+(P91*(P101/100))+(P92*(P102/100))+(P93*(P103/100))+(P94*(P104/100))+(P95*(P105/100))+(P96*(P106/100)) -> 0 | Q109: 0 | R109: 0 | S109: 0 | U109: =(U90*(U100/100))+(U91*(U101/100))+(U92*(U102/100))+(U93*(U103/100))+(U94*(U104/100))+(U95*(U105/100))+(U96*(U106/100)) -> 0 | V109: =(V90*(V100/100))+(V91*(V101/100))+(V92*(V102/100))+(V93*(V103/100))+(V94*(V104/100))+(V95*(V105/100))+(V96*(V106/100)) -> 0 | W109: 0 | X109: =(X90*(X100/100))+(X91*(X101/100))+(X92*(X102/100))+(X93*(X103/100))+(X94*(X104/100))+(X95*(X105/100))+(X96*(X106/100)) -> 0 | Y109: 0 | Z109: 0 | AA109: 0 | AB109: 0
A110: Corn, distiller's grains w/ solubles, dried | B110: 5-28-236 | C110: Grain | D110: 80 | E110: 38.8 | F110: 10
A111: Corn, gluten feed, dried | B111: 5-28-243 | C111: Grain | D111: 80 | E111: 35.5 | F111: 3.5 | L111: NDF | U111: NDF
A112: Corn, gluten meal, dried | B112: 5-28-242 | C112: Grain | D112: 80 | E112: 11.1 | F112: 2.5 | K112: Feed Name | L112: Dairy Cows | M112: Mature females | N112: Mature Males | O112: Calves on milk | P112: Calves on forage | Q112: Growing heifers/steers | R112: Replacement/growing | S112: Feedlot cattle | U112: Dairy Cows | V112: Mature females | W112: Mature Males | X112: Calves on milk | Y112: Calves on forage | Z112: Growing heifers/steers | AA112: Replacement/growing | AB112: Feedlot cattle
A113: Corn, grain, cracked, dry | B113: 4-02-854 | C113: Grain | D113: 80 | E113: 9.5 | F113: 4.2 | K113: ='2. ENTERIC'!A42 -> 0 | L113: =IF($K113=0,0,LOOKUP($K113,$A$90:$A$195,$E$90:$E$195)) -> 0 | M113: =IF($K113=0,0,LOOKUP($K113,$A$90:$A$195,$E$90:$E$195)) -> 0 | N113: 0 | O113: 0 | P113: 0 | Q113: 0 | R113: 0 | S113: 0 | U113: =IF($K113=0,0,LOOKUP($K113,$A$90:$A$195,$E$90:$E$195)) -> 0 | V113: =IF($K113=0,0,LOOKUP($K113,$A$90:$A$195,$E$90:$E$195)) -> 0 | W113: 0 | X113: 0 | Y113: 0 | Z113: 0 | AA113: 0 | AB113: 0
A114: Corn, Grain, ground, dry | B114: 4-02-854 | C114: Grain | D114: 80 | E114: 9.5 | F114: 4.2 | K114: ='2. ENTERIC'!A43 -> 0 | L114: =IF($K114=0,0,LOOKUP($K114,$A$90:$A$195,$E$90:$E$195)) -> 0 | M114: 0 | N114: 0 | O114: 0 | P114: 0 | Q114: 0 | R114: 0 | S114: 0 | U114: =IF($K114=0,0,LOOKUP($K114,$A$90:$A$195,$E$90:$E$195)) -> 0 | V114: 0 | W114: 0 | X114: 0 | Y114: 0 | Z114: 0 | AA114: 0 | AB114: 0
A115: Corn, grain, steam-flaked | B115: 4-02-854 | C115: Grain | D115: 80 | E115: 9.5 | F115: 4.2 | K115: ='2. ENTERIC'!A44 -> 0 | L115: 0 | M115: 0 | N115: 0 | O115: 0 | P115: 0 | Q115: 0 | R115: 0 | S115: 0 | U115: 0 | V115: 0 | W115: 0 | X115: 0 | Y115: 0 | Z115: 0 | AA115: 0 | AB115: 0
A116: Corn, grain, rolled, high moisture | B116: 4-28-265 | C116: Grain | D116: 80 | E116: 10.3 | F116: 4.3 | K116: ='2. ENTERIC'!A45 -> 0 | L116: 0 | M116: 0 | N116: 0 | O116: 0 | P116: 0 | Q116: 0 | R116: 0 | S116: 0 | U116: 0 | V116: 0 | W116: 0 | X116: 0 | Y116: 0 | Z116: 0 | AA116: 0 | AB116: 0
A117: Corn, grain, ground, high moisture | B117: 4-28-265 | C117: Grain | D117: 80 | E117: 10.3 | F117: 4.3 | K117: ='2. ENTERIC'!A46 -> 0 | L117: 0 | M117: 0 | N117: 0 | O117: 0 | P117: 0 | Q117: 0 | R117: 0 | S117: 0 | U117: 0 | V117: 0 | W117: 0 | X117: 0 | Y117: 0 | Z117: 0 | AA117: 0 | AB117: 0
A118: Corn, grain and cob, dry, ground | B118: 4-02-849 | C118: Grain | D118: 80 | E118: 21.5 | F118: 3.9 | K118: ='2. ENTERIC'!A47 -> 0 | L118: 0 | M118: 0 | N118: 0 | O118: 0 | P118: 0 | Q118: 0 | R118: 0 | S118: 0 | U118: 0 | V118: 0 | W118: 0 | X118: 0 | Y118: 0 | Z118: 0 | AA118: 0 | AB118: 0
A119: Corn, grain and cob, high moisture, ground | B119: 4-26-240 | C119: Grain | D119: 80 | E119: 21 | F119: 3.9 | K119: ='2. ENTERIC'!A48 -> 0 | L119: 0 | M119: 0 | N119: 0 | O119: 0 | P119: 0 | Q119: 0 | R119: 0 | S119: 0 | U119: 0 | V119: 0 | W119: 0 | X119: 0 | Y119: 0 | Z119: 0 | AA119: 0 | AB119: 0
A120: Corn, hominy | B120: 4-02-887 | C120: Grain | D120: 80 | E120: 21.1 | F120: 4.2
A121: Corn, silage, immature <25% DM | B121: 3-28-247 | C121: Grain | D121: 80 | E121: 54.1 | F121: 2.5 | L121: DEE | U121: DEE
A122: Corn, silage, normal, 32-38% DM | B122: 3-28-248 | C122: Grain | D122: 80 | E122: 45 | F122: 3.2 | K122: Feed Name | L122: Dairy Cows | M122: Mature females | N122: Mature Males | O122: Calves on milk | P122: Calves on forage | Q122: Growing heifers/steers | R122: Replacement/growing | S122: Feedlot cattle | U122: Dairy Cows | V122: Mature females | W122: Mature Males | X122: Calves on milk | Y122: Calves on forage | Z122: Growing heifers/steers | AA122: Replacement/growing | AB122: Feedlot cattle
A123: Corn, silage, mature, >40% DM | B123: 3-28-249 | C123: Grain | D123: 80 | E123: 44.5 | F123: 3.2 | K123: ='2. ENTERIC'!A42 -> 0 | L123: =IF($K123=0,0,LOOKUP($K123,$A$90:$A$195,$F$90:$F$195)) -> 0 | M123: =IF($K123=0,0,LOOKUP($K123,$A$90:$A$195,$F$90:$F$195)) -> 0 | N123: 0 | O123: 0 | P123: 0 | Q123: 0 | R123: 0 | S123: 0 | U123: =IF($K123=0,0,LOOKUP($K123,$A$90:$A$195,$F$90:$F$195)) -> 0 | V123: 0 | W123: 0 | X123: 0 | Y123: 0 | Z123: 0 | AA123: 0 | AB123: 0
A124: Cotton seeds, whole seeds with lint | B124: 5-01-614 | C124: Grain | D124: 80 | E124: 50.3 | F124: 19.3 | K124: ='2. ENTERIC'!A43 -> 0 | L124: =IF($K124=0,0,LOOKUP($K124,$A$90:$A$195,$F$90:$F$195)) -> 0 | M124: 0 | N124: 0 | O124: 0 | P124: 0 | Q124: 0 | R124: 0 | S124: 0 | U124: 0 | V124: 0 | W124: 0 | X124: 0 | Y124: 0 | Z124: 0 | AA124: 0 | AB124: 0
A125: Cottton hulls | B125: 1-01-599 | C125: Grain | D125: 80 | E125: 85 | F125: 2.5 | K125: ='2. ENTERIC'!A44 -> 0 | L125: 0 | M125: 0 | N125: 0 | O125: 0 | P125: 0 | Q125: 0 | R125: 0 | S125: 0 | U125: 0 | V125: 0 | W125: 0 | X125: 0 | Y125: 0 | Z125: 0 | AA125: 0 | AB125: 0
A126: Cotton meal, solvent, 41% CP | B126: 5-01-630 | C126: Grain | D126: 80 | E126: 30.8 | F126: 1.9 | K126: ='2. ENTERIC'!A45 -> 0 | L126: 0 | M126: 0 | N126: 0 | O126: 0 | P126: 0 | Q126: 0 | R126: 0 | S126: 0 | U126: 0 | V126: 0 | W126: 0 | X126: 0 | Y126: 0 | Z126: 0 | AA126: 0 | AB126: 0
A127: Grasses, intensively managed pasture | B127: 2-02-260 | C127: Pasture fed | D127: 65 | E127: 45.8 | F127: 2.7 | K127: ='2. ENTERIC'!A46 -> 0 | L127: 0 | M127: 0 | N127: 0 | O127: 0 | P127: 0 | Q127: 0 | R127: 0 | S127: 0 | U127: 0 | V127: 0 | W127: 0 | X127: 0 | Y127: 0 | Z127: 0 | AA127: 0 | AB127: 0
A128: Grasses, hay, all samples | B128: 1-02-250 | C128: Low quality forage | D128: 65 | E128: 64.4 | F128: 2.6 | K128: ='2. ENTERIC'!A47 -> 0 | L128: 0 | M128: 0 | N128: 0 | O128: 0 | P128: 0 | Q128: 0 | R128: 0 | S128: 0 | U128: 0 | V128: 0 | W128: 0 | X128: 0 | Y128: 0 | Z128: 0 | AA128: 0 | AB128: 0
A129: Grasses, hay, immature <55% NDF | B129: 1-02-212 | C129: Low quality forage | D129: 65 | E129: 49.6 | F129: 3.3 | K129: ='2. ENTERIC'!A48 -> 0 | L129: 0 | M129: 0 | N129: 0 | O129: 0 | P129: 0 | Q129: 0 | R129: 0 | S129: 0 | U129: 0 | V129: 0 | W129: 0 | X129: 0 | Y129: 0 | Z129: 0 | AA129: 0 | AB129: 0
A130: Grasses, hay, mid maturity, 55-60% NDF | B130: 1-02-243 | C130: Low quality forage | D130: 65 | E130: 57.7 | F130: 2.5
A131: Grasses, hay, mature, <60% NDF | B131: 1-02-244 | C131: Low quality forage | D131: 65 | E131: 69.1 | F131: 2
A132: Grasses, silage, all samples | B132: 3-02-222 | C132: Low quality forage | D132: 65 | E132: 60.7 | F132: 3.1 | K132: Avg Wt NDF | L132: =(0.0189*L113*(L90/100))+(0.0189*L114*(L91/100))+(0.0189*L115*(L92/100))+(0.0189*L116*(L93/100))+(0.0189*L117*(L94/100))+(0.0189*L118*(L95/100))+(0.0189*L119*(L96/100)) -> 0 | M132: 0 | N132: =(0.0039*N113*(N90/100))+(0.0039*N114*(N91/100))+(0.0039*N115*(N92/100))+(0.0039*N116*(N93/100))+(0.0039*N117*(N94/100))+(0.0039*N118*(N95/100))+(0.0039*N119*(N96/100)) -> 0 | O132: =(0.0189*O113*(O90/100))+(0.0189*O114*(O91/100))+(0.0189*O115*(O92/100))+(0.0189*O116*(O93/100))+(0.0189*O117*(O94/100))+(0.0189*O118*(O95/100))+(0.0189*O119*(O96/100)) -> 0 | P132: =(0.0039*P113*(P90/100))+(0.0039*P114*(P91/100))+(0.0039*P115*(P92/100))+(0.0039*P116*(P93/100))+(0.0039*P117*(P94/100))+(0.0039*P118*(P95/100))+(0.0039*P119*(P96/100)) -> 0 | Q132: =(0.0039*Q113*(Q90/100))+(0.0039*Q114*(Q91/100))+(0.0039*Q115*(Q92/100))+(0.0039*Q116*(Q93/100))+(0.0039*Q117*(Q94/100))+(0.0039*Q118*(Q95/100))+(0.0039*Q119*(Q96/100)) -> 0 | R132: =(0.0039*R113*(R90/100))+(0.0039*R114*(R91/100))+(0.0039*R115*(R92/100))+(0.0039*R116*(R93/100))+(0.0039*R117*(R94/100))+(0.0039*R118*(R95/100))+(0.0039*R119*(R96/100)) -> 0 | S132: =(0.0039*S113*(S90/100))+(0.0039*S114*(S91/100))+(0.0039*S115*(S92/100))+(0.0039*S116*(S93/100))+(0.0039*S117*(S94/100))+(0.0039*S118*(S95/100))+(0.0039*S119*(S96/100)) -> 0 | U132: =(0.0189*U113*(U90/100))+(0.0189*U114*(U91/100))+(0.0189*U115*(U92/100))+(0.0189*U116*(U93/100))+(0.0189*U117*(U94/100))+(0.0189*U118*(U95/100))+(0.0189*U119*(U96/100)) -> 0 | V132: 0 | W132: =(0.0039*W113*(W90/100))+(0.0039*W114*(W91/100))+(0.0039*W115*(W92/100))+(0.0039*W116*(W93/100))+(0.0039*W117*(W94/100))+(0.0039*W118*(W95/100))+(0.0039*W119*(W96/100)) -> 0 | X132: 0 | Y132: 0 | Z132: 0 | AA132: 0 | AB132: 0
A133: Grasses, silage, immature, <55% NDF | B133: 3-02-217 | C133: Low quality forage | D133: 65 | E133: 51 | F133: 2.8 | K133: Avg Wt DEE | L133: =(0.1555*L123*(L90/100))+(0.1555*L124*(L91/100))+(0.1555*L125*(L92/100))+(0.1555*L126*(L93/100))+(0.1555*L127*(L94/100))+(0.1555*L128*(L95/100))+(0.1555*L129*(L96/100)) -> 0 | M133: =(0.0546*M123*(M90/100))+(0.0546*M124*(M91/100))+(0.0546*M125*(M92/100))+(0.0546*M126*(M93/100))+(0.0546*M127*(M94/100))+(0.0546*M128*(M95/100))+(0.0546*M129*(M96/100)) -> 0 | N133: =(0.0332*N123*(N90/100))+(0.0332*N124*(N91/100))+(0.0332*N125*(N92/100))+(0.0332*N126*(N93/100))+(0.0332*N127*(N94/100))+(0.0332*N128*(N95/100))+(0.0332*N129*(N96/100)) -> 0 | O133: =(0.1555*O123*(O90/100))+(0.1555*O124*(O91/100))+(0.1555*O125*(O92/100))+(0.1555*O126*(O93/100))+(0.1555*O127*(O94/100))+(0.1555*O128*(O95/100))+(0.155*O129*(O96/100)) -> 0 | P133: =(0.0332*P123*(P90/100))+(0.0332*P124*(P91/100))+(0.0332*P125*(P92/100))+(0.1555*P126*(P93/100))+(0.0332*P127*(P94/100))+(0.0332*P128*(P95/100))+(0.0332*P129*(P96/100)) -> 0 | Q133: =(0.0332*Q123*(Q90/100))+(0.0332*Q124*(Q91/100))+(0.0332*Q125*(Q92/100))+(0.0332*Q126*(Q93/100))+(0.0332*Q127*(Q94/100))+(0.0332*Q128*(Q95/100))+(0.0332*Q129*(Q96/100)) -> 0 | R133: =(0.0332*R123*(R90/100))+(0.0332*R124*(R91/100))+(0.0332*R125*(R92/100))+(0.0332*R126*(R93/100))+(0.0332*R127*(R94/100))+(0.0332*R128*(R95/100))+(0.0332*R129*(R96/100)) -> 0 | S133: =(0.0332*S123*(S90/100))+(0.0332*S124*(S91/100))+(0.0332*S125*(S92/100))+(0.0332*S126*(S93/100))+(0.0332*S127*(S94/100))+(0.0332*S128*(S95/100))+(0.0332*S129*(S96/100)) -> 0 | U133: =(0.1555*U123*(U90/100))+(0.1555*U124*(U91/100))+(0.1555*U125*(U92/100))+(0.1555*U126*(U93/100))+(0.1555*U127*(U94/100))+(0.1555*U128*(U95/100))+(0.1555*U129*(U96/100)) -> 0 | V133: =(0.0546*V123*(V90/100))+(0.0546*V124*(V91/100))+(0.0546*V125*(V92/100))+(0.0546*V126*(V93/100))+(0.0546*V127*(V94/100))+(0.0546*V128*(V95/100))+(0.0546*V129*(V96/100)) -> 0 | W133: =(0.0332*W123*(W90/100))+(0.0332*W124*(W91/100))+(0.0332*W125*(W92/100))+(0.0332*W126*(W93/100))+(0.0332*W127*(W94/100))+(0.0332*W128*(W95/100))+(0.0332*W129*(W96/100)) -> 0 | X133: =(0.1555*X123*(X90/100))+(0.1555*X124*(X91/100))+(0.1555*X125*(X92/100))+(0.1555*X126*(X93/100))+(0.1555*X127*(X94/100))+(0.1555*X128*(X95/100))+(0.155*X129*(X96/100)) -> 0 | Y133: =(0.0332*Y123*(Y90/100))+(0.0332*Y124*(Y91/100))+(0.0332*Y125*(Y92/100))+(0.1555*Y126*(Y93/100))+(0.0332*Y127*(Y94/100))+(0.0332*Y128*(Y95/100))+(0.0332*Y129*(Y96/100)) -> 0 | Z133: =(0.0332*Z123*(Z90/100))+(0.0332*Z124*(Z91/100))+(0.0332*Z125*(Z92/100))+(0.0332*Z126*(Z93/100))+(0.0332*Z127*(Z94/100))+(0.0332*Z128*(Z95/100))+(0.0332*Z129*(Z96/100)) -> 0 | AA133: =(0.0332*AA123*(AA90/100))+(0.0332*AA124*(AA91/100))+(0.0332*AA125*(AA92/100))+(0.0332*AA126*(AA93/100))+(0.0332*AA127*(AA94/100))+(0.0332*AA128*(AA95/100))+(0.0332*AA129*(AA96/100)) -> 0 | AB133: =(0.0332*AB123*(AB90/100))+(0.0332*AB124*(AB91/100))+(0.0332*AB125*(AB92/100))+(0.0332*AB126*(AB93/100))+(0.0332*AB127*(AB94/100))+(0.0332*AB128*(AB95/100))+(0.0332*AB129*(AB96/100)) -> 0
A134: Grasses, silage, mid-maturity, 55-60% NDF | B134: 3-02-218 | C134: Low quality forage | D134: 65 | E134: 58.2 | F134: 2.4
A135: Grasses, silage, mature, >60% NDF | B135: 3-02-219 | C135: Low quality forage | D135: 65 | E135: 66.6 | F135: 3
A136: Grass-Legume Mix, predominantly grass, hay, immature, <51% NDF | B136: 1-02-275 | C136: Low quality forage | D136: 65 | E136: 49.6 | F136: 2.4
A137: Grass-Legume Mix, predominantly grass, hay, mid maturity, 51-57% NDF | B137: 1-02-277 | C137: Low quality forage | D137: 65 | E137: 55.1 | F137: 2.6
A138: Grass-Legume Mix, predominantly grass, hay, mature, >57% NDF | B138: 1-02-280 | C138: Low quality forage | D138: 65 | E138: 62.5 | F138: 2.3
A139: Grass-Legume Mix, predominantly grass, silage, immature, <51% NDF | B139: 3-02-302 | C139: Low quality forage | D139: 65 | E139: 49.9 | F139: 2.9
A140: Grass-Legume Mix, predominantly grass, silage, mid maturity, 51-57% NDF | B140: 3-02-265 | C140: Low quality forage | D140: 65 | E140: 54.5 | F140: 2.9
A141: Grass-Legume Mix, predominantly grass, silage, mature, >57% NDF | B141: 3-02-266 | C141: Low quality forage | D141: 65 | E141: 61.7 | F141: 2.6
A142: Grass-Legume Mix, mixed grass/legume, hay, immature, <47% NDF | B142: 1-02-275 | C142: Low quality forage | D142: 65 | E142: 45.4 | F142: 2.5
A143: Grass-Legume Mix, mixed grass/legume, hay, mid maturity, 47-53% NDF | B143: 1-02-277 | C143: Low quality forage | D143: 65 | E143: 50.8 | F143: 2.3
A144: Grass-Legume Mix, mixed grass/legume, hay, mature, >53% NDF | B144: 1-02-280 | C144: Low quality forage | D144: 65 | E144: 56 | F144: 2
A145: Grass-Legume Mix, mixed grass/legume, silage, immature, <47% NDF | B145: 3-02-302 | C145: Low quality forage | D145: 65 | E145: 45.3 | F145: 2.3
A146: Grass-Legume Mix, mixed grass/legume, silage, mid maturity, 47-53% NDF | B146: 3-02-265 | C146: Low quality forage | D146: 65 | E146: 50.4 | F146: 2.5
A147: Grass-Legume Mix, mixed grass/legume, silage, mature, >53% NDF | B147: 3-02-266 | C147: Low quality forage | D147: 65 | E147: 57.4 | F147: 2.3
A148: Grass-Legume Mix, predominantly legume, hay, immature, <44% NDF | B148: 1-02-275 | C148: Low quality forage | D148: 65 | E148: 41.7 | F148: 2
A149: Grass-Legume Mix, predominantly legume, hay, mid maturity, 44-50% NDF | B149: 1-02-277 | C149: Low quality forage | D149: 65 | E149: 47.2 | F149: 2
A150: Grass-Legume Mix, predominantly legume, hay, mature, >50% NDF | B150: 1-02-280 | C150: Low quality forage | D150: 65 | E150: 53.6 | F150: 1.7
A151: Grass-Legume Mix, predominantly legume, silage, immature, <44% NDF | B151: 3-02-302 | C151: Low quality forage | D151: 65 | E151: 42.2 | F151: 2.2
A152: Grass-Legume Mix, predominantly legume, silage, mid maturity, 44-50% NDF | B152: 3-02-265 | C152: Low quality forage | D152: 65 | E152: 47 | F152: 2.1
A153: Grass-Legume Mix, predominantly legume, silage, mature, >50% NDF | B153: 3-02-266 | C153: Low quality forage | D153: 65 | E153: 53.7 | F153: 2
A154: Legumes, Forage, Pasture, intensively managed | B154: 2-29-431 | C154: Pasture fed | D154: 65 | E154: 33.1 | F154: 3.7
A155: Legumes, Forage, Hay, all samples | B155: 1-20-648 | C155: Low quality forage | D155: 65 | E155: 39.6 | F155: 2.1
A156: Legumes, Forage, Hay, immature, <40% NDF | B156: 1-07-792 | C156: Low quality forage | D156: 65 | E156: 36.3 | F156: 2.1
A157: Legumes, Forage, Hay, mid maturity, 40-46% NDF | B157: 1-07-788 | C157: Low quality forage | D157: 65 | E157: 42.9 | F157: 2
A158: Legumes, Forage, Hay, mature, >46% NDF | B158: 1-07-789 | C158: Low quality forage | D158: 65 | E158: 50.9 | F158: 1.6
A159: Legumes, Forage, Silage, all samples | B159: 3-07-796 | C159: Low quality forage | D159: 65 | E159: 45.7 | F159: 3.1
A160: Legumes, Forage, Silage, immature, <40% NDF | B160: 3-07-795 | C160: Low quality forage | D160: 65 | E160: 36.7 | F160: 2.3
A161: Legumes, Forage, Silage, mid maturity, 40-46% NDF | B161: 3-07-797 | C161: Low quality forage | D161: 65 | E161: 43.2 | F161: 2.2
A162: Legumes, Forage, Silage, mature, >46% NDF | B162: 3-07-798 | C162: Low quality forage | D162: 65 | E162: 50 | F162: 2.1
A163: Molasses, beet sugar | B163: 4-00-668 | C163: Grain | D163: 50 | E163: 0.1 | F163: 0.2
A164: Molasses, sugarcane | B164: 4-04-696 | C164: Grain | D164: 50 | E164: 0.4 | F164: 0.2
A165: Oats, grain, rolled | B165: 4-03-309 | C165: Grain | D165: 80 | E165: 30 | F165: 5.1
A166: Oats, hay, headed | B166: 1-09-099 | C166: Grain | D166: 80 | E166: 58 | F166: 2.2
A167: Oats, silage, headed | B167: 3-21-843 | C167: Grain | D167: 80 | E167: 60.6 | F167: 3.4
A168: Peanut, meal, solvent | B168: 5-08-605 | C168: Grain | D168: 50 | E168: 21.4 | F168: 1.4
A169: Potato, byproduct meal | B169: 4-03-775 | C169: Grain | D169: 50 | E169: 22.1 | F169: 10.8
A170: Rice, bran | B170: 4-03-928 | C170: Grain | D170: 50 | E170: 26.1 | F170: 15.2
A171: Rye, annual, silage, vegetative | B171: 3-21-853 | C171: Grain | D171: 80 | E171: 57.8 | F171: 3.8
A172: Safflower, meal, solvent | B172: 5-04-110 | C172: Grain | D172: 50 | E172: 53.8 | F172: 2.4
A173: Sorghum, grain type, grain, dry rolled | B173: 4-04-380 | C173: Grain | D173: 80 | E173: 10.9 | F173: 3.1
A174: Sorghum, grain type, grain, steam-flaked | B174: 4-04-380 | C174: Grain | D174: 80 | E174: 10.9 | F174: 3.1
A175: Sorghum, grain type, silage | B175: 3-22-371 | C175: Grain | D175: 80 | E175: 60.7 | F175: 2.9
A176: Sorghum, Sudan type, hay | B176: 1-04-480 | C176: Grain | D176: 80 | E176: 64.8 | F176: 2.3
A177: Sorghum, Sudan type, silage | B177: 3-04-499 | C177: Grain | D177: 80 | E177: 63.3 | F177: 3.6
A178: Soybean, hulls | B178: 1-04-560 | C178: Grain | D178: 80 | E178: 60.3 | F178: 2.7
A179: Soybean, meal, expellers, 45% CP | B179: 5-12-820 | C179: Grain | D179: 80 | E179: 21.7 | F179: 8.1
A180: Soybean, meal, nonenzymatically browned | C180: Grain | D180: 80 | E180: 29.7 | F180: 2.3
A181: Soybean, meal, solvent, 44% CP | B181: 5-20-637 | C181: Grain | D181: 80 | E181: 14.9 | F181: 1.6
A182: Soybean, meal, solvent, 48% CP | B182: 5-20-638 | C182: Grain | D182: 80 | E182: 9.8 | F182: 1.1
A183: Soybean, seeds, whole | B183: 5-04-610 | C183: Grain | D183: 80 | E183: 19.5 | F183: 19.2
A184: Soybean, seeds, whole roasted | B184: 5-04-597 | C184: Grain | D184: 80 | E184: 22.1 | F184: 19
A185: Soybean, silage, early maturity | B185: 3-04-579 | C185: Grain | D185: 80 | E185: 46.6 | F185: 5.7
A186: Sunflower, meal, solvent | B186: 5-30-032 | C186: Grain | D186: 50 | E186: 40.3 | F186: 1.4
A187: Sunflower, oil seeds, whole | B187: 5-08-530 | C187: Grain | D187: 50 | E187: 24 | F187: 41.9
A188: Tomato, Pomace | B188: 5-05-042 | C188: Grain | D188: 50 | E188: 60 | F188: 13.3
A189: Triticale, silage, headed | B189: 3-26-208 | C189: Grain | D189: 65 | E189: 59.7 | F189: 3.8
A190: Wheat, bran | B190: 4-05-190 | C190: Grain | D190: 80 | E190: 42.5 | F190: 4.3
A191: Wheat, grain, rolled | B191: 4-13-245 | C191: Grain | D191: 80 | E191: 13.4 | F191: 2.3
A192: Wheat, hay, headed | B192: 1-05-170 | C192: Grain | D192: 80 | E192: 61.1 | F192: 1.7
A193: Wheat, middlings | B193: 4-05-205 | C193: Grain | D193: 80 | E193: 36.7 | F193: 4.5
A194: Wheat, silage, early head | B194: 3-21-865 | C194: Grain | D194: 80 | E194: 59.9 | F194: 3.2
A195: Wheat, straw | B195: 1-05-175 | C195: Grain | D195: 80 | E195: 73 | F195: 1.6

Sheet Manure Data (hidden)
C1: BASELINE | M1: PROJECT
A2: CH4 EMISSIONS | C2: Mature Dairy Cows | E2: Mature females | G2: Mature Males | H2: Calves on forage | I2: Growing heifers/steers | J2: Replacement/growing | K2: Feedlot cattle | M2: Mature Dairy Cows | O2: Mature females | Q2: Mature Males | R2: Calves on forage | S2: Growing heifers/steers | T2: Replacement/growing | U2: Feedlot cattle
A3: IPCC Equation # | C3: Pregnant | D3: Not pregnant | E3: Pregnant | F3: Not pregnant | M3: Pregnant | N3: Not pregnant | O3: Pregnant | P3: Not pregnant
A4: from enteric | B4: Gross Energy (MJ head-1 day-1) | C4: ='Enteric Data'!E15 -> 0 | D4: ='Enteric Data'!F15 -> 0 | E4: ='Enteric Data'!G15 -> 0 | F4: ='Enteric Data'!H15 -> 0 | G4: ='Enteric Data'!I15 -> 0 | H4: ='Enteric Data'!J15 -> 0 | I4: ='Enteric Data'!K15 -> 0 | J4: ='Enteric Data'!L15 -> 0 | K4: ='Enteric Data'!M15 -> 0 | M4: ='Enteric Data'!O15 -> 0 | N4: ='Enteric Data'!P15 -> 0 | O4: ='Enteric Data'!Q15 -> 0 | P4: ='Enteric Data'!R15 -> 0 | Q4: ='Enteric Data'!S15 -> 0 | R4: ='Enteric Data'!T15 -> 0 | S4: ='Enteric Data'!U15 -> 0 | T4: ='Enteric Data'!V15 -> 0 | U4: ='Enteric Data'!W15 -> 0
A5: from enteric | B5: # animals | C5: ='Enteric Data'!E16 -> 0 | D5: ='Enteric Data'!F16 -> 0 | E5: ='Enteric Data'!G16 -> 0 | F5: ='Enteric Data'!H16 -> 0 | G5: ='Enteric Data'!I16 -> 0 | H5: ='Enteric Data'!J16 -> 0 | I5: ='Enteric Data'!K16 -> 0 | J5: ='Enteric Data'!L16 -> 0 | K5: ='Enteric Data'!M16 -> 0 | M5: ='Enteric Data'!O16 -> 0 | N5: ='Enteric Data'!P16 -> 0 | O5: ='Enteric Data'!Q16 -> 0 | P5: ='Enteric Data'!R16 -> 0 | Q5: ='Enteric Data'!S16 -> 0 | R5: ='Enteric Data'!T16 -> 0 | S5: ='Enteric Data'!U16 -> 0 | T5: ='Enteric Data'!V16 -> 0 | U5: ='Enteric Data'!W16 -> 0
A6: from enteric | B6: DE% | C6: ='Enteric Data'!E12 -> 0 | D6: ='Enteric Data'!F12 -> 0 | E6: ='Enteric Data'!G12 -> 0 | F6: ='Enteric Data'!H12 -> 0 | G6: ='Enteric Data'!I12 -> 0 | H6: ='Enteric Data'!J12 -> 0 | I6: ='Enteric Data'!K12 -> 0 | J6: ='Enteric Data'!L12 -> 0 | K6: ='Enteric Data'!M12 -> 0 | M6: ='Enteric Data'!O12 -> 0 | N6: ='Enteric Data'!P12 -> 0 | O6: ='Enteric Data'!Q12 -> 0 | P6: ='Enteric Data'!R12 -> 0 | Q6: ='Enteric Data'!S12 -> 0 | R6: ='Enteric Data'!T12 -> 0 | S6: ='Enteric Data'!U12 -> 0 | T6: ='Enteric Data'!V12 -> 0 | U6: ='Enteric Data'!W12 -> 0
A7: 0.04 * GE (Eq. 10.24) | B7: UE | C7: =IF('2. ENTERIC'!C30="",0,IF(AND('2. ENTERIC'!C30>85,'2. ENTERIC'!C31:C1614),0.02,0.04)) -> 0 | D7: =IF(AND('2. ENTERIC'!D30>85,'2. ENTERIC'!D31:D1614),0.02,0.04) -> 0.04 | E7: =IF(AND('2. ENTERIC'!E30>85,'2. ENTERIC'!E31:E1614),0.02,0.04) -> 0.04 | F7: =IF(AND('2. ENTERIC'!F30>85,'2. ENTERIC'!F31:F1614),0.02,0.04) -> 0.04 | G7: =IF(AND('2. ENTERIC'!G30>85,'2. ENTERIC'!G31:G1614),0.02,0.04) -> 0.04 | H7: =IF(AND('2. ENTERIC'!H30>85,'2. ENTERIC'!H31:H1614),0.02,0.04) -> 0.04 | I7: =IF(AND('2. ENTERIC'!I30>85,'2. ENTERIC'!I31:I1614),0.02,0.04) -> 0.04 | J7: =IF(AND('2. ENTERIC'!J30>85,'2. ENTERIC'!J31:J1614),0.02,0.04) -> 0.04 | K7: =IF(AND('2. ENTERIC'!K30>85,'2. ENTERIC'!K31:K1614),0.02,0.04) -> 0.04 | M7: =IF(AND('2. ENTERIC'!M30>85,'2. ENTERIC'!M31:M1614),0.02,0.04) -> 0.04 | N7: =IF(AND('2. ENTERIC'!N30>85,'2. ENTERIC'!N31:N1614),0.02,0.04) -> 0.04 | O7: =IF(AND('2. ENTERIC'!O30>85,'2. ENTERIC'!O31:O1614),0.02,0.04) -> 0.04 | P7: =IF(AND('2. ENTERIC'!P30>85,'2. ENTERIC'!P31:P1614),0.02,0.04) -> 0.04 | Q7: =IF(AND('2. ENTERIC'!Q30>85,'2. ENTERIC'!Q31:Q1614),0.02,0.04) -> 0.04 | R7: =IF(AND('2. ENTERIC'!R30>85,'2. ENTERIC'!R31:R1614),0.02,0.04) -> 0.04 | S7: =IF(AND('2. ENTERIC'!S30>85,'2. ENTERIC'!S31:S1614),0.02,0.04) -> 0.04 | T7: =IF(AND('2. ENTERIC'!T30>85,'2. ENTERIC'!T31:T1614),0.02,0.04) -> 0.04 | U7: =IF(AND('2. ENTERIC'!U30>85,'2. ENTERIC'!U31:U1614),0.02,0.04) -> 0.04
A8: Eq. 10.24 | B8: VS (kg VS head-1 day-1) | C8: =(C4*(1-(C6/100))+(C7*C4))*((1-0.08)/18.45) -> 0 | D8: 0 | E8: 0 | F8: 0 | G8: 0 | H8: 0 | I8: 0 | J8: 0 | K8: 0 | M8: =(M4*(1-(M6/100))+(M7*M4))*((1-0.08)/18.45) -> 0 | N8: 0 | O8: 0 | P8: 0 | Q8: 0 | R8: 0 | S8: 0 | T8: 0 | U8: 0
B9: B0 | C9: =LOOKUP('3. MANURE'!$B$10,'Manure Data'!$B$61:$B$69,'Manure Data'!$C$61:$C$69) -> 0.13 | D9: =LOOKUP('3. MANURE'!$B$10,'Manure Data'!$B$61:$B$69,'Manure Data'!$C$61:$C$69) -> 0.13 | E9: =LOOKUP('3. MANURE'!$B$10,'Manure Data'!$B$61:$B$69,'Manure Data'!$C$61:$C$69) -> 0.13 | F9: =LOOKUP('3. MANURE'!$B$10,'Manure Data'!$B$61:$B$69,'Manure Data'!$C$61:$C$69) -> 0.13 | G9: =LOOKUP('3. MANURE'!$B$10,'Manure Data'!$B$61:$B$69,'Manure Data'!$D$61:$D$69) -> 0.1 | H9: =LOOKUP('3. MANURE'!$B$10,'Manure Data'!$B$61:$B$69,'Manure Data'!$D$61:$D$69) -> 0.1 | I9: =LOOKUP('3. MANURE'!$B$10,'Manure Data'!$B$61:$B$69,'Manure Data'!$D$61:$D$69) -> 0.1 | J9: =LOOKUP('3. MANURE'!$B$10,'Manure Data'!$B$61:$B$69,'Manure Data'!$D$61:$D$69) -> 0.1 | K9: =LOOKUP('3. MANURE'!$B$10,'Manure Data'!$B$61:$B$69,'Manure Data'!$D$61:$D$69) -> 0.1 | M9: =LOOKUP('3. MANURE'!$B$10,'Manure Data'!$B$61:$B$69,'Manure Data'!$C$61:$C$69) -> 0.13 | N9: =LOOKUP('3. MANURE'!$B$10,'Manure Data'!$B$61:$B$69,'Manure Data'!$C$61:$C$69) -> 0.13 | O9: =LOOKUP('3. MANURE'!$B$10,'Manure Data'!$B$61:$B$69,'Manure Data'!$C$61:$C$69) -> 0.13 | P9: =LOOKUP('3. MANURE'!$B$10,'Manure Data'!$B$61:$B$69,'Manure Data'!$C$61:$C$69) -> 0.13 | Q9: =LOOKUP('3. MANURE'!$B$10,'Manure Data'!$B$61:$B$69,'Manure Data'!$D$61:$D$69) -> 0.1 | R9: =LOOKUP('3. MANURE'!$B$10,'Manure Data'!$B$61:$B$69,'Manure Data'!$D$61:$D$69) -> 0.1 | S9: =LOOKUP('3. MANURE'!$B$10,'Manure Data'!$B$61:$B$69,'Manure Data'!$D$61:$D$69) -> 0.1 | T9: =LOOKUP('3. MANURE'!$B$10,'Manure Data'!$B$61:$B$69,'Manure Data'!$D$61:$D$69) -> 0.1 | U9: =LOOKUP('3. MANURE'!$B$10,'Manure Data'!$B$61:$B$69,'Manure Data'!$D$61:$D$69) -> 0.1
A10: Eq. 10.23 | B10: CH4 EF (kg CH4 head-1 yr-1) | C10: =(C8*365)*(C9*0.67*$E$55) -> 0 | D10: 0 | E10: 0 | F10: 0 | G10: 0 | H10: 0 | I10: 0 | J10: 0 | K10: 0 | M10: =(M8*365)*(M9*0.67*$G$55) -> 0 | N10: 0 | O10: 0 | P10: 0 | Q10: 0 | R10: 0 | S10: 0 | T10: 0 | U10: 0
B11: CH4 (kg CH4 yr-1) | C11: =C10*C5 -> 0 | D11: 0 | E11: 0 | F11: 0 | G11: 0 | H11: 0 | I11: 0 | J11: 0 | K11: 0 | M11: =M10*M5 -> 0 | N11: 0 | O11: 0 | P11: 0 | Q11: 0 | R11: 0 | S11: 0 | T11: 0 | U11: 0
B12: Total CH4 (t CO2e yr-1) | C12: =(SUM(C11:K11)/1000)*21 -> 0 | M12: =(SUM(M11:U11)/1000)*21 -> 0
A13: N2O EMISSIONS
B14: Nmass (kg) | C14: ='2. ENTERIC'!C34 -> 600 | D14: ='2. ENTERIC'!C34 -> 600 | E14: ='2. ENTERIC'!D34 -> 500 | F14: ='2. ENTERIC'!D34 -> 500 | G14: ='2. ENTERIC'!E34 -> 800 | H14: ='2. ENTERIC'!G34 -> 185 | I14: ='2. ENTERIC'!H34 -> 265 | J14: ='2. ENTERIC'!I34 -> 375 | K14: ='2. ENTERIC'!J34 -> 415 | M14: ='2. ENTERIC'!L34 -> 600 | N14: ='2. ENTERIC'!L34 -> 600 | O14: ='2. ENTERIC'!M34 -> 500 | P14: ='2. ENTERIC'!M34 -> 500 | Q14: ='2. ENTERIC'!N34 -> 800 | R14: ='2. ENTERIC'!P34 -> 185 | S14: ='2. ENTERIC'!Q34 -> 265 | T14: ='2. ENTERIC'!R34 -> 375 | U14: ='2. ENTERIC'!S34 -> 415
B15: Nrate (kg N (1000 kg animal mass)-1 | C15: =LOOKUP('3. MANURE'!$B$10,'Manure Data'!$B$61:$B$69,'Manure Data'!$E$61:$E$69) -> 0.47 | D15: =LOOKUP('3. MANURE'!$B$10,'Manure Data'!$B$61:$B$69,'Manure Data'!$E$61:$E$69) -> 0.47 | E15: =LOOKUP('3. MANURE'!$B$10,'Manure Data'!$B$61:$B$69,'Manure Data'!$E$61:$E$69) -> 0.47 | F15: =LOOKUP('3. MANURE'!$B$10,'Manure Data'!$B$61:$B$69,'Manure Data'!$E$61:$E$69) -> 0.47 | G15: =LOOKUP('3. MANURE'!$B$10,'Manure Data'!$B$61:$B$69,'Manure Data'!$F$61:$F$69) -> 0.34 | H15: =LOOKUP('3. MANURE'!$B$10,'Manure Data'!$B$61:$B$69,'Manure Data'!$F$61:$F$69) -> 0.34 | I15: =LOOKUP('3. MANURE'!$B$10,'Manure Data'!$B$61:$B$69,'Manure Data'!$F$61:$F$69) -> 0.34 | J15: =LOOKUP('3. MANURE'!$B$10,'Manure Data'!$B$61:$B$69,'Manure Data'!$F$61:$F$69) -> 0.34 | K15: =LOOKUP('3. MANURE'!$B$10,'Manure Data'!$B$61:$B$69,'Manure Data'!$F$61:$F$69) -> 0.34 | M15: =LOOKUP('3. MANURE'!$B$10,'Manure Data'!$B$61:$B$69,'Manure Data'!$E$61:$E$69) -> 0.47 | N15: =LOOKUP('3. MANURE'!$B$10,'Manure Data'!$B$61:$B$69,'Manure Data'!$E$61:$E$69) -> 0.47 | O15: =LOOKUP('3. MANURE'!$B$10,'Manure Data'!$B$61:$B$69,'Manure Data'!$E$61:$E$69) -> 0.47 | P15: =LOOKUP('3. MANURE'!$B$10,'Manure Data'!$B$61:$B$69,'Manure Data'!$E$61:$E$69) -> 0.47 | Q15: =LOOKUP('3. MANURE'!$B$10,'Manure Data'!$B$61:$B$69,'Manure Data'!$F$61:$F$69) -> 0.34 | R15: =LOOKUP('3. MANURE'!$B$10,'Manure Data'!$B$61:$B$69,'Manure Data'!$F$61:$F$69) -> 0.34 | S15: =LOOKUP('3. MANURE'!$B$10,'Manure Data'!$B$61:$B$69,'Manure Data'!$F$61:$F$69) -> 0.34 | T15: =LOOKUP('3. MANURE'!$B$10,'Manure Data'!$B$61:$B$69,'Manure Data'!$F$61:$F$69) -> 0.34 | U15: =LOOKUP('3. MANURE'!$B$10,'Manure Data'!$B$61:$B$69,'Manure Data'!$F$61:$F$69) -> 0.34
B16: Nex (kg N animal-1 yr-1) | C16: =C15*(C14/1000)*365 -> 102.93 | D16: =D15*(D14/1000)*365 -> 102.93 | E16: 85.775 | F16: 85.775 | G16: 99.28 | H16: 22.9585 | I16: 32.8865 | J16: 46.5375 | K16: 51.5015 | M16: =M15*(M14/1000)*365 -> 102.93 | N16: 102.93 | O16: 85.775 | P16: 85.775 | Q16: 99.28 | R16: 22.9585 | S16: 32.8865 | T16: 46.5375 | U16: 51.5015
B17: N2O(direct) (kg N2O-N) | C17: =(C5*C16*$I$35*$H$35)+(C5*C16*$I$36*$H$36)+(C5*C16*$I$37*$H$37)+(C5*C16*$I$38*$H$38)+(C5*C16*$I$39*$H$39)+(C5*C16*$I$40*$H$40)+(C5*C16*$I$41*$H$41)+(C5*C16*$I$42*$H$42)+(C5*C16*$I$43*$H$43)+(C5*C16*$I$44*$H$44)+(C5*C16*$I$45*$H$45)+(C5*C16*$I$46*$H$46)+(C5*C16*$I$47*$H$47)+(C5*C16*$I$48*$H$48)+(C5*C16*$I$49*$H$49)+(C5*C16*$I$50*$H$50)+(C5*C16*$I$51*$H$51)+(C5*C16*$I$52*$H$52)+(C5*C16*$I$53*$H$53)+(C5*C16*$I$54*$H$54) -> 0 | D17: =(D5*D16*$I$35*$H$35)+(D5*D16*$I$36*$H$36)+(D5*D16*$I$37*$H$37)+(D5*D16*$I$38*$H$38)+(D5*D16*$I$39*$H$39)+(D5*D16*$I$40*$H$40)+(D5*D16*$I$41*$H$41)+(D5*D16*$I$42*$H$42)+(D5*D16*$I$43*$H$43)+(D5*D16*$I$44*$H$44)+(D5*D16*$I$45*$H$45)+(D5*D16*$I$46*$H$46)+(D5*D16*$I$47*$H$47)+(D5*D16*$I$48*$H$48)+(D5*D16*$I$49*$H$49)+(D5*D16*$I$50*$H$50)+(D5*D16*$I$51*$H$51)+(D5*D16*$I$52*$H$52)+(D5*D16*$I$53*$H$53)+(D5*D16*$I$54*$H$54) -> 0 | E17: =(E5*E16*$I$35*$H$35)+(E5*E16*$I$36*$H$36)+(E5*E16*$I$37*$H$37)+(E5*E16*$I$38*$H$38)+(E5*E16*$I$39*$H$39)+(E5*E16*$I$40*$H$40)+(E5*E16*$I$41*$H$41)+(E5*E16*$I$42*$H$42)+(E5*E16*$I$43*$H$43)+(E5*E16*$I$44*$H$44)+(E5*E16*$I$45*$H$45)+(E5*E16*$I$46*$H$46)+(E5*E16*$I$47*$H$47)+(E5*E16*$I$48*$H$48)+(E5*E16*$I$49*$H$49)+(E5*E16*$I$50*$H$50)+(E5*E16*$I$51*$H$51)+(E5*E16*$I$52*$H$52)+(E5*E16*$I$53*$H$53)+(E5*E16*$I$54*$H$54) -> 0 | F17: 0 | G17: 0 | H17: 0 | I17: 0 | J17: 0 | K17: 0 | M17: =(M5*M16*$J$35*$H$35)+(M5*M16*$J$36*$H$36)+(M5*M16*$J$37*$H$37)+(M5*M16*$J$38*$H$38)+(M5*M16*$J$39*$H$39)+(M5*M16*$J$40*$H$40)+(M5*M16*$J$41*$H$41)+(M5*M16*$J$42*$H$42)+(M5*M16*$J$43*$H$43)+(M5*M16*$J$44*$H$44)+(M5*M16*$J$45*$H$45)+(M5*M16*$J$46*$H$46)+(M5*M16*$J$47*$H$47)+(M5*M16*$J$48*$H$48)+(M5*M16*$J$49*$H$49)+(M5*M16*$J$50*$H$50)+(M5*M16*$J$51*$H$51)+(M5*M16*$J$52*$H$52)+(M5*M16*$J$53*$H$53)+(M5*M16*$J$54*$H$54) -> 0 | N17: 0 | O17: 0 | P17: 0 | Q17: 0 | R17: 0 | S17: 0 | T17: 0 | U17: 0
B18: N2O(direct) (kg N2O yr-1) | C18: =C17*(44/28) -> 0 | D18: =D17*(44/28) -> 0 | E18: 0 | F18: 0 | G18: 0 | H18: 0 | I18: 0 | J18: 0 | K18: 0 | M18: =M17*(44/28) -> 0 | N18: 0 | O18: 0 | P18: 0 | Q18: 0 | R18: 0 | S18: 0 | T18: 0 | U18: 0
B19: N2O(direct) (t CO2e yr-1) | C19: =(C18/1000)*310 -> 0 | D19: 0 | E19: 0 | F19: 0 | G19: 0 | H19: 0 | I19: 0 | J19: 0 | K19: 0 | M19: =(M18/1000)*310 -> 0 | N19: 0 | O19: 0 | P19: 0 | Q19: 0 | R19: 0 | S19: 0 | T19: 0 | U19: 0
B21: Total N2O(direct) (t CO2e yr-1) | C21: =SUM(C19:K19) -> 0 | M21: =SUM(M19:U19) -> 0
B22: Nvolatilization | C22: =(C5*C16*$I$35*$K$35)+(C5*C16*$I$36*$K$36)+(C5*C16*$I$37*$K$37)+(C5*C16*$I$38*$K$38)+(C5*C16*$I$39*$K$39)+(C5*C16*$I$40*$K$40)+(C5*C16*$I$41*$K$41)+(C5*C16*$I$42*$K$42)+(C5*C16*$I$43*$K$43)+(C5*C16*$I$44*$K$44)+(C5*C16*$I$44*$K$44)+(C5*C16*$I$45*$K$45)+(C5*C16*$I$46*$K$46)+(C5*C16*$I$47*$K$47)+(C5*C16*$I$48*$K$48)+(C5*C16*$I$49*$K$49)+(C5*C16*$I$50*$K$50)+(C5*C16*$I$51*$K$51)+(C5*C16*$I$52*$K$52)+(C5*C16*$I$53*$K$53)+(C5*C16*$I$54*$K$54) -> 0 | D22: =(D5*D16*$I$35*$K$35)+(D5*D16*$I$36*$K$36)+(D5*D16*$I$37*$K$37)+(D5*D16*$I$38*$K$38)+(D5*D16*$I$39*$K$39)+(D5*D16*$I$40*$K$40)+(D5*D16*$I$41*$K$41)+(D5*D16*$I$42*$K$42)+(D5*D16*$I$43*$K$43)+(D5*D16*$I$44*$K$44)+(D5*D16*$I$44*$K$44)+(D5*D16*$I$45*$K$45)+(D5*D16*$I$46*$K$46)+(D5*D16*$I$47*$K$47)+(D5*D16*$I$48*$K$48)+(D5*D16*$I$49*$K$49)+(D5*D16*$I$50*$K$50)+(D5*D16*$I$51*$K$51)+(D5*D16*$I$52*$K$52)+(D5*D16*$I$53*$K$53)+(D5*D16*$I$54*$K$54) -> 0 | E22: =(E5*E16*$I$35*$K$35)+(E5*E16*$I$36*$K$36)+(E5*E16*$I$37*$K$37)+(E5*E16*$I$38*$K$38)+(E5*E16*$I$39*$K$39)+(E5*E16*$I$40*$K$40)+(E5*E16*$I$41*$K$41)+(E5*E16*$I$42*$K$42)+(E5*E16*$I$43*$K$43)+(E5*E16*$I$44*$K$44)+(E5*E16*$I$44*$K$44)+(E5*E16*$I$45*$K$45)+(E5*E16*$I$46*$K$46)+(E5*E16*$I$47*$K$47)+(E5*E16*$I$48*$K$48)+(E5*E16*$I$49*$K$49)+(E5*E16*$I$50*$K$50)+(E5*E16*$I$51*$K$51)+(E5*E16*$I$52*$K$52)+(E5*E16*$I$53*$K$53)+(E5*E16*$I$54*$K$54) -> 0 | F22: =(F5*F16*$I$35*$K$35)+(F5*F16*$I$36*$K$36)+(F5*F16*$I$37*$K$37)+(F5*F16*$I$38*$K$38)+(F5*F16*$I$39*$K$39)+(F5*F16*$I$40*$K$40)+(F5*F16*$I$41*$K$41)+(F5*F16*$I$42*$K$42)+(F5*F16*$I$43*$K$43)+(F5*F16*$I$44*$K$44)+(F5*F16*$I$44*$K$44)+(F5*F16*$I$45*$K$45)+(F5*F16*$I$46*$K$46)+(F5*F16*$I$47*$K$47)+(F5*F16*$I$48*$K$48)+(F5*F16*$I$49*$K$49)+(F5*F16*$I$50*$K$50)+(F5*F16*$I$51*$K$51)+(F5*F16*$I$52*$K$52)+(F5*F16*$I$53*$K$53)+(F5*F16*$I$54*$K$54) -> 0 | G22: =(G5*G16*$I$35*$L$35)+(G5*G16*$I$36*$L$36)+(G5*G16*$I$37*$L$37)+(G5*G16*$I$38*$L$38)+(G5*G16*$I$39*$L$39)+(G5*G16*$I$40*$L$40)+(G5*G16*$I$41*$L$41)+(G5*G16*$I$42*$L$42)+(G5*G16*$I$43*$L$43)+(G5*G16*$I$44*$L$44)+(G5*G16*$I$44*$L$44)+(G5*G16*$I$45*$L$45)+(G5*G16*$I$46*$L$46)+(G5*G16*$I$47*$L$47)+(G5*G16*$I$48*$L$48)+(G5*G16*$I$49*$L$49)+(G5*G16*$I$50*$L$50)+(G5*G16*$I$51*$L$51)+(G5*G16*$I$52*$L$52)+(G5*G16*$I$53*$L$53)+(G5*G16*$I$54*$L$54) -> 0 | H22: =(H5*H16*$I$35*$L$35)+(H5*H16*$I$36*$L$36)+(H5*H16*$I$37*$L$37)+(H5*H16*$I$38*$L$38)+(H5*H16*$I$39*$L$39)+(H5*H16*$I$40*$L$40)+(H5*H16*$I$41*$L$41)+(H5*H16*$I$42*$L$42)+(H5*H16*$I$43*$L$43)+(H5*H16*$I$44*$L$44)+(H5*H16*$I$44*$L$44)+(H5*H16*$I$45*$L$45)+(H5*H16*$I$46*$L$46)+(H5*H16*$I$47*$L$47)+(H5*H16*$I$48*$L$48)+(H5*H16*$I$49*$L$49)+(H5*H16*$I$50*$L$50)+(H5*H16*$I$51*$L$51)+(H5*H16*$I$52*$L$52)+(H5*H16*$I$53*$L$53)+(H5*H16*$I$54*$L$54) -> 0 | I22: =(I5*I16*$I$35*$L$35)+(I5*I16*$I$36*$L$36)+(I5*I16*$I$37*$L$37)+(I5*I16*$I$38*$L$38)+(I5*I16*$I$39*$L$39)+(I5*I16*$I$40*$L$40)+(I5*I16*$I$41*$L$41)+(I5*I16*$I$42*$L$42)+(I5*I16*$I$43*$L$43)+(I5*I16*$I$44*$L$44)+(I5*I16*$I$44*$L$44)+(I5*I16*$I$45*$L$45)+(I5*I16*$I$46*$L$46)+(I5*I16*$I$47*$L$47)+(I5*I16*$I$48*$L$48)+(I5*I16*$I$49*$L$49)+(I5*I16*$I$50*$L$50)+(I5*I16*$I$51*$L$51)+(I5*I16*$I$52*$L$52)+(I5*I16*$I$53*$L$53)+(I5*I16*$I$54*$L$54) -> 0 | J22: =(J5*J16*$I$35*$L$35)+(J5*J16*$I$36*$L$36)+(J5*J16*$I$37*$L$37)+(J5*J16*$I$38*$L$38)+(J5*J16*$I$39*$L$39)+(J5*J16*$I$40*$L$40)+(J5*J16*$I$41*$L$41)+(J5*J16*$I$42*$L$42)+(J5*J16*$I$43*$L$43)+(J5*J16*$I$44*$L$44)+(J5*J16*$I$44*$L$44)+(J5*J16*$I$45*$L$45)+(J5*J16*$I$46*$L$46)+(J5*J16*$I$47*$L$47)+(J5*J16*$I$48*$L$48)+(J5*J16*$I$49*$L$49)+(J5*J16*$I$50*$L$50)+(J5*J16*$I$51*$L$51)+(J5*J16*$I$52*$L$52)+(J5*J16*$I$53*$L$53)+(J5*J16*$I$54*$L$54) -> 0 | K22: =(K5*K16*$I$35*$L$35)+(K5*K16*$I$36*$L$36)+(K5*K16*$I$37*$L$37)+(K5*K16*$I$38*$L$38)+(K5*K16*$I$39*$L$39)+(K5*K16*$I$40*$L$40)+(K5*K16*$I$41*$L$41)+(K5*K16*$I$42*$L$42)+(K5*K16*$I$43*$L$43)+(K5*K16*$I$44*$L$44)+(K5*K16*$I$44*$L$44)+(K5*K16*$I$45*$L$45)+(K5*K16*$I$46*$L$46)+(K5*K16*$I$47*$L$47)+(K5*K16*$I$48*$L$48)+(K5*K16*$I$49*$L$49)+(K5*K16*$I$50*$L$50)+(K5*K16*$I$51*$L$51)+(K5*K16*$I$52*$L$52)+(K5*K16*$I$53*$L$53)+(K5*K16*$I$54*$L$54) -> 0 | M22: =(M5*M16*$J$35*$K$35)+(M5*M16*$J$36*$K$36)+(M5*M16*$J$37*$K$37)+(M5*M16*$J$38*$K$38)+(M5*M16*$J$39*$K$39)+(M5*M16*$J$40*$K$40)+(M5*M16*$J$41*$K$41)+(M5*M16*$J$42*$K$42)+(M5*M16*$J$43*$K$43)+(M5*M16*$J$44*$K$44)+(M5*M16*$J$44*$K$44)+(M5*M16*$J$45*$K$45)+(M5*M16*$J$46*$K$46)+(M5*M16*$J$47*$K$47)+(M5*M16*$J$48*$K$48)+(M5*M16*$J$49*$K$49)+(M5*M16*$J$50*$K$50)+(M5*M16*$J$51*$K$51)+(M5*M16*$J$52*$K$52)+(M5*M16*$J$53*$K$53)+(M5*M16*$J$54*$K$54) -> 0 | N22: =(N5*N16*$J$35*$K$35)+(N5*N16*$J$36*$K$36)+(N5*N16*$J$37*$K$37)+(N5*N16*$J$38*$K$38)+(N5*N16*$J$39*$K$39)+(N5*N16*$J$40*$K$40)+(N5*N16*$J$41*$K$41)+(N5*N16*$J$42*$K$42)+(N5*N16*$J$43*$K$43)+(N5*N16*$J$44*$K$44)+(N5*N16*$J$44*$K$44)+(N5*N16*$J$45*$K$45)+(N5*N16*$J$46*$K$46)+(N5*N16*$J$47*$K$47)+(N5*N16*$J$48*$K$48)+(N5*N16*$J$49*$K$49)+(N5*N16*$J$50*$K$50)+(N5*N16*$J$51*$K$51)+(N5*N16*$J$52*$K$52)+(N5*N16*$J$53*$K$53)+(N5*N16*$J$54*$K$54) -> 0 | O22: =(O5*O16*$J$35*$K$35)+(O5*O16*$J$36*$K$36)+(O5*O16*$J$37*$K$37)+(O5*O16*$J$38*$K$38)+(O5*O16*$J$39*$K$39)+(O5*O16*$J$40*$K$40)+(O5*O16*$J$41*$K$41)+(O5*O16*$J$42*$K$42)+(O5*O16*$J$43*$K$43)+(O5*O16*$J$44*$K$44)+(O5*O16*$J$44*$K$44)+(O5*O16*$J$45*$K$45)+(O5*O16*$J$46*$K$46)+(O5*O16*$J$47*$K$47)+(O5*O16*$J$48*$K$48)+(O5*O16*$J$49*$K$49)+(O5*O16*$J$50*$K$50)+(O5*O16*$J$51*$K$51)+(O5*O16*$J$52*$K$52)+(O5*O16*$J$53*$K$53)+(O5*O16*$J$54*$K$54) -> 0 | P22: =(P5*P16*$J$35*$K$35)+(P5*P16*$J$36*$K$36)+(P5*P16*$J$37*$K$37)+(P5*P16*$J$38*$K$38)+(P5*P16*$J$39*$K$39)+(P5*P16*$J$40*$K$40)+(P5*P16*$J$41*$K$41)+(P5*P16*$J$42*$K$42)+(P5*P16*$J$43*$K$43)+(P5*P16*$J$44*$K$44)+(P5*P16*$J$44*$K$44)+(P5*P16*$J$45*$K$45)+(P5*P16*$J$46*$K$46)+(P5*P16*$J$47*$K$47)+(P5*P16*$J$48*$K$48)+(P5*P16*$J$49*$K$49)+(P5*P16*$J$50*$K$50)+(P5*P16*$J$51*$K$51)+(P5*P16*$J$52*$K$52)+(P5*P16*$J$53*$K$53)+(P5*P16*$J$54*$K$54) -> 0 | Q22: =(Q5*Q16*$J$35*$L$35)+(Q5*Q16*$J$36*$L$36)+(Q5*Q16*$J$37*$L$37)+(Q5*Q16*$J$38*$L$38)+(Q5*Q16*$J$39*$L$39)+(Q5*Q16*$J$40*$L$40)+(Q5*Q16*$J$41*$L$41)+(Q5*Q16*$J$42*$L$42)+(Q5*Q16*$J$43*$L$43)+(Q5*Q16*$J$44*$L$44)+(Q5*Q16*$J$44*$L$44)+(Q5*Q16*$J$45*$L$45)+(Q5*Q16*$J$46*$L$46)+(Q5*Q16*$J$47*$L$47)+(Q5*Q16*$J$48*$L$48)+(Q5*Q16*$J$49*$L$49)+(Q5*Q16*$J$50*$L$50)+(Q5*Q16*$J$51*$L$51)+(Q5*Q16*$J$52*$L$52)+(Q5*Q16*$J$53*$L$53)+(Q5*Q16*$J$54*$L$54) -> 0 | R22: =(R5*R16*$J$35*$L$35)+(R5*R16*$J$36*$L$36)+(R5*R16*$J$37*$L$37)+(R5*R16*$J$38*$L$38)+(R5*R16*$J$39*$L$39)+(R5*R16*$J$40*$L$40)+(R5*R16*$J$41*$L$41)+(R5*R16*$J$42*$L$42)+(R5*R16*$J$43*$L$43)+(R5*R16*$J$44*$L$44)+(R5*R16*$J$44*$L$44)+(R5*R16*$J$45*$L$45)+(R5*R16*$J$46*$L$46)+(R5*R16*$J$47*$L$47)+(R5*R16*$J$48*$L$48)+(R5*R16*$J$49*$L$49)+(R5*R16*$J$50*$L$50)+(R5*R16*$J$51*$L$51)+(R5*R16*$J$52*$L$52)+(R5*R16*$J$53*$L$53)+(R5*R16*$J$54*$L$54) -> 0 | S22: =(S5*S16*$J$35*$L$35)+(S5*S16*$J$36*$L$36)+(S5*S16*$J$37*$L$37)+(S5*S16*$J$38*$L$38)+(S5*S16*$J$39*$L$39)+(S5*S16*$J$40*$L$40)+(S5*S16*$J$41*$L$41)+(S5*S16*$J$42*$L$42)+(S5*S16*$J$43*$L$43)+(S5*S16*$J$44*$L$44)+(S5*S16*$J$44*$L$44)+(S5*S16*$J$45*$L$45)+(S5*S16*$J$46*$L$46)+(S5*S16*$J$47*$L$47)+(S5*S16*$J$48*$L$48)+(S5*S16*$J$49*$L$49)+(S5*S16*$J$50*$L$50)+(S5*S16*$J$51*$L$51)+(S5*S16*$J$52*$L$52)+(S5*S16*$J$53*$L$53)+(S5*S16*$J$54*$L$54) -> 0 | T22: =(T5*T16*$J$35*$L$35)+(T5*T16*$J$36*$L$36)+(T5*T16*$J$37*$L$37)+(T5*T16*$J$38*$L$38)+(T5*T16*$J$39*$L$39)+(T5*T16*$J$40*$L$40)+(T5*T16*$J$41*$L$41)+(T5*T16*$J$42*$L$42)+(T5*T16*$J$43*$L$43)+(T5*T16*$J$44*$L$44)+(T5*T16*$J$44*$L$44)+(T5*T16*$J$45*$L$45)+(T5*T16*$J$46*$L$46)+(T5*T16*$J$47*$L$47)+(T5*T16*$J$48*$L$48)+(T5*T16*$J$49*$L$49)+(T5*T16*$J$50*$L$50)+(T5*T16*$J$51*$L$51)+(T5*T16*$J$52*$L$52)+(T5*T16*$J$53*$L$53)+(T5*T16*$J$54*$L$54) -> 0 | U22: =(U5*U16*$J$35*$L$35)+(U5*U16*$J$36*$L$36)+(U5*U16*$J$37*$L$37)+(U5*U16*$J$38*$L$38)+(U5*U16*$J$39*$L$39)+(U5*U16*$J$40*$L$40)+(U5*U16*$J$41*$L$41)+(U5*U16*$J$42*$L$42)+(U5*U16*$J$43*$L$43)+(U5*U16*$J$44*$L$44)+(U5*U16*$J$44*$L$44)+(U5*U16*$J$45*$L$45)+(U5*U16*$J$46*$L$46)+(U5*U16*$J$47*$L$47)+(U5*U16*$J$48*$L$48)+(U5*U16*$J$49*$L$49)+(U5*U16*$J$50*$L$50)+(U5*U16*$J$51*$L$51)+(U5*U16*$J$52*$L$52)+(U5*U16*$J$53*$L$53)+(U5*U16*$J$54*$L$54) -> 0
B23: Indirect emissions from volatilization(kg N2O yr-1) | C23: =C22*0.01*(44/28) -> 0 | D23: =D22*0.01*(44/28) -> 0 | E23: 0 | F23: 0 | G23: 0 | H23: 0 | I23: 0 | J23: 0 | K23: 0 | M23: =M22*0.01*(44/28) -> 0 | N23: 0 | O23: 0 | P23: 0 | Q23: 0 | R23: 0 | S23: 0 | T23: 0 | U23: 0
B24: Total N2o(indirect (t CO2e yr-1) | C24: =(C23/1000)*310 -> 0 | D24: 0 | E24: 0 | F24: 0 | G24: 0 | H24: 0 | I24: 0 | J24: 0 | K24: 0 | M24: =(M23/1000)*310 -> 0 | N24: 0 | O24: 0 | P24: 0 | Q24: 0 | R24: 0 | S24: 0 | T24: 0 | U24: 0
B25: Total N2O(indirect (t CO2e yr-1) | C25: =SUM(C24:K24) -> 0 | M25: =SUM(M24:U24) -> 0
A26: (Values below needed for fertilizer tab only, not for manure calculations:)
A27: Eq. 10.34 | B27: NMMS_Avb (kg N yr-1) | C27: =((C5*C16*$I$35*(1-$M$35))+(C5*$I$35*7))+((C5*C16*$I$36*(1-$M$36))+(C5*$I$36*7))+((C5*C16*$I$37*(1-$M$37))+((C5*$I$37*7))+(C5*C16*$I$38*(1-$M$38))+(C5*$I$38*7))+((C5*C16*$I$39*(1-$M$39))+(C5*$I$39*7))+((C5*C16*$I$40*(1-$M$40))+(C5*$I$40*7))+((C5*C16*$I$41*(1-$M$41))+(C5*$I$41*7))+((C5*C16*$I$42*(1-$M$42))+(C5*$I$42*7))+((C5*C16*$I$43*(1-$M$43))+(C5*$I$43*7))+((C5*C16*$I$44*(1-$M$44))+(C5*$I$44*7))+((C5*C16*$I$45*(1-$M$45))+(C5*$I$45*7))+((C5*C16*$I$46*(1-$M$46))+(C5*$I$46*7))+((C5*C16*$I$47*(1-$M$47))+(C5*$I$47*7))+((C5*C16*$I$48*(1-$M$48))+(C5*$I$48*7))+((C5*C16*$I$49*(1-$M$49))+(C5*$I$49*7))+((C5*C16*$I$50*(1-$M$50))+(C5*$I$50*7))+((C5*C16*$I$51*(1-$M$51))+(C5*$I$51*7))+((C5*C16*$I$52*(1-$M$52))+(C5*$I$52*7))+((C5*C16*$I$53*(1-$M$53))+(C5*$I$53*7))+((C5*C16*$I$54*(1-$M$54))+(C5*$I$54*7)) -> 0 | D27: =((D5*D16*$I$35*(1-$M$35))+(D5*$I$35*7))+((D5*D16*$I$36*(1-$M$36))+(D5*$I$36*7))+((D5*D16*$I$37*(1-$M$37))+((D5*$I$37*7))+(D5*D16*$I$38*(1-$M$38))+(D5*$I$38*7))+((D5*D16*$I$39*(1-$M$39))+(D5*$I$39*7))+((D5*D16*$I$40*(1-$M$40))+(D5*$I$40*7))+((D5*D16*$I$41*(1-$M$41))+(D5*$I$41*7))+((D5*D16*$I$42*(1-$M$42))+(D5*$I$42*7))+((D5*D16*$I$43*(1-$M$43))+(D5*$I$43*7))+((D5*D16*$I$44*(1-$M$44))+(D5*$I$44*7))+((D5*D16*$I$45*(1-$M$45))+(D5*$I$45*7))+((D5*D16*$I$46*(1-$M$46))+(D5*$I$46*7))+((D5*D16*$I$47*(1-$M$47))+(D5*$I$47*7))+((D5*D16*$I$48*(1-$M$48))+(D5*$I$48*7))+((D5*D16*$I$49*(1-$M$49))+(D5*$I$49*7))+((D5*D16*$I$50*(1-$M$50))+(D5*$I$50*7))+((D5*D16*$I$51*(1-$M$51))+(D5*$I$51*7))+((D5*D16*$I$52*(1-$M$52))+(D5*$I$52*7))+((D5*D16*$I$53*(1-$M$53))+(D5*$I$53*7))+((D5*D16*$I$54*(1-$M$54))+(D5*$I$54*7)) -> 0 | E27: =((E5*E16*$I$35*(1-$M$35))+(E5*$I$35*4))+((E5*E16*$I$36*(1-$M$36))+(E5*$I$36*4))+((E5*E16*$I$37*(1-$M$37))+((E5*$I$37*4))+(E5*E16*$I$38*(1-$M$38))+(E5*$I$38*4))+((E5*E16*$I$39*(1-$M$39))+(E5*$I$39*4))+((E5*E16*$I$40*(1-$M$40))+(E5*$I$40*4))+((E5*E16*$I$41*(1-$M$41))+(E5*$I$41*4))+((E5*E16*$I$42*(1-$M$42))+(E5*$I$42*4))+((E5*E16*$I$43*(1-$M$43))+(E5*$I$43*4))+((E5*E16*$I$44*(1-$M$44))+(E5*$I$44*4))+((E5*E16*$I$45*(1-$M$45))+(E5*$I$45*4))+((E5*E16*$I$46*(1-$M$46))+(E5*$I$46*4))+((E5*E16*$I$47*(1-$M$47))+(E5*$I$47*4))+((E5*E16*$I$48*(1-$M$48))+(E5*$I$48*4))+((E5*E16*$I$49*(1-$M$49))+(E5*$I$49*4))+((E5*E16*$I$50*(1-$M$50))+(E5*$I$50*4))+((E5*E16*$I$51*(1-$M$51))+(E5*$I$51*4))+((E5*E16*$I$52*(1-$M$52))+(E5*$I$52*4))+((E5*E16*$I$53*(1-$M$53))+(E5*$I$53*4))+((E5*E16*$I$54*(1-$M$54))+(E5*$I$54*4)) -> 0 | F27: =((F5*F16*$I$35*(1-$M$35))+(F5*$I$35*4))+((F5*F16*$I$36*(1-$M$36))+(F5*$I$36*4))+((F5*F16*$I$37*(1-$M$37))+((F5*$I$37*4))+(F5*F16*$I$38*(1-$M$38))+(F5*$I$38*4))+((F5*F16*$I$39*(1-$M$39))+(F5*$I$39*4))+((F5*F16*$I$40*(1-$M$40))+(F5*$I$40*4))+((F5*F16*$I$41*(1-$M$41))+(F5*$I$41*4))+((F5*F16*$I$42*(1-$M$42))+(F5*$I$42*4))+((F5*F16*$I$43*(1-$M$43))+(F5*$I$43*4))+((F5*F16*$I$44*(1-$M$44))+(F5*$I$44*4))+((F5*F16*$I$45*(1-$M$45))+(F5*$I$45*4))+((F5*F16*$I$46*(1-$M$46))+(F5*$I$46*4))+((F5*F16*$I$47*(1-$M$47))+(F5*$I$47*4))+((F5*F16*$I$48*(1-$M$48))+(F5*$I$48*4))+((F5*F16*$I$49*(1-$M$49))+(F5*$I$49*4))+((F5*F16*$I$50*(1-$M$50))+(F5*$I$50*4))+((F5*F16*$I$51*(1-$M$51))+(F5*$I$51*4))+((F5*F16*$I$52*(1-$M$52))+(F5*$I$52*4))+((F5*F16*$I$53*(1-$M$53))+(F5*$I$53*4))+((F5*F16*$I$54*(1-$M$54))+(F5*$I$54*4)) -> 0 | G27: =((G5*G16*$I$35*(1-$N$35))+(G5*$I$35*4))+((G5*G16*$I$36*(1-$N$36))+(G5*$I$36*4))+((G5*G16*$I$37*(1-$N$37))+((G5*$I$37*4))+(G5*G16*$I$38*(1-$N$38))+(G5*$I$38*4))+((G5*G16*$I$39*(1-$N$39))+(G5*$I$39*4))+((G5*G16*$I$40*(1-$N$40))+(G5*$I$40*4))+((G5*G16*$I$41*(1-$N$41))+(G5*$I$41*4))+((G5*G16*$I$42*(1-$N$42))+(G5*$I$42*4))+((G5*G16*$I$43*(1-$N$43))+(G5*$I$43*4))+((G5*G16*$I$44*(1-$N$44))+(G5*$I$44*4))+((G5*G16*$I$45*(1-$N$45))+(G5*$I$45*4))+((G5*G16*$I$46*(1-$N$46))+(G5*$I$46*4))+((G5*G16*$I$47*(1-$N$47))+(G5*$I$47*4))+((G5*G16*$I$48*(1-$N$48))+(G5*$I$48*4))+((G5*G16*$I$49*(1-$N$49))+(G5*$I$49*4))+((G5*G16*$I$50*(1-$N$50))+(G5*$I$50*4))+((G5*G16*$I$51*(1-$N$51))+(G5*$I$51*4))+((G5*G16*$I$52*(1-$N$52))+(G5*$I$52*4))+((G5*G16*$I$53*(1-$N$53))+(G5*$I$53*4))+((G5*G16*$I$54*(1-$N$54))+(G5*$I$54*4)) -> 0 | H27: =((H5*H16*$I$35*(1-$N$35))+(H5*$I$35*4))+((H5*H16*$I$36*(1-$N$36))+(H5*$I$36*4))+((H5*H16*$I$37*(1-$N$37))+((H5*$I$37*4))+(H5*H16*$I$38*(1-$N$38))+(H5*$I$38*4))+((H5*H16*$I$39*(1-$N$39))+(H5*$I$39*4))+((H5*H16*$I$40*(1-$N$40))+(H5*$I$40*4))+((H5*H16*$I$41*(1-$N$41))+(H5*$I$41*4))+((H5*H16*$I$42*(1-$N$42))+(H5*$I$42*4))+((H5*H16*$I$43*(1-$N$43))+(H5*$I$43*4))+((H5*H16*$I$44*(1-$N$44))+(H5*$I$44*4))+((H5*H16*$I$45*(1-$N$45))+(H5*$I$45*4))+((H5*H16*$I$46*(1-$N$46))+(H5*$I$46*4))+((H5*H16*$I$47*(1-$N$47))+(H5*$I$47*4))+((H5*H16*$I$48*(1-$N$48))+(H5*$I$48*4))+((H5*H16*$I$49*(1-$N$49))+(H5*$I$49*4))+((H5*H16*$I$50*(1-$N$50))+(H5*$I$50*4))+((H5*H16*$I$51*(1-$N$51))+(H5*$I$51*4))+((H5*H16*$I$52*(1-$N$52))+(H5*$I$52*4))+((H5*H16*$I$53*(1-$N$53))+(H5*$I$53*4))+((H5*H16*$I$54*(1-$N$54))+(H5*$I$54*4)) -> 0 | I27: =((I5*I16*$I$35*(1-$N$35))+(I5*$I$35*4))+((I5*I16*$I$36*(1-$N$36))+(I5*$I$36*4))+((I5*I16*$I$37*(1-$N$37))+((I5*$I$37*4))+(I5*I16*$I$38*(1-$N$38))+(I5*$I$38*4))+((I5*I16*$I$39*(1-$N$39))+(I5*$I$39*4))+((I5*I16*$I$40*(1-$N$40))+(I5*$I$40*4))+((I5*I16*$I$41*(1-$N$41))+(I5*$I$41*4))+((I5*I16*$I$42*(1-$N$42))+(I5*$I$42*4))+((I5*I16*$I$43*(1-$N$43))+(I5*$I$43*4))+((I5*I16*$I$44*(1-$N$44))+(I5*$I$44*4))+((I5*I16*$I$45*(1-$N$45))+(I5*$I$45*4))+((I5*I16*$I$46*(1-$N$46))+(I5*$I$46*4))+((I5*I16*$I$47*(1-$N$47))+(I5*$I$47*4))+((I5*I16*$I$48*(1-$N$48))+(I5*$I$48*4))+((I5*I16*$I$49*(1-$N$49))+(I5*$I$49*4))+((I5*I16*$I$50*(1-$N$50))+(I5*$I$50*4))+((I5*I16*$I$51*(1-$N$51))+(I5*$I$51*4))+((I5*I16*$I$52*(1-$N$52))+(I5*$I$52*4))+((I5*I16*$I$53*(1-$N$53))+(I5*$I$53*4))+((I5*I16*$I$54*(1-$N$54))+(I5*$I$54*4)) -> 0 | J27: =((J5*J16*$I$35*(1-$N$35))+(J5*$I$35*4))+((J5*J16*$I$36*(1-$N$36))+(J5*$I$36*4))+((J5*J16*$I$37*(1-$N$37))+((J5*$I$37*4))+(J5*J16*$I$38*(1-$N$38))+(J5*$I$38*4))+((J5*J16*$I$39*(1-$N$39))+(J5*$I$39*4))+((J5*J16*$I$40*(1-$N$40))+(J5*$I$40*4))+((J5*J16*$I$41*(1-$N$41))+(J5*$I$41*4))+((J5*J16*$I$42*(1-$N$42))+(J5*$I$42*4))+((J5*J16*$I$43*(1-$N$43))+(J5*$I$43*4))+((J5*J16*$I$44*(1-$N$44))+(J5*$I$44*4))+((J5*J16*$I$45*(1-$N$45))+(J5*$I$45*4))+((J5*J16*$I$46*(1-$N$46))+(J5*$I$46*4))+((J5*J16*$I$47*(1-$N$47))+(J5*$I$47*4))+((J5*J16*$I$48*(1-$N$48))+(J5*$I$48*4))+((J5*J16*$I$49*(1-$N$49))+(J5*$I$49*4))+((J5*J16*$I$50*(1-$N$50))+(J5*$I$50*4))+((J5*J16*$I$51*(1-$N$51))+(J5*$I$51*4))+((J5*J16*$I$52*(1-$N$52))+(J5*$I$52*4))+((J5*J16*$I$53*(1-$N$53))+(J5*$I$53*4))+((J5*J16*$I$54*(1-$N$54))+(J5*$I$54*4)) -> 0 | K27: =((K5*K16*$I$35*(1-$N$35))+(K5*$I$35*4))+((K5*K16*$I$36*(1-$N$36))+(K5*$I$36*4))+((K5*K16*$I$37*(1-$N$37))+((K5*$I$37*4))+(K5*K16*$I$38*(1-$N$38))+(K5*$I$38*4))+((K5*K16*$I$39*(1-$N$39))+(K5*$I$39*4))+((K5*K16*$I$40*(1-$N$40))+(K5*$I$40*4))+((K5*K16*$I$41*(1-$N$41))+(K5*$I$41*4))+((K5*K16*$I$42*(1-$N$42))+(K5*$I$42*4))+((K5*K16*$I$43*(1-$N$43))+(K5*$I$43*4))+((K5*K16*$I$44*(1-$N$44))+(K5*$I$44*4))+((K5*K16*$I$45*(1-$N$45))+(K5*$I$45*4))+((K5*K16*$I$46*(1-$N$46))+(K5*$I$46*4))+((K5*K16*$I$47*(1-$N$47))+(K5*$I$47*4))+((K5*K16*$I$48*(1-$N$48))+(K5*$I$48*4))+((K5*K16*$I$49*(1-$N$49))+(K5*$I$49*4))+((K5*K16*$I$50*(1-$N$50))+(K5*$I$50*4))+((K5*K16*$I$51*(1-$N$51))+(K5*$I$51*4))+((K5*K16*$I$52*(1-$N$52))+(K5*$I$52*4))+((K5*K16*$I$53*(1-$N$53))+(K5*$I$53*4))+((K5*K16*$I$54*(1-$N$54))+(K5*$I$54*4)) -> 0 | M27: =((M5*M16*$J$35*(1-$M$35))+(M5*$J$35*7))+((M5*M16*$J$36*(1-$M$36))+(M5*$J$36*7))+((M5*M16*$J$37*(1-$M$37))+((M5*$J$37*7))+(M5*M16*$J$38*(1-$M$38))+(M5*$J$38*7))+((M5*M16*$J$39*(1-$M$39))+(M5*$J$39*7))+((M5*M16*$J$40*(1-$M$40))+(M5*$J$40*7))+((M5*M16*$J$41*(1-$M$41))+(M5*$J$41*7))+((M5*M16*$J$42*(1-$M$42))+(M5*$J$42*7))+((M5*M16*$J$43*(1-$M$43))+(M5*$J$43*7))+((M5*M16*$J$44*(1-$M$44))+(M5*$J$44*7))+((M5*M16*$J$45*(1-$M$45))+(M5*$J$45*7))+((M5*M16*$J$46*(1-$M$46))+(M5*$J$46*7))+((M5*M16*$J$47*(1-$M$47))+(M5*$J$47*7))+((M5*M16*$J$48*(1-$M$48))+(M5*$J$48*7))+((M5*M16*$J$49*(1-$M$49))+(M5*$J$49*7))+((M5*M16*$J$50*(1-$M$50))+(M5*$J$50*7))+((M5*M16*$J$51*(1-$M$51))+(M5*$J$51*7))+((M5*M16*$J$52*(1-$M$52))+(M5*$J$52*7))+((M5*M16*$J$53*(1-$M$53))+(M5*$J$53*7))+((M5*M16*$J$54*(1-$M$54))+(M5*$J$54*7)) -> 0 | N27: =((N5*N16*$J$35*(1-$M$35))+(N5*$J$35*7))+((N5*N16*$J$36*(1-$M$36))+(N5*$J$36*7))+((N5*N16*$J$37*(1-$M$37))+((N5*$J$37*7))+(N5*N16*$J$38*(1-$M$38))+(N5*$J$38*7))+((N5*N16*$J$39*(1-$M$39))+(N5*$J$39*7))+((N5*N16*$J$40*(1-$M$40))+(N5*$J$40*7))+((N5*N16*$J$41*(1-$M$41))+(N5*$J$41*7))+((N5*N16*$J$42*(1-$M$42))+(N5*$J$42*7))+((N5*N16*$J$43*(1-$M$43))+(N5*$J$43*7))+((N5*N16*$J$44*(1-$M$44))+(N5*$J$44*7))+((N5*N16*$J$45*(1-$M$45))+(N5*$J$45*7))+((N5*N16*$J$46*(1-$M$46))+(N5*$J$46*7))+((N5*N16*$J$47*(1-$M$47))+(N5*$J$47*7))+((N5*N16*$J$48*(1-$M$48))+(N5*$J$48*7))+((N5*N16*$J$49*(1-$M$49))+(N5*$J$49*7))+((N5*N16*$J$50*(1-$M$50))+(N5*$J$50*7))+((N5*N16*$J$51*(1-$M$51))+(N5*$J$51*7))+((N5*N16*$J$52*(1-$M$52))+(N5*$J$52*7))+((N5*N16*$J$53*(1-$M$53))+(N5*$J$53*7))+((N5*N16*$J$54*(1-$M$54))+(N5*$J$54*7)) -> 0 | O27: =((O5*O16*$J$35*(1-$M$35))+(O5*$J$35*4))+((O5*O16*$J$36*(1-$M$36))+(O5*$J$36*4))+((O5*O16*$J$37*(1-$M$37))+((O5*$J$37*4))+(O5*O16*$J$38*(1-$M$38))+(O5*$J$38*4))+((O5*O16*$J$39*(1-$M$39))+(O5*$J$39*4))+((O5*O16*$J$40*(1-$M$40))+(O5*$J$40*4))+((O5*O16*$J$41*(1-$M$41))+(O5*$J$41*4))+((O5*O16*$J$42*(1-$M$42))+(O5*$J$42*4))+((O5*O16*$J$43*(1-$M$43))+(O5*$J$43*4))+((O5*O16*$J$44*(1-$M$44))+(O5*$J$44*4))+((O5*O16*$J$45*(1-$M$45))+(O5*$J$45*4))+((O5*O16*$J$46*(1-$M$46))+(O5*$J$46*4))+((O5*O16*$J$47*(1-$M$47))+(O5*$J$47*4))+((O5*O16*$J$48*(1-$M$48))+(O5*$J$48*4))+((O5*O16*$J$49*(1-$M$49))+(O5*$J$49*4))+((O5*O16*$J$50*(1-$M$50))+(O5*$J$50*4))+((O5*O16*$J$51*(1-$M$51))+(O5*$J$51*4))+((O5*O16*$J$52*(1-$M$52))+(O5*$J$52*4))+((O5*O16*$J$53*(1-$M$53))+(O5*$J$53*4))+((O5*O16*$J$54*(1-$M$54))+(O5*$J$54*4)) -> 0 | P27: =((P5*P16*$J$35*(1-$M$35))+(P5*$J$35*4))+((P5*P16*$J$36*(1-$M$36))+(P5*$J$36*4))+((P5*P16*$J$37*(1-$M$37))+((P5*$J$37*4))+(P5*P16*$J$38*(1-$M$38))+(P5*$J$38*4))+((P5*P16*$J$39*(1-$M$39))+(P5*$J$39*4))+((P5*P16*$J$40*(1-$M$40))+(P5*$J$40*4))+((P5*P16*$J$41*(1-$M$41))+(P5*$J$41*4))+((P5*P16*$J$42*(1-$M$42))+(P5*$J$42*4))+((P5*P16*$J$43*(1-$M$43))+(P5*$J$43*4))+((P5*P16*$J$44*(1-$M$44))+(P5*$J$44*4))+((P5*P16*$J$45*(1-$M$45))+(P5*$J$45*4))+((P5*P16*$J$46*(1-$M$46))+(P5*$J$46*4))+((P5*P16*$J$47*(1-$M$47))+(P5*$J$47*4))+((P5*P16*$J$48*(1-$M$48))+(P5*$J$48*4))+((P5*P16*$J$49*(1-$M$49))+(P5*$J$49*4))+((P5*P16*$J$50*(1-$M$50))+(P5*$J$50*4))+((P5*P16*$J$51*(1-$M$51))+(P5*$J$51*4))+((P5*P16*$J$52*(1-$M$52))+(P5*$J$52*4))+((P5*P16*$J$53*(1-$M$53))+(P5*$J$53*4))+((P5*P16*$J$54*(1-$M$54))+(P5*$J$54*4)) -> 0 | Q27: =((Q5*Q16*$J$35*(1-$N$35))+(Q5*$J$35*4))+((Q5*Q16*$J$36*(1-$N$36))+(Q5*$J$36*4))+((Q5*Q16*$J$37*(1-$N$37))+((Q5*$J$37*4))+(Q5*Q16*$J$38*(1-$N$38))+(Q5*$J$38*4))+((Q5*Q16*$J$39*(1-$N$39))+(Q5*$J$39*4))+((Q5*Q16*$J$40*(1-$N$40))+(Q5*$J$40*4))+((Q5*Q16*$J$41*(1-$N$41))+(Q5*$J$41*4))+((Q5*Q16*$J$42*(1-$N$42))+(Q5*$J$42*4))+((Q5*Q16*$J$43*(1-$N$43))+(Q5*$J$43*4))+((Q5*Q16*$J$44*(1-$N$44))+(Q5*$J$44*4))+((Q5*Q16*$J$45*(1-$N$45))+(Q5*$J$45*4))+((Q5*Q16*$J$46*(1-$N$46))+(Q5*$J$46*4))+((Q5*Q16*$J$47*(1-$N$47))+(Q5*$J$47*4))+((Q5*Q16*$J$48*(1-$N$48))+(Q5*$J$48*4))+((Q5*Q16*$J$49*(1-$N$49))+(Q5*$J$49*4))+((Q5*Q16*$J$50*(1-$N$50))+(Q5*$J$50*4))+((Q5*Q16*$J$51*(1-$N$51))+(Q5*$J$51*4))+((Q5*Q16*$J$52*(1-$N$52))+(Q5*$J$52*4))+((Q5*Q16*$J$53*(1-$N$53))+(Q5*$J$53*4))+((Q5*Q16*$J$54*(1-$N$54))+(Q5*$J$54*4)) -> 0 | R27: =((R5*R16*$J$35*(1-$N$35))+(R5*$J$35*4))+((R5*R16*$J$36*(1-$N$36))+(R5*$J$36*4))+((R5*R16*$J$37*(1-$N$37))+((R5*$J$37*4))+(R5*R16*$J$38*(1-$N$38))+(R5*$J$38*4))+((R5*R16*$J$39*(1-$N$39))+(R5*$J$39*4))+((R5*R16*$J$40*(1-$N$40))+(R5*$J$40*4))+((R5*R16*$J$41*(1-$N$41))+(R5*$J$41*4))+((R5*R16*$J$42*(1-$N$42))+(R5*$J$42*4))+((R5*R16*$J$43*(1-$N$43))+(R5*$J$43*4))+((R5*R16*$J$44*(1-$N$44))+(R5*$J$44*4))+((R5*R16*$J$45*(1-$N$45))+(R5*$J$45*4))+((R5*R16*$J$46*(1-$N$46))+(R5*$J$46*4))+((R5*R16*$J$47*(1-$N$47))+(R5*$J$47*4))+((R5*R16*$J$48*(1-$N$48))+(R5*$J$48*4))+((R5*R16*$J$49*(1-$N$49))+(R5*$J$49*4))+((R5*R16*$J$50*(1-$N$50))+(R5*$J$50*4))+((R5*R16*$J$51*(1-$N$51))+(R5*$J$51*4))+((R5*R16*$J$52*(1-$N$52))+(R5*$J$52*4))+((R5*R16*$J$53*(1-$N$53))+(R5*$J$53*4))+((R5*R16*$J$54*(1-$N$54))+(R5*$J$54*4)) -> 0 | S27: =((S5*S16*$J$35*(1-$N$35))+(S5*$J$35*4))+((S5*S16*$J$36*(1-$N$36))+(S5*$J$36*4))+((S5*S16*$J$37*(1-$N$37))+((S5*$J$37*4))+(S5*S16*$J$38*(1-$N$38))+(S5*$J$38*4))+((S5*S16*$J$39*(1-$N$39))+(S5*$J$39*4))+((S5*S16*$J$40*(1-$N$40))+(S5*$J$40*4))+((S5*S16*$J$41*(1-$N$41))+(S5*$J$41*4))+((S5*S16*$J$42*(1-$N$42))+(S5*$J$42*4))+((S5*S16*$J$43*(1-$N$43))+(S5*$J$43*4))+((S5*S16*$J$44*(1-$N$44))+(S5*$J$44*4))+((S5*S16*$J$45*(1-$N$45))+(S5*$J$45*4))+((S5*S16*$J$46*(1-$N$46))+(S5*$J$46*4))+((S5*S16*$J$47*(1-$N$47))+(S5*$J$47*4))+((S5*S16*$J$48*(1-$N$48))+(S5*$J$48*4))+((S5*S16*$J$49*(1-$N$49))+(S5*$J$49*4))+((S5*S16*$J$50*(1-$N$50))+(S5*$J$50*4))+((S5*S16*$J$51*(1-$N$51))+(S5*$J$51*4))+((S5*S16*$J$52*(1-$N$52))+(S5*$J$52*4))+((S5*S16*$J$53*(1-$N$53))+(S5*$J$53*4))+((S5*S16*$J$54*(1-$N$54))+(S5*$J$54*4)) -> 0 | T27: =((T5*T16*$J$35*(1-$N$35))+(T5*$J$35*4))+((T5*T16*$J$36*(1-$N$36))+(T5*$J$36*4))+((T5*T16*$J$37*(1-$N$37))+((T5*$J$37*4))+(T5*T16*$J$38*(1-$N$38))+(T5*$J$38*4))+((T5*T16*$J$39*(1-$N$39))+(T5*$J$39*4))+((T5*T16*$J$40*(1-$N$40))+(T5*$J$40*4))+((T5*T16*$J$41*(1-$N$41))+(T5*$J$41*4))+((T5*T16*$J$42*(1-$N$42))+(T5*$J$42*4))+((T5*T16*$J$43*(1-$N$43))+(T5*$J$43*4))+((T5*T16*$J$44*(1-$N$44))+(T5*$J$44*4))+((T5*T16*$J$45*(1-$N$45))+(T5*$J$45*4))+((T5*T16*$J$46*(1-$N$46))+(T5*$J$46*4))+((T5*T16*$J$47*(1-$N$47))+(T5*$J$47*4))+((T5*T16*$J$48*(1-$N$48))+(T5*$J$48*4))+((T5*T16*$J$49*(1-$N$49))+(T5*$J$49*4))+((T5*T16*$J$50*(1-$N$50))+(T5*$J$50*4))+((T5*T16*$J$51*(1-$N$51))+(T5*$J$51*4))+((T5*T16*$J$52*(1-$N$52))+(T5*$J$52*4))+((T5*T16*$J$53*(1-$N$53))+(T5*$J$53*4))+((T5*T16*$J$54*(1-$N$54))+(T5*$J$54*4)) -> 0 | U27: =((U5*U16*$J$35*(1-$N$35))+(U5*$J$35*4))+((U5*U16*$J$36*(1-$N$36))+(U5*$J$36*4))+((U5*U16*$J$37*(1-$N$37))+((U5*$J$37*4))+(U5*U16*$J$38*(1-$N$38))+(U5*$J$38*4))+((U5*U16*$J$39*(1-$N$39))+(U5*$J$39*4))+((U5*U16*$J$40*(1-$N$40))+(U5*$J$40*4))+((U5*U16*$J$41*(1-$N$41))+(U5*$J$41*4))+((U5*U16*$J$42*(1-$N$42))+(U5*$J$42*4))+((U5*U16*$J$43*(1-$N$43))+(U5*$J$43*4))+((U5*U16*$J$44*(1-$N$44))+(U5*$J$44*4))+((U5*U16*$J$45*(1-$N$45))+(U5*$J$45*4))+((U5*U16*$J$46*(1-$N$46))+(U5*$J$46*4))+((U5*U16*$J$47*(1-$N$47))+(U5*$J$47*4))+((U5*U16*$J$48*(1-$N$48))+(U5*$J$48*4))+((U5*U16*$J$49*(1-$N$49))+(U5*$J$49*4))+((U5*U16*$J$50*(1-$N$50))+(U5*$J$50*4))+((U5*U16*$J$51*(1-$N$51))+(U5*$J$51*4))+((U5*U16*$J$52*(1-$N$52))+(U5*$J$52*4))+((U5*U16*$J$53*(1-$N$53))+(U5*$J$53*4))+((U5*U16*$J$54*(1-$N$54))+(U5*$J$54*4)) -> 0
B28: Total Manure Available for Application (kg N yr-1) | C28: =SUM(C27:K27) -> 0 | M28: =SUM(M27:U27) -> 0
C32: CH4 factors | H32: N2O factors
D33: system % of total | I33: MS | K33: FracGas/100 | M33: FracLoss/100
B34: System/Temp | C34: MCF | D34: Baseline | E34: Wt | F34: Project | G34: Wt | H34: EF3 | I34: Baseline | J34: Project | K34: Dairy | L34: Other | M34: Dairy | N34: Other
B35: ='3. MANURE'!A15&"/"&'3. MANURE'!$B$11 -> Pasture/Range/Paddock/18 | C35: =LOOKUP(B35,$B$73:$B$433,$C$73:$C$433) -> 1.5 | D35: ='3. MANURE'!B15 -> 0 | E35: =(C35/100)*(D35/100) -> 0 | F35: ='3. MANURE'!C15 -> 0 | G35: =(C35/100)*(F35/100) -> 0 | H35: =LOOKUP(B35,$B$73:$B$433,$D$73:$D$433) -> 0.02 | I35: ='3. MANURE'!B15/100 -> 0 | J35: ='3. MANURE'!C15/100 -> 0 | K35: 0 | L35: 0 | M35: 0 | N35: 0
B36: ='3. MANURE'!A16&"/"&'3. MANURE'!$B$11 -> Daily Spread/18 | C36: 0.5 | D36: ='3. MANURE'!B16 -> 0 | E36: 0 | F36: ='3. MANURE'!C16 -> 0 | G36: 0 | H36: =LOOKUP(B36,$B$73:$B$433,$D$73:$D$433) -> 0 | I36: ='3. MANURE'!B16/100 -> 0 | J36: ='3. MANURE'!C16/100 -> 0 | K36: 0.07 | L36: 0 | M36: 0.22 | N36: 0.22
B37: ='3. MANURE'!A17&"/"&'3. MANURE'!$B$11 -> Solid Storage/18 | C37: 4 | D37: ='3. MANURE'!B17 -> 0 | E37: 0 | F37: ='3. MANURE'!C17 -> 0 | G37: 0 | H37: 0.005 | I37: ='3. MANURE'!B17/100 -> 0 | J37: ='3. MANURE'!C17/100 -> 0 | K37: 0.3 | L37: 0.45 | M37: 0.4 | N37: 0.5
B38: ='3. MANURE'!A18&"/"&'3. MANURE'!$B$11 -> Dry Lot/18 | C38: 1.5 | D38: ='3. MANURE'!B18 -> 0 | E38: 0 | F38: ='3. MANURE'!C18 -> 0 | G38: 0 | H38: 0.02 | I38: ='3. MANURE'!B18/100 -> 0 | J38: ='3. MANURE'!C18/100 -> 0 | K38: 0.2 | L38: 0.3 | M38: 0.3 | N38: 0.4
B39: ='3. MANURE'!A19&"/"&'3. MANURE'!$B$11 -> Liquid/Slurry with crust/18 | C39: 22 | D39: ='3. MANURE'!B19 -> 0 | E39: 0 | F39: ='3. MANURE'!C19 -> 0 | G39: 0 | H39: 0.005 | I39: ='3. MANURE'!B19/100 -> 0 | J39: ='3. MANURE'!C19/100 -> 0 | K39: 0.4 | L39: 0.4 | M39: 0.4 | N39: 0.4
B40: ='3. MANURE'!A20&"/"&'3. MANURE'!$B$11 -> Liquid/Slurry without crust/18 | C40: 35 | D40: ='3. MANURE'!B20 -> 0 | E40: 0 | F40: ='3. MANURE'!C20 -> 0 | G40: 0 | H40: 0 | I40: ='3. MANURE'!B20/100 -> 0 | J40: ='3. MANURE'!C20/100 -> 0 | K40: 0.4 | L40: 0.4 | M40: 0.4 | N40: 0.4
B41: ='3. MANURE'!A21&"/"&'3. MANURE'!$B$11 -> Uncovered anaerobic lagoon/18 | C41: 77 | D41: ='3. MANURE'!B21 -> 0 | E41: =(C41/100)*(D41/100) -> 0 | F41: ='3. MANURE'!C21 -> 0 | G41: 0 | H41: 0 | I41: ='3. MANURE'!B21/100 -> 0 | J41: ='3. MANURE'!C21/100 -> 0 | K41: 0.35 | L41: 0.35 | M41: 0.77 | N41: 0.77
B42: ='3. MANURE'!A22&"/"&'3. MANURE'!$B$11 -> Pit storage <1 month/18 | C42: 3 | D42: ='3. MANURE'!B22 -> 0 | E42: =(C42/100)*(D42/100) -> 0 | F42: ='3. MANURE'!C22 -> 0 | G42: 0 | H42: 0.002 | I42: ='3. MANURE'!B22/100 -> 0 | J42: ='3. MANURE'!C22/100 -> 0 | K42: 0.28 | L42: 0.28 | M42: 0.28 | N42: 0.28
B43: ='3. MANURE'!A23&"/"&'3. MANURE'!$B$11 -> Pit storage >1 month/18 | C43: 35 | D43: ='3. MANURE'!B23 -> 0 | E43: =(C43/100)*(D43/100) -> 0 | F43: ='3. MANURE'!C23 -> 0 | G43: 0 | H43: 0.002 | I43: ='3. MANURE'!B23/100 -> 0 | J43: ='3. MANURE'!C23/100 -> 0 | K43: 0.28 | L43: 0.28 | M43: 0.28 | N43: 0.28
B44: ='3. MANURE'!A24&"/"&'3. MANURE'!$B$11 -> Anaerobic digester/18 | C44: 0 | D44: ='3. MANURE'!B24 -> 0 | E44: =(C44/100)*(D44/100) -> 0 | F44: ='3. MANURE'!C24 -> 0 | G44: 0 | H44: 0.005 | I44: ='3. MANURE'!B24/100 -> 0 | J44: ='3. MANURE'!C24/100 -> 0 | K44: 0 | L44: 0 | M44: 0 | N44: 0
B45: ='3. MANURE'!A25&"/"&'3. MANURE'!$B$11 -> Burned for fuel/18 | C45: 10 | D45: ='3. MANURE'!B25 -> 0 | E45: 0 | F45: ='3. MANURE'!C25 -> 0 | G45: 0 | H45: 0 | I45: ='3. MANURE'!B25/100 -> 0 | J45: ='3. MANURE'!C25/100 -> 0 | K45: 0 | L45: 0 | M45: 0 | N45: 0
B46: ='3. MANURE'!A26&"/"&'3. MANURE'!$B$11 -> Deep bedding <1 month, no mixing/18 | C46: 3 | D46: ='3. MANURE'!B26 -> 0 | E46: 0 | F46: ='3. MANURE'!C26 -> 0 | G46: 0 | H46: 0.01 | I46: ='3. MANURE'!B26/100 -> 0 | J46: ='3. MANURE'!C26/100 -> 0 | K46: 0.3 | L46: 0.3 | M46: 0.4 | N46: 0.4
B47: ='3. MANURE'!A27&"/"&'3. MANURE'!$B$11 -> Deep bedding <1 month, active mixing/18 | C47: 3 | D47: ='3. MANURE'!B27 -> 0 | E47: 0 | F47: ='3. MANURE'!C27 -> 0 | G47: 0 | H47: 0.07 | I47: ='3. MANURE'!B27/100 -> 0 | J47: ='3. MANURE'!C27/100 -> 0 | K47: 0.3 | L47: 0.3 | M47: 0.4 | N47: 0.4
B48: ='3. MANURE'!A28&"/"&'3. MANURE'!$B$11 -> Deep bedding >1 month, no mixing/18 | C48: 35 | D48: ='3. MANURE'!B28 -> 0 | E48: 0 | F48: ='3. MANURE'!C28 -> 0 | G48: 0 | H48: 0.01 | I48: ='3. MANURE'!B28/100 -> 0 | J48: ='3. MANURE'!C28/100 -> 0 | K48: 0.3 | L48: 0.3 | M48: 0.4 | N48: 0.4
B49: ='3. MANURE'!A29&"/"&'3. MANURE'!$B$11 -> Deep bedding >1 month, active mixing/18 | C49: 35 | D49: ='3. MANURE'!B29 -> 0 | E49: 0 | F49: ='3. MANURE'!C29 -> 0 | G49: 0 | H49: 0.07 | I49: ='3. MANURE'!B29/100 -> 0 | J49: ='3. MANURE'!C29/100 -> 0 | K49: 0.3 | L49: 0.3 | M49: 0.4 | N49: 0.4
B50: ='3. MANURE'!A30&"/"&'3. MANURE'!$B$11 -> Composting - In-Vessel/18 | C50: 0.5 | D50: ='3. MANURE'!B30 -> 0 | E50: 0 | F50: ='3. MANURE'!C30 -> 0 | G50: 0 | H50: 0.006 | I50: ='3. MANURE'!B30/100 -> 0 | J50: ='3. MANURE'!C30/100 -> 0 | K50: 0 | L50: 0 | M50: 0 | N50: 0
B51: ='3. MANURE'!A31&"/"&'3. MANURE'!$B$11 -> Composting - static pile/18 | C51: 0.5 | D51: ='3. MANURE'!B31 -> 0 | E51: 0 | F51: ='3. MANURE'!C31 -> 0 | G51: 0 | H51: 0.006 | I51: ='3. MANURE'!B31/100 -> 0 | J51: ='3. MANURE'!C31/100 -> 0 | K51: 0 | L51: 0 | M51: 0 | N51: 0
B52: ='3. MANURE'!A32&"/"&'3. MANURE'!$B$11 -> Composting - intensive windrow/18 | C52: 1 | D52: ='3. MANURE'!B32 -> 0 | E52: 0 | F52: ='3. MANURE'!C32 -> 0 | G52: 0 | H52: 0.1 | I52: ='3. MANURE'!B32/100 -> 0 | J52: ='3. MANURE'!C32/100 -> 0 | K52: 0 | L52: 0 | M52: 0 | N52: 0
B53: ='3. MANURE'!A33&"/"&'3. MANURE'!$B$11 -> Composting - passive windrow/18 | C53: 1 | D53: ='3. MANURE'!B33 -> 0 | E53: 0 | F53: ='3. MANURE'!C33 -> 0 | G53: 0 | H53: 0.01 | I53: ='3. MANURE'!B33/100 -> 0 | J53: ='3. MANURE'!C33/100 -> 0 | K53: 0 | L53: 0 | M53: 0 | N53: 0
B54: ='3. MANURE'!A34&"/"&'3. MANURE'!$B$11 -> Aerobic treatment/18 | C54: 0 | D54: ='3. MANURE'!B34 -> 0 | E54: 0 | F54: ='3. MANURE'!C34 -> 0 | G54: 0 | H54: 0.005 | I54: ='3. MANURE'!B34/100 -> 0 | J54: ='3. MANURE'!C34/100 -> 0 | K54: 0 | L54: 0 | M54: 0 | N54: 0
B55: Weighted MCF | E55: =SUM(E35:E54) -> 0 | G55: =SUM(G35:G54) -> 0
B59: TABLES: | H59: Temperature
B60: Region | C60: B0 dairy | D60: B0 other | E60: N rate (dairy) | F60: N rate (other cattle) | H60: ≤10
B61: Africa | C61: 0.13 | D61: 0.1 | E61: 0.6 | F61: 0.63 | H61: 11
B62: Asia | C62: 0.13 | D62: 0.1 | E62: 0.47 | F62: 0.34 | H62: 12
B63: Eastern Europe | C63: 0.24 | D63: 0.17 | E63: 0.35 | F63: 0.35 | H63: 13
B64: Indian Subcontinent | C64: 0.13 | D64: 0.1 | E64: 0.47 | F64: 0.34 | H64: 14
B65: Latin America | C65: 0.13 | D65: 0.1 | E65: 0.48 | F65: 0.36 | H65: 15
B66: Middle East | C66: 0.13 | D66: 0.1 | E66: 0.7 | F66: 0.79 | H66: 16
B67: North America | C67: 0.24 | D67: 0.19 | E67: 0.44 | F67: 0.31 | H67: 17
B68: Oceania | C68: 0.24 | D68: 0.17 | E68: 0.44 | F68: 0.5 | H68: 18
B69: Western Europe | C69: 0.24 | D69: 0.18 | E69: 0.48 | F69: 0.33 | H69: 19
H70: 20
B71: Table 10.17 | H71: 21
B72: System | C72: MCF | D72: EF3 | H72: 22
B73: Aerobic treatment/≤10 | C73: 0 | D73: 0.005 | H73: 23
B74: Aerobic treatment/≥28 | C74: 0 | D74: 0.005 | H74: 24
B75: Aerobic treatment/11 | C75: 0 | D75: 0.005 | H75: 25
B76: Aerobic treatment/12 | C76: 0 | D76: 0.005 | H76: 26
B77: Aerobic treatment/13 | C77: 0 | D77: 0.005 | H77: 27
B78: Aerobic treatment/14 | C78: 0 | D78: 0.005 | H78: ≥28
B79: Aerobic treatment/15 | C79: 0 | D79: 0.005
B80: Aerobic treatment/16 | C80: 0 | D80: 0.005
B81: Aerobic treatment/17 | C81: 0 | D81: 0.005
B82: Aerobic treatment/18 | C82: 0 | D82: 0.005
B83: Aerobic treatment/19 | C83: 0 | D83: 0.005
B84: Aerobic treatment/20 | C84: 0 | D84: 0.005
B85: Aerobic treatment/21 | C85: 0 | D85: 0.005
B86: Aerobic treatment/22 | C86: 0 | D86: 0.005
B87: Aerobic treatment/23 | C87: 0 | D87: 0.005
B88: Aerobic treatment/24 | C88: 0 | D88: 0.005
B89: Aerobic treatment/25 | C89: 0 | D89: 0.005
B90: Aerobic treatment/26 | C90: 0 | D90: 0.005
B91: Aerobic treatment/27 | C91: 0 | D91: 0.005
B92: Burned for fuel/≤10 | C92: 10 | D92: 0
B93: Burned for fuel/≥28 | C93: 10 | D93: 0
B94: Burned for fuel/11 | C94: 10 | D94: 0
B95: Burned for fuel/12 | C95: 10 | D95: 0
B96: Burned for fuel/13 | C96: 10 | D96: 0
B97: Burned for fuel/14 | C97: 10 | D97: 0
B98: Burned for fuel/15 | C98: 10 | D98: 0
B99: Burned for fuel/16 | C99: 10 | D99: 0
B100: Burned for fuel/17 | C100: 10 | D100: 0
B101: Burned for fuel/18 | C101: 10 | D101: 0
B102: Burned for fuel/19 | C102: 10 | D102: 0
B103: Burned for fuel/20 | C103: 10 | D103: 0
B104: Burned for fuel/21 | C104: 10 | D104: 0
B105: Burned for fuel/22 | C105: 10 | D105: 0
B106: Burned for fuel/23 | C106: 10 | D106: 0
B107: Burned for fuel/24 | C107: 10 | D107: 0
B108: Burned for fuel/25 | C108: 10 | D108: 0
B109: Burned for fuel/26 | C109: 10 | D109: 0
B110: Burned for fuel/27 | C110: 10 | D110: 0
B111: Composting - intensive windrow/≤10 | C111: 0.5 | D111: 0.1
B112: Composting - intensive windrow/≥28 | C112: 1.5 | D112: 0.1
B113: Composting - intensive windrow/11 | C113: 0.5 | D113: 0.1
B114: Composting - intensive windrow/12 | C114: 0.5 | D114: 0.1
B115: Composting - intensive windrow/13 | C115: 0.5 | D115: 0.1
B116: Composting - intensive windrow/14 | C116: 0.5 | D116: 0.1
B117: Composting - intensive windrow/15 | C117: 1 | D117: 0.1
B118: Composting - intensive windrow/16 | C118: 1 | D118: 0.1
B119: Composting - intensive windrow/17 | C119: 1 | D119: 0.1
B120: Composting - intensive windrow/18 | C120: 1 | D120: 0.1
B121: Composting - intensive windrow/19 | C121: 1 | D121: 0.1
B122: Composting - intensive windrow/20 | C122: 1 | D122: 0.1
B123: Composting - intensive windrow/21 | C123: 1 | D123: 0.1
B124: Composting - intensive windrow/22 | C124: 1 | D124: 0.1
B125: Composting - intensive windrow/23 | C125: 1 | D125: 0.1
B126: Composting - intensive windrow/24 | C126: 1 | D126: 0.1
B127: Composting - intensive windrow/25 | C127: 1 | D127: 0.1
B128: Composting - intensive windrow/26 | C128: 1.5 | D128: 0.1
B129: Composting - intensive windrow/27 | C129: 1.5 | D129: 0.1
B130: Composting - In-Vessel/≤10 | C130: 0.5 | D130: 0.006
B131: Composting - In-Vessel/≥28 | C131: 0.5 | D131: 0.006
B132: Composting - In-Vessel/11 | C132: 0.5 | D132: 0.006
B133: Composting - In-Vessel/12 | C133: 0.5 | D133: 0.006
B134: Composting - In-Vessel/13 | C134: 0.5 | D134: 0.006
B135: Composting - In-Vessel/14 | C135: 0.5 | D135: 0.006
B136: Composting - In-Vessel/15 | C136: 0.5 | D136: 0.006
B137: Composting - In-Vessel/16 | C137: 0.5 | D137: 0.006
B138: Composting - In-Vessel/17 | C138: 0.5 | D138: 0.006
B139: Composting - In-Vessel/18 | C139: 0.5 | D139: 0.006
B140: Composting - In-Vessel/19 | C140: 0.5 | D140: 0.006
B141: Composting - In-Vessel/20 | C141: 0.5 | D141: 0.006
B142: Composting - In-Vessel/21 | C142: 0.5 | D142: 0.006
B143: Composting - In-Vessel/22 | C143: 0.5 | D143: 0.006
B144: Composting - In-Vessel/23 | C144: 0.5 | D144: 0.006
B145: Composting - In-Vessel/24 | C145: 0.5 | D145: 0.006
B146: Composting - In-Vessel/25 | C146: 0.5 | D146: 0.006
B147: Composting - In-Vessel/26 | C147: 0.5 | D147: 0.006
B148: Composting - In-Vessel/27 | C148: 0.5 | D148: 0.006
B149: Composting - passive windrow/≤10 | C149: 0.5 | D149: 0.01
B150: Composting - passive windrow/≥28 | C150: 1.5 | D150: 0.01
B151: Composting - passive windrow/11 | C151: 0.5 | D151: 0.01
B152: Composting - passive windrow/12 | C152: 0.5 | D152: 0.01
B153: Composting - passive windrow/13 | C153: 0.5 | D153: 0.01
B154: Composting - passive windrow/14 | C154: 0.5 | D154: 0.01
B155: Composting - passive windrow/15 | C155: 1 | D155: 0.01
B156: Composting - passive windrow/16 | C156: 1 | D156: 0.01
B157: Composting - passive windrow/17 | C157: 1 | D157: 0.01
B158: Composting - passive windrow/18 | C158: 1 | D158: 0.01
B159: Composting - passive windrow/19 | C159: 1 | D159: 0.01
B160: Composting - passive windrow/20 | C160: 1 | D160: 0.01
B161: Composting - passive windrow/21 | C161: 1 | D161: 0.01
B162: Composting - passive windrow/22 | C162: 1 | D162: 0.01
B163: Composting - passive windrow/23 | C163: 1 | D163: 0.01
B164: Composting - passive windrow/24 | C164: 1 | D164: 0.01
B165: Composting - passive windrow/25 | C165: 1 | D165: 0.01
B166: Composting - passive windrow/26 | C166: 1.5 | D166: 0.01
B167: Composting - passive windrow/27 | C167: 1.5 | D167: 0.01
B168: Composting - static pile/≤10 | C168: 0.5 | D168: 0.006
B169: Composting - static pile/≥28 | C169: 0.5 | D169: 0.006
B170: Composting - static pile/11 | C170: 0.5 | D170: 0.006
B171: Composting - static pile/12 | C171: 0.5 | D171: 0.006
B172: Composting - static pile/13 | C172: 0.5 | D172: 0.006
B173: Composting - static pile/14 | C173: 0.5 | D173: 0.006
B174: Composting - static pile/15 | C174: 0.5 | D174: 0.006
B175: Composting - static pile/16 | C175: 0.5 | D175: 0.006
B176: Composting - static pile/17 | C176: 0.5 | D176: 0.006
B177: Composting - static pile/18 | C177: 0.5 | D177: 0.006
B178: Composting - static pile/19 | C178: 0.5 | D178: 0.006
B179: Composting - static pile/20 | C179: 0.5 | D179: 0.006
B180: Composting - static pile/21 | C180: 0.5 | D180: 0.006
B181: Composting - static pile/22 | C181: 0.5 | D181: 0.006
B182: Composting - static pile/23 | C182: 0.5 | D182: 0.006
B183: Composting - static pile/24 | C183: 0.5 | D183: 0.006
B184: Composting - static pile/25 | C184: 0.5 | D184: 0.006
B185: Composting - static pile/26 | C185: 0.5 | D185: 0.006
B186: Composting - static pile/27 | C186: 0.5 | D186: 0.006
B187: Daily Spread/≤10 | C187: 0.1 | D187: 0
B188: Daily Spread/≥28 | C188: 1 | D188: 0
B189: Daily Spread/11 | C189: 0.1 | D189: 0
B190: Daily Spread/12 | C190: 0.1 | D190: 0
B191: Daily Spread/13 | C191: 0.1 | D191: 0
B192: Daily Spread/14 | C192: 0.1 | D192: 0
B193: Daily Spread/15 | C193: 0.5 | D193: 0
B194: Daily Spread/16 | C194: 0.5 | D194: 0
B195: Daily Spread/17 | C195: 0.5 | D195: 0
B196: Daily Spread/18 | C196: 0.5 | D196: 0
B197: Daily Spread/19 | C197: 0.5 | D197: 0
B198: Daily Spread/20 | C198: 0.5 | D198: 0
B199: Daily Spread/21 | C199: 0.5 | D199: 0
B200: Daily Spread/22 | C200: 0.5 | D200: 0
B201: Daily Spread/23 | C201: 0.5 | D201: 0
B202: Daily Spread/24 | C202: 0.5 | D202: 0
B203: Daily Spread/25 | C203: 0.5 | D203: 0
B204: Daily Spread/26 | C204: 1 | D204: 0
B205: Daily Spread/27 | C205: 1 | D205: 0
B206: Deep bedding <1 month, active mixing/≤10 | C206: 3 | D206: 0.07
B207: Deep bedding <1 month, active mixing/≥28 | C207: 30 | D207: 0.07
... 226 more rows

Sheet Fertilizer Data (hidden)
B1: Baseline | F1: Project
A2: Synthetic Fertilizer: | B2: Area of Application (ha) | C2: Total Fertilizer Applied (kg yr-1) | D2: Total N Applied (kg N yr-1) | E2: Application Rate (t ha-1) | F2: Area Applied | G2: Total Amount Applied (kg yr-1) | H2: Total N Applied (kg N yr-1) | I2: Application Rate (t ha-1) | L2: Fertilizer | M2: Emission Factor (t CO2/t fertilizer)
A3: Anhydrous Ammonia (NH3) "Ammonia" | B3: ='4. FERTILIZER'!D12 -> 0 | C3: ='4. FERTILIZER'!B12 -> 0 | D3: =C3*('4. FERTILIZER'!C12/100) -> 0 | E3: =IF(B3=0,0,(C3/1000)/B3) -> 0 | F3: ='4. FERTILIZER'!G12 -> 0 | G3: ='4. FERTILIZER'!E12 -> 0 | H3: =G3*('4. FERTILIZER'!F12/100) -> 0 | I3: =IF(F3=0,0,(G3/1000)/F3) -> 0 | L3: Urea | M3: 1.54
A4: Ammonium Sulfate [(NH4)2SO4] | B4: ='4. FERTILIZER'!D13 -> 0 | C4: ='4. FERTILIZER'!B13 -> 0 | D4: =C4*('4. FERTILIZER'!C13/100) -> 0 | E4: 0 | F4: ='4. FERTILIZER'!G13 -> 0 | G4: ='4. FERTILIZER'!E13 -> 0 | H4: =G4*('4. FERTILIZER'!F13/100) -> 0 | I4: =IF(F4=0,0,(G4/1000)/F4) -> 0 | L4: Anhydrous Ammonia (NH3) "Ammonia" | M4: =('4. FERTILIZER'!C12/100)*0.82*2.013 -> 1.3535412
A5: Monoammonium Phosphate (MAP) | B5: ='4. FERTILIZER'!D14 -> 0 | C5: ='4. FERTILIZER'!B14 -> 0 | D5: =C5*('4. FERTILIZER'!C14/100) -> 0 | E5: 0 | F5: ='4. FERTILIZER'!G14 -> 0 | G5: ='4. FERTILIZER'!E14 -> 0 | H5: =G5*('4. FERTILIZER'!F14/100) -> 0 | I5: =IF(F5=0,0,(G5/1000)/F5) -> 0 | L5: Ammonium Sulfate [(NH4)2SO4] | M5: =('4. FERTILIZER'!C13/100)*0.82*2.013 -> 0.3466386
A6: Diammonium Phosphate (DAP) | B6: ='4. FERTILIZER'!D15 -> 0 | C6: ='4. FERTILIZER'!B15 -> 0 | D6: =C6*('4. FERTILIZER'!C15/100) -> 0 | E6: 0 | F6: ='4. FERTILIZER'!G15 -> 0 | G6: ='4. FERTILIZER'!E15 -> 0 | H6: =G6*('4. FERTILIZER'!F15/100) -> 0 | I6: =IF(F6=0,0,(G6/1000)/F6) -> 0 | L6: Monoammonium Phosphate (MAP) | M6: =('4. FERTILIZER'!C14/100)*0.82*2.013 -> 0.1815726
A7: Ammonium Nitrate (NH4NO3) | B7: ='4. FERTILIZER'!D16 -> 0 | C7: ='4. FERTILIZER'!B16 -> 0 | D7: =C7*('4. FERTILIZER'!C16/100) -> 0 | E7: 0 | F7: ='4. FERTILIZER'!G16 -> 0 | G7: ='4. FERTILIZER'!E16 -> 0 | H7: =G7*('4. FERTILIZER'!F16/100) -> 0 | I7: =IF(F7=0,0,(G7/1000)/F7) -> 0 | L7: Diammonium Phosphate (DAP) | M7: =('4. FERTILIZER'!C15/100)*0.82*2.013 -> 0.2971188
A8: Calcium Ammonium Nitrate (CAN) | B8: ='4. FERTILIZER'!D17 -> 0 | C8: ='4. FERTILIZER'!B17 -> 0 | D8: =C8*('4. FERTILIZER'!C17/100) -> 0 | E8: 0 | F8: ='4. FERTILIZER'!G17 -> 0 | G8: ='4. FERTILIZER'!E17 -> 0 | H8: =G8*('4. FERTILIZER'!F17/100) -> 0 | I8: =IF(G8=0,0,(G8/1000)/F8) -> 0 | L8: Ammonium Nitrate (NH4NO3) | M8: =('4. FERTILIZER'!C16/100)*0.82*2.013 -> 0.5529711
A9: Urea: | B9: ='4. FERTILIZER'!D19 -> 0 | C9: ='4. FERTILIZER'!B19 -> 0 | E9: 0 | F9: ='4. FERTILIZER'!G19 -> 0 | G9: ='4. FERTILIZER'!E19 -> 0 | I9: =IF(F9=0,0,(G9/1000)/F9) -> 0 | L9: Calcium Ammonium Nitrate (CAN) | M9: =('4. FERTILIZER'!C17/100)*0.82*2.013 -> 0.4291716
A10: Organic Fertilizer (from manure data tab): | D10: ='Manure Data'!C28*('4. FERTILIZER'!B21/100) -> 0 | H10: ='Manure Data'!M28*('4. FERTILIZER'!E21/100) -> 0
A11: Biosolids | B11: ='4. FERTILIZER'!D22 -> 0 | C11: ='4. FERTILIZER'!B22 -> 0 | D11: =C11*('4. FERTILIZER'!C22/100) -> 0 | E11: =IF(B11=0,0,(C11/1000)/B11) -> 0 | F11: ='4. FERTILIZER'!G22 -> 0 | G11: ='4. FERTILIZER'!E22 -> 0 | H11: =G11*('4. FERTILIZER'!F22/100) -> 0 | I11: =IF(F11=0,0,(G11/1000)/F11) -> 0
A12: Poultry Litter | B12: ='4. FERTILIZER'!D23 -> 0 | C12: ='4. FERTILIZER'!B23 -> 0 | D12: =C12*('4. FERTILIZER'!C23/100) -> 0 | E12: =IF(B12=0,0,(C12/1000)/B12) -> 0 | F12: ='4. FERTILIZER'!G23 -> 0 | G12: ='4. FERTILIZER'!E23 -> 0 | H12: =G12*('4. FERTILIZER'!F23/100) -> 0 | I12: =IF(F12=0,0,(G12/1000)/F12) -> 0
A14: Emissions Calculations:
A15: Direct N2O Emissions (t CO2e yr-1) | B15: =(SUM(D3:D12)*0.01*(44/28)*310)/1000 -> 0 | F15: =(SUM(H3:H12)*0.01*(44/28)*310)/1000 -> 0
A16: Atm Deposition (t CO2e yr-1) | B16: =(((SUM(D3:D8)*0.1)+(D10*0.2))*0.01*(44/28)*310)/1000 -> 0 | F16: =(((SUM(H3:H8)*0.1)+(H10*0.2))*0.01*(44/28)*310)/1000 -> 0
A17: Leaching (t CO2e yr-1) | B17: =(SUM(D3:D12)*0.3*0.0075*(44/28)*310)/1000 -> 0 | F17: =(SUM(H3:H12)*0.3*0.0075*(44/28)*310)/1000 -> 0
A18: Urea Emissions (t CO2e yr-1) | B18: =('4. FERTILIZER'!B19/1000)*0.2*(44/12) -> 0 | F18: =('4. FERTILIZER'!E19/1000)*0.2*(44/12) -> 0
A19: Emissions from Fertilizer Production (t CO2e yr-1) | B19: =(B3*E3*M4)+(B4*E4*M5)+(B5*E5*M6)+(B6*E6*M7)+(B7*E7*M8)+(B8*E8*M9)+(B9*E9*M3) -> 0 | F19: =(F3*I3*M4)+(F4*I4*M5)+(F5*I5*M6)+(F6*I6*M7)+(F7*I7*M8)+(F8*I8*M9)+(F9*I9*M3) -> 0
A20: Total Emissions from Fertilizer (t CO2e yr-1) | B20: =SUM(B15:B19) -> 0 | F20: =SUM(F15:F19) -> 0
M51: Poultry litter values:
M52: http://msucares.com/crops/forages/newsletters/09/6.pdf
L53: 0.045 | M53: http://www.ecochem.com/t_manure_fert.html
M54: Biosolids values:
M55: http://www.deq.state.ok.us/factsheets/water/NutrientsSludge.pdf
M56: http://www.kingcounty.gov/environment/wastewater/Biosolids/SafetyRegulations/ContentAnalysis.aspx
L57: 3 to 8% | M57: http://extension.oregonstate.edu/catalog/pdf/pnw/pnw508-e.pdf
L58: 3 to 6% | M58: http://www.nps.gov/plants/restore/pubs/biosolids/what.htm

Sheet FF data (hidden)
A1: State | B1: Fuel Types | C1: NCV (TJ/Gg) | D1: EF (kg CO2/TJ) | E1: Density (kg/m3) | F1: Units | H1: Baseline (kg CO2) | I1: Project (kg CO2)
A2: Liquid | B2: Ethane | C2: 44.2 | D2: 64200 | E2: 366.3 | F2: Gallons | G2: Ethane | H2: =IF('5. FOSSIL FUEL'!D12="Liters",'5. FOSSIL FUEL'!B12*('FF data'!$E2/1000)*('FF data'!$C2/1000000)*'FF data'!$D2,('5. FOSSIL FUEL'!B12*3.875)*('FF data'!$E2/1000)*('FF data'!$C2/1000000)*'FF data'!$D2) -> 0 | I2: =IF('5. FOSSIL FUEL'!D12="Liters",'5. FOSSIL FUEL'!C12*('FF data'!$E2/1000)*('FF data'!$C2/1000000)*'FF data'!$D2,('5. FOSSIL FUEL'!C12*3.875)*('FF data'!$E2/1000)*('FF data'!$C2/1000000)*'FF data'!$D2) -> 0
A3: Liquid | B3: Propane | C3: 44.2 | D3: 64200 | E3: 507.6 | F3: Liters | G3: Propane | H3: =IF('5. FOSSIL FUEL'!D13="Liters",'5. FOSSIL FUEL'!B13*('FF data'!$E3/1000)*('FF data'!$C3/1000000)*'FF data'!$D3,('5. FOSSIL FUEL'!B13*3.875)*('FF data'!$E3/1000)*('FF data'!$C3/1000000)*'FF data'!$D3) -> 0 | I3: =IF('5. FOSSIL FUEL'!D13="Liters",'5. FOSSIL FUEL'!C13*('FF data'!$E3/1000)*('FF data'!$C3/1000000)*'FF data'!$D3,('5. FOSSIL FUEL'!C13*3.875)*('FF data'!$E3/1000)*('FF data'!$C3/1000000)*'FF data'!$D3) -> 0
A4: Liquid | B4: Butane | C4: 44.2 | D4: 64200 | E4: 572.7 | G4: Butane | H4: =IF('5. FOSSIL FUEL'!D14="Liters",'5. FOSSIL FUEL'!B14*('FF data'!$E4/1000)*('FF data'!$C4/1000000)*'FF data'!$D4,('5. FOSSIL FUEL'!B14*3.875)*('FF data'!$E4/1000)*('FF data'!$C4/1000000)*'FF data'!$D4) -> 0 | I4: =IF('5. FOSSIL FUEL'!D14="Liters",'5. FOSSIL FUEL'!C14*('FF data'!$E4/1000)*('FF data'!$C4/1000000)*'FF data'!$D4,('5. FOSSIL FUEL'!C14*3.875)*('FF data'!$E4/1000)*('FF data'!$C4/1000000)*'FF data'!$D4) -> 0
A5: Liquid | B5: LPG | C5: 44.2 | D5: 64200 | E5: 522.2 | G5: LPG | H5: =IF('5. FOSSIL FUEL'!D15="Liters",'5. FOSSIL FUEL'!B15*('FF data'!$E5/1000)*('FF data'!$C5/1000000)*'FF data'!$D5,('5. FOSSIL FUEL'!B15*3.875)*('FF data'!$E5/1000)*('FF data'!$C5/1000000)*'FF data'!$D5) -> 0 | I5: =IF('5. FOSSIL FUEL'!D15="Liters",'5. FOSSIL FUEL'!C15*('FF data'!$E5/1000)*('FF data'!$C5/1000000)*'FF data'!$D5,('5. FOSSIL FUEL'!C15*3.875)*('FF data'!$E5/1000)*('FF data'!$C5/1000000)*'FF data'!$D5) -> 0
A6: Liquid | B6: Motor Gasoline | C6: 44.3 | D6: 69300 | E6: 740.7 | G6: Motor Gasoline | H6: =IF('5. FOSSIL FUEL'!D16="Liters",'5. FOSSIL FUEL'!B16*('FF data'!$E6/1000)*('FF data'!$C6/1000000)*'FF data'!$D6,('5. FOSSIL FUEL'!B16*3.875)*('FF data'!$E6/1000)*('FF data'!$C6/1000000)*'FF data'!$D6) -> 0 | I6: =IF('5. FOSSIL FUEL'!D16="Liters",'5. FOSSIL FUEL'!C16*('FF data'!$E6/1000)*('FF data'!$C6/1000000)*'FF data'!$D6,('5. FOSSIL FUEL'!C16*3.875)*('FF data'!$E6/1000)*('FF data'!$C6/1000000)*'FF data'!$D6) -> 0
A7: Liquid | B7: Aviation Gasoline (avgas) | C7: 44.3 | D7: 70000 | E7: 716.8 | G7: Aviation Gasoline (avgas) | H7: =IF('5. FOSSIL FUEL'!D17="Liters",'5. FOSSIL FUEL'!B17*('FF data'!$E7/1000)*('FF data'!$C7/1000000)*'FF data'!$D7,('5. FOSSIL FUEL'!B17*3.875)*('FF data'!$E7/1000)*('FF data'!$C7/1000000)*'FF data'!$D7) -> 0 | I7: =IF('5. FOSSIL FUEL'!D17="Liters",'5. FOSSIL FUEL'!C17*('FF data'!$E7/1000)*('FF data'!$C7/1000000)*'FF data'!$D7,('5. FOSSIL FUEL'!C17*3.875)*('FF data'!$E7/1000)*('FF data'!$C7/1000000)*'FF data'!$D7) -> 0
A8: Liquid | B8: Other Kerosene | C8: 43.8 | D8: 71900 | E8: 802.6 | G8: Other Kerosene | H8: =IF('5. FOSSIL FUEL'!D18="Liters",'5. FOSSIL FUEL'!B18*('FF data'!$E8/1000)*('FF data'!$C8/1000000)*'FF data'!$D8,('5. FOSSIL FUEL'!B18*3.875)*('FF data'!$E8/1000)*('FF data'!$C8/1000000)*'FF data'!$D8) -> 0 | I8: =IF('5. FOSSIL FUEL'!D18="Liters",'5. FOSSIL FUEL'!C18*('FF data'!$E8/1000)*('FF data'!$C8/1000000)*'FF data'!$D8,('5. FOSSIL FUEL'!C18*3.875)*('FF data'!$E8/1000)*('FF data'!$C8/1000000)*'FF data'!$D8) -> 0
A9: Liquid | B9: Gas/Diesel Oil | C9: 43 | D9: 74100 | E9: 843.9 | G9: Gas/Diesel Oil | H9: =IF('5. FOSSIL FUEL'!D19="Liters",'5. FOSSIL FUEL'!B19*('FF data'!$E9/1000)*('FF data'!$C9/1000000)*'FF data'!$D9,('5. FOSSIL FUEL'!B19*3.875)*('FF data'!$E9/1000)*('FF data'!$C9/1000000)*'FF data'!$D9) -> 0 | I9: =IF('5. FOSSIL FUEL'!D19="Liters",'5. FOSSIL FUEL'!C19*('FF data'!$E9/1000)*('FF data'!$C9/1000000)*'FF data'!$D9,('5. FOSSIL FUEL'!C19*3.875)*('FF data'!$E9/1000)*('FF data'!$C9/1000000)*'FF data'!$D9) -> 0
A10: Biomass | B10: Charcoal | C10: 29.5 | D10: 112000 | G10: Biodiesel | H10: =IF('5. FOSSIL FUEL'!D20="Liters",'5. FOSSIL FUEL'!B20*('FF data'!$E10/1000)*('FF data'!$C10/1000000)*'FF data'!$D10,('5. FOSSIL FUEL'!B20*3.875)*('FF data'!$E10/1000)*('FF data'!$C10/1000000)*'FF data'!$D10) -> 0 | I10: =IF('5. FOSSIL FUEL'!D20="Liters",'5. FOSSIL FUEL'!C20*('FF data'!$E10/1000)*('FF data'!$C10/1000000)*'FF data'!$D10,('5. FOSSIL FUEL'!C20*3.875)*('FF data'!$E10/1000)*('FF data'!$C10/1000000)*'FF data'!$D10) -> 0
A11: Biomass | B11: Biodiesel | C11: 27 | D11: 70800 | G11: Biogas | H11: =IF('5. FOSSIL FUEL'!D21="Liters",'5. FOSSIL FUEL'!B21*('FF data'!$E11/1000)*('FF data'!$C11/1000000)*'FF data'!$D11,('5. FOSSIL FUEL'!B21*3.875)*('FF data'!$E11/1000)*('FF data'!$C11/1000000)*'FF data'!$D11) -> 0 | I11: =IF('5. FOSSIL FUEL'!D21="Liters",'5. FOSSIL FUEL'!C21*('FF data'!$E11/1000)*('FF data'!$C11/1000000)*'FF data'!$D11,('5. FOSSIL FUEL'!C21*3.875)*('FF data'!$E11/1000)*('FF data'!$C11/1000000)*'FF data'!$D11) -> 0
A12: Biomass | B12: Biogas | C12: 27 | D12: 70800 | G12: Other Liquid Biofuels | H12: =IF('5. FOSSIL FUEL'!D22="Liters",'5. FOSSIL FUEL'!B22*('FF data'!$E12/1000)*('FF data'!$C12/1000000)*'FF data'!$D12,('5. FOSSIL FUEL'!B22*3.875)*('FF data'!$E12/1000)*('FF data'!$C12/1000000)*'FF data'!$D12) -> 0 | I12: =IF('5. FOSSIL FUEL'!D22="Liters",'5. FOSSIL FUEL'!C22*('FF data'!$E12/1000)*('FF data'!$C12/1000000)*'FF data'!$D12,('5. FOSSIL FUEL'!C22*3.875)*('FF data'!$E12/1000)*('FF data'!$C12/1000000)*'FF data'!$D12) -> 0
A13: Biomass | B13: Other Liquid Biofuels | C13: 27.4 | D13: 79600
A14: Biomass | B14: Sludge Gas | C14: 50.4 | D14: 54600
A15: Liquid | B15: Lubricants (incl. motor oil) | C15: 40.2 | D15: 73300
G17: Total CO2 emissions (kg CO2) | H17: =SUM(H2:H14) -> 0 | I17: =SUM(I2:I14) -> 0

Sheet State_Soilnames (hidden)
A1: AL | B1: AZ | C1: AR | D1: CA | E1: CO | F1: CT | G1: DE | H1: FL | I1: GA | J1: ID | K1: IL | L1: IN | M1: IA | N1: KS | O1: KY | P1: LA | Q1: ME | R1: MD | S1: MA | T1: MI | U1: MN | V1: MS | W1: MO | X1: MT | Y1: NE | Z1: NV | AA1: NH | AB1: NJ | AC1: NM | AD1: NY | AE1: NC | AF1: ND | AG1: OH | AH1: OK | AI1: OR | AJ1: PA | AK1: RI | AL1: SC | AM1: SD | AN1: TN | AO1: TX | AP1: UT | AQ1: VT | AR1: VA | AS1: WA | AT1: WV | AU1: WI | AV1: WY
A2: Albertville | B2: Abreu | C2: Adaton | D2: Abalobadiah | E2: Acree | F2: Ashfield | G2: Chester | H2: Albany | I2: Ailey | J2: Ackelton | K2: Alford | L2: Alford | M2: Adair | N2: Albion | O2: Adler | P2: Acadia | Q2: Adams | R2: Allegheny | S2: Amenia | T2: Alida | U2: Aazdahl | V2: Adaton | W2: Adler | X2: Abac | Y2: Altvan | Z2: Abgese | AA2: Bangor | AB2: Alluvial land | AC2: Akela | AD2: Adams | AE2: Alpin | AF2: Aastad | AG2: Aaron | AH2: Acuff | AI2: Acker | AJ2: Allenwood | AK2: Bridgehampton | AL2: Ailey | AM2: Aastad | AN2: Adler | AO2: Abilene | AP2: Abra family | AQ2: Adams | AR2: Airmont | AS2: Adkins | AT2: Allegheny | AU2: Abscota | AV2: Abac
A3: Allen | B3: Ajo | C3: Amy | D3: Aco | E3: Adel | F3: Berlin | G3: Elkton | H3: Alpin | I3: Albany | J3: Acord | K3: Algiers | L3: Algansee | M3: Alluvial land | N3: Armo | O3: Allegheny | P3: Acy | Q3: Allagash | R3: Armagh | S3: Becket | T3: Alstad | U3: Ahmeek | V3: Adler | W3: Alluvial land | X3: Abor | Y3: Altvan variant | Z3: Aboten | AA3: Becket | AB3: Berks | AC3: Alama | AD3: Amenia | AE3: Appling | AF3: Aberdeen | AG3: Algiers | AH3: Agra | AI3: Agate | AJ3: Arkport | AK3: Carlisle | AL3: Alpin | AM3: Aberdeen | AN3: Allen | AO3: Acuff | AP3: Acana | AQ3: Amenia | AR3: Altavista | AS3: Aeneas | AT3: Ashton | AU3: Ahmeek | AV3: Aberone
A4: Annemaine | B4: Akhoni | C4: Billyhaw | D4: Acrelane | E4: Agua Fria | F4: Bice | G4: Evesboro | H4: Anclote | I4: Appling | J4: Adek | K4: Ambraw | L4: Algiers | M4: Arispe | N4: Armster | O4: Alticrest | P4: Adler | Q4: Aurelie | R4: Athol | S4: Bice | T4: Amasa | U4: Alstad | V4: Alaga | W4: Alred | X4: Absarokee | Y4: Aowa | Z4: Acana | AA4: Boxford | AB4: Birdsboro | AC4: Alamogordo | AD4: Appleton | AE4: Ashe | AF4: Absher | AG4: Alida | AH4: Albion | AI4: Agency | AJ4: Arnot | AK4: Catden | AL4: Appling | AM4: Abor | AN4: Amagon | AO4: Aguilares | AP4: Agassiz | AQ4: Benson | AR4: Alticrest | AS4: Agnew | AT4: Atkins | AU4: Almena | AV4: Agneston
A5: Appling | B5: Alicia | C5: Bosket | D5: Adelanto | E5: Alamosa | F5: Brancroft | G5: Fallsington | H5: Arents | I5: Ashe | J5: Aecet | K5: Andres | L5: Alida | M5: Armstrong | N5: Attica | O5: Ashton | P5: Allemands | Q5: Becket | R5: Baile | S5: Brookfield | T5: Au Gres | U5: Andrusia | V5: Alligator | W5: Arbela | X5: Ambrant | Y5: Bankard | Z5: Acana family | AA5: Caesar | AB5: Boonton | AC5: Alamosa | AD5: Arkport | AE5: Autryville | AF5: Amor | AG5: Allis | AH5: Altus | AI5: Allingham | AJ5: Berks | AK5: Charlton | AL5: Argent | AM5: Agar | AN5: Arkabutla | AO5: Alazan | AP5: Airport | AQ5: Berkshire | AR5: Appling | AS5: Ahrs | AT5: Berks | AU5: Amasa | AV5: Alcova
A6: Arundel | B6: Alluvial land | C6: Bowdre | D6: Ahwahnee | E6: Altvan | F6: Brookfield | G6: Galestown | H6: Arredondo | I6: Bodine | J6: Agatha | K6: Ashdale | L6: Alvin | M6: Atterberry | N6: Bankard | O6: Baxter | P6: Alligator | Q6: Biddeford | R6: Beltsville | S6: Canton | T6: Aubarque | U6: Antigo | V6: Amagon | W6: Armstrong | X6: Amesha | Y6: Bazile | Z6: Ackett | AA6: Canton | AB6: Carlisle | AC6: Alicia | AD6: Arnot | AE6: Barclay | AF6: Antler | AG6: Ambraw | AH6: Amber | AI6: Alstony | AJ6: Birdsboro | AK6: Gloucester | AL6: Ashe | AM6: Alcester | AN6: Armour | AO6: Aldine | AP6: Alhark | AQ6: Bomoseen | AR6: Athol | AS6: Aits | AT6: Blackthorn | AU6: Amery | AV6: Alflack
A7: Augusta | B7: Amos | C7: Bowie | D7: Aido | E7: Aquic Cryofluvents | F7: Carlisle | G7: Keyport | H7: Basinger | I7: Bohicket | J7: Ahrs | K7: Ashkum | L7: Ambraw | M7: Bassett | N7: Barden | O7: Beasley | P7: Angie | Q7: Boothbay | R7: Berks | S7: Carver | T7: Bach | U7: Arenzville | V7: Annemaine | W7: Barden | X7: Amsterdam | Y7: Belfore | Z7: Ackley | AA7: Colton | AB7: Downer | AC7: Amalia | AD7: Becket | AE7: Baymeade | AF7: Arveson | AG7: Arkport | AH7: Asher | AI7: Alyan | AJ7: Bowmansville | AK7: Hinckley | AL7: Autryville | AM7: Alwilda | AN7: Armuchee | AO7: Aledo | AP7: Amsden | AQ7: Buckland | AR7: Baile | AS7: Alderwood | AT7: Blago | AU7: Antigo | AV7: Altvan
A8: Axis | B8: Aneth | C8: Brandon | D8: Aiken | E8: Arboles | F8: Catden | G8: Matapeake | H8: Bibb | I8: Bradson | J8: Ahsahka variant | K8: Beaucoup | L8: Armiesburg | M8: Biscay | N8: Bates | O8: Belknap | P8: Aquents | Q8: Brayton | R8: Bibb | S8: Catden | T8: Belleville | U8: Arvilla | V8: Arat | W8: Bardley | X8: Anaconda | Y8: Blyburg | Z8: Acrelane | AA8: Enchanted | AB8: Gladstone | AC8: Amarillo | AD8: Berkshire | AE8: Blaney | AF8: Arvilla | AG8: Armiesburg | AH8: Aspermont | AI8: Anawalt | AJ8: Brinkerton | AK8: Montauk | AL8: Bladen | AM8: Amor | AN8: Ashe | AO8: Allamore | AP8: Amtoft | AQ8: Cabot | AR8: Bays | AS8: Alecanyon | AT8: Buchanan | AU8: Arland | AV8: Altvan variant
A9: Bama | B9: Anklam | C9: Briley | D9: Aladshi | E9: Archuleta | F9: Charlton | G9: Neshaminy | H9: Blanton | I9: Cartecay | J9: Aldermand | K9: Belknap | L9: Ashkum | M9: Blencoe | N9: Benfield | O9: Berea | P9: Arat | Q9: Buxton | R9: Bojac | S9: Charlton | T9: Blue Lake | U9: Automba | V9: Ariel | W9: Bates | X9: Andic Cryochrepts | Y9: Bridgeport | Z9: Adelaide | AA9: Hermon | AB9: Holyoke | AC9: Apache | AD9: Bernardston | AE9: Bohicket | AF9: Assinniboine | AG9: Ashton | AH9: Balltown | AI9: Arbidge | AJ9: Buchanan | AK9: Newport | AL9: Blaney | AM9: Anselmo | AN9: Barbourville | AO9: Alto | AP9: Amtoft family | AQ9: Colrain | AR9: Belhaven | AS9: Altapeak | AT9: Calvin | AU9: Ashdale | AV9: Amodac
A10: Barfield | B10: Arches | C10: Brockwell | D10: Alambique | E10: Ashcroft | F10: Cheshire | G10: Pocomoke | H10: Blichton | I10: Cecil | J10: Andic Cryochrepts | K10: Broadwell | L10: Aubbeenaubbee | M10: Calco | N10: Blanket | O10: Berks | P10: Ariel | Q10: Caribou | R10: Butlertown | S10: Copake | T10: Boyer | U10: Barnes | V10: Arkabutla | W10: Blencoe | X10: Aquic Xerofluvents | Y10: Bridget | Z10: Ados variant | AA10: Hinckley | AB10: Keyport | AC10: Arboles | AD10: Beseman | AE10: Bradson | AF10: Badland | AG10: Avonburg | AH10: Bates | AI10: Argenta | AJ10: Canfield | AK10: Windsor | AL10: Blanton | AM10: Archin | AN10: Baxter | AO10: Altuda | AP10: Anco | AQ10: Colton | AR10: Berks | AS10: Anders | AT10: Carbo | AU10: Au Gres | AV10: Amsden
A11: Benndale | B11: Aridic Haplustolls | C11: Bruno | D11: Aldax | E11: Atencio | F11: Copake | G11: Sassafras | H11: Boca | I11: Chaires | J11: Annis | K11: Camden | L11: Ava | M11: Chelsea | N11: Bogue | O11: Bethesda | P11: Arkabutla | Q11: Colonel | R11: Cardiff | S11: Eastchop | T11: Brady | U11: Beauford | V11: Arundel | W11: Bolivar | X11: Artnoc | Y11: Bristow | Z11: Advokay | AA11: Hoosic | AB11: Lehigh | AC11: Aridic Haplustalfs | AD11: Blasdell | AE11: Candor | AF11: Barnes | AG11: Barkcamp | AH11: Bengal | AI11: Aschoff | AJ11: Cardiff | AK11: Woodbridge | AL11: Bohicket | AM11: Artesian | AN11: Bays | AO11: Aluf | AP11: Aneth | AQ11: Copake | AR11: Bojac | AS11: Andic Cryochrepts | AT11: Cateache | AU11: Baraboo | AV11: Anchutz
A12: Bewleyville | B12: Aridic Ustochrepts | C12: Calloway | D12: Alo | E12: Baca | F12: Hinckley | H12: Bonneau | I12: Chewacla | J12: Appledellia | K12: Catlin | L12: Avonburg | M12: Clarion | N12: Bridgeport | O12: Boonesboro | P12: Armistead | Q12: Colton | R12: Catoctin | S12: Enfield | T12: Brevort | U12: Bixby | V12: Askew | W12: Bosket | X12: Assinniboine | Y12: Brunswick | Z12: Affey | AA12: Kearsarge | AB12: Lyons | AC12: Aridic Haplustolls | AD12: Bombay | AE12: Cape Fear | AF12: Bearden | AG12: Bennington | AH12: Bernow | AI12: Ateron | AJ12: Cavode | AL12: Bonneau | AM12: Arvada | AN12: Beason | AO12: Amarillo | AP12: Ant Flat | AQ12: Covington | AR12: Bourne | AS12: Andic Xerumbrepts | AT12: Chagrin | AU12: Barronett variant | AV12: Anselmo
A13: Bibb | B13: Arntz | C13: Carnasaw | D13: Altamont | E13: Badland | F13: Holyoke | H13: Canaveral | I13: Clarendon | J13: Aquic Xerofluvents | K13: Chelsea | L13: Ayrmount | M13: Coland | N13: Brownell | O13: Brandon | P13: Baldwin | Q13: Cornish | R13: Chester | S13: Freetown | T13: Brimley | U13: Blooming | V13: Atmore | W13: Bremer | X13: Attewan | Y13: Bufton | Z13: Agassiz | AA13: Marlow | AB13: Mount Lucas | AC13: Armijo | AD13: Bridgehampton | AE13: Cecil | AF13: Beisigl | AG13: Berks | AH13: Billyhaw | AI13: Athena | AJ13: Chenango | AL13: Bradson | AM13: Ascalon | AN13: Bland | AO13: Angelo | AP13: Antelope Springs | AQ13: Dixfield | AR13: Braddock | AS13: Apex | AT13: Chavies | AU13: Basco | AV13: Ant Flat
A14: Binnsville | B14: Badland | C14: Ceda | D14: Alviso | E14: Bankard | F14: Loonmeadow | H14: Candler | I14: Clifton | J14: Arbidge | K14: Chenoa | L14: Ayrshire | M14: Collinwood | N14: Campus | O14: Bruno | P14: Bancker | Q14: Daigle | R14: Chincoteague | S14: Gloucester | T14: Capac | U14: Blowers | V14: Atwood | W14: Brockwell | X14: Babb | Y14: Busher | Z14: Akela | AA14: Masardis | AB14: Mullica | AC14: Arno | AD14: Broadalbin | AE14: Chandler | AF14: Belfield | AG14: Bethesda | AH14: Binger | AI14: Ausmus | AJ14: Chester | AL14: Byars | AM14: Assinniboine | AN14: Bodine | AO14: Annona | AP14: Arapien | AQ14: Dummerston | AR14: Brecknock | AS14: Aschoff | AT14: Clymer | AU14: Billett | AV14: Apron
A15: Birmingham | B15: Bagley | C15: Clarksville | D15: Anacapa | E15: Barx | F15: Manchester | H15: Chaires | I15: Conasauga | J15: Arbone | K15: Clarence | L15: Barce | M15: Colo | N15: Canadian | O15: Caneyville | P15: Barbary | Q15: Danforth | R15: Chrome | S15: Hadley | T15: Carbondale | U15: Blue Earth variant | V15: Basin | W15: Broseley | X15: Badland | Y15: Canlon | Z15: Akercan | AA15: Monadnock | AB15: Raynham | AC15: Arvana | AD15: Buckland | AE15: Chester | AF15: Bottineau | AG15: Brady | AH15: Boggy | AI15: Ayres | AJ15: Chili | AL15: Candor | AM15: Badland | AN15: Brandon | AO15: Antosa | AP15: Arbone | AQ15: Farmington | AR15: Buckhall | AS15: Ashue | AT15: Cookport | AU15: Boone | AV15: Arvada
A16: Blanton | B16: Barkerville | C16: Commerce | D16: Anderson | E16: Bayard | F16: Narragansett | H16: Chewacla | I16: Cunningham | J16: Arbus | K16: Coloma | L16: Barry | M16: Cooper | N16: Canlon | O16: Captina | P16: Basile | Q16: Dixfield | R16: Codorus | S16: Hinckley | T16: Cathro | U16: Braham | V16: Bassfield | W16: Clarksville | X16: Bainville | Y16: Canyon | Z16: Akerue | AA16: Monarda | AB16: Riverhead | AC16: Badland | AD16: Busti | AE16: Chewacla | AF16: Bowdle | AG16: Bratton | AH16: Brewer | AI16: Baldock | AJ16: Chrome | AL16: Cantey | AM16: Bankard | AN16: Bruno | AO16: Aransas | AP16: Arches | AQ16: Fluvaquents | AR16: Calvin | AS16: Astoria | AT16: Culleoka | AU16: Braham | AV16: Ascalon
A17: Bodine | B17: Barx | C17: Coushatta | D17: Andregg | E17: Begay | F17: Stockbridge | H17: Chobee | I17: Dekalb | J17: Archabal | K17: Commerce | L17: Beaucoup | M17: Crofton | N17: Carlson | O17: Chavies | P17: Bayoudan | Q17: Dixmont | R17: Collington | S17: Hooksan | T17: Champion | U17: Brainerd | V17: Baxterville | W17: Collins | X17: Barkof | Y17: Cass | Z17: Akler | AA17: Montauk | AB17: Rockaway | AC17: Bario | AD17: Camroden | AE17: Clifton | AF17: Brandenburg | AG17: Brookston | AH17: Brico | AI17: Bateman | AJ17: Clymer | AL17: Cape Fear | AM17: Banks | AN17: Calvin | AO17: Aris | AP17: Armespan | AQ17: Glover | AR17: Carbo | AS17: Athena | AT17: Dekalb | AU17: Briggsville | AV17: Badland
A18: Bonifay | B18: Bidonia | C18: Debute | D18: Anita | E18: Behanco | F18: Udorthents | H18: Clarendon | I18: Dothan | J18: Arco | K18: Darmstadt | L18: Bourbon | M18: Downs | N18: Carr | O18: Christian | P18: Beauregard | Q18: Enchanted | R18: Cookport | S18: Katama | T18: Cheboygan | U18: Brandt | V18: Beauregard | W18: Commerce | X18: Bascovy | Y18: Clarno | Z18: Aladshi | AA18: Occum | AB18: Rowland | AC18: Berda | AD18: Carlisle | AE18: Conetoe | AF18: Bryant | AG18: Brownsville | AH18: Bunyan | AI18: Beekman | AJ18: Codorus | AL18: Capers | AM18: Barnes | AN18: Caneyville | AO18: Armijo | AP18: Atchee | AQ18: Hinckley | AR18: Cateache | AS18: Avonville | AT18: Dormont | AU18: Carbondale | AV18: Bancroft
A19: Boswell | B19: Bitter Spring | C19: Dubbs | D19: Annaw | E19: Belain family | F19: Westbrook | H19: Croatan | I19: Dunbar | J19: Ardenvoir | K19: Derinda | L19: Brady | M19: Egan | N19: Catoosa | O19: Cotaco | P19: Bellwood | Q19: Hermon | R19: Dekalb | S19: Kearsarge | T19: Coloma | U19: Brookings | V19: Belden | W19: Cornwall | X19: Bata | Y19: Colby | Z19: Alcan | AA19: Ondawa | AB19: Sloan | AC19: Berino | AD19: Carver | AE19: Croatan | AF19: Bullock | AG19: Cana | AH19: Burleson | AI19: Bellpine | AJ19: Conneaut | AL19: Cartecay | AM19: Barnum | AN19: Capshaw | AO19: Arvana | AP19: Avalon | AQ19: Hoosic | AR19: Cecil | AS19: Badge | AT19: Duffield | AU19: Casco | AV19: Bankard
A20: Brandon | B20: Bonita | C20: Dundee | D20: Antioch | E20: Berlake | F20: Wethersfield | H20: Dorovan | I20: Echaw | J20: Artnoc | K20: Dickinson | L20: Carlisle | M20: Eitzen | N20: Chase | O20: Cranston | P20: Besner | Q20: Hinckley | R20: Duffield | S20: Lyman | T20: Conover | U20: Burkhardt | V20: Benndale | W20: Cotter | X20: Battlebutte | Y20: Coly | Z20: Aldax | AA20: Paxton | AB20: Stockbridge | AC20: Berryman | AD20: Catden | AE20: Ditney | AF20: Buse | AG20: Canadice | AH20: Canadian | AI20: Beoska | AJ20: Conotton | AL20: Cataula | AM20: Beadle | AN20: Carbo | AO20: Aspermont | AP20: Avalon family | AQ20: Kearsarge | AR20: Chincoteague | AS20: Bagdad | AT20: Elkins | AU20: Champion | AV20: Barnum
A21: Brantley | B21: Boquillas | C21: Enders | D21: Apmat | E21: Billings | F21: Windsor | H21: Dothan | I21: Ellabelle | J21: Aspen | K21: Drummer | L21: Celina | M21: Everly | N21: Cherokee | O21: Crider | P21: Betis | Q21: Ipswich | R21: Dyke | S21: Macomber | T21: Dawson | U21: Burr | V21: Bibb | W21: Coulstone | X21: Bearpaw | Y21: Cozad | Z21: Aldax variant | AA21: Peru | AB21: Sulfaquents | AC21: Berthoud | AD21: Charlton | AE21: Edneyville | AF21: Cabba | AG21: Canfield | AH21: Carey | AI21: Bigelow | AJ21: Dekalb | AL21: Cecil | AM21: Betts | AN21: Chenneby | AO21: Atco | AP21: Badland | AQ21: Limerick | AR21: Colfax | AS21: Bakeoven | AT21: Frederick | AU21: Coloma | AV21: Baroid
A22: Bude | B22: Burnswick | C22: Falkner | D22: Aptos | E22: Blacksnag | F22: Winooski | H22: Esto | I22: Esto | J22: Avery hill variant | K22: Fayette | L22: Chelsea | M22: Fayette | N22: Clarinda | O22: Dickson | P22: Bibb | Q22: Lamoine | R22: Edgemont | S22: Monadnock | T22: Deer Park | U22: Bushville | V22: Binnsville | W22: Creldon | X22: Beauvais | Y22: Creighton | Z22: Alhambra | AA22: Redstone | AB22: Swartswood | AC22: Berwolf | AD22: Chaumont | AE22: Emporia | AF22: Cabbart | AG22: Cardington | AH22: Carnasaw | AI22: Bins | AJ22: Dormont | AL22: Centenary | AM22: Blackhall | AN22: Christian | AO22: Aubrey | AP22: Bagard | AQ22: Linwood | AR22: Craven | AS22: Bandid | AT22: Gilpin | AU22: Comfrey | AV22: Bateson
A23: Cahaba | B23: Cabezon | C23: Felker | D23: Aquic Calciorthids | E23: Boyett | F23: Woodbridge | H23: Felda | I23: Eulonia | J23: Avonville | K23: Fishhook | L23: Cincinnati | M23: Floyd | N23: Clark | O23: Dunning | P23: Bienville | Q23: Linneus | R23: Edom | S23: Montauk | T23: Deford | U23: Calco | V23: Bohicket | W23: Crevasse | X23: Beaverton | Y23: Crete | Z23: Alko | AA23: Scitico | AB23: Udorthents | AC23: Blancot | AD23: Chenango | AE23: Enon | AF23: Cashel | AG23: Castalia | AH23: Chigley | AI23: Blayden | AJ23: Duffield | AL23: Chewacla | AM23: Blackpipe | AN23: Clifton | AO23: Aufco | AP23: Barx | AQ23: Lyman | AR23: Creedmoor | AS23: Barneston | AT23: Hackers | AU23: Copaston | AV23: Baux
A24: Canton Bend | B24: Cacique | C24: Gallion | D24: Aramburu | E24: Bresser | H24: Florala | I24: Evard | J24: Aysees | K24: Flagg | L24: Coloma | M24: Galva | N24: Clime | O24: Egam | P24: Bonn | Q24: Lyman | R24: Elkton | S24: Newport | T24: Desker | U24: Canisteo | V24: Bonn | W24: Dapue | X24: Beeskove | Y24: Crofton | Z24: Alley | AA24: Skerry | AB24: Wethersfield | AC24: Bluepoint | AD24: Colosse | AE24: Evard | AF24: Chama | AG24: Centerburg | AH24: Choteau | AI24: Bliss | AJ24: Duncannon | AL24: Chipley | AM24: Blendon | AN24: Collegedale | AO24: Austin | AP24: Batterson | AQ24: Macomber | AR24: Cullen | AS24: Baumgard | AT24: Hagerstown | AU24: Cushing | AV24: Bayard
A25: Cartecay | B25: Calciorthids | C25: Gore | D25: Aramburu variant | E25: Bridgeport | H25: Floridana | I25: Fullerton | J25: Badge | K25: Fox | L25: Corydon | M25: Gilliam | N25: Colby | O25: Elk | P25: Boswell | Q25: Masardis | R25: Evesboro | S25: Paxton | T25: Detour | U25: Cashel | V25: Bonn variant | W25: Dockery | X25: Bew | Y25: Dix | Z25: Allker | AA25: Squamscott | AB25: Wurtsboro | AC25: Brownfield | AD25: Colton | AE25: Fannin | AF25: Cherry | AG25: Chagrin | AH25: Circleback | AI25: Bocker | AJ25: Edgemont | AL25: Chisolm | AM25: Bon | AN25: Commerce | AO25: Austwell | AP25: Bear Lake | AQ25: Marlow | AR25: Culpeper | AS25: Bear Prairie | AT25: Hazleton | AU25: Delton | AV25: Bear Lake
A26: Cecil | B26: Carrizo | C26: Guyton | D26: Ararat | E26: Bridget | H26: Fripp | I26: Georgeville | J26: Baldock | K26: Frankfort | L26: Crider | M26: Hayden | N26: Corbin | O26: Fairmount | P26: Bowdre | Q26: Monadnock | R26: Fallsington | S26: Peru | T26: East Lake | U26: Cathro | V26: Boswell | W26: Doniphan | X26: Big Timber | Y26: Dunday | Z26: Allor | AA26: Surplus | AC26: Brycan | AD26: Coveytown | AE26: Goldston | AF26: Claire | AG26: Chili | AH26: Clairemont | AI26: Boger | AJ26: Edom | AL26: Coxville | AM26: Boyd | AN26: Conasauga | AO26: Axtell | AP26: Bearskin | AQ26: Masardis | AR26: Ditney | AS26: Bearspring | AT26: Huntington | AU26: Derinda | AV26: Bearmouth
A27: Cheaha | B27: Casa Grande | C27: Hebert | D27: Arbuckle | E27: Broad Canyon | H27: Garcon | I27: Greenville | J27: Bancroft | K27: Genesee | L27: Desker | M27: Hoopeston | N27: Creldon | O27: Faywood | P27: Bowie | Q27: Monarda | R27: Galestown | S27: Pillsbury | T27: Eastport | U27: Chapett | V27: Bowdre | W27: Dundee | X27: Bigarm | Y27: Duroc | Z27: Alluvial land | AA27: Tunbridge | AC27: Burnac | AD27: Darien | AE27: Hayesville | AF27: Coe | AG27: Cidermill | AH27: Clarita | AI27: Bombadil | AJ27: Erie | AL27: Davidson | AM27: Brandt | AN27: Congaree | AO27: Bancker | AP27: Begay | AQ27: Massena | AR27: Duffield | AS27: Bellicum | AT27: Jefferson | AU27: Dickinson | AV27: Birdsley
A28: Chenneby | B28: Casto | C28: Kipling | D28: Arburua | E28: Bronell | H28: Greenville | I28: Grifton | J28: Bartonflat | K28: Gilford | L28: Drummer | M28: Kennebec | N28: Crete | O28: Fredonia | P28: Boykin | Q28: Monson | R28: Gilpin | S28: Raynham | T28: Emmet | U28: Chaseburg | V28: Brooksville | W28: Eldon | X28: Bignell | Y28: Elsmere | Z28: Alpha | AA28: Westbrook | AC28: Bushvalley | AD28: Dawson | AE28: Herndon | AF28: Colvin | AG28: Cincinnati | AH28: Clarksville | AI28: Boulder Lake | AJ28: Fremont | AL28: Dothan | AM28: Bridget | AN28: Convent | AO28: Barnett | AP28: Beje | AQ28: Missisquoi | AR28: Dyke | AS28: Benge | AT28: Kanawha | AU28: Dodgeville | AV28: Blackhall
A29: Chewacla | B29: Catman | C29: Kobel | D29: Archerdale | E29: Brownsto | H29: Grifton | I29: Hartsells | J29: Battle Creek | K29: Goss | L29: Eden | M29: Keswick | N29: Crisfield | O29: Frondorf | P29: Briley | Q29: Naumburg | R29: Hayesville | S29: Stockbridge | T29: Ensign | U29: Chaska | V29: Bruin | W29: Gerald | X29: Binna | Y29: Epping | Z29: Alyan | AA29: Windsor | AC29: Caballo | AD29: Dune land | AE29: Hiwassee | AF29: Cresbard | AG29: Colwood | AH29: Clime | AI29: Burrita | AJ29: Gilpin | AL29: Duplin | AM29: Bryant | AN29: Cumberland | AO29: Barrada | AP29: Benjamin | AQ29: Monarda | AR29: Emporia | AS29: Benwy | AT29: Kaymine | AU29: Dunbarton | AV29: Blaine
A30: Chisca | B30: Cave | C30: Kolin | D30: Arizo | E30: Brussett | H30: Hallandale | I30: Hazlehurst | J30: Bauscher | K30: Grantsburg | L30: Eldean | M30: Klinger | N30: Dalhart | O30: Garmon | P30: Brimstone | Q30: Ondawa | R30: Hazleton | S30: Westbrook | T30: Essexville | U30: Chetek | V30: Bruno | W30: Gilliam | X30: Bitton | Y30: Fluvaquents | Z30: Amene | AA30: Woodbridge | AC30: Cabezon | AD30: Dutchess | AE30: Iredell | AF30: Dilts | AG30: Conneaut | AH30: Colmor | AI30: Carryback | AJ30: Hagerstown | AL30: Emporia | AM30: Bullcreek | AN30: Cunningham | AO30: Bastrop | AP30: Bernal family | AQ30: Mundal | AR30: Fannin | AS30: Berson | AT30: Laidig | AU30: Edmund | AV30: Blazon
A31: Choccolocco | B31: Celacy | C31: Leadvale | D31: Arlington | E31: Buena Vista | H31: Hurricane | I31: Henderson | J31: Bear Lake | K31: Haymond | L31: Elk | M31: Klum | N31: Dapue | O31: Gilpin | P31: Bruin | Q31: Perham | R31: Leck kill | S31: Wethersfield | T31: Fairport | U31: Chilgren | V31: Bude | W31: Goss | X31: Blackhall | Y31: Forney | Z31: Amtoft | AC31: Calaveras | AD31: Elka | AE31: Johns | AF31: Dooley | AG31: Coshocton | AH31: Conlen | AI31: Cascade | AJ31: Hanover | AL31: Enon | AM31: Bullock | AN31: Cuthbert | AO31: Bastsil | AP31: Bertelson | AQ31: Munson | AR31: Fisherman | AS31: Billyridge | AT31: Lehew | AU31: Eleva | AV31: Bordeaux
A32: Clarendon | B32: Cellar | C32: Linker | D32: Armoine | E32: Bulkley | H32: Immokalee | I32: Holston | J32: Bedke | K32: Hennepin | L32: Fairpoint | M32: Ladoga | N32: Darrouzett | O32: Grenada | P32: Bude | Q32: Plaisted | R32: Lehew | S32: Windsor | T32: Gilford | U32: Clarion | V32: Byram | W32: Gravois | X32: Blaine | Y32: Gayville | Z32: Anaud | AC32: Caliza | AD32: Elnora | AE32: Junaluska | AF32: Doran | AG32: Crosby | AH32: Corbin | AI32: Catnip | AJ32: Hazleton | AL32: Faceville | AM32: Buse | AN32: Cynthiana | AO32: Bayucos | AP32: Bickmore family | AQ32: Nassau | AR32: Frederick | AS32: Bjork | AT32: Lily | AU32: Elkmound | AV32: Boundridge variant
A33: Colbert | B33: Cerrillos | C33: Loring | D33: Arnold | E33: Bundo | H33: Iuka | I33: Iredell | J33: Bickmore family | K33: Herrick | L33: Fincastle | M33: Lamoni | N33: Dennis | O33: Grigsby | P33: Bursley | Q33: Scantic | R33: Lewisberry | S33: Woodbridge | T33: Gogebic | U33: Clearwater | V33: Cahaba | W33: Haynie | X33: Blanchard | Y33: Geary | Z33: Anawalt | AC33: Campana | AD33: Empeyville | AE33: Kureb | AF33: Dovray | AG33: Darien | AH33: Cordell | AI33: Chaix | AJ33: Highfield | AL33: Foreston | AM33: Butche | AN33: Dandridge | AO33: Beaumont | AP33: Biddleman family | AQ33: Nellis | AR33: Fullerton | AS33: Bonner | AT33: Litz | AU33: Emmet | AV33: Bozeman
A34: Conasauga | B34: Chiricahua | C34: Malden | D34: Arrastre | E34: Burnson | H34: Jonesville | I34: Iuka | J34: Blackleg | K34: Hickory | L34: Genesee | M34: Le Sueur | N34: Detroit | O34: Hayter | P34: Bussy | Q34: Schoodic | R34: Lily | T34: Gogomain | U34: Cloquet | V34: Caledonia | W34: Higginsville | X34: Bolack | Y34: Gibbon | Z34: Annaw | AC34: Canutio | AD34: Erie | AE34: Lafitte | AF34: Dumps | AG34: Eden | AH34: Coushatta | AI34: Chehalis | AJ34: Holly | AL34: Foxworth | AM34: Cabbart | AN34: Decatur | AO34: Berda | AP34: Bingham | AQ34: Ondawa | AR34: Georgeville | AS34: Borgeau | AT34: Mandy | AU34: Fayette | AV34: Bridget
A35: Conecuh | B35: Cipriano | C35: Mano | D35: Arroyo Seco | E35: Bushvalley | H35: Kalmia | I35: Johnston | J35: Blackprince | K35: Hosmer | L35: Gilford | M35: Lindley | N35: Devol | O35: Huntington | P35: Buxin | Q35: Skerry | R35: Matapeake | T35: Granby | U35: Clyde | V35: Calhoun | W35: Hildebrecht | X35: Bonfri | Y35: Gilliam | Z35: Ansping | AC35: Capillo | AD35: Farmington | AE35: Lakeland | AF35: Edgeley | AG35: Elba | AH35: Cupco | AI35: Cherryhill | AJ35: Kreamer | AL35: Goldsboro | AM35: Canyon | AN35: Dellrose | AO35: Bernaldo | AP35: Birdow | AQ35: Paxton | AR35: Grimsley | AS35: Bow | AT35: Markland | AU35: Fenwood | AV35: Bross
A36: Congaree | B36: Clayhole | C36: Moreland | D36: Arzo | E36: Canyon | H36: Kingsland | I36: Junaluska | J36: Blackspot | K36: Huntsville | L36: Gilpin | M36: Macksburg | N36: Dillwyn | O36: Jacob | P36: Caddo | Q36: Stetson | R36: Murrill | T36: Grattan | U36: Coland | V36: Calloway | W36: Jonca | X36: Bowdoin | Y36: Glenberg | Z36: Antel | AC36: Capulin | AD36: Fremont | AE36: Leaf | AF36: Egeland | AG36: Eldean | AH36: Dale | AI36: Chilcott | AJ36: Lackawanna | AL36: Goldston | AM36: Carthage | AN36: Dickson | AO36: Bernard | AP36: Blanca | AQ36: Peacham | AR36: Hayesville | AS36: Brickmill | AT36: Monongahela | AU36: Flagg | AV36: Brownsto
A37: Cowarts | B37: Claysprings | C37: Mountainburg | D37: Atwell | E37: Capillo | H37: Krome | I37: Kershaw | J37: Blackwell | K37: Hurst | L37: Haskins | M37: Mahaska | N37: Dune land | O37: Jefferson | P37: Cadeville | Q37: Swanville | R37: Neshaminy | T37: Graveraet | U37: Collinwood | V37: Cascilla | W37: Kanima | X37: Boxwell | Y37: Gothenburg | Z37: Antholop | AC37: Carjo | AD37: Galoo | AE37: Leon | AF37: Ekalaka | AG37: Fitchville | AH37: Dalhart | AI37: Chinchallo | AJ37: Leck kill | AL37: Grifton | AM37: Chancellor | AN37: Ditney | AO37: Betis | AP37: Bluechief | AQ37: Pillsbury | AR37: Herndon | AS37: Brief | AT37: Moomaw | AU37: Flambeau | AV37: Browtine
A38: Cunningham | B38: Cloverdale | C38: Muskogee | D38: Auburn | E38: Capulin | H38: Lakeland | I38: Kingsland | J38: Blinn | K38: Ipava | L38: Haymond | M38: Marshall | N38: Dwight | O38: Johnsburg | P38: Cahaba | Q38: Telos | R38: Opequon | T38: Graycalm | U38: Colvin | V38: Catalpa | W38: Kennebec | X38: Brantford family | Y38: Grundy | Z38: Apmat | AC38: Carrick | AD38: Glover | AE38: Meggett | AF38: Embden | AG38: Gallia | AH38: Dallam | AI38: Chismore | AJ38: Lehew | AL38: Haplaquents | AM38: Chantier | AN38: Dulac | AO38: Bienville | AP38: Bond family | AQ38: Scantic | AR38: Hiwassee | AS38: Broadax | AT38: Moshannon | AU38: Fordum | AV38: Buckskin
A39: Davidson | B39: Clovis | C39: Newnata | D39: Avawatz | E39: Cascajo | H39: Leon | I39: Lakeland | J39: Bluebell | K39: Jasper | L39: Hennepin | M39: Marshan | N39: Edalgo | O39: Karnak | P39: Calhoun | Q39: Thorndike | R39: Othello | T39: Grayling | U39: Comfrey | V39: Chenneby | W39: Kenoma | X39: Breece | Y39: Harney | Z39: Appian | AC39: Cascajo | AD39: Halcott | AE39: Nansemond | AF39: Emrick | AG39: Geeburg | AH39: Dapue | AI39: Chocktoot | AJ39: Letort | AL39: Helena | AM39: Citadel | AN39: Dundee | AO39: Bigbrown | AP39: Borvant | AQ39: Stockbridge | AR39: Iredell | AS39: Buckley | AT39: Muskingum | AU39: Fox | AV39: Burnette
A40: Decatur | B40: Comoro | C40: Perry | D40: Avis | E40: Castelleia | H40: Lowndes | I40: Leon | J40: Bluecreek | K40: Joy | L40: Hosmer | M40: Monona | N40: Elandco | O40: Kimper | P40: Calloway | Q40: Vassalboro | R40: Penn | T40: Guelph | U40: Conic | V40: Collins | W40: Keswick | X40: Bridger | Y40: Hastings | Z40: Aquic Calciorthids | AC40: Catman | AD40: Haven | AE40: Norfolk | AF40: Esmond | AG40: Gilpin | AH40: Darnell | AI40: Concord | AJ40: Lewisberry | AL40: Herndon | AM40: Clamo | AN40: Dunmore | AO40: Bigfoot | AP40: Boundridge variant | AQ40: Taconic | AR40: Jefferson | AS40: Buckpeak | AT40: Opequon | AU40: Gogebic | AV40: Busher
A41: Dellrose | B41: Continental | C41: Pomme | D41: Ayar | E41: Castner | H41: Malabar | I41: Lowndes | J41: Bluesprin | K41: Karnak | L41: Huntington | M41: Napier | N41: Elkader | O41: Latham | P41: Cascilla | R41: Pocomoke | T41: Hamre | U41: Copaston | V41: Columbus | W41: Klum | X41: Brocko | Y41: Haverson | Z41: Arcia | AC41: Cebolleta | AD41: Hermon | AE41: Oteen | AF41: Fargo | AG41: Glenford | AH41: Darrouzett | AI41: Coughanour | AJ41: Lordstown | AL41: Hiwassee | AM41: Clarno | AN41: Edneyville | AO41: Blakeney | AP41: Bowen | AQ41: Tunbridge | AR41: Kaymine | AS41: Burch | AT41: Otwell | AU41: Gotham | AV41: Butche
A42: Dewey | B42: Coolidge | C42: Portia | D42: Azule | E42: Catamount | H42: Mandarin | I42: Lyerly | J42: Boles | K42: Kidder | L42: Ipava | M42: Nevin | N42: Elmont | O42: Lawrence | P42: Clovelly | R42: Portsmouth | T42: Haskins | U42: Cormant | V42: Commerce | W42: Knox | X42: Bross | Y42: Haynie | Z42: Ardnas | AC42: Celacy | AD42: Hogansburg | AE42: Pacolet | AF42: Fordville | AG42: Glynwood | AH42: Dennis | AI42: Crater Lake | AJ42: Mardin | AL42: Hobonny | AM42: Cohagen | AN42: Elliber | AO42: Bleiblerville | AP42: Boxelder | AQ42: Vergennes | AR42: Kimper | AS42: Canteen | AT42: Pope | AU42: Greenwood | AV42: Cabba
A43: Dickson | B43: Curhollow | C43: Rilla | D43: Badland | E43: Cerro | H43: Margate | I43: Madison | J43: Bonner | K43: Lamont | L43: Kalamazoo | M43: Nodaway | N43: Eram | O43: Lenberg | P43: Colyell | R43: Sassafras | T43: Houghton | U43: Cromwell | V43: Demopolis | W43: Lagonda | X43: Bryant | Y43: Hersh | Z43: Argalt | AC43: Chamberino | AD43: Hollis | AE43: Porters | AF43: Forman | AG43: Guernsey | AH43: Devol | AI43: Cressler | AJ43: Monongahela | AL43: Hornsville | AM43: Colvin | AN43: Ennis | AO43: Bluegrove | AP43: Bram | AQ43: Waitsfield | AR43: Kinkora | AS43: Casey | AT43: Potomac | AU43: Hebron | AV43: Cabbart
A44: Dorovan | B44: Dateland | C44: Robinsonville | D44: Bakeoven | E44: Chipeta | H44: Maurepas | I44: Mandarin | J44: Bouldercreek | K44: Lena | L44: Latty | M44: Olmitz | N44: Eudora | O44: Licking | P44: Commerce | R44: Ungers | T44: Iosco | U44: Cushing | V44: Dorovan | W44: Lamoni | X44: Burnette | Y44: Hobbs | Z44: Argenta | AC44: Chilton | AD44: Honeoye | AE44: Portsmouth | AF44: Fram | AG44: Hanover | AH44: Dill | AI44: Crump | AJ44: Morrison | AL44: Iredell | AM44: Crossplain | AN44: Etowah | AO44: Bluepoint | AP44: Broad Canyon | AQ44: Windsor | AR44: Laidig | AS44: Catla | AT44: Schaffenaker | AU44: Hibbing | AV44: Cambarge
A45: Dothan | B45: Datil | C45: Roxana | D45: Baldmountain | E45: Christianburg | H45: Meggett | I45: Minvale | J45: Boundridge variant | K45: Lenzburg | L45: Lindside | M45: Otley | N45: Farnum | O45: Lily | P45: Convent | R45: Waynesboro | T45: Isabella | U45: Cutaway | V45: Dulac | W45: Leta | X45: Busby | Y45: Holder | Z45: Arizo | AC45: Chimayo | AD45: Hoosic | AE45: Pungo | AF45: Gardena | AG45: Haskins | AH45: Dillwyn | AI45: Crutch | AJ45: Morristown | AL45: Jedburg | AM45: DeGrey | AN45: Falaya | AO45: Bolar | AP45: Broadhead | AQ45: Worden | AR45: Lehew | AS45: Cattcreek | AT45: Skidmore | AU45: Hochheim | AV45: Cambria
A46: Dulac | B46: Deama | C46: Sacul | D46: Baldy variant | E46: Cimarron | H46: Millhopper | I46: Mountainburg | J46: Bram | K46: Leta | L46: Markland | M46: Primghar | N46: Fluvaquents | O46: Loring | P46: Coteau | R46: Weikert | T46: Ithaca | U46: Dalbo | V46: Dundee | W46: Lindley | X46: Cabba | Y46: Holdrege | Z46: Armespan | AC46: Chispa | AD46: Insula | AE46: Rains | AF46: Glyndon | AG46: Homewood | AH46: Dougherty | AI46: Culbertson | AJ46: Murrill | AL46: Johnston | AM46: Delmont | AN46: Farragut | AO46: Bonti | AP46: Brownsto | AR46: Lily | AS46: Chard | AT46: Tioga | AU46: Hortonville | AV46: Canyon
A47: Ennis | B47: Delnorte | C47: Sawyer | D47: Bale | E47: Claysprings | H47: Moriah | I47: Muskingum | J47: Broad Canyon | K47: Loran | L47: Miami | M47: Readlyn | N47: Geary | O47: Lowell | P47: Coushatta | R47: Westbrook | T47: Kalamazoo | U47: Dickinson | V47: Ennis | W47: Macksburg | X47: Cabbart | Y47: Holt | Z47: Armoine | AC47: Church | AD47: Ipswich | AE47: Roanoke | AF47: Golva | AG47: Huntington | AH47: Dune land | AI47: Cultus | AJ47: Neshaminy | AL47: Kenansville | AM47: Delridge | AN47: Frederick | AO47: Boracho | AP47: Bruman | AR47: Litz | AS47: Chehalis | AT47: Ungers | AU47: Houghton | AV47: Cathedral
A48: Escambia | B48: Denure | C48: Severn | D48: Bamtush | E48: Cochetopa | H48: Myakka | I48: Nella | J48: Broadax | K48: Markham | L48: Miamian | M48: Salix | N48: Goessel | O48: Mantachie | P48: Creole | R48: Westphalia | T48: Kalkaska | U48: Dickman | V48: Escambia | W48: Malden | X48: Cabinet | Y48: Hord | Z48: Armydrain | AC48: Cinnadale | AD48: Ira | AE48: Saluda | AF48: Grail | AG48: Jessup | AH48: Durant | AI48: Cutz | AJ48: Niagara | AL48: Lakeland | AM48: Doran | AN48: Fullerton | AO48: Bosque | AP48: Butterfield | AR48: Minnieville | AS48: Chelan | AT48: Upshur | AU48: Ishpeming | AV48: Chaperton
A49: Etowah | B49: Derecho | C49: Sharkey | D49: Bancas | E49: Colby | H49: Nankin | I49: Norfolk | J49: Brody | K49: Miami | L49: Milford | M49: Saude | N49: Goshen | O49: Markland | P49: Crowley | T49: Karlin | U49: Doland | V49: Eustis | W49: Mano | X49: Cambert | Y49: Ida | Z49: Arzo | AC49: Claysprings | AD49: Kalurah | AE49: Slagle | AF49: Grano | AG49: Kibbie | AH49: Elandco | AI49: Damore | AJ49: Opequon | AL49: Leon | AM49: Dovray | AN49: Grenada | AO49: Bowie | AP49: Cahona | AR49: Moomaw | AS49: Chesaw | AT49: Vandalia | AU49: Jasper | AV49: Chittum
A50: Faceville | B50: Disterheff | C50: Smithdale | D50: Barnabe | E50: Colombo | H50: Nutall | I50: Ocilla | J50: Broncho | K50: Middletown | L50: Morley | M50: Sharpsburg | N50: Grant | O50: McAfee | P50: Darley | T50: Keweenaw | U50: Doran | V50: Falaya | W50: Maplewood | X50: Cambeth | Y50: Inavale | Z50: Ashart | AC50: Cloverdale | AD50: Kingsbury | AE50: Tallapoosa | AF50: Hamerly | AG50: Killbuck | AH50: Enders | AI50: Dee | AJ50: Oquaga | AL50: Levy | AM50: Dudley | AN50: Grigsby | AO50: Boy | AP50: Calita | AR50: Myersville | AS50: Chinkmin | AT50: Vincent | AU50: Kennan | AV50: Chrisman
A51: Flomaton | B51: Dystric Cryochrepts | C51: Spadra | D51: Barpeak | E51: Columbine | H51: Ochopee | I51: Olustee | J51: Brose | K51: Milford | L51: Muskego | M51: Shelby | N51: Grundy | O51: McGary | P51: Debute | T51: Kibbie | U51: Dorset | V51: Falkner | W51: Marquand | X51: Castner | Y51: Janise | Z51: Atlow | AC51: Clovis | AD51: Kinzua | AE51: Tanasee | AF51: Harriet | AG51: Latham | AH51: Eufaula | AI51: Deschutes | AJ51: Penlaw | AL51: Lynchburg | AM51: Dunday | AN51: Groseclose | AO51: Brackett | AP51: Castino | AR51: Nansemond | AS51: Choralmont | AT51: Waynesboro | AU51: Kewaunee | AV51: Citadel
A52: Florala | B52: Eba | C52: Stuttgart | D52: Baywood | E52: Cotopaxi | H52: Ocilla | I52: Orangeburg | J52: Bruncan | K52: Morley | L52: Nappanee | M52: Sogn | N52: Hamburg | O52: Memphis | P52: Deerford | T52: Kilmanagh | U52: Downs | V52: Freest | W52: Monona | X52: Cetrack | Y52: Jansen | Z52: Atrypa | AC52: Cochiti | AD52: Lackawanna | AE52: Tatum | AF52: Havrelon | AG52: Latty | AH52: Felker | AI52: Deskamp | AJ52: Philo | AL52: Madison | AM52: Dwyer | AN52: Gullied land | AO52: Branyon | AP52: Castner | AR52: Nason | AS52: Chuckanut | AT52: Weikert | AU52: Keweenaw | AV52: Clarkelen
A53: Fripp | B53: Elledge | C53: Viraton | D53: Beaches | E53: Cowdrey | H53: Olustee | I53: Pacolet | J53: Bryan | K53: Ogle | L53: Palms | M53: Sparta | N53: Harney | O53: Morehead | P53: Dexter | T53: Kingsville | U53: Duluth | V53: Gillsburg | W53: Niangua | X53: Chama | Y53: Jayem | Z53: Attella | AC53: Colmor | AD53: Lakemont | AE53: Toxaway | AF53: Hecla | AG53: Lenawee | AH53: Ferris | AI53: Deven | AJ53: Platea | AL53: Meggett | AM53: Eapa | AN53: Hamblen | AO53: Brazoria | AP53: Cave | AR53: Opequon | AS53: Cispus | AT53: Westmoreland | AU53: Kidder | AV53: Clowers
A54: Fullerton | B54: Ess | C54: Yanush | D54: Beam | E54: Cushman | H54: Orangeburg | I54: Pelham | J54: Buckskin | K54: Palsgrove | L54: Patton | M54: Spillville | N54: Hastings | O54: Mountview | P54: Dundee | T54: Kiva | U54: Egan | V54: Grenada | W54: Nixa | X54: Cheadle | Y54: Kadoka variant | Z54: Badland | AC54: Colomex | AD54: Leck kill | AE54: Trebloc | AF54: Hegne | AG54: Lowell | AH54: Fitzhugh | AI54: Divers | AJ54: Pope | AL54: Molena | AM54: Eckman | AN54: Hampshire | AO54: Brennan | AP54: Cheebe | AR54: Peaks | AS54: Clallam | AT54: Zoar | AU54: La Farge | AV54: Coaliams
A55: Gaylesville | B55: Eutric Glossoboralfs | D55: Beaughton | E55: Dalhart | H55: Ortega | I55: Pooler | J55: Buko | K55: Patton | L55: Peoga | M55: Taintor | N55: Haynie | O55: Newark | P55: Duralde | T55: Krakow | U55: Egeland | V55: Harleston | W55: Olmitz | X55: Cherry | Y55: Keith | Z55: Baldy variant | AC55: Conchas | AD55: Limerick | AE55: Wayah | AF55: Heimdal | AG55: Mahoning | AH55: Foard | AI55: Dixonville | AJ55: Ravenna | AL55: Mouzon | AM55: Egan | AN55: Hayesville | AO55: Brewster | AP55: Chipeta | AR55: Penn | AS55: Cleman | AU55: Lapeer | AV55: Comad
A56: Gorgas | B56: Flugle | D56: Beelem | E56: Dast family | H56: Pactolus | I56: Porters | J56: Bullvaro | K56: Pecatonica | L56: Pewamo | M56: Wadena | N56: Hedville | O56: Nicholson | P56: Eastwood | T56: Latty | U56: Eitzen | V56: Heidel | W56: Osage | X56: Chickaman | Y56: Kenesaw | Z56: Bango | AC56: Conger | AD56: Lordstown | AE56: Wedowee | AF56: Kelvin | AG56: Melvin | AH56: Gerald | AI56: Dogtown | AJ56: Ryder | AL56: Nansemond | AM56: Enet | AN56: Hayter | AO56: Brownfield | AP56: Chipman | AR56: Portsmouth | AS56: Clerf | AU56: Lomira | AV56: Conpeak
A57: Greenville | B57: Fluventic Haploborolls | D57: Ben Lomond | E57: Dateman | H57: Pahokee | I57: Pottsburg | J57: Burwill | K57: Plainfield | L57: Riddles | M57: Watkins | N57: Heizer | O57: Nolin | P57: Egypt | T57: Lenawee | U57: Erin | V57: Iuka | W57: Parsons | X57: Chinook | Y57: Kennebec | Z57: Bartine | AC57: Cumulic Cryoborolls | AD57: Loxley | AE57: White Store | AF57: Kloten | AG57: Miami | AH57: Glenrio | AI57: Dotta | AJ57: Sloan | AL57: Nemours | AM57: Enning | AN57: Hillwood | AO57: Brundage | AP57: Circleville | AR57: Pungo | AS57: Clint | AU57: Longrie | AV57: Copeman
A58: Gwinnett | B58: Fluventic Ustochrepts | D58: Berit | E58: Deaver | H58: Paola | I58: Rains | J58: Busterback | K58: Plano | L58: Rodman | M58: Webster | N58: Hobbs | O58: Otwell | P58: Estes | T58: Locke | U58: Estelline | V58: Jena | W58: Pembroke | X58: Chinook variant | Y58: Kipson | Z58: Bartome | AC58: Cumulic Haploborolls | AD58: Lyman | AE58: Wilkes | AF58: Kranzburg | AG58: Miamian | AH58: Goodnight | AI58: Dune land | AJ58: Tilsit | AL58: Noboco | AM58: Epping | AN58: Holston | AO58: Bryde | AP58: Clapper | AR58: Quantico | AS58: Colville | AU58: Loxley | AV58: Cora
A59: Harleston | B59: Fragua | D59: Besherm | E59: Deertrail | H59: Pelham | I59: Ramsey | J59: Cabinet | K59: Port Byron | L59: Rush | N59: Holdrege | O59: Patton | P59: Evangeline | T59: Londo | U59: Estherville | V59: Kinston | W59: Pomme | X59: Coben | Y59: Kolls | Z59: Batan | AC59: Cumulic Haplustolls | AD59: Macomber | AE59: Woodington | AF59: Krem | AG59: Milford | AH59: Gracemont | AI59: Durkee | AJ59: Tunkhannock | AL59: Norfolk | AM59: Epsie | AN59: Humphreys | AO59: Buchel | AP59: Clayburn | AR59: Rabun | AS59: Conconully | AU59: Loyal | AV59: Crowheart
A60: Hartsells | B60: Gadsden | D60: Betteravia | E60: Dix | H60: Penney | I60: Saluda | J60: Cald | K60: Rockton | L60: Russell | N60: Hord | O60: Pembroke | P60: Falaya | T60: Longrie | U60: Etter | V60: Kirkville | W60: Poynor | X60: Comad | Y60: Kuma | Z60: Beaches | AC60: Cumulic Udic Haploborolls | AD60: Madalin | AF60: La Prairie | AG60: Millgrove | AH60: Grainola | AI60: Embal | AJ60: Udorthents | AL60: Orangeburg | AM60: Estelline | AN60: Huntington | AO60: Bukreek | AP60: Clayburn family | AR60: Roanoke | AS60: Cordy | AU60: Ludington | AV60: Crownest
A61: Hector | B61: Gila | D61: Bieber | E61: Dominson | H61: Perrine | I61: Shack | J61: Camelback | K61: Rozetta | L61: Spinks | N61: Ida | O61: Pope | P61: Falkner | T61: Lupton | U61: Everly | V61: Latonia | W61: Putnam | X61: Connah | Y61: Kyle | Z61: Beanflat | AC61: Dallam | AD61: Madrid | AF61: Lambert | AG61: Millsdale | AH61: Grandfield | AI61: Esquatzel | AJ61: Valois | AL61: Pacolet | AM61: Ethan | AN61: Inman | AO61: Bunyan | AP61: Claysprings | AR61: Slagle | AS61: Couse | AU61: Magnor | AV61: Cushool
A62: Holston | B62: Glendale | D62: Bigelow | E62: Dranyon | H62: Pickney | I62: Stilson | J62: Carey Lake | K62: Seaton | L62: Stendal | N62: Irwin | O62: Rahm | P62: Fausse | T62: Mancelona | U62: Fairhaven | V62: Lexington | W62: Rueter | X62: Courville | Y62: Labu | Z62: Bedwyr | AC62: Dargol | AD62: Manheim | AF62: Lamoure | AG62: Mitiwanga | AH62: Grant | AI62: Fairylawn | AJ62: Venango | AL62: Paxville | AM62: Firesteel | AN62: Jefferson | AO62: Burkeville | AP62: Coalbank | AR62: State | AS62: Coveland | AU62: Markey | AV62: Cutback
A63: Jones | B63: Gordo | D63: Bigriver | E63: Dulce | H63: Pineda | I63: Surrency | J63: Caribel | K63: Selma | L63: Strole | N63: Ivan | O63: Rosebloom | P63: Fluker | T63: Marlette | U63: Fargo | V63: Loring | W63: Secesh | X63: Cowood | Y63: Lancaster | Z63: Beelem | AC63: Datil | AD63: Manlius | AF63: Lehr | AG63: Monongahela | AH63: Gruver | AI63: Farrell | AJ63: Vly | AL63: Pelion | AM63: Fluvents | AN63: Junaluska | AO63: Burleson | AP63: Codley | AR63: Talbott | AS63: Cowiche | AU63: McHenry | AV63: Dahlquist
A64: Kalmia | B64: Grieta | D64: Blacktop | E64: Dunton | H64: Plantation | I64: Susquehanna | J64: Carlinton | K64: Sexton | L64: Swygert | N64: Jansen | O64: Saffell | P64: Forbing | T64: Matherton | U64: Fayette | V64: Luverne | W64: Sharkey | X64: Crago | Y64: Las | Z64: Beeox | AC64: Deama | AD64: Mardin | AF64: Lohnes | AG64: Montgomery | AH64: Guyton | AI64: Felcher | AJ64: Volusia | AL64: Persanti | AM64: Fordville | AN64: Kimper | AO64: Burlewash | AP64: Collbran family | AR64: Tallapoosa | AS64: Crestway | AU64: McPaul | AV64: Dailey
A65: Kipling | B65: Gunsight | D65: Blankout | E65: Earsman | H65: Pomona | I65: Talbott | J65: Cavendish | K65: Sparta | L65: Wakeland | N65: Jayem | O65: Sharkey | P65: Forestdale | T65: Mecosta | U65: Fieldon | V65: Lytle | W65: Sharpsburg | X65: Creed | Y65: Lawet | Z65: Belate | AC65: Denazar | AD65: Massena | AF65: Ludden | AG65: Morley | AH65: Hardeman | AI65: Ferndale | AJ65: Washington | AL65: Plummer | AM65: Forman | AN65: Kinston | AO65: Burson | AP65: Condie | AR65: Tetotum | AS65: Cryands | AU65: Meadland | AV65: Dashiki
A66: Kolomoki | B66: Gypill | D66: Blasingame | E66: Eckley | H66: Pottsburg | I66: Tallapoosa | J66: Cedarhill | K66: St. Charles | L66: Wallkill | N66: Kanima | O66: Shelbyville | P66: Frizzell | T66: Menominee | U66: Finland | V66: Memphis | W66: Shelby | X66: Crittenden | Y66: Leshara | Z66: Belcher | AC66: Doak | AD66: Mongaup | AF66: Mandan | AG66: Morristown | AH66: Harjo | AI66: Flagstaff | AJ66: Watson | AL66: Ponzer | AM66: Forney | AN66: Lawrence | AO66: Callisburg | AP66: Cowco | AR66: Wallen | AS66: Cryohumods | AU66: Menahga | AV66: Deekay
A67: Leesburg | B67: Hathaway | D67: Blucher | E67: Elsmere | H67: Rains | I67: Tatum | J67: Chamberlain | K67: Streator | L67: Zaborosky | N67: Keith | O67: Shelocta | P67: Frost | T67: Miami | U67: Fordville | V67: Morganfield | W67: Summit | X67: Crow | Y67: Loup | Z67: Bellehelen | AC67: Doakum | AD67: Montauk | AF67: Manning | AG67: Nappanee | AH67: Hector | AI67: Frailey | AJ67: Weikert | AL67: Rains | AM67: Gardena | AN67: Leadvale | AO67: Canutio | AP67: Croydon | AR67: Weikert | AS67: Cusick | AU67: Monico | AV67: Delphill
A68: Levy | B68: Hayhook | D68: Bluepoint | E68: Emlin | H68: Red Bay | I68: Tawcaw | J68: Chard | K68: Swygert | L68: Zadog | N68: Kennebec | O68: Steff | P68: Gallion | T68: Michigamme | U68: Forman | V68: Ouachita | W68: Taintor | X68: Cryoborolls | Y68: Marshall | Z68: Belsac | AC68: Dulce | AD68: Mosherville | AF68: Mauvais | AG68: Negley | AH68: Idabel | AI68: Freezener | AJ68: Wellsboro | AL68: Rutlege | AM68: Glenberg | AN68: Lehew | AO68: Carbengle | AP68: Curdli | AR68: Westmoreland | AS68: Dalig | AU68: Morley | AV68: Dines
A69: Lexington | B69: Hereford | D69: Bobert | E69: Empedrado | H69: Riviera | I69: Tifton | J69: Chedehap | K69: Tama | L69: Zanesville | N69: Kenoma | O69: Steinsburg | P69: Galvez | T69: Morley | U69: Formdale | V69: Poarch | W69: Tick | X69: Cushman | Y69: McCook | Z69: Belted | AC69: Dystric Cryochrepts | AD69: Muskellunge | AF69: Miranda | AG69: Niagara | AH69: Ivan | AI69: Fury | AJ69: Westmoreland | AL69: Saluda | AM69: Glenham | AN69: Lexington | AO69: Carey | AP69: Curhollow | AR69: Wickham | AS69: Deercut | AU69: NewGlarus | AV69: Dinnen family
A70: Linker | B70: Hindu | D70: Bollibokka | E70: Ess | H70: Samsula | I70: Townley | J70: Chiara | K70: Toronto | N70: Kipson | O70: Stendal | P70: Ged | T70: Munising | U70: Fulda | V70: Prentiss | W70: Tonti | X70: Danvers | Y70: Minnequa | Z70: Benin | AC70: Ector | AD70: Nassau | AF70: Moreau | AG70: Nolin | AH70: Ivanhoe | AI70: Gap | AJ70: Wurtsboro | AL70: Santee | AM70: Graceville | AN70: Lily | AO70: Castell | AP70: Dacore | AS70: Dehart | AU70: Newood | AV70: Dix
A71: Louisburg | B71: Hobog | D71: Bombadil | E71: Evanston | H71: Sapelo | I71: Troup | J71: Chilcott | K71: Wakeland | N71: Kirkland | O71: Stokly | P71: Gentilly | T71: Nappanee | U71: Gardena | V71: Quitman | W71: Topazmill | X71: Dast | Y71: Mitchell | Z71: Beoska | AC71: El Rancho | AD71: Naumburg | AF71: Morton | AG71: Ockley | AH71: Kaufman | AI71: Goose Lake | AL71: Tatum | AM71: Grummit | AN71: Lindell | AO71: Catarina | AP71: Dahar | AS71: Delphi | AU71: Newot | AV71: Dobrow
A72: Lucedale | B72: Hondale | D72: Bonnydoon | E72: Falfa | H72: Scranton | I72: Tupelo | J72: Chuska | K72: Warsaw | N72: Knoco | O72: Talbott | P72: Gilbert | T72: Nester | U72: Germantown | V72: Robinsonville | W72: Union | X72: Davidell | Y72: Monona | Z72: Beowawe variant | AC72: Elpedro | AD72: Nellis | AF72: Nutley | AG72: Omulga | AH72: Keokuk | AI72: Gradon | AL72: Tawcaw | AM72: Hamerly | AN72: Lindside | AO72: Chacon | AP72: Dahlquist family | AS72: Dick | AU72: Newson | AV72: Doney
A73: Luverne | B73: Hyder | D73: Boomer | E73: Farb | H73: Smithdale | I73: Tusquitee | J73: Coalbank | K73: Weinbach | N73: Knox | O73: Tarklin | P73: Glenmora | T73: Nunica | U73: Glencoe | V73: Rosebloom | W73: Viraton | X73: Degrand | Y73: Moody | Z73: Berit | AC73: Embudo | AD73: Niagara | AF73: Ojata | AG73: Ottokee | AH73: Kingfisher | AI73: Greenleaf | AL73: Toccoa | AM73: Hand | AN73: Litz | AO73: Chamberino | AP73: Darkbull | AS73: Dollar | AU73: Oesterle | AV73: Driggs
A74: Lyerly | B74: Jacks | D74: Botella | E74: Farlow | H74: Smyrna | I74: Vaucluse | J74: Colburn | K74: Worthen | N74: Kuma | O74: Vertrees | P74: Gore | T74: Oakville | U74: Glyndon | V74: Sharkey | W74: Weingarten | X74: Delpoint | Y74: Morrill | Z74: Besherm | AC74: Ess | AD74: Occum | AF74: Olga | AG74: Otwell | AH74: Kinta | AI74: Gwinly | AL74: Torhunta | AM74: Haverson | AN74: Loring | AO74: Chaney | AP74: Dast family | AS74: Drysel | AU74: Ogle | AV74: Duncom
A75: Madison | B75: Jeddito | D75: Brantel | E75: Feltonia | H75: Sparr | I75: Wagram | J75: Collinston | K75: Zwingle | N75: Labette | O75: Vicksburg | P75: Groom | T75: Oldman | U75: Gonvick | V75: Smithdale | W75: Zaar | X75: Delpoint family | Y75: Nora | Z75: Betra | AC75: Eutric Glossoboralfs | AD75: Onteora | AF75: Parshall | AG75: Pewamo | AH75: Kiomatia | AI75: Hack | AL75: Trebloc | AM75: Haynie | AN75: Luverne | AO75: Cho | AP75: Dateman | AS75: Dune land | AU75: Omega | AV75: Dune land
A76: Mantachie | B76: Kamato | D76: Brentwood | E76: Firth | H76: Surrency | I76: Wahee | J76: Colthorp | N76: Ladysmith | O76: Waverly | P76: Gueydan | T76: Onaway | U76: Graceville | V76: Tangi | W76: Zook | X76: Desmet | Y76: Nuckolls | Z76: Biddleman | AC76: Faskin | AD76: Oquaga | AF76: Peever | AG76: Pinegrove | AH76: Kipling | AI76: Hall Ranch | AL76: Troup | AM76: Hecla | AN76: Mantachie | AO76: Christine | AP76: Decker | AS76: Dungeness | AU76: Onaway | AV76: Dwyer
A77: McQueen | B77: Keysto | D77: Bressa | E77: Fluetsch | H77: Tavares | I77: Wehadkee | J77: Coski | N77: Lancaster | O77: Waynesboro | P77: Gurdon | T77: Onota | U77: Greenwood | V77: Troup | X77: Dilts | Y77: O'Neill | Z77: Bilbo | AC77: Fernando | AD77: Orpark | AF77: Perella | AG77: Platea | AH77: Kirkland | AI77: Hankins | AL77: Uchee | AM77: Heely | AN77: Masada | AO77: Circleback | AP77: Delson | AS77: Edfro | AU77: Ontonagon | AV77: Edgway
A78: Mecklenburg | B78: Kinan | D78: Brockliss variant | E78: Fluvaquents | H78: Terra Ceia | I78: Wickham | J78: Courville | N78: Las | O78: Weikert | P78: Guyton | T78: Ontonagon | U78: Grimstad | V78: Urbo | X78: Dinnen family | Y78: Onita | Z78: Bioya | AC78: Fivemile | AD78: Palms | AF78: Regent | AG78: Rarden | AH78: Kiti | AI78: Harwood | AL78: Vance | AM78: Heimdal | AN78: Maury | AO78: Clairemont | AP78: Detra | AS78: Elbowlake | AU78: Otterholt | AV78: Emblem
A79: Minvale | B79: Kopie | D79: Brownscreek | E79: Forelle | H79: Tifton | I79: Wicksburg | J79: Crumarine | N79: Las Animas | O79: Weinbach | P79: Harahan | T79: Oshtemo | U79: Growton | X79: Doglake | Y79: Otero | Z79: Bitter Spring | AC79: Florita | AD79: Palmyra | AF79: Renshaw | AG79: Remsen | AH79: Knoco | AI79: Helphenstein | AL79: Varina | AM79: Highmore | AN79: Melvin | AO79: Clodine | AP79: Donnardo | AS79: Elochoman | AU79: Padus | AV79: Endlich
A80: Montevallo | B80: Kyler | D80: Brubeck | E80: Fort Collins | H80: Tisonia | J80: Cryoborolls | N80: Lebsack | O80: Wellston | P80: Hebert | T80: Ottokee | U80: Grygla | X80: Doney | Y80: Pawnee | Z80: Blackhawk | AC80: Fluventic Haploborolls | AD80: Paxton | AF80: Rhame | AG80: Rigley | AH80: Konsil | AI80: Hemcross | AL80: Vaucluse | AM80: Hisle | AN80: Memphis | AO80: Cobb | AP80: Duckree | AS80: Eloika | AU80: Palsgrove | AV80: Ethete
A81: Nauvoo | B81: Laposa | D81: Bryman | E81: Frisco | H81: Torry | J81: Crystalbutte | N81: Lesho | O81: Wheeling | P81: Jeanerette | T81: Padus | U81: Harps | X81: Dooley | Y81: Pierre | Z81: Blacktop | AC81: Fluventic Ustochrepts | AD81: Plymouth | AF81: Rhoades | AG81: Rittman | AH81: Lawton | AI81: Hermiston | AL81: Wadmalaw | AM81: Holt | AN81: Mimosa | AO81: Cochina | AP81: Duffer | AS81: Entiat | AU81: Pecatonica | AV81: Evanston
A82: Nella | B82: Lehmans | D82: Buchenau | E82: Fruita | H82: Troup | J82: Crystalcreek | N82: Likes | O82: Whitley | P82: Kaplan | T82: Parkhill | U82: Hattie | X82: Doughty | Y82: Platte | Z82: Blackwell | AC82: Fragua | AD82: Pope | AF82: Rolla | AG82: Roselms | AH82: Leadvale | AI82: Hot Lake | AL82: Wagram | AM82: Homme | AN82: Minvale | AO82: Colorado | AP82: Dune land | AS82: Esquatzel | AU82: Pella | AV82: Firth
A83: Notcher | B83: Ligurta | D83: Bunkerhill | E83: Gas Creek | H83: Udorthents | J83: Dacont | N83: Lincoln | O83: Woolper | P83: Keithville | T83: Pella | U83: Haug | X83: Dryfork | Y83: Redstoe | Z83: Bliss | AC83: Frisco | AD83: Potsdam | AF83: Ruso | AG83: Rossmoyne | AH83: Likes | AI83: Howash | AL83: Wateree | AM83: Houdek | AN83: Monongahela | AO83: Comfort | AP83: Dunford | AS83: Ewall | AU83: Plainbo | AV83: Fivemile
A84: Ochlockonee | B84: Limpia | D84: Buren | E84: Gateview family | H84: Wabasso | J84: Dahar | N84: Lula | O84: Zanesville | P84: Kenner | T84: Pemene | U84: Hawick | X84: Dutton | Y84: Rosebud | Z84: Blitzen | AC84: Fruitland | AD84: Rawsonville | AF84: Serden | AG84: Roundhead | AH84: Lincoln | AI84: Hukill | AL84: Wedowee | AM84: Imlay | AN84: Montevallo | AO84: Comitas | AP84: Durfee | AS84: Farmer | AU84: Plainfield | AV84: Forelle
A85: Oktibbeha | B85: Lithic Haplustalfs | D85: Burnborough | E85: Goldbug | H85: Wahee | J85: Danskin | N85: Macksburg | P85: Kisatchie | T85: Perrinton | U85: Hayden | X85: Edgway | Y85: Salix | Z85: Bluepoint | AC85: Gabaldon | AD85: Rayne | AF85: Sioux | AG85: Russell | AH85: Loco | AI85: Hurwal | AL85: Wehadkee | AM85: Inavale | AN85: Mountview | AO85: Conger | AP85: Eldgin | AS85: Farrell | AU85: Plano | AV85: Forkwood
A86: Ora | B86: Lithic Ustochrepts | D86: Cagle | E86: Gothenburg | H86: Waveland | J86: Darkbull | N86: Mansic | P86: Kolin | T86: Pewamo | U86: Heimdal | X86: Elkner | Y86: Sarpy | Z86: Bluewing | AC86: Gila | AD86: Raynham | AF86: Stady | AG86: Sandusky | AH86: Lula | AI86: Hyall | AL86: White Store | AM86: Jansen | AN86: Muskingum | AO86: Conlen | AP86: Elwood | AS86: Fears | AU86: Point | AV86: Fornor
A87: Orangeburg | B87: Lithic Ustorthents family | D87: Cagwin | E87: Gove | H87: Wicksburg | J87: Dashiki | N87: Manter | P87: Larose | T87: Pickford | U87: Heyder | X87: Ervide | Y87: Satanta | Z87: Boger | AC87: Gilco | AD87: Red Hook | AF87: Straw | AG87: Shelocta | AH87: Madge | AI87: Imbler | AL87: Wilkes | AM87: Java | AN87: Nella | AO87: Copita | AP87: Emigration | AS87: Firoke | AU87: Renova | AV87: Frisco
A88: Pacolet | B88: Lonti | D88: Cajon | E88: Graypoint | H88: Wulfert | J88: Dawtonia | N88: McLain | P88: Latanier | T88: Pinconning | U88: Hibbing | X88: Ethridge | Y88: Scott | Z88: Bojo | AC88: Glendale | AD88: Remsen | AF88: Svea | AG88: Spinks | AH88: Mangum | AI88: Jayar | AL88: Woodington | AM88: Keith | AN88: Nicholson | AO88: Coquat | AP88: Etchen | AS88: Flotag | AU88: Richford | AV88: Fruita
A89: Palmerdale | B89: Mabray | D89: Cajon variant | E89: Gulnare | J89: Decker | N89: Mento | P89: Lebeau | T89: Pipestone | U89: Hubbard | X89: Evanston | Y89: Sharpsburg | Z89: Bombadil | AC89: Gobernador | AD89: Rhinebeck | AF89: Swenoda | AG89: Steinsburg | AH89: Mansic | AI89: Jayel | AM89: Kennebec | AN89: Nolichucky | AO89: Cotulla | AP89: Etta | AS89: Frint | AU89: Rosholt | AV89: Gallatin
A90: Poarch | B90: Maes | D90: Calla | E90: Gunbarrel | J90: Declo | N90: Midway | P90: Libuse | T90: Plainfield | U90: Huntersville | X90: Evaro | Y90: Silver Creek | Z90: Boomstick | AC90: Goldbug | AD90: Riverhead | AF90: Temvik | AG90: Tiro | AH90: Manzano | AI90: Jett | AM90: Kirley | AN90: Nolin | AO90: Coy | AP90: Falcon | AS90: Gee | AU90: Rousseau | AV90: Gany
A91: Prim | B91: Mellenthin | D91: Calleguas | E91: Hagerman | J91: Demast | N91: Milan | P91: Loring | T91: Posen | U91: Ihlen | X91: Fairfield | Y91: Simeon | Z91: Boomtown | AC91: Graham | AD91: Rockaway | AF91: Towner | AG91: Toledo | AH91: McLain | AI91: Josset | AM91: Kolls | AN91: Ocana | AO91: Coyanosa | AP91: Farb | AS91: Georgecreek | AU91: Santiago | AV91: Garland
A92: Red Bay | B92: Mido | D92: Calvista | E92: Happle | J92: Deshler | N92: Missler | P92: Lytle | T92: Remus | U92: Indus | X92: Fairway family | Y92: Steinauer | Z92: Boulder Lake | AC92: Graypoint | AD92: Salmon | AF92: Ulen | AG92: Upshur | AH92: Miller | AI92: Keel | AM92: Kranzburg | AN92: Oktibbeha | AO92: Crockett | AP92: Fielding | AS92: Glaciers | AU92: Sayner | AV92: Garlet
A93: Riverview | B93: Millett | D93: Camarillo | E93: Harsha | J93: Disabel | N93: Monona | P93: Mahan | T93: Riddles | U93: Isanti | X93: Farland | Y93: Tassel | Z93: Bregar | AC93: Gromes | AD93: Saprists | AF93: Vallers | AG93: Venango | AH93: Minco | AI93: Kindig | AM93: Labu | AN93: Pailo | AO93: Cuthbert | AP93: Flowell | AS93: Gobar | AU93: Seaton | AV93: Glenberg
A94: Roanoke | B94: Moenkopie | D94: Camatta | E94: Haverson | J94: Donnel | N94: Muir | P94: Malbis | T94: Roscommon | U94: Itasca | X94: Farnuf | Y94: Thurman | Z94: Brinker | AC94: Gruver | AD94: Schoharie | AF94: Vang | AG94: Watertown | AH94: Mobeetie | AI94: Kirk | AM94: Lakoma | AN94: Philo | AO94: Czar | AP94: Fluetsch | AS94: Goldendale | AU94: Shiocton | AV94: Granile
A95: Saffell | B95: Mohall | D95: Campbell | E95: Hayrack | J95: Downata | N95: Munjor | P95: Mantachie | T95: Roselms | U95: Kandota | X95: Farnuf family | Y95: Tripp | Z95: Brock | AC95: Hackroy | AD95: Stockbridge | AF95: Vebar | AG95: Weinbach | AH95: Mountainburg | AI95: Klamath | AM95: Lamo | AN95: Pickwick | AO95: Dallam | AP95: Flygare | AS95: Green Bluff | AU95: Sparta | AV95: Greyback
A96: Savannah | B96: Mohave | D96: Canyoncreek | E96: Heldt | J96: Downey | N96: Naron | P96: Maurepas | T96: Rousseau | U96: Kilkenny | X96: Fergus | Y96: Uly | Z96: Brockliss | AC96: Hagerman | AD96: Tioga | AF96: Velva | AG96: Westland | AH96: Muskogee | AI96: Klicker | AM96: Lamoure | AN96: Providence | AO96: Darco | AP96: Flygare family | AS96: Grehalem | AU96: Stony and rocky land | AV96: Greys
A97: Sequatchie | B97: Mokiak | D97: Capay | E97: Herbman | J97: Dranyon | N97: New Cambria | P97: Mayhew | T97: Rubicon | U97: Kingsley | X97: Flathead | Y97: Valent | Z97: Brockliss variant | AC97: Hilken | AD97: Tunbridge | AF97: Wabek | AG97: Westmoreland | AH97: Neff | AI97: Klickitat | AM97: Lane | AN97: Ramsey | AO97: Darrouzett | AP97: Fontreen | AS97: Gwin | AU97: Tama | AV97: Grieves
A98: Shack | B98: Mollic Eutroboralfs | D98: Caperton | E98: Hesperus | J98: Drax | N98: Nixa | P98: McKamie | T98: Rudyard | U98: Klinger | X98: Flott | Y98: Valentine | Z98: Broyles | AC98: Holloman | AD98: Tunkhannock | AF98: Walsh | AG98: Wooster | AH98: Newalla | AI98: Kweo | AM98: Lantry | AN98: Reelfoot | AO98: Delfina | AP98: Forsey | AS98: Haley | AU98: Tilleda | AV98: Griffy
A99: Smithdale | B99: Momoli | D99: Capona | E99: Heterwa | J99: Driggs | N99: Norge | P99: McLaurin | T99: Sayner | U99: Koronis | X99: Floweree | Y99: Vetal | Z99: Bubus | AC99: Hollomex | AD99: Udorthents | AF99: Wayden | AH99: Nobscot | AI99: La Grande | AM99: Lehr | AN99: Roanoke | AO99: Delmita | AP99: Frandsen | AS99: Hartill | AU99: Valton | AV99: Grummit
A100: Springhill | B100: Monue | D100: Carbona | E100: Histic cryaquept | J100: Dune land | N100: Nuckolls | P100: Memphis | T100: Schoolcraft | U100: Kost | X100: Fluvaquentic Haplaquolls | Y100: Wewela | Z100: Bucan | AC100: Hondale | AD100: Unadilla | AF100: Williams | AH100: Norge | AI100: Laki | AM100: Linton | AN100: Robinsonville | AO100: Delnorte | AP100: Fridlo | AS100: Harwood | AU100: Varna | AV100: Handran
A101: State | B101: Mormon Mesa | D101: Caris | E101: Hodden | J101: Dworshak | N101: Osage | P101: Mermentau | T101: Sebewa | U101: Kranzburg | X101: Forkwood | Y101: Wildhorse | Z101: Buckaroo | AC101: Hueco | AD101: Valois | AF101: Wilton | AH101: Normangee | AI101: Langrell | AM101: Ludden | AN101: Roellen | AO101: Denhawken | AP101: Fruita | AS101: Hazeldell | AU101: Vesper | AV101: Hargreave
A102: Sumter | B102: Mota | D102: Carrizo | E102: Hooper | J102: Dystrochrepts | N102: Otero | P102: Messer | T102: Selkirk | U102: Lamo | X102: Gallatin | Y102: Wood River | Z102: Bucklake | AC102: Ildefonso | AD102: Varysburg | AF102: Yamac | AH102: Obaro | AI102: Lapine | AM102: Luton | AN102: Rosebloom | AO102: Denton | AP102: Fruitland | AS102: Hermiston | AU102: Warsaw | AV102: Harvey family
A103: Taft | B103: Nakai | D103: Carsitas | E103: Huguston | J103: Edgway | N103: Parsons | P103: Mhoon | T103: Shelldrake | U103: Lamoille | X103: Gapo | Y103: Wymore | Z103: Budihol | AC103: Ima | AD103: Venango | AF103: Zeona | AH103: Osage | AI103: Lasere | AM103: Maitland | AN103: Routon | AO103: Depcor | AP103: Gappmayer | AS103: Hesseltine | AU103: Watton | AV103: Haverdad
A104: Talbott | B104: Namon | D104: Cartago | E104: Irigul | J104: Elevator | N104: Pawnee | P104: Moreland | T104: Shoals | U104: Lamoure | X104: Garlet | Y104: Zook | Z104: Buffaran | AC104: Jalmar | AD104: Vergennes | AH104: Otero | AI104: Lastance | AM104: Marvan | AN104: Saffell | AO104: Derly | AP104: Geer | AS104: Hesson | AU104: Waymor | AV104: Havermom
A105: Talladega | B105: Naplene | D105: Casabonne | E105: Jayem | J105: Elhina | N105: Penden | P105: Morey | T105: Spinks | U105: Le Sueur | X105: Gerdrum | Z105: Bulake | AC105: Jarmillo | AD105: Vly | AH105: Panola | AI105: Latourell | AM105: Max | AN105: Sequatchie | AO105: Devol | AP105: Geertsen | AS105: Histosols | AU105: Zittau | AV105: Haverson
A106: Tallapoosa | B106: Pachic Udic Argiborolls | D106: Cassiro | E106: Juget | J106: Elijah | N106: Plevna | P106: Morganfield | T106: St. Ignace | U106: Lester | X106: Gilt Edge | Z106: Bullvaro | AC106: Jaroso | AD106: Volusia | AH106: Parsons | AI106: Laufer | AM106: Midway | AN106: Sequoia | AO106: Diboll | AP106: Genola | AS106: Hood | AV106: Havre
A107: Tatum | B107: Pahaka | D107: Casuse | E107: Julesburg | J107: Emerson | N107: Pomme | P107: Myatt | T107: Sturgeon | U107: Litchfield | X107: Gird | Z107: Bunejug | AC107: Jonale | AD107: Wallington | AH107: Plack | AI107: Laurelwood | AM107: Millboro | AN107: Sharkey | AO107: Doss | AP107: Goldrun | AS107: Hoodsport | AV107: Heath
A108: Tifton | B108: Pajarito | D108: Catnip | E108: Kebler | J108: Enochville | N108: Pond Creek | P108: Newellton | T108: Summerville | U108: Lohnes | X108: Glaciercreek | Z108: Bunky | AC108: Kermit | AD108: Wassaic | AH108: Pledger | AI108: Lauren | AM108: Minatare | AN108: Shouns | AO108: Doudle | AP108: Golsum | AS108: Horseflat | AV108: Hechtman
A109: Townley | B109: Palma | D109: Centerville | E109: Keith | J109: Fairylawn | N109: Pratt | P109: Norwood | T109: Tappan | U109: Loxley | X109: Glendive | Z109: Burnborough | AC109: Kim | AD109: Wayland | AH109: Pomme | AI109: Lawen | AM109: Minnequa | AN109: Smithdale | AO109: Dune land | AP109: Goshute family | AS109: Hoypus | AV109: Heldt
A110: Trinity | B110: Pastura | D110: Chaix | E110: Kim | J110: Fathom | N110: Quinlan | P110: Ochlockonee | T110: Tawas | U110: Maddock | X110: Golva | Z110: Burrita | AC110: Kimbrough | AD110: Wellsboro | AH110: Pond Creek | AI110: Lemonex | AM110: Mocmont | AN110: Staser | AO110: Duval | AP110: Gravier | AS110: Hydraquents | AV110: Herbman
A111: Troup | B111: Penistaja | D111: Chalco | E111: Kirtley | J111: Feltham | N111: Reading | P111: Oktibbeha | T111: Tekenink | U111: Madelia | X111: Grantsdale | Z111: Cagle | AC111: Kolar | AD111: Wethersfield | AH111: Port | AI111: Lerrow | AM111: Modale | AN111: Statler | AO111: Eastwood | AP111: Green River | AS111: Kahlotus | AV111: Hiland
A112: Tupelo | B112: Pennell | D112: Chamise | E112: Kuma | J112: Fenn | N112: Renfrow | P112: Olivier | T112: Trimountain | U112: Mahtomedi | X112: Grassvalley | Z112: Calpine | AC112: La Fonda | AD112: Williamson | AH112: Pratt | AI112: Lickskillet | AM112: Mondamin | AN112: Steens | AO112: Eckert | AP112: Greenson | AS112: Kalaloch | AV112: Hilight
A113: Uchee | B113: Pima | D113: Chanac | E113: Kutch | J113: Firth | N113: Richfield | P113: Ouachita | T113: Vestaburg | U113: Marcus variant | X113: Half Moon | Z113: Calvista | AC113: La Lande | AD113: Willowemoc | AH113: Quanah | AI113: Lobert | AM113: Moody | AN113: Stiversville | AO113: Eckrant | AP113: Greybull | AS113: Kaniksu | AV113: Hoodle
A114: Urbo | B114: Pinaleno | D114: Chaqua | E114: Lakehelen | J114: Flatstone | N114: Rosehill | P114: Oula | T114: Wasepi | U114: Markey | X114: Hamlet family | Z114: Candelaria | AC114: Laporte | AD114: Woodbridge | AH114: Quinlan | AI114: Locoda | AM114: Morton | AN114: Sugargrove | AO114: Ector | AP114: Grieves | AS114: Kapowsin | AV114: Huguston
A115: Water | B115: Piute | D115: Chawanakee | E115: Lamphier | J115: Flewsie | N115: Roxbury | P115: Patoutville | T115: Watton | U115: Marna | X115: Hanson | Z115: Canutio | AC115: Las Lucas | AD115: Worth | AH115: Renfrow | AI115: Malabon | AM115: Nahon | AN115: Sweatman | AO115: Edge | AP115: Guben | AS115: Katula | AV115: Ironbutte
A116: Whitwell | B116: Prewitt | D116: Cheadle | E116: Langspring | J116: Friedman | N116: Satanta | P116: Perry | T116: Wega | U116: Marquette | X116: Harlem | Z116: Carrizo | AC116: Latom | AH116: Roebuck | AI116: Mallory | AM116: Niobell | AN116: Talbott | AO116: Edna | AP116: Gypsum land | AS116: Kennewick | AV116: Jayem
A117: Wilcox | B117: Quintana | D117: Cherioni | E117: Larimer | J117: Furniss | N117: Sharpsburg | P117: Pineisland | T117: Zeba | U117: Marshan | X117: Harvey family | Z117: Carson | AC117: Lava flows | AH117: Ruston | AI117: Marack | AM117: Norrest | AN117: Tate | AO117: Elindio | AP117: Hagerman | AS117: Keystone | AV117: Kandaly
A118: Wynnville | B118: Romero | D118: Chesterton | E118: Las | J118: Fury | N118: Shellabarger | P118: Prentiss | U118: Marysland | X118: Haskill | Z118: Cassiro | AC118: Leadville | AH118: Sacul | AI118: Marsden | AM118: Nunn | AN118: Tellico | AO118: Elmendorf | AP118: Hanksville | AS118: Kilchis | AV118: Kearl
B119: Rudd | D119: Chinapoint | E119: Las Animas | J119: Gaib | N119: Sherm | P119: Providence | U119: Maxcreek | X119: Hauz | Z119: Catnip | AC119: Lehmans | AH119: Seminole | AI119: Maset | AM119: Oahe | AN119: Tusquitee | AO119: Eloso | AP119: Harkers | AS119: Kinney | AV119: Keeline
B120: Santo Tomas | D120: Chino | E120: Leadville | J120: Gallatin | N120: Shidler | P120: Rilla | U120: Maxfield | X120: Haverdad | Z120: Cave | AC120: Lithic Haplustolls | AH120: Severn | AI120: Mayger | AM120: Okaton | AN120: Tyler | AO120: Enterprise | AP120: Harol | AS120: Koehler | AV120: Keyner
B121: Shedado | D121: Chualar | E121: Leal | J121: Gany | N121: Smolan | P121: Ruston | U121: McPaul | X121: Haverson | Z121: Cewat | AC121: Lithic Ustochrepts | AH121: Shellabarger | AI121: Meda | AM121: Onita | AN121: Vertrees | AO121: Estacado | AP121: Harpole | AS121: Kootenai | AV121: Kishona
B122: Shelley | D122: Chuckawalla | E122: Leaps | J122: Garlet | N122: Spearville | P122: Sacul | U122: Meehan | X122: Havre | Z122: Chad | AC122: Lithic Ustorthents | AH122: Sherm | AI122: Medco | AM122: Opal | AN122: Wallen | AO122: Estes | AP122: Henefer | AS122: Kuhl | AV122: Lagall
B123: Sheppard | D123: Cibo | E123: Leighcan | J123: Gem | N123: Steedman | P123: Satsuma | U123: Menahga | X123: Havre variant | Z123: Chalco | AC123: Littlehat | AH123: Shidler | AI123: Morrow | AM123: Orella | AN123: Waverly | AO123: Eufaula | AP123: Hiko Peak | AS123: Laki | AV123: Lander
B124: Showlow | D124: Cieneba | E124: Lillings | J124: Genola | N124: Stephenville | P124: Saucier | U124: Mesaba | X124: Havrelon | Z124: Charlebois | AC124: Lonti | AH124: Spurlock | AI124: Moulton | AM124: Ottumwa | AN124: Waynesboro | AO124: Evadale | AP124: Hiko Springs family | AS124: Lates | AV124: Langspring
B125: Shumbegay | D125: Ciervo | E125: Littlehat | J125: Gooding | N125: Stoneham | P125: Savannah | U125: Millington | X125: Heath | Z125: Checkett family | AC125: Lozier | AH125: St. Paul | AI125: Mulett | AM125: Parshall | AN125: Welchland | AO125: Faddin | AP125: Holmes | AS125: Laufer | AV125: Lantonia
B126: Silkie | D126: Clear Lake | E126: Louviers | J126: Goodington | N126: Summit | P126: Scatlake | U126: Minneiska | X126: Hedoes | Z126: Chen | AC126: Luzena | AH126: Steedman | AI126: Murnen | AM126: Paunsaugunt | AN126: Whitley | AO126: Fairlie | AP126: Honeyville | AS126: Lauren | AV126: Leighcan
B127: Skos | D127: Cleghorn | E127: Luhon | J127: Grassy Butte | N127: Sutphen | P127: Scottsville | U127: Minnetonka | X127: Heldt | Z127: Chiara | AC127: Lybrook | AH127: Stephenville | AI127: Nazaton | AM127: Peever | AN127: Whitwell | AO127: Falba | AP127: Hoodle | AS127: Le Bar | AV127: Libeg
B128: Sobega | D128: Coarsegold | E128: MacFarlane | J128: Grassyridge | N128: Tabler | P128: Severn | U128: Moody | X128: Hiland | Z128: Churchill | AC128: Madurez | AH128: Stigler | AI128: Necanicum | AM128: Pierre | AN128: Wolftever | AO128: Falfurrias | AP128: Hoosan | AS128: Leahy | AV128: Lolite
B129: Sponseller | D129: Cohasset | E129: Maitland | J129: Greenleaf | N129: Taloka | P129: Sharkey | U129: Mora | X129: Hilger | Z129: Chuska | AC129: Maes | AH129: Swink | AI129: Nehalem | AM129: Poinsett | AO129: Faskin | AP129: Hovenweep | AS129: Ledow | AV129: Lostwells
B130: Springerville | D130: Cole | E130: Manvel | J130: Greenson | N130: Thurman | P130: Shatta | U130: Mottland | X130: Hillon | Z130: Cirac | AC130: Malstrom | AH130: Taloka | AI130: Neuns | AM130: Primghar | AO130: Fordtran | AP130: Indiano family | AS130: Leidl | AV130: Luhon
B131: Spudrock | D131: Colma | E131: Manzano | J131: Greys | N131: Tivoli | P131: Smithdale | U131: Moundprairie | X131: Histic Cryaquepts | Z131: Clanalpine | AC131: Mansker | AH131: Teller | AI131: Ninemile | AM131: Promise | AO131: Francitas | AP131: Ironton | AS131: Lenz | AV131: Lymanson
B132: Stout | D132: Columbia | E132: Manzanola | J132: Hampson | N132: Tully | P132: Solier | U132: Mt. Carroll | X132: Holloway | Z132: Cleavage | AC132: Manzano | AH132: Tillman | AI132: Nuss | AM132: Prosper | AO132: Freestone | AP132: Isbell | AS132: Leonardo | AV132: Marvan
B133: Strych | D133: Cometa | E133: Maybell | J133: Hanks | N133: Uly | P133: Stough | U133: Nashwauk | X133: Horseplains | Z133: Cliffdown | AC133: Marosa | AH133: Tipton | AI133: Nyssaton | AM133: Ranslo | AO133: Frelsburg | AP133: Ixian | AS133: Lickskillet | AV133: Mc cullen family
B134: Superstition | D134: Concepcion | E134: Mayflower | J134: Haplaquolls | N134: Ulysses | P134: Susquehanna | U134: Naytahwaush | X134: Hughesville | Z134: Clowfin | AC134: Menefee | AH134: Tivoli | AI134: Oakland | AM134: Razor | AO134: Frio | AP134: James Canyon family | AS134: Line | AV134: Merden
B135: Teco | D135: Conejo | E135: Maysprings | J135: Harston | N135: Valent | P135: Sweatman | U135: Nebish | X135: Irim family | Z135: Cluro | AC135: Mespun | AH135: Travessilla | AI135: Oatman | AM135: Ree | AO135: Fuller | AP135: Jebo | AS135: Linville | AV135: Merna
B136: Telescope | D136: Contra Costa | E136: Mesa | J136: Hat | N136: Valentine | P136: Tangi | U136: Nemadji | X136: Ironbutte | Z136: Coalbank | AC136: Millett | AH136: Trinity | AI136: Observation | AM136: Renshaw | AO136: Gageby | AP136: Jemez family | AS136: Lithic Xerochrepts | AV136: Michelson
B137: Thunderbird | D137: Coombs | E137: Midway | J137: Haw | N137: Vanoss | P137: Tensas | U137: Newfound | X137: Irvine | Z137: Coit | AC137: Mion | AH137: Ulysses | AI137: Olex | AM137: Rhoades | AO137: Galveston | AP137: Jericho | AS137: Logy | AV137: Midfork
B138: Timhus | D138: Coppercreek | E138: Mikim | J138: Hayeston | N138: Verdigris | P138: Toula | U138: NewGlarus | X138: Jimlake | Z138: Connel | AC138: Mollic Cryoboralfs | AH138: Verdigris | AI138: Olyic | AM138: Ridgeview | AO138: Garner | AP138: Juab | AS138: Louella | AV138: Midway
B139: Tobler | D139: Corbett | E139: Mirror | J139: Hayspur | N139: Vona | P139: Trep | U139: Normania | X139: Jocko | Z139: Coppereid | AC139: Mollic Eutroboralfs | AH139: Vernon | AI139: Outerkirk | AM139: Rockoa | AO139: Gasil | AP139: Kamack | AS139: Lynnwood | AV139: Milvar
B140: Tombstone | D140: Corning | E140: Mitchell | J140: Heathcoat | N140: Wabash | P140: Una | U140: Northcote | X140: Joplin | Z140: Corbett | AC140: Mollic Vitrandepts | AH140: Vona | AI140: Owyhee | AM140: Rosebud | AO140: Ged | AP140: Kanosh | AS140: Malaga | AV140: Miracle
B141: Toqui | D141: Corralitos | E141: Mollic Cryoboralfs | J141: Heckison | N141: Wakeen | P141: Verdun | U141: Nymore | X141: Judith | Z141: Cortez | AC141: Montoso | AH141: Weatherford | AI141: Oxwall | AM141: Roseglen | AO141: Gladewater | AP141: Kearl | AS141: Mallory | AV141: Mirror
B142: Torriorthents | D142: Cotati | E142: Morapos | J142: Heglar | N142: Waldeck | P142: Wrightsville | U142: Omega | X142: Julin | Z142: Couch | AC142: Morapos | AH142: Westview | AI142: Pearsoll | AM142: Salix | AO142: Goliad | AP142: Kearns | AS142: Mansonia | AV142: Mishak
B143: Tortugas | D143: Couch | E143: Muggins | J143: Helmer | N143: Wamego | U143: Ontonagon | X143: Kalispell | Z143: Cradlebaugh | AC143: Moriarty | AH143: Woodward | AI143: Peavine | AM143: Samsil | AO143: Gomery | AP143: Kessler | AS143: Marblecreek | AV143: Mitchell
B144: Tremant | D144: Cropley | E144: Nederland | J144: Highams | N144: Wells | U144: Oran | X144: Kalsted | Z144: Creemon | AC144: Nabor | AH144: Wynona | AI144: Pilot Rock | AM144: Sansarc | AO144: Gowen | AP144: Kidman | AS144: Martella | AV144: Mollic Cryoboralfs
B145: Tres Hermanos | D145: Damluis | E145: Needleton | J145: Hobacker | N145: Wellsford | U145: Ostrander | X145: Karloff | Z145: Crooked Creek | AC145: Nakai | AH145: Yahola | AI145: Pinehurst | AM145: Savo | AO145: Gowker | AP145: Kilburn | AS145: McCree | AV145: Moslander
B146: Trix | D146: Daphnedale variant | E146: Needleton family | J146: Holloway | N146: Westview | U146: Parent | X146: Keiser | Z146: Cropper | AC146: Nalivag | AH146: Yanush | AI146: Pipp | AM146: Serden | AO146: Grandfield | AP146: Kirkham | AS146: McDaniel | AV146: Moyerson
B147: Tubac | D147: Deadwood | E147: Neville | J147: Hondoho | N147: Woodson | U147: Peever | X147: Kevin | Z147: Crunkvar | AC147: Navajo | AH147: Zaar | AI147: Poall | AM147: Shambo | AO147: Gredge | AP147: Knutsen | AS147: McElroy | AV147: Neville
B148: Tuweep | D148: Dedrick | E148: Newfork | J148: Honeyjones | N148: Woodward | U148: Pengilly | X148: Kiev | Z148: Cutz | AC148: Nickel | AH148: Zaneis | AI148: Pokegema | AM148: Shindler | AO148: Gruver | AP148: Kovich | AS148: Metser | AV148: Nielsen
B149: Typic Cryoboralfs | D149: Delano | E149: Noden | J149: Hooverton | N149: Wymore | U149: Percy | X149: Kingspoint | Z149: Dalzell | AC149: Nogal | AI149: Poman | AM149: Shingle | AO149: Hallettsville | AP149: Krueger | AS149: Millhouse | AV149: Norbert
B150: Typic Dystrochrepts | D150: Delhi | E150: Norka | J150: Huckleberry | N150: Yahola | U150: Perella | X150: Kirby family | Z150: Davey | AC150: Oelop | AI150: Powder | AM150: Shue | AO150: Hardeman | AP150: Kyler | AS150: Minniece | AV150: Norka
B151: Typic Eutroboralfs | D151: Denure | E151: Norriston | J151: Huckridge | N151: Zaar | U151: Pierz | X151: Kiwanis | Z151: Dekoom | AC151: Olton | AI151: Powwatka | AM151: Singsaas | AO151: Harkey | AP151: Lakewin | AS151: Mippon | AV151: Oceanet
B152: Typic Haplustalfs | D152: Devada | E152: Nortez | J152: Hun | U152: Plainfield | X152: Kobar | Z152: Delp | AC152: Pajarito | AI152: Quincy | AM152: Stady | AO152: Harlingen | AP152: Leland | AS152: Molson | AV152: Orella
B153: Typic Ustochrepts | D153: Deven | E153: Numa | J153: Idamont | U153: Pomroy | X153: Korent | Z153: Devada | AC153: Panitchen | AI153: Rinearson | AM153: Straw | AO153: Hatliff | AP153: Littlehat | AS153: Montborne | AV153: Oro Fino
B154: Typic Ustorthents | D154: Diablo | E154: Nunn | J154: Ireland | U154: Port Byron | X154: Kremlin | Z154: Devils | AC154: Partri | AI154: Ritzville | AM154: Swenoda | AO154: Heatly | AP154: Lizzant | AS154: Moscow | AV154: Orpha
B155: Udic Ustochrepts | D155: Dibble | E155: Olney | J155: Islandpark | U155: Primghar | X155: Lake creek | Z155: Devilsgait | AC155: Pastura | AI155: Rubble land | AM155: Tally | AO155: Hebbronville | AP155: Lodar family | AS155: Nack | AV155: Otero
B156: Valencia | D156: Dierssen | E156: Ordway | J156: Itca | U156: Racine | X156: Lallie | Z156: Dianev | AC156: Patricia | AI156: Ruch | AM156: Temvik | AO156: Heiden | AP156: Losee family | AS156: Naff | AV156: Owen Creek
B157: Vertic Argiborolls | D157: Dinuba | E157: Otero | J157: Jeru | U157: Readlyn | X157: Lambert | Z157: Disabel | AC157: Pecos | AI157: Ruckles | AM157: Tilford | AO157: Hensley | AP157: Lucky Star | AS157: Naxing | AV157: Pancheri
B158: Vertic Haplustalfs | D158: Diyou | E158: Owen Creek | J158: Jimlake | U158: Redby | X158: Lambeth | Z158: Donna | AC158: Pena | AI158: Sagemoor | AM158: Trebor | AO158: Hidalgo | AP158: Lusetti | AS158: Neconda | AV158: Passcreek
B159: Vibo | D159: Donica | E159: Pagosa | J159: Jimsage | U159: Regal | X159: Lamedeer | Z159: Dorper | AC159: Penasco | AI159: Sauvie | AM159: Tuthill | AO159: Hindes | AP159: Mack | AS159: Neppel | AV159: Patent
B160: Virgin Peak | D160: Dosamigos | E160: Panitchen | J160: Jipper | U160: Reiner | X160: Lap | Z160: Dosie | AC160: Penistaja | AI160: Searles | AM160: Twilight | AO160: Hoban | AP160: Manila | AS160: Nevine | AV160: Paulson
B161: White House | D161: Dospalos | E161: Parlin | J161: Johnson | U161: Renshaw | X161: Larry | Z161: Doten | AC161: Persayo | AI161: Segundo | AM161: Valent | AO161: Hockley | AP161: Mayoworth | AS161: Nevo | AV161: Paunsaugunt
B162: Whitlock | D162: Dotta | E162: Peeler | J162: Jovine | U162: Rifle | X162: Lawther | Z162: Downeyville | AC162: Peso | AI162: Serpentano | AM162: Valentine | AO162: Hodgins | AP162: McLoughlin | AS162: Newbell | AV162: Pena
B163: Why | D163: Dubakella | E163: Pendergrass | J163: Jughandle | U163: Rockton | X163: Leavitt | Z163: Duffer | AC163: Philder | AI163: Shanahan | AM163: Vanocker | AO163: Holloman | AP163: Mellenthin | AS163: Nighthawk | AV163: Pendergrass
B164: Winkel | D164: Dumps | E164: Pescar | J164: Jugson | U164: Rockwell | X164: Libeg | Z164: Eaglepass | AC164: Pinavetes | AI164: Shano | AM164: Vebar | AO164: Hopco | AP164: Mendon | AS164: Nims | AV164: Persayo
B165: Winona | D165: Dune land | E165: Piceance | J165: Justesen | U165: Rosholt | X165: Lisam | Z165: Easychair | AC165: Pinitos | AI165: Sherar | AM165: Vienna | AO165: Houla | AP165: Mespun | AS165: Oakes | AV165: Pesmore
B166: Yahana | D166: Dunnlake | E166: Pierian | J166: Kanlee | U166: Rosy | X166: Litimber | Z166: Enko | AC166: Pinon | AI166: Shoofly | AM166: Wadena | AO166: Houston Black | AP166: Middle | AS166: Ocosta | AV166: Pierre
B167: Yaqui | D167: Duzel | E167: Platner | J167: Katseanes | U167: Rothsay | X167: Loberg | Z167: Fallon | AC167: Pintura | AI167: Simas | AM167: Wayden | AO167: Hueco | AP167: Mido | AS167: Onyx | AV167: Platsher
B168: Ziegler | D168: Eaglelake | E168: Pojoaque | J168: Kearl | U168: Rushmore | X168: Lohler | Z168: Fulstone | AC168: Pirodel | AI168: Skipanon | AM168: Wendte | AO168: Idabel | AP168: Mikim | AS168: Opnish | AV168: Poposhia
B169: Zukan | D169: Eastable | E169: Potts | J169: Kearns | U169: Sac | X169: Lolo | Z169: Gabbvally | AC169: Plack | AI169: Snaker | AM169: Wentworth | AO169: Ijam | AP169: Mikim family | AS169: Ottmar | AV169: Prow
D170: Edminster | E170: Quander | J170: Kecko | U170: Santiago | X170: Lolopeak | Z170: Gabica | AC170: Pojoaque | AI170: Snell | AM170: Weta | AO170: Ima | AP170: Mill Hollow | AS170: Owhi | AV170: Rallod
D171: Elder | E171: Randman | J171: Kidman | U171: Sargeant | X171: Lone Rock | Z171: Geer | AC171: Poquita | AI171: Spangenburg | AM171: Wewela | AO171: Inez | AP171: Milok | AS171: Ozette | AV171: Recluse
D172: Elmira | E172: Ratake | J172: Klickson | U172: Sartell | X172: Lonepine | Z172: Glean | AC172: Portales | AI172: Steiger | AM172: Williams | AO172: Iuka | AP172: Miracle | AS172: Pachneum | AV172: Redfeather
D173: Empire | E173: Raton | J173: Koffgo | U173: Seaton | X173: Lonna | Z173: Golsum | AC173: Prelo | AI173: Tallowbox | AM173: Winler | AO173: Ivanhoe | AP173: Mirror | AS173: Palix | AV173: Redrob
D174: Escondido | E174: Razor | J174: Kooskia | U174: Shakopee | X174: Macabre | Z174: Grassval | AC174: Prieta | AI174: Tatouche | AM174: Yamac | AO174: Jalmar | AP174: Mirror Lake | AS174: Palouse | AV174: Redthayne
D175: Esro | E175: Razorba family | J175: Kootenai | U175: Singsaas | X175: Macar | Z175: Gravier | AC175: Pullman | AI175: Telemon | AM175: Yecross | AO175: Jimenez | AP175: Mivida | AS175: Pangborn | AV175: Renohill
D176: Etsel | E176: Redfeather | J176: Koppes | U176: Skyberg | X176: Maginnis | Z176: Graylock | AC176: Pyote | AI176: Templeton | AM176: Yegen | AO176: Kaman | AP176: Moenkopie | AS176: Peola | AV176: Ridge
D177: Etsel family | E177: Renohill | J177: Kruse | U177: Snellman | X177: Manning | Z177: Grina | AC177: Quay | AI177: Tolius | AM177: Zeona | AO177: Kamay | AP177: Moffat | AS177: Pheeney | AV177: Rock River
D178: Euer | E178: Renohill variant | J178: Kuhl | U178: Sol | X178: Marcott | Z178: Haar | AC178: Querencia | AI178: Tolo | AO178: Katy | AP178: Monroe | AS178: Philippa | AV178: Rockoa
D179: Exel | E179: Rentsac | J179: Lacy | U179: Sparta | X179: Marias | Z179: Hackwood | AC179: Rance | AI179: Tulebasin | AO179: Kaufman | AP179: Monticello | AS179: Pilchuck | AV179: Rogert
D180: Fagan | E180: Richfield | J180: Lag | U180: Spicer | X180: Martinsdale | Z180: Handpah | AC180: Ratliff | AI180: Turbyfill | AO180: Kavett | AP180: Monue | AS180: Pird | AV180: Romberg
D181: Fancher | E181: Rizno | J181: Lagall | U181: Spooner | X181: Marvan | Z181: Hapgood | AC181: Raton | AI181: Valsetz | AO181: Keithville | AP181: Morval family | AS181: Pogue | AV181: Rosebud
D182: Feliz | E182: Rock River | J182: Lankbush | U182: Suomi | X182: Maurice | Z182: Hawsley | AC182: Reagan | AI182: Waha | AO182: Kimbrough | AP182: Mota | AS182: Poulsbo | AV182: Roughlock
D183: Felton | E183: Rogert | J183: Lanoak | U183: Sverdrup | X183: Mayoworth | Z183: Haybourne | AC183: Reakor | AI183: Walla Walla | AO183: Kirbyville | AP183: Motoqua | AS183: Prather | AV183: Roxal
D184: Ferndale | E184: Romberg | J184: Lantonia | U184: Tallula | X184: McCollum | Z184: Haypress | AC184: Rednun | AI184: Wanoga | AO184: Kirvin | AP184: Motto | AS184: Prosser | AV184: Rubble land
D185: Fiddyment | E185: Rosebud | J185: LaSauses variant | U185: Tara | X185: McKenzie | Z185: Hayspur | AC185: Redona | AI185: Wapato | AO185: Knippa | AP185: Mountainville | AS185: Queets | AV185: Ryan Park
D186: Flanly | E186: Routt | J186: Latahco | U186: Taylor | X186: McRae | Z186: Hobog | AC186: Redondo | AI186: Warden | AO186: Knoco | AP186: Nakai | AS186: Quincy | AV186: Samday
D187: Fluvaquentic Haplaquolls | E187: Rubble land | J187: Latigo | U187: Timula | X187: Meadowcreek | Z187: Home Camp | AC187: Reeves | AI187: Watama | AO187: Konawa | AP187: Namon | AS187: Raught | AV187: Satanta
D188: Forward variant | E188: Ruedloff | J188: Latour | U188: Toimi | X188: Michelson | Z188: Humboldt | AC188: Regnier | AI188: Waterbury | AO188: Konsil | AP188: Namon family | AS188: Ret | AV188: Shadow
D189: Francisquito | E189: San Arcacio | J189: Lava flows | U189: Tonkey | X189: Midway | Z189: Hunnton | AC189: Rock River | AI189: Wedderburn | AO189: Koury | AP189: Naplene | AS189: Ritzville | AV189: Shingle
D190: Franktown | E190: Satanta | J190: Lenz | U190: Udolpho | X190: Mikesell | Z190: Hymas | AC190: Rombo | AI190: Willhill | AO190: Krum | AP190: Nebeker | AS190: Riverwash | AV190: Sinkson
D191: Fresno | E191: Schamber | J191: Levelton | U191: Ulen | X191: Minesinger | Z191: Itca | AC191: Roques | AI191: Wind River | AO191: LaCerda | AP191: Nehar | AS191: Roche | AV191: Sodawells
D192: Gabbvally | E192: Schofield | J192: Libeg | U192: Vallers | X192: Mission | Z192: Ixian | AC192: Royosa | AI192: Wingville | AO192: Lajitas | AP192: Nevu family | AS192: Roslyn | AV192: Solak
D193: Gabica | E193: Scott | J193: Linville | U193: Ves | X193: Mitten | Z193: Izar | AC193: Sandoval | AI193: Woodburn | AO193: Lake charles | AP193: Northdale | AS193: Roxer | AV193: Spearfish
D194: Galeppi | E194: Scout | J194: Lithic Cryorthents | U194: Wadena | X194: Mollman | Z194: James Canyon variant | AC194: Santa Fe | AI194: Zola | AO194: Langtry | AP194: Notter | AS194: Rubble land | AV194: Starley
D195: Garces | E195: Sedillo | J195: Lithic Cryumbrepts | U195: Wadenill | X195: Monad | Z195: Jarboe | AC195: Scholle | AI195: Zorravista | AO195: Laredo | AP195: Ocala | AS195: Safety | AV195: Starman
D196: Gaviota | E196: Sheek | J196: Lithic Haploxerolls | U196: Waldorf | X196: Monida | Z196: Jaybee | AC196: Sedillo | AI196: Zygore | AO196: Laska | AP196: Ocambee | AS196: Sagehill | AV196: Stunner
D197: Gazelle | E197: Shule | J197: Little Wood | U197: Warba | X197: Moyerson | Z197: Jubilee | AC197: Sheppard | AO197: Latch | AP197: Palma | AS197: Sagemoor | AV197: Sunup
D198: Gepford | E198: Singerton | J198: Lochsa | U198: Watkins | X198: Musselshell | Z198: Kanosh | AC198: Shiprock | AO198: Latina | AP198: Pancheri | AS198: Sauvie | AV198: Sweatbee
D199: Gerle | E199: Sixmile | J199: Logan | U199: Waubay | X199: Neen | Z199: Kawich | AC199: Silver | AO199: Lattas | AP199: Pando family | AS199: Scamman | AV199: Taglake
D200: Gilroy | E200: Skein | J200: Lolalita | U200: Waukee | X200: Neldore | Z200: Keefa | AC200: Simona | AO200: Leeray | AP200: Parleys | AS200: Schawana | AV200: Taluce
... 283 more rows

Sheet State_SoilC (hidden)
A1: State/Soil/Landcover | B1: Pixel Count | C1: State Abbreviation | D1: State Name | E1: NLCD land cover class | F1: STATSGO compname | G1: AREA (m2) | H1: MEAN soil C (g/m2) | I1: MEAN soil C (t C/ha) | J1: Dominant IPCC soil class
A2: AL/Albertville/Cropland | B2: 5 | C2: AL | D2: Alabama | E2: Cropland | F2: Albertville | G2: 5000000 | H2: 2300.53 | I2: 23.0053 | J2: HAC
A3: AL/Allen/Cropland | B3: 103 | C3: AL | D3: Alabama | E3: Cropland | F3: Allen | G3: 103000000 | H3: 2815.54 | I3: 28.1554 | J3: HAC
A4: AL/Annemaine/Cropland | B4: 3 | C4: AL | D4: Alabama | E4: Cropland | F4: Annemaine | G4: 3000000 | H4: 3268.1 | I4: 32.681 | J4: HAC
A5: AL/Arundel/Cropland | B5: 5 | C5: AL | D5: Alabama | E5: Cropland | F5: Arundel | G5: 5000000 | H5: 1756.28 | I5: 17.5628 | J5: Wetlands
A6: AL/Augusta/Cropland | B6: 13 | C6: AL | D6: Alabama | E6: Cropland | F6: Augusta | G6: 13000000 | H6: 2264.62 | I6: 22.6462 | J6: LAC
A7: AL/Axis/Cropland | B7: 5 | C7: AL | D7: Alabama | E7: Cropland | F7: Axis | G7: 5000000 | H7: 13294.2 | I7: 132.942 | J7: HAC
A8: AL/Bama/Cropland | B8: 61 | C8: AL | D8: Alabama | E8: Cropland | F8: Bama | G8: 61000000 | H8: 2013.34 | I8: 20.1334 | J8: Wetlands
A9: AL/Barfield/Cropland | B9: 4 | C9: AL | D9: Alabama | E9: Cropland | F9: Barfield | G9: 4000000 | H9: 2004.59 | I9: 20.0459 | J9: HAC
A10: AL/Benndale/Cropland | B10: 8 | C10: AL | D10: Alabama | E10: Cropland | F10: Benndale | G10: 8000000 | H10: 2275.37 | I10: 22.7537 | J10: HAC
A11: AL/Bewleyville/Cropland | B11: 13 | C11: AL | D11: Alabama | E11: Cropland | F11: Bewleyville | G11: 13000000 | H11: 2493.86 | I11: 24.9386 | J11: HAC
A12: AL/Bibb/Cropland | B12: 81 | C12: AL | D12: Alabama | E12: Cropland | F12: Bibb | G12: 81000000 | H12: 2860.45 | I12: 28.6045 | J12: Wetlands
A13: AL/Binnsville/Cropland | B13: 1 | C13: AL | D13: Alabama | E13: Cropland | F13: Binnsville | G13: 1000000 | H13: 1305.61 | I13: 13.0561 | J13: HAC
A14: AL/Blanton/Cropland | B14: 4 | C14: AL | D14: Alabama | E14: Cropland | F14: Blanton | G14: 4000000 | H14: 2658.21 | I14: 26.5821 | J14: HAC
A15: AL/Bodine/Cropland | B15: 89 | C15: AL | D15: Alabama | E15: Cropland | F15: Bodine | G15: 89000000 | H15: 2371.97 | I15: 23.7197 | J15: LAC
A16: AL/Bonifay/Cropland | B16: 24 | C16: AL | D16: Alabama | E16: Cropland | F16: Bonifay | G16: 24000000 | H16: 3113.63 | I16: 31.1363 | J16: HAC
A17: AL/Boswell/Cropland | B17: 13 | C17: AL | D17: Alabama | E17: Cropland | F17: Boswell | G17: 13000000 | H17: 3947.95 | I17: 39.4795 | J17: LAC
A18: AL/Brantley/Cropland | B18: 19 | C18: AL | D18: Alabama | E18: Cropland | F18: Brantley | G18: 19000000 | H18: 2779.7 | I18: 27.797 | J18: HAC
A19: AL/Bude/Cropland | B19: 1 | C19: AL | D19: Alabama | E19: Cropland | F19: Bude | G19: 1000000 | H19: 2254.72 | I19: 22.5472 | J19: HAC
A20: AL/Cahaba/Cropland | B20: 71 | C20: AL | D20: Alabama | E20: Cropland | F20: Cahaba | G20: 71000000 | H20: 3270.84 | I20: 32.7084 | J20: HAC
A21: AL/Canton Bend/Cropland | B21: 124 | C21: AL | D21: Alabama | E21: Cropland | F21: Canton Bend | G21: 124000000 | H21: 2888.58 | I21: 28.8858 | J21: HAC
A22: AL/Cecil/Cropland | B22: 1 | C22: AL | D22: Alabama | E22: Cropland | F22: Cecil | G22: 1000000 | H22: 1133.8 | I22: 11.338 | J22: HAC
A23: AL/Chenneby/Cropland | B23: 192 | C23: AL | D23: Alabama | E23: Cropland | F23: Chenneby | G23: 192000000 | H23: 3227.2 | I23: 32.272 | J23: HAC
A24: AL/Chewacla/Cropland | B24: 75 | C24: AL | D24: Alabama | E24: Cropland | F24: Chewacla | G24: 75000000 | H24: 2768.44 | I24: 27.6844 | J24: HAC
A25: AL/Chisca/Cropland | B25: 8 | C25: AL | D25: Alabama | E25: Cropland | F25: Chisca | G25: 8000000 | H25: 2440.91 | I25: 24.4091 | J25: HAC
A26: AL/Choccolocco/Cropland | B26: 3 | C26: AL | D26: Alabama | E26: Cropland | F26: Choccolocco | G26: 3000000 | H26: 1633.27 | I26: 16.3327 | J26: HAC
A27: AL/Clarendon/Cropland | B27: 15 | C27: AL | D27: Alabama | E27: Cropland | F27: Clarendon | G27: 15000000 | H27: 2805.74 | I27: 28.0574 | J27: HAC
A28: AL/Colbert/Cropland | B28: 116 | C28: AL | D28: Alabama | E28: Cropland | F28: Colbert | G28: 116000000 | H28: 2574.06 | I28: 25.7406 | J28: HAC
A29: AL/Conasauga/Cropland | B29: 50 | C29: AL | D29: Alabama | E29: Cropland | F29: Conasauga | G29: 50000000 | H29: 2237.21 | I29: 22.3721 | J29: HAC
A30: AL/Congaree/Cropland | B30: 135 | C30: AL | D30: Alabama | E30: Cropland | F30: Congaree | G30: 135000000 | H30: 2720.79 | I30: 27.2079 | J30: HAC
A31: AL/Cowarts/Cropland | B31: 88 | C31: AL | D31: Alabama | E31: Cropland | F31: Cowarts | G31: 88000000 | H31: 2222.31 | I31: 22.2231 | J31: LAC
A32: AL/Cunningham/Cropland | B32: 3 | C32: AL | D32: Alabama | E32: Cropland | F32: Cunningham | G32: 3000000 | H32: 1499.57 | I32: 14.9957 | J32: HAC
A33: AL/Decatur/Cropland | B33: 931 | C33: AL | D33: Alabama | E33: Cropland | F33: Decatur | G33: 931000000 | H33: 2463.75 | I33: 24.6375 | J33: LAC
A34: AL/Dewey/Cropland | B34: 105 | C34: AL | D34: Alabama | E34: Cropland | F34: Dewey | G34: 105000000 | H34: 2010.69 | I34: 20.1069 | J34: HAC
A35: AL/Dickson/Cropland | B35: 341 | C35: AL | D35: Alabama | E35: Cropland | F35: Dickson | G35: 341000000 | H35: 2401.31 | I35: 24.0131 | J35: LAC
A36: AL/Dorovan/Cropland | B36: 46 | C36: AL | D36: Alabama | E36: Cropland | F36: Dorovan | G36: 46000000 | H36: 3132.25 | I36: 31.3225 | J36: LAC
A37: AL/Dothan/Cropland | B37: 1308 | C37: AL | D37: Alabama | E37: Cropland | F37: Dothan | G37: 1308000000 | H37: 2393.16 | I37: 23.9316 | J37: LAC
A38: AL/Escambia/Cropland | B38: 4 | C38: AL | D38: Alabama | E38: Cropland | F38: Escambia | G38: 4000000 | H38: 5719.84 | I38: 57.1984 | J38: LAC
A39: AL/Etowah/Cropland | B39: 169 | C39: AL | D39: Alabama | E39: Cropland | F39: Etowah | G39: 169000000 | H39: 2896.49 | I39: 28.9649 | J39: LAC
A40: AL/Faceville/Cropland | B40: 2 | C40: AL | D40: Alabama | E40: Cropland | F40: Faceville | G40: 2000000 | H40: 3236.09 | I40: 32.3609 | J40: Wetlands
A41: AL/Flomaton/Cropland | B41: 8 | C41: AL | D41: Alabama | E41: Cropland | F41: Flomaton | G41: 8000000 | H41: 1526.85 | I41: 15.2685 | J41: HAC
A42: AL/Florala/Cropland | B42: 10 | C42: AL | D42: Alabama | E42: Cropland | F42: Florala | G42: 10000000 | H42: 2198.66 | I42: 21.9866 | J42: HAC
A43: AL/Fripp/Cropland | B43: 2 | C43: AL | D43: Alabama | E43: Cropland | F43: Fripp | G43: 2000000 | H43: 2334.18 | I43: 23.3418 | J43: HAC
A44: AL/Fullerton/Cropland | B44: 138 | C44: AL | D44: Alabama | E44: Cropland | F44: Fullerton | G44: 138000000 | H44: 2982.99 | I44: 29.8299 | J44: HAC
A45: AL/Gaylesville/Cropland | B45: 19 | C45: AL | D45: Alabama | E45: Cropland | F45: Gaylesville | G45: 19000000 | H45: 2956.67 | I45: 29.5667 | J45: Wetlands
A46: AL/Gorgas/Cropland | B46: 41 | C46: AL | D46: Alabama | E46: Cropland | F46: Gorgas | G46: 41000000 | H46: 2223.18 | I46: 22.2318 | J46: LAC
A47: AL/Greenville/Cropland | B47: 358 | C47: AL | D47: Alabama | E47: Cropland | F47: Greenville | G47: 358000000 | H47: 3075.73 | I47: 30.7573 | J47: HAC
A48: AL/Hartsells/Cropland | B48: 471 | C48: AL | D48: Alabama | E48: Cropland | F48: Hartsells | G48: 471000000 | H48: 2335.25 | I48: 23.3525 | J48: HAC
A49: AL/Hector/Cropland | B49: 4 | C49: AL | D49: Alabama | E49: Cropland | F49: Hector | G49: 4000000 | H49: 2665.31 | I49: 26.6531 | J49: LAC
A50: AL/Holston/Cropland | B50: 92 | C50: AL | D50: Alabama | E50: Cropland | F50: Holston | G50: 92000000 | H50: 2115.02 | I50: 21.1502 | J50: HAC
A51: AL/Jones/Cropland | B51: 94 | C51: AL | D51: Alabama | E51: Cropland | F51: Jones | G51: 94000000 | H51: 2163.07 | I51: 21.6307 | J51: HAC
A52: AL/Kalmia/Cropland | B52: 32 | C52: AL | D52: Alabama | E52: Cropland | F52: Kalmia | G52: 32000000 | H52: 2735.35 | I52: 27.3535 | J52: HAC
A53: AL/Kipling/Cropland | B53: 31 | C53: AL | D53: Alabama | E53: Cropland | F53: Kipling | G53: 31000000 | H53: 2394.33 | I53: 23.9433 | J53: HAC
A54: AL/Kolomoki/Cropland | B54: 18 | C54: AL | D54: Alabama | E54: Cropland | F54: Kolomoki | G54: 18000000 | H54: 2544.02 | I54: 25.4402 | J54: HAC
A55: AL/Leesburg/Cropland | B55: 12 | C55: AL | D55: Alabama | E55: Cropland | F55: Leesburg | G55: 12000000 | H55: 2790.49 | I55: 27.9049 | J55: HAC
A56: AL/Lexington/Cropland | B56: 1 | C56: AL | D56: Alabama | E56: Cropland | F56: Lexington | G56: 1000000 | H56: 2778.47 | I56: 27.7847 | J56: LAC
A57: AL/Linker/Cropland | B57: 2 | C57: AL | D57: Alabama | E57: Cropland | F57: Linker | G57: 2000000 | H57: 3179.84 | I57: 31.7984 | J57: HAC
A58: AL/Lucedale/Cropland | B58: 186 | C58: AL | D58: Alabama | E58: Cropland | F58: Lucedale | G58: 186000000 | H58: 1967.9 | I58: 19.679 | J58: HAC
A59: AL/Luverne/Cropland | B59: 410 | C59: AL | D59: Alabama | E59: Cropland | F59: Luverne | G59: 410000000 | H59: 2413.32 | I59: 24.1332 | J59: LAC
A60: AL/Lyerly/Cropland | B60: 7 | C60: AL | D60: Alabama | E60: Cropland | F60: Lyerly | G60: 7000000 | H60: 3201.61 | I60: 32.0161 | J60: LAC
A61: AL/Mantachie/Cropland | B61: 141 | C61: AL | D61: Alabama | E61: Cropland | F61: Mantachie | G61: 141000000 | H61: 2789.49 | I61: 27.8949 | J61: HAC
A62: AL/McQueen/Cropland | B62: 64 | C62: AL | D62: Alabama | E62: Cropland | F62: McQueen | G62: 64000000 | H62: 2824.27 | I62: 28.2427 | J62: HAC
A63: AL/Minvale/Cropland | B63: 32 | C63: AL | D63: Alabama | E63: Cropland | F63: Minvale | G63: 32000000 | H63: 2150.91 | I63: 21.5091 | J63: HAC
A64: AL/Montevallo/Cropland | B64: 51 | C64: AL | D64: Alabama | E64: Cropland | F64: Montevallo | G64: 51000000 | H64: 2058.03 | I64: 20.5803 | J64: HAC
A65: AL/Nauvoo/Cropland | B65: 14 | C65: AL | D65: Alabama | E65: Cropland | F65: Nauvoo | G65: 14000000 | H65: 2104.36 | I65: 21.0436 | J65: HAC
A66: AL/Nella/Cropland | B66: 148 | C66: AL | D66: Alabama | E66: Cropland | F66: Nella | G66: 148000000 | H66: 2200.48 | I66: 22.0048 | J66: HAC
A67: AL/Notcher/Cropland | B67: 15 | C67: AL | D67: Alabama | E67: Cropland | F67: Notcher | G67: 15000000 | H67: 3112.9 | I67: 31.129 | J67: HAC
A68: AL/Ochlockonee/Cropland | B68: 4 | C68: AL | D68: Alabama | E68: Cropland | F68: Ochlockonee | G68: 4000000 | H68: 3760.08 | I68: 37.6008 | J68: HAC
A69: AL/Oktibbeha/Cropland | B69: 58 | C69: AL | D69: Alabama | E69: Cropland | F69: Oktibbeha | G69: 58000000 | H69: 2783.87 | I69: 27.8387 | J69: LAC
A70: AL/Ora/Cropland | B70: 6 | C70: AL | D70: Alabama | E70: Cropland | F70: Ora | G70: 6000000 | H70: 2490.06 | I70: 24.9006 | J70: Wetlands
A71: AL/Orangeburg/Cropland | B71: 407 | C71: AL | D71: Alabama | E71: Cropland | F71: Orangeburg | G71: 407000000 | H71: 2047.59 | I71: 20.4759 | J71: HAC
A72: AL/Pacolet/Cropland | B72: 3 | C72: AL | D72: Alabama | E72: Cropland | F72: Pacolet | G72: 3000000 | H72: 3012.67 | I72: 30.1267 | J72: HAC
A73: AL/Palmerdale/Cropland | B73: 1 | C73: AL | D73: Alabama | E73: Cropland | F73: Palmerdale | G73: 1000000 | H73: 2428.33 | I73: 24.2833 | J73: LAC
A74: AL/Poarch/Cropland | B74: 146 | C74: AL | D74: Alabama | E74: Cropland | F74: Poarch | G74: 146000000 | H74: 3640.93 | I74: 36.4093 | J74: HAC
A75: AL/Red Bay/Cropland | B75: 12 | C75: AL | D75: Alabama | E75: Cropland | F75: Red Bay | G75: 12000000 | H75: 2184.88 | I75: 21.8488 | J75: HAC
A76: AL/Roanoke/Cropland | B76: 14 | C76: AL | D76: Alabama | E76: Cropland | F76: Roanoke | G76: 14000000 | H76: 2260.06 | I76: 22.6006 | J76: Wetlands
A77: AL/Saffell/Cropland | B77: 15 | C77: AL | D77: Alabama | E77: Cropland | F77: Saffell | G77: 15000000 | H77: 2494.16 | I77: 24.9416 | J77: HAC
A78: AL/Savannah/Cropland | B78: 105 | C78: AL | D78: Alabama | E78: Cropland | F78: Savannah | G78: 105000000 | H78: 2823.94 | I78: 28.2394 | J78: HAC
A79: AL/Sequatchie/Cropland | B79: 4 | C79: AL | D79: Alabama | E79: Cropland | F79: Sequatchie | G79: 4000000 | H79: 2246.19 | I79: 22.4619 | J79: HAC
A80: AL/Shack/Cropland | B80: 1 | C80: AL | D80: Alabama | E80: Cropland | F80: Shack | G80: 1000000 | H80: 952.454 | I80: 9.52454 | J80: HAC
A81: AL/Smithdale/Cropland | B81: 425 | C81: AL | D81: Alabama | E81: Cropland | F81: Smithdale | G81: 425000000 | H81: 2733.21 | I81: 27.3321 | J81: HAC
A82: AL/Springhill/Cropland | B82: 49 | C82: AL | D82: Alabama | E82: Cropland | F82: Springhill | G82: 49000000 | H82: 2238.78 | I82: 22.3878 | J82: HAC
A83: AL/Sumter/Cropland | B83: 391 | C83: AL | D83: Alabama | E83: Cropland | F83: Sumter | G83: 391000000 | H83: 3492.35 | I83: 34.9235 | J83: HAC
A84: AL/Taft/Cropland | B84: 20 | C84: AL | D84: Alabama | E84: Cropland | F84: Taft | G84: 20000000 | H84: 2745.06 | I84: 27.4506 | J84: HAC
A85: AL/Talbott/Cropland | B85: 31 | C85: AL | D85: Alabama | E85: Cropland | F85: Talbott | G85: 31000000 | H85: 2346.03 | I85: 23.4603 | J85: HAC
A86: AL/Talladega/Cropland | B86: 2 | C86: AL | D86: Alabama | E86: Cropland | F86: Talladega | G86: 2000000 | H86: 1890.12 | I86: 18.9012 | J86: LAC
A87: AL/Tallapoosa/Cropland | B87: 4 | C87: AL | D87: Alabama | E87: Cropland | F87: Tallapoosa | G87: 4000000 | H87: 1670.63 | I87: 16.7063 | J87: HAC
A88: AL/Tatum/Cropland | B88: 5 | C88: AL | D88: Alabama | E88: Cropland | F88: Tatum | G88: 5000000 | H88: 1441.04 | I88: 14.4104 | J88: HAC
A89: AL/Tifton/Cropland | B89: 51 | C89: AL | D89: Alabama | E89: Cropland | F89: Tifton | G89: 51000000 | H89: 3643.03 | I89: 36.4303 | J89: HAC
A90: AL/Townley/Cropland | B90: 29 | C90: AL | D90: Alabama | E90: Cropland | F90: Townley | G90: 29000000 | H90: 1996.7 | I90: 19.967 | J90: HAC
A91: AL/Trinity/Cropland | B91: 5 | C91: AL | D91: Alabama | E91: Cropland | F91: Trinity | G91: 5000000 | H91: 3507.27 | I91: 35.0727 | J91: LAC
A92: AL/Troup/Cropland | B92: 824 | C92: AL | D92: Alabama | E92: Cropland | F92: Troup | G92: 824000000 | H92: 2695.06 | I92: 26.9506 | J92: HAC
A93: AL/Tupelo/Cropland | B93: 5 | C93: AL | D93: Alabama | E93: Cropland | F93: Tupelo | G93: 5000000 | H93: 2065.45 | I93: 20.6545 | J93: Wetlands
A94: AL/Uchee/Cropland | B94: 17 | C94: AL | D94: Alabama | E94: Cropland | F94: Uchee | G94: 17000000 | H94: 3823.47 | I94: 38.2347 | J94: HAC
A95: AL/Urbo/Cropland | B95: 28 | C95: AL | D95: Alabama | E95: Cropland | F95: Urbo | G95: 28000000 | H95: 2660.68 | I95: 26.6068 | J95: HAC
A96: AL/Water/Cropland | B96: 32 | C96: AL | D96: Alabama | E96: Cropland | F96: Water | G96: 32000000 | H96: 2199.86 | I96: 21.9986 | J96: HAC
A97: AL/Whitwell/Cropland | B97: 2 | C97: AL | D97: Alabama | E97: Cropland | F97: Whitwell | G97: 2000000 | H97: 1435.6 | I97: 14.356 | J97: Wetlands
A98: AL/Wilcox/Cropland | B98: 11 | C98: AL | D98: Alabama | E98: Cropland | F98: Wilcox | G98: 11000000 | H98: 2409.85 | I98: 24.0985 | J98: HAC
A99: AL/Wynnville/Cropland | B99: 24 | C99: AL | D99: Alabama | E99: Cropland | F99: Wynnville | G99: 24000000 | H99: 3114.21 | I99: 31.1421 | J99: HAC
A100: AL/Albertville/Grassland | B100: 43 | C100: AL | D100: Alabama | E100: Grassland | F100: Albertville | G100: 43000000 | H100: 2025.91 | I100: 20.2591 | J100: HAC
A101: AL/Allen/Grassland | B101: 456 | C101: AL | D101: Alabama | E101: Grassland | F101: Allen | G101: 456000000 | H101: 2764.21 | I101: 27.6421 | J101: HAC
A102: AL/Annemaine/Grassland | B102: 4 | C102: AL | D102: Alabama | E102: Grassland | F102: Annemaine | G102: 4000000 | H102: 3853.9 | I102: 38.539 | J102: HAC
A103: AL/Appling/Grassland | B103: 305 | C103: AL | D103: Alabama | E103: Grassland | F103: Appling | G103: 305000000 | H103: 1874.82 | I103: 18.7482 | J103: HAC
A104: AL/Arundel/Grassland | B104: 72 | C104: AL | D104: Alabama | E104: Grassland | F104: Arundel | G104: 72000000 | H104: 1442.28 | I104: 14.4228 | J104: Wetlands
A105: AL/Augusta/Grassland | B105: 5 | C105: AL | D105: Alabama | E105: Grassland | F105: Augusta | G105: 5000000 | H105: 2812.91 | I105: 28.1291 | J105: HAC
A106: AL/Axis/Grassland | B106: 1 | C106: AL | D106: Alabama | E106: Grassland | F106: Axis | G106: 1000000 | H106: 8100.81 | I106: 81.0081 | J106: LAC
A107: AL/Bama/Grassland | B107: 180 | C107: AL | D107: Alabama | E107: Grassland | F107: Bama | G107: 180000000 | H107: 2173.69 | I107: 21.7369 | J107: HAC
A108: AL/Barfield/Grassland | B108: 21 | C108: AL | D108: Alabama | E108: Grassland | F108: Barfield | G108: 21000000 | H108: 2504.75 | I108: 25.0475 | J108: Wetlands
A109: AL/Benndale/Grassland | B109: 60 | C109: AL | D109: Alabama | E109: Grassland | F109: Benndale | G109: 60000000 | H109: 2634.4 | I109: 26.344 | J109: HAC
A110: AL/Bewleyville/Grassland | B110: 42 | C110: AL | D110: Alabama | E110: Grassland | F110: Bewleyville | G110: 42000000 | H110: 2318.12 | I110: 23.1812 | J110: HAC
A111: AL/Bibb/Grassland | B111: 192 | C111: AL | D111: Alabama | E111: Grassland | F111: Bibb | G111: 192000000 | H111: 3264.31 | I111: 32.6431 | J111: LAC
A112: AL/Binnsville/Grassland | B112: 44 | C112: AL | D112: Alabama | E112: Grassland | F112: Binnsville | G112: 44000000 | H112: 3629.69 | I112: 36.2969 | J112: Wetlands
A113: AL/Birmingham/Grassland | B113: 20 | C113: AL | D113: Alabama | E113: Grassland | F113: Birmingham | G113: 20000000 | H113: 1496.06 | I113: 14.9606 | J113: HAC
A114: AL/Blanton/Grassland | B114: 15 | C114: AL | D114: Alabama | E114: Grassland | F114: Blanton | G114: 15000000 | H114: 2535.8 | I114: 25.358 | J114: HAC
A115: AL/Bodine/Grassland | B115: 755 | C115: AL | D115: Alabama | E115: Grassland | F115: Bodine | G115: 755000000 | H115: 2019.1 | I115: 20.191 | J115: HAC
A116: AL/Bonifay/Grassland | B116: 24 | C116: AL | D116: Alabama | E116: Grassland | F116: Bonifay | G116: 24000000 | H116: 2651.48 | I116: 26.5148 | J116: LAC
A117: AL/Boswell/Grassland | B117: 140 | C117: AL | D117: Alabama | E117: Grassland | F117: Boswell | G117: 140000000 | H117: 3683.7 | I117: 36.837 | J117: HAC
A118: AL/Brandon/Grassland | B118: 1 | C118: AL | D118: Alabama | E118: Grassland | F118: Brandon | G118: 1000000 | H118: 1870.17 | I118: 18.7017 | J118: LAC
A119: AL/Brantley/Grassland | B119: 41 | C119: AL | D119: Alabama | E119: Grassland | F119: Brantley | G119: 41000000 | H119: 2587.84 | I119: 25.8784 | J119: Wetlands
A120: AL/Cahaba/Grassland | B120: 256 | C120: AL | D120: Alabama | E120: Grassland | F120: Cahaba | G120: 256000000 | H120: 3384.7 | I120: 33.847 | J120: HAC
A121: AL/Canton Bend/Grassland | B121: 287 | C121: AL | D121: Alabama | E121: Grassland | F121: Canton Bend | G121: 287000000 | H121: 3010.74 | I121: 30.1074 | J121: HAC
A122: AL/Cartecay/Grassland | B122: 97 | C122: AL | D122: Alabama | E122: Grassland | F122: Cartecay | G122: 97000000 | H122: 1735.51 | I122: 17.3551 | J122: Wetlands
A123: AL/Cecil/Grassland | B123: 259 | C123: AL | D123: Alabama | E123: Grassland | F123: Cecil | G123: 259000000 | H123: 1687.16 | I123: 16.8716 | J123: HAC
A124: AL/Cheaha/Grassland | B124: 13 | C124: AL | D124: Alabama | E124: Grassland | F124: Cheaha | G124: 13000000 | H124: 1255.49 | I124: 12.5549 | J124: HAC
A125: AL/Chenneby/Grassland | B125: 287 | C125: AL | D125: Alabama | E125: Grassland | F125: Chenneby | G125: 287000000 | H125: 2662.25 | I125: 26.6225 | J125: HAC
A126: AL/Chewacla/Grassland | B126: 186 | C126: AL | D126: Alabama | E126: Grassland | F126: Chewacla | G126: 186000000 | H126: 4163.36 | I126: 41.6336 | J126: HAC
A127: AL/Chisca/Grassland | B127: 84 | C127: AL | D127: Alabama | E127: Grassland | F127: Chisca | G127: 84000000 | H127: 2726.67 | I127: 27.2667 | J127: LAC
A128: AL/Choccolocco/Grassland | B128: 20 | C128: AL | D128: Alabama | E128: Grassland | F128: Choccolocco | G128: 20000000 | H128: 2650.53 | I128: 26.5053 | J128: LAC
A129: AL/Clarendon/Grassland | B129: 10 | C129: AL | D129: Alabama | E129: Grassland | F129: Clarendon | G129: 10000000 | H129: 3055.53 | I129: 30.5553 | J129: HAC
A130: AL/Colbert/Grassland | B130: 721 | C130: AL | D130: Alabama | E130: Grassland | F130: Colbert | G130: 721000000 | H130: 2701.49 | I130: 27.0149 | J130: HAC
A131: AL/Conasauga/Grassland | B131: 369 | C131: AL | D131: Alabama | E131: Grassland | F131: Conasauga | G131: 369000000 | H131: 2132.75 | I131: 21.3275 | J131: HAC
A132: AL/Conecuh/Grassland | B132: 1 | C132: AL | D132: Alabama | E132: Grassland | F132: Conecuh | G132: 1000000 | H132: 1998.76 | I132: 19.9876 | J132: HAC
A133: AL/Congaree/Grassland | B133: 273 | C133: AL | D133: Alabama | E133: Grassland | F133: Congaree | G133: 273000000 | H133: 2980.38 | I133: 29.8038 | J133: HAC
A134: AL/Cowarts/Grassland | B134: 257 | C134: AL | D134: Alabama | E134: Grassland | F134: Cowarts | G134: 257000000 | H134: 2076.57 | I134: 20.7657 | J134: LAC
A135: AL/Cunningham/Grassland | B135: 12 | C135: AL | D135: Alabama | E135: Grassland | F135: Cunningham | G135: 12000000 | H135: 2240.14 | I135: 22.4014 | J135: HAC
A136: AL/Davidson/Grassland | B136: 9 | C136: AL | D136: Alabama | E136: Grassland | F136: Davidson | G136: 9000000 | H136: 1360.33 | I136: 13.6033 | J136: LAC
A137: AL/Decatur/Grassland | B137: 1142 | C137: AL | D137: Alabama | E137: Grassland | F137: Decatur | G137: 1142000000 | H137: 2435.68 | I137: 24.3568 | J137: HAC
A138: AL/Dellrose/Grassland | B138: 2 | C138: AL | D138: Alabama | E138: Grassland | F138: Dellrose | G138: 2000000 | H138: 3474 | I138: 34.74 | J138: HAC
A139: AL/Dewey/Grassland | B139: 213 | C139: AL | D139: Alabama | E139: Grassland | F139: Dewey | G139: 213000000 | H139: 1844.83 | I139: 18.4483 | J139: LAC
A140: AL/Dickson/Grassland | B140: 1141 | C140: AL | D140: Alabama | E140: Grassland | F140: Dickson | G140: 1141000000 | H140: 2274.01 | I140: 22.7401 | J140: HAC
A141: AL/Dorovan/Grassland | B141: 69 | C141: AL | D141: Alabama | E141: Grassland | F141: Dorovan | G141: 69000000 | H141: 4817.81 | I141: 48.1781 | J141: LAC
A142: AL/Dothan/Grassland | B142: 1501 | C142: AL | D142: Alabama | E142: Grassland | F142: Dothan | G142: 1501000000 | H142: 2639.47 | I142: 26.3947 | J142: Wetlands
A143: AL/Dulac/Grassland | B143: 4 | C143: AL | D143: Alabama | E143: Grassland | F143: Dulac | G143: 4000000 | H143: 4191.69 | I143: 41.9169 | J143: LAC
A144: AL/Ennis/Grassland | B144: 1 | C144: AL | D144: Alabama | E144: Grassland | F144: Ennis | G144: 1000000 | H144: 3091.68 | I144: 30.9168 | J144: Wetlands
A145: AL/Escambia/Grassland | B145: 65 | C145: AL | D145: Alabama | E145: Grassland | F145: Escambia | G145: 65000000 | H145: 5429.09 | I145: 54.2909 | J145: HAC
A146: AL/Etowah/Grassland | B146: 315 | C146: AL | D146: Alabama | E146: Grassland | F146: Etowah | G146: 315000000 | H146: 2542.03 | I146: 25.4203 | J146: HAC
A147: AL/Faceville/Grassland | B147: 58 | C147: AL | D147: Alabama | E147: Grassland | F147: Faceville | G147: 58000000 | H147: 2735.97 | I147: 27.3597 | J147: HAC
A148: AL/Flomaton/Grassland | B148: 28 | C148: AL | D148: Alabama | E148: Grassland | F148: Flomaton | G148: 28000000 | H148: 1589.77 | I148: 15.8977 | J148: LAC
A149: AL/Florala/Grassland | B149: 26 | C149: AL | D149: Alabama | E149: Grassland | F149: Florala | G149: 26000000 | H149: 4373.38 | I149: 43.7338 | J149: Wetlands
A150: AL/Fripp/Grassland | B150: 8 | C150: AL | D150: Alabama | E150: Grassland | F150: Fripp | G150: 7000000 | H150: 10441.6 | I150: 104.416 | J150: LAC
A151: AL/Fullerton/Grassland | B151: 205 | C151: AL | D151: Alabama | E151: Grassland | F151: Fullerton | G151: 205000000 | H151: 2699.41 | I151: 26.9941 | J151: HAC
A152: AL/Gaylesville/Grassland | B152: 24 | C152: AL | D152: Alabama | E152: Grassland | F152: Gaylesville | G152: 24000000 | H152: 2307.28 | I152: 23.0728 | J152: HAC
A153: AL/Gorgas/Grassland | B153: 960 | C153: AL | D153: Alabama | E153: Grassland | F153: Gorgas | G153: 960000000 | H153: 2117.29 | I153: 21.1729 | J153: LAC
A154: AL/Greenville/Grassland | B154: 552 | C154: AL | D154: Alabama | E154: Grassland | F154: Greenville | G154: 552000000 | H154: 3257.38 | I154: 32.5738 | J154: HAC
A155: AL/Gwinnett/Grassland | B155: 9 | C155: AL | D155: Alabama | E155: Grassland | F155: Gwinnett | G155: 9000000 | H155: 1803.86 | I155: 18.0386 | J155: Wetlands
A156: AL/Harleston/Grassland | B156: 4 | C156: AL | D156: Alabama | E156: Grassland | F156: Harleston | G156: 4000000 | H156: 7756.08 | I156: 77.5608 | J156: HAC
A157: AL/Hartsells/Grassland | B157: 2810 | C157: AL | D157: Alabama | E157: Grassland | F157: Hartsells | G157: 2810000000 | H157: 2285.01 | I157: 22.8501 | J157: HAC
A158: AL/Hector/Grassland | B158: 19 | C158: AL | D158: Alabama | E158: Grassland | F158: Hector | G158: 19000000 | H158: 1912.57 | I158: 19.1257 | J158: HAC
A159: AL/Holston/Grassland | B159: 106 | C159: AL | D159: Alabama | E159: Grassland | F159: Holston | G159: 106000000 | H159: 2145.49 | I159: 21.4549 | J159: HAC
A160: AL/Jones/Grassland | B160: 205 | C160: AL | D160: Alabama | E160: Grassland | F160: Jones | G160: 205000000 | H160: 2142.07 | I160: 21.4207 | J160: HAC
A161: AL/Kalmia/Grassland | B161: 42 | C161: AL | D161: Alabama | E161: Grassland | F161: Kalmia | G161: 42000000 | H161: 3564.31 | I161: 35.6431 | J161: HAC
A162: AL/Kipling/Grassland | B162: 329 | C162: AL | D162: Alabama | E162: Grassland | F162: Kipling | G162: 329000000 | H162: 2220.39 | I162: 22.2039 | J162: LAC
A163: AL/Kolomoki/Grassland | B163: 11 | C163: AL | D163: Alabama | E163: Grassland | F163: Kolomoki | G163: 11000000 | H163: 3825.48 | I163: 38.2548 | J163: Wetlands
A164: AL/Leesburg/Grassland | B164: 37 | C164: AL | D164: Alabama | E164: Grassland | F164: Leesburg | G164: 37000000 | H164: 2576.96 | I164: 25.7696 | J164: HAC
A165: AL/Levy/Grassland | B165: 1 | C165: AL | D165: Alabama | E165: Grassland | F165: Levy | G165: 1000000 | H165: 4671.19 | I165: 46.7119 | J165: HAC
A166: AL/Lexington/Grassland | B166: 9 | C166: AL | D166: Alabama | E166: Grassland | F166: Lexington | G166: 9000000 | H166: 2644.57 | I166: 26.4457 | J166: Wetlands
A167: AL/Linker/Grassland | B167: 21 | C167: AL | D167: Alabama | E167: Grassland | F167: Linker | G167: 21000000 | H167: 2662.13 | I167: 26.6213 | J167: HAC
A168: AL/Louisburg/Grassland | B168: 104 | C168: AL | D168: Alabama | E168: Grassland | F168: Louisburg | G168: 104000000 | H168: 1460.31 | I168: 14.6031 | J168: LAC
A169: AL/Lucedale/Grassland | B169: 233 | C169: AL | D169: Alabama | E169: Grassland | F169: Lucedale | G169: 233000000 | H169: 2147.33 | I169: 21.4733 | J169: HAC
A170: AL/Luverne/Grassland | B170: 1924 | C170: AL | D170: Alabama | E170: Grassland | F170: Luverne | G170: 1924000000 | H170: 2160.77 | I170: 21.6077 | J170: HAC
A171: AL/Lyerly/Grassland | B171: 52 | C171: AL | D171: Alabama | E171: Grassland | F171: Lyerly | G171: 52000000 | H171: 2091.6 | I171: 20.916 | J171: HAC
A172: AL/Madison/Grassland | B172: 653 | C172: AL | D172: Alabama | E172: Grassland | F172: Madison | G172: 653000000 | H172: 1601.34 | I172: 16.0134 | J172: HAC
A173: AL/Mantachie/Grassland | B173: 350 | C173: AL | D173: Alabama | E173: Grassland | F173: Mantachie | G173: 350000000 | H173: 2800.81 | I173: 28.0081 | J173: HAC
A174: AL/McQueen/Grassland | B174: 46 | C174: AL | D174: Alabama | E174: Grassland | F174: McQueen | G174: 46000000 | H174: 2497.89 | I174: 24.9789 | J174: HAC
A175: AL/Mecklenburg/Grassland | B175: 15 | C175: AL | D175: Alabama | E175: Grassland | F175: Mecklenburg | G175: 15000000 | H175: 1544.73 | I175: 15.4473 | J175: HAC
A176: AL/Minvale/Grassland | B176: 302 | C176: AL | D176: Alabama | E176: Grassland | F176: Minvale | G176: 302000000 | H176: 1884.33 | I176: 18.8433 | J176: HAC
A177: AL/Montevallo/Grassland | B177: 996 | C177: AL | D177: Alabama | E177: Grassland | F177: Montevallo | G177: 996000000 | H177: 1746.39 | I177: 17.4639 | J177: HAC
A178: AL/Nauvoo/Grassland | B178: 105 | C178: AL | D178: Alabama | E178: Grassland | F178: Nauvoo | G178: 105000000 | H178: 2226.98 | I178: 22.2698 | J178: HAC
A179: AL/Nella/Grassland | B179: 1041 | C179: AL | D179: Alabama | E179: Grassland | F179: Nella | G179: 1041000000 | H179: 2276.74 | I179: 22.7674 | J179: HAC
A180: AL/Notcher/Grassland | B180: 94 | C180: AL | D180: Alabama | E180: Grassland | F180: Notcher | G180: 94000000 | H180: 3859.92 | I180: 38.5992 | J180: HAC
A181: AL/Ochlockonee/Grassland | B181: 6 | C181: AL | D181: Alabama | E181: Grassland | F181: Ochlockonee | G181: 6000000 | H181: 2710.51 | I181: 27.1051 | J181: LAC
A182: AL/Oktibbeha/Grassland | B182: 236 | C182: AL | D182: Alabama | E182: Grassland | F182: Oktibbeha | G182: 236000000 | H182: 3291.06 | I182: 32.9106 | J182: HAC
A183: AL/Ora/Grassland | B183: 32 | C183: AL | D183: Alabama | E183: Grassland | F183: Ora | G183: 32000000 | H183: 2731.3 | I183: 27.313 | J183: HAC
A184: AL/Orangeburg/Grassland | B184: 270 | C184: AL | D184: Alabama | E184: Grassland | F184: Orangeburg | G184: 270000000 | H184: 2102.79 | I184: 21.0279 | J184: HAC
A185: AL/Pacolet/Grassland | B185: 372 | C185: AL | D185: Alabama | E185: Grassland | F185: Pacolet | G185: 372000000 | H185: 1642.71 | I185: 16.4271 | J185: LAC
A186: AL/Palmerdale/Grassland | B186: 7 | C186: AL | D186: Alabama | E186: Grassland | F186: Palmerdale | G186: 7000000 | H186: 1154.28 | I186: 11.5428 | J186: HAC
A187: AL/Poarch/Grassland | B187: 54 | C187: AL | D187: Alabama | E187: Grassland | F187: Poarch | G187: 54000000 | H187: 3114.42 | I187: 31.1442 | J187: HAC
A188: AL/Prim/Grassland | B188: 10 | C188: AL | D188: Alabama | E188: Grassland | F188: Prim | G188: 10000000 | H188: 2399.14 | I188: 23.9914 | J188: Wetlands
A189: AL/Red Bay/Grassland | B189: 6 | C189: AL | D189: Alabama | E189: Grassland | F189: Red Bay | G189: 6000000 | H189: 2368.53 | I189: 23.6853 | J189: HAC
A190: AL/Riverview/Grassland | B190: 54 | C190: AL | D190: Alabama | E190: Grassland | F190: Riverview | G190: 54000000 | H190: 1765.34 | I190: 17.6534 | J190: HAC
A191: AL/Roanoke/Grassland | B191: 32 | C191: AL | D191: Alabama | E191: Grassland | F191: Roanoke | G191: 32000000 | H191: 2214.03 | I191: 22.1403 | J191: HAC
A192: AL/Saffell/Grassland | B192: 10 | C192: AL | D192: Alabama | E192: Grassland | F192: Saffell | G192: 10000000 | H192: 2524.52 | I192: 25.2452 | J192: HAC
A193: AL/Savannah/Grassland | B193: 251 | C193: AL | D193: Alabama | E193: Grassland | F193: Savannah | G193: 251000000 | H193: 2805.39 | I193: 28.0539 | J193: HAC
A194: AL/Sequatchie/Grassland | B194: 10 | C194: AL | D194: Alabama | E194: Grassland | F194: Sequatchie | G194: 10000000 | H194: 2853.77 | I194: 28.5377 | J194: HAC
A195: AL/Shack/Grassland | B195: 28 | C195: AL | D195: Alabama | E195: Grassland | F195: Shack | G195: 28000000 | H195: 1948.49 | I195: 19.4849 | J195: HAC
A196: AL/Smithdale/Grassland | B196: 1812 | C196: AL | D196: Alabama | E196: Grassland | F196: Smithdale | G196: 1812000000 | H196: 2375.49 | I196: 23.7549 | J196: HAC
A197: AL/Springhill/Grassland | B197: 65 | C197: AL | D197: Alabama | E197: Grassland | F197: Springhill | G197: 65000000 | H197: 1853.01 | I197: 18.5301 | J197: HAC
A198: AL/State/Grassland | B198: 7 | C198: AL | D198: Alabama | E198: Grassland | F198: State | G198: 7000000 | H198: 1567.07 | I198: 15.6707 | J198: Wetlands
A199: AL/Sumter/Grassland | B199: 1986 | C199: AL | D199: Alabama | E199: Grassland | F199: Sumter | G199: 1986000000 | H199: 3990.08 | I199: 39.9008 | J199: HAC
A200: AL/Taft/Grassland | B200: 23 | C200: AL | D200: Alabama | E200: Grassland | F200: Taft | G200: 23000000 | H200: 2479.09 | I200: 24.7909 | J200: HAC
... 4300 more rows

Sheet ClimateRegionsUS (hidden)
A1: ALClim | B1: AZClim | C1: ARClim | D1: CAClim | E1: COClim | F1: CTClim | G1: DEClim | H1: FLClim | I1: GAClim | J1: IDClim | K1: ILClim | L1: INClim | M1: IAClim | N1: KSClim | O1: KYClim | P1: LAClim | Q1: MEClim | R1: MDClim | S1: MAClim | T1: MIClim | U1: MNClim | V1: MSClim | W1: MOClim | X1: MTClim | Y1: NEClim | Z1: NVClim | AA1: NHClim | AB1: NJClim | AC1: NMClim | AD1: NYClim | AE1: NCClim | AF1: NDClim | AG1: OHClim | AH1: OKClim | AI1: ORClim | AJ1: PAClim | AK1: SCClim | AL1: SDClim | AM1: TNClim | AN1: TXClim | AO1: UTClim | AP1: VTClim | AQ1: VAClim | AR1: WAClim | AS1: WVClim | AT1: WIClim | AU1: WYClim
A2: Tropical moist | B2: Cool temperate dry | C2: Warm Temperate Dry | D2: Boreal Dry | E2: Boreal Moist | F2: Cool Temperate Moist | G2: Warm Temperate Dry | H2: Tropical Moist | I2: Tropical Moist | J2: Boreal Dry | K2: Cool Temperate Moist | L2: Cool Temperate Moist | M2: Cool Temperate Dry | N2: Cool Temperate Dry | O2: Warm Temperate Dry | P2: Tropical Moist | Q2: Cool Temperate Moist | R2: Cool Temperate Moist | S2: Cool Temperate Moist | T2: Cool Temperate Moist | U2: Cool Temperate Dry | V2: Tropical Moist | W2: Cool Temperate Dry | X2: Boreal Moist | Y2: Cool Temperate Dry | Z2: Cool Temperate Dry | AA2: Cool Temperate Moist | AB2: Cool Temperate Moist | AC2: Cool Temperate Dry | AD2: Cool Temperate Moist | AE2: Cool Temperate Moist | AF2: Cool Temperate Dry | AG2: Cool Temperate Moist | AH2: Warm Temperate Dry | AI2: Boreal Dry | AJ2: Cool Temperate Moist | AK2: Warm Temperate Dry | AL2: Cool Temperate Dry | AM2: Cool Temperate Moist | AN2: Tropical Dry | AO2: Boreal Moist | AP2: Cool Temperate Moist | AQ2: Cool Temperate Moist | AR2: Boreal Dry | AS2: Cool Temperate Moist | AT2: Cool Temperate Dry | AU2: Boreal Moist
A3: Warm temperate dry | B3: Tropical dry | C3: Warm temperate Moist | D3: Cool Temperate Dry | E3: Cool Temperate Dry | H3: Warm temperate Moist | I3: Warm Temperate Dry | J3: Boreal Moist | K3: Warm Temperate Dry | L3: Warm Temperate Dry | M3: Cool Temperate Moist | N3: Warm Temperate Dry | O3: Warm temperate Moist | P3: Warm Temperate Dry | R3: Warm Temperate Dry | U3: Cool Temperate Moist | V3: Warm Temperate Dry | W3: Cool Temperate Moist | X3: Cool Temperate Dry | Y3: Warm Temperate Dry | Z3: Tropical Dry | AB3: Warm Temperate Dry | AC3: Warm Temperate Dry | AD3: Warm Temperate Dry | AE3: Warm Temperate Dry | AG3: Warm Temperate Dry | AI3: Cool Temperate Dry | AJ3: Warm Temperate Dry | AK3: Warm temperate Moist | AM3: Warm Temperate Dry | AN3: Tropical Moist | AO3: Cool Temperate Dry | AQ3: Warm Temperate Dry | AR3: Cool Temperate Dry | AS3: Warm temperate Moist | AT3: Cool Temperate Moist | AU3: Cool Temperate Dry
A4: warm temperate moist | B4: tropical montane | D4: Cool Temperate Moist | E4: Cool Temperate Moist | I4: Warm temperate Moist | J4: Cool Temperate Dry | L4: Warm temperate Moist | P4: Warm temperate Moist | R4: Warm temperate Moist | V4: Warm temperate Moist | W4: Warm Temperate Dry | X4: Cool Temperate Moist | Z4: Tropical Montane | AB4: Warm temperate Moist | AD4: Warm temperate Moist | AE4: Warm temperate Moist | AG4: Warm temperate Moist | AI4: Cool Temperate Moist | AJ4: Warm temperate Moist | AM4: Warm temperate Moist | AN4: Warm Temperate Dry | AO4: Warm Temperate Dry | AQ4: Warm temperate Moist | AR4: Cool Temperate Moist | AU4: Cool Temperate Moist
B5: warm temperate dry | D5: Tropical Dry | E5: Polar Moist | J5: Cool Temperate Moist | W5: Warm temperate Moist | Z5: Warm Temperate Dry | AI5: Warm Temperate Dry | AN5: Warm temperate Moist | AR5: Warm Temperate Dry
D6: Tropical Montane | E6: Warm Temperate Dry | AI6: Warm temperate Moist
D7: Warm Temperate Dry
D8: Warm temperate Moist
